Workbook

Sheet Control Panel
A1: 1 | B1: Dominion Energy | F1: DEFICIENCY
B2: =F11&" - "&F16 -> Utah - DEC 2023 Adjusted Avg Results | F2: =Report!K13 -> 8413296.853
B3: ="12 Months Ended"&" : "& TEXT(F12,"mmm-yyyy") -> 12 Months Ended : Dec-2023 | F3: ROE
B4: ="Capital Structure"&" : "&F43 -> Capital Structure : AVG CAP STR 2023 | F4: =+Report!J79 -> 0.09156844716
B9: REPORT CHECK: MUST BE (0) ======> | C9: =IF((SUM(Report!F13:H74)-SUM(Report!I13:I74))<1,"0","ERROR") -> 0 | H9: DEC 2022 Unadjusted Avg Results | J9: DEC 2022 Adjusted Avg Results | L9: DEC 2023 Adjusted Avg Results | N9: DEC 2024 Adjusted Avg Results CET | Q9: Line #
E10: =F10&" - "&"A" -> 6 - A | F10: 6 | H10: 4 | I10: =H10&" - "&"A" -> 4 - A | J10: 5 | K10: =J10&" - "&"A" -> 5 - A | L10: 6 | M10: =L10&" - "&"A" -> 6 - A | N10: 7 | O10: =N10&" - "&"A" -> 7 - A | Q10: 1
B11: Jurisdiction | F11: =HLOOKUP($F$10,Scenarios,Q11,FALSE) -> Utah | H11: Utah | J11: Utah | L11: Utah | N11: Utah | Q11: =Q10+1 -> 2
B12: Scenario Title 1 | F12: =HLOOKUP($F$10,Scenarios,Q12,FALSE) -> 2023-12-31 | H12: 2022-12-31 | J12: 2022-12-31 | L12: 2023-12-31 | N12: 2024-12-31 | Q12: =Q11+1 -> 3
Q13: 4
Q14: 5
Q15: 6
B16: Scenario Title 2 | F16: =HLOOKUP($F$10,Scenarios,Q16,FALSE) -> DEC 2023 Adjusted Avg Results | H16: =+H9 -> DEC 2022 Unadjusted Avg Results | J16: =+J9 -> DEC 2022 Adjusted Avg Results | L16: =+L9 -> DEC 2023 Adjusted Avg Results | N16: =+N9 -> DEC 2024 Adjusted Avg Results CET | Q16: 7
B17: Required Inputs and Factors | Q17: 8
Q18: 9
B19: Return On Equity | F19: =HLOOKUP($F$10,Scenarios,Q19,FALSE) -> 0.096 | H19: 0.096 | J19: 0.096 | L19: 0.096 | N19: 0.096 | Q19: 10
Q20: 11
B21: Lead-Lag Factor | F21: =HLOOKUP($F$10,Scenarios,Q21,FALSE) -> 8.35 | H21: 8.35 | J21: 8.35 | L21: 8.35 | N21: 8.35 | Q21: 12
B22: Bad Debt Ratio | F22: =HLOOKUP($F$10,Scenarios,Q22,FALSE) -> 0.002116500145 | H22: =+'Utah Bad Debt'!$G$17 -> 0.002116500145 | J22: =+'Utah Bad Debt'!$G$17 -> 0.002116500145 | L22: ='Utah Bad Debt'!$G$17 -> 0.002116500145 | N22: ='Utah Bad Debt'!$G$17 -> 0.002116500145 | Q22: =Q21+1 -> 13
Q23: =Q22+1 -> 14
Q24: 15
B25: Adjustments | C25: Go To Adjustment | Q25: 16
Q26: 17
A27: 1 | B27: =+F27 -> AVG RB DEC 2023 | C27: RATE BASE | E27: =HLOOKUP($E$10,Scenarios,Q27,FALSE) -> Y | F27: =HLOOKUP($F$10,Scenarios,Q27,FALSE) -> AVG RB DEC 2023 | H27: AVG RB DEC 2022 | I27: Y | J27: AVG RB DEC 2022 | K27: Y | L27: AVG RB DEC 2023 | M27: Y | N27: AVG RB DEC 2024 | O27: Y | Q27: 18
A28: =+A27+1 -> 2 | B28: Expense Dec 2023 | C28: Expense Adjustment | E28: Y | F28: Expense Dec 2023 | H28: Expense Dec 2022 | I28: N | J28: Expense Dec 2022 | K28: N | L28: Expense Dec 2023 | M28: Y | N28: Expense Dec 2024 | O28: Y | Q28: 19
A29: =+A28+1 -> 3 | B29: =+F29 -> AVG Projected Rev 2023 with CET | C29: REVENUE ADJUSTMENT | E29: Y | F29: AVG Projected Rev 2023 with CET | H29: Booked Rev DEC 2022 | I29: Y | J29: Booked Rev DEC 2022 | K29: Y | L29: AVG Projected Rev 2023 with CET | M29: Y | N29: AVG Projected Rev 2024with CET | O29: Y | Q29: 20
A30: =+A29+1 -> 4 | B30: Underground Storage | C30: Underground Storage | E30: Y | F30: Underground Storage | H30: Underground Storage | I30: Y | J30: Underground Storage | K30: Y | L30: Underground Storage | M30: Y | N30: Underground Storage | O30: Y | Q30: 21
A31: 5 | B31: Wexpro | C31: Wexpro | E31: Y | F31: Wexpro | H31: Wexpro | I31: Y | J31: Wexpro | K31: Y | L31: Wexpro | M31: Y | N31: Wexpro | O31: Y | Q31: 22
A32: 6 | B32: =+F32 -> Energy Efficiency 2023 | C32: Energy Efficiency | E32: =HLOOKUP($E$10,Scenarios,Q32,FALSE) -> Y | F32: Energy Efficiency 2023 | H32: Energy Efficiency 2022 | I32: Y | J32: Energy Efficiency 2022 | K32: Y | L32: Energy Efficiency 2023 | M32: Y | N32: Energy Efficiency 2024 | O32: Y | Q32: 23
A33: 7 | B33: Utah Bad Debt 2023 | C33: Utah Bad Debt | E33: Y | F33: Utah Bad Debt 2023 | H33: Utah Bad Debt 2022 | I33: N | J33: Utah Bad Debt 2022 | K33: Y | L33: Utah Bad Debt 2023 | M33: Y | N33: Utah Bad Debt 2024 | O33: Y | Q33: 24
A34: 8 | B34: Incentives 2023 | C34: Incentives | E34: Y | F34: Incentives 2023 | H34: Incentives 2022 | I34: N | J34: Incentives 2022 | K34: Y | L34: Incentives 2023 | M34: Y | N34: Incentives 2024 | O34: Y | Q34: 25
A35: 9 | B35: Sporting Events DEC 2023 | C35: Sporting Events | E35: Y | F35: Sporting Events DEC 2023 | H35: Sporting Events DEC 2022 | I35: N | J35: Sporting Events DEC 2022 | K35: Y | L35: Sporting Events DEC 2023 | M35: Y | N35: Sporting Events DEC 2024 | O35: Y | Q35: 26
A36: 10 | B36: Advertising DEC 2023 | C36: Advertising | E36: Y | F36: Advertising DEC 2023 | H36: Advertising DEC 2022 | I36: N | J36: Advertising DEC 2022 | K36: Y | L36: Advertising DEC 2023 | M36: Y | N36: Advertising DEC 2024 | O36: Y | Q36: 27
A37: 11 | B37: Don & Membership DEC 2023 | C37: Donations | E37: Y | F37: Don & Membership DEC 2023 | H37: Don & Membership DEC 2022 | I37: N | J37: Don & Membership DEC 2022 | K37: Y | L37: Don & Membership DEC 2023 | M37: Y | N37: Don & Membership DEC 2024 | O37: Y | Q37: 28
A38: 12 | B38: Reserve Accrual Dec 2023 | C38: RESERVE ACCRUAL | E38: Y | F38: Reserve Accrual Dec 2023 | H38: Reserve Accrual Dec 2022 | I38: N | J38: Reserve Accrual Dec 2022 | K38: Y | L38: Reserve Accrual Dec 2023 | M38: Y | N38: Reserve Accrual Dec 2024 | O38: Y | Q38: 29
A39: 13 | B39: Labor Adj | C39: Labor Adj | E39: N | F39: Labor Adj | H39: Labor Adj | I39: N | J39: Labor Adj | K39: Y | L39: Labor Adj | M39: N | N39: Labor Adj | O39: N | Q39: 30
A40: 14 | B40: =F40 -> Pension 2023 | C40: Pension | E40: Y | F40: Pension 2023 | H40: Pension 2022 | I40: N | J40: Pension 2022 | K40: Y | L40: Pension 2023 | M40: Y | N40: Pension 2024 | O40: Y | Q40: 31
A41: 15 | Q41: 32
A42: 16 | Q42: 33
A43: 17 | B43: =+F43 -> AVG CAP STR 2023 | C43: Capital Structure | F43: =HLOOKUP($F$10,Scenarios,Q43,FALSE) -> AVG CAP STR 2023 | H43: AVG CAP STR 2022 | J43: AVG CAP STR 2022 | L43: AVG CAP STR 2023 | N43: AVG CAP STR 2024 | Q43: 34
A44: 18

Sheet Report
A1: ='Control Panel'!$B$1 -> Dominion Energy
A2: ='Control Panel'!$B$2 -> Utah - DEC 2023 Adjusted Avg Results
A3: ='Control Panel'!$B$3 -> 12 Months Ended : Dec-2023 | F3: =+'Control Panel'!$B$3 -> 12 Months Ended : Dec-2023 | J3: 12 Mos Dec-2022
A4: =+'Control Panel'!B19 -> Return On Equity | D4: =+'Control Panel'!F19 -> 0.096
B5: (A) | F5: (B) | G5: (C) | H5: (D) | I5: (E) | J5: 44896 | K5: (G) | L5: (H)
F6: =+'ROR-Model'!F7 -> Historical | H6: =+'ROR-Model'!H7 -> Imputed | I6: =+'ROR-Model'!I7 -> Adjusted | J6: =+'ROR-Model'!W9 -> Utah | L6: =+J6 -> Utah
E7: CHECKS MUST BE (0) | F7: =+'ROR-Model'!F8 -> 12 Months | G7: Adjustments | H7: =+'ROR-Model'!H8 -> Tax | I7: =+'ROR-Model'!I8 -> System | J7: Jurisdiction | L7: Jurisdiction | M7: CHECKS MUST BE (0)
B8: Description | F8: 2022-12-31 | G8: Total | H8: =+'ROR-Model'!H9 -> Adjustment | I8: =+'ROR-Model'!I9 -> Total | J8: DNG Related | K8: Deficiency | L8: Total
A10: 1 | B10: NET INCOME SUMMARY
A12: =+A10+1 -> 2 | B12: Utility Operating Revenue
A13: =+A12+1 -> 3 | D13: System Distribution Non-Gas Revenue | E13: =+F13+G13+H13-I13 -> 0 | F13: =+'ROR-Model'!F363+'ROR-Model'!F365 -> 462307065.5 | G13: =+'ROR-Model'!G363+'ROR-Model'!G365 -> 31233596.98 | H13: =+'ROR-Model'!H363+'ROR-Model'!H365 -> 0 | I13: =+'ROR-Model'!I363+'ROR-Model'!I365 -> 493540662.5 | J13: ='ROR-Model'!W368 -> 479962631 | K13: =+K44*Taxes!L20 -> 8413296.853 | L13: =SUM(J13:K13) -> 488375927.9 | M13: =+N13-I13 -> 0 | N13: =SUM(F13:H13) -> 493540662.5
A14: 4 | D14: System Supplier Non-Gas Revenue | E14: 0 | F14: =+'ROR-Model'!F364 -> 95423762.61 | G14: =+'ROR-Model'!G364 -> -933252.0088 | H14: =+'ROR-Model'!H364 -> 0 | I14: =+'ROR-Model'!I364 -> 94490510.61 | L14: =SUM(J14:K14) -> 0 | M14: =+N14-I14 -> 0 | N14: =SUM(F14:H14) -> 94490510.61
A15: 5 | D15: System Commodity Revenue | E15: 0 | F15: =+'ROR-Model'!F366 -> 710367596.7 | G15: =+'ROR-Model'!G366 -> -294308.2592 | H15: =+'ROR-Model'!H366 -> 0 | I15: =+'ROR-Model'!I366 -> 710073288.5 | L15: =SUM(J15:K15) -> 0 | M15: 0 | N15: 710073288.5
A16: 6 | D16: Pass-Through Related Other Revenue | E16: 0 | F16: ='ROR-Model'!F501+'ROR-Model'!F505 -> 39409597.6 | G16: ='ROR-Model'!G501+'ROR-Model'!G505 -> 0 | H16: ='ROR-Model'!H501+'ROR-Model'!H505 -> 0 | I16: ='ROR-Model'!I501+'ROR-Model'!I505 -> 39409597.6 | L16: =SUM(J16:K16) -> 0 | M16: 0 | N16: 39409597.6
A17: 7 | D17: General Related Other Revenue | E17: 0 | F17: ='ROR-Model'!F502+'ROR-Model'!F506 -> 6110762.783 | G17: ='ROR-Model'!G502+'ROR-Model'!G506 -> 0 | H17: ='ROR-Model'!H502+'ROR-Model'!H506 -> 0 | I17: ='ROR-Model'!I502+'ROR-Model'!I506 -> 6110762.783 | J17: ='ROR-Model'!W509 -> 5866225.915 | L17: =SUM(J17:K17) -> 5866225.915 | M17: 0 | N17: 6110762.783
A18: 8 | C18: Total Utility Operating Revenue | E18: 0 | F18: =SUM(F13:F17) -> 1313618785 | G18: 30006036.71 | H18: 0 | I18: =SUM(I13:I17) -> 1343624822 | J18: 485828856.9 | K18: 8413296.853 | L18: 494242153.8 | M18: 0 | N18: 1343624822
M19: 0 | N19: 0
A20: =+A18+1 -> 9 | B20: Utility Operating Expenses | M20: 0 | N20: 0
A21: =+A20+1 -> 10 | C21: Gas Purchase Expenses | M21: 0 | N21: 0
A22: =+A21+1 -> 11 | D22: Utah | E22: =+F22+G22+H22-I22 -> 0 | F22: ='ROR-Model'!F633+'ROR-Model'!F636 -> 818210449.1 | G22: ='ROR-Model'!G633+'ROR-Model'!G636 -> -179450.6924 | H22: ='ROR-Model'!H633+'ROR-Model'!H636 -> 0 | I22: ='ROR-Model'!I633+'ROR-Model'!I636 -> 818030998.4 | L22: =SUM(J22:K22) -> 0 | M22: 0 | N22: 818030998.4
A23: =+A22+1 -> 12 | D23: Wyoming | E23: =+F23+G23+H23-I23 -> 0 | F23: ='ROR-Model'!F635+'ROR-Model'!F637 -> 26990507.82 | G23: ='ROR-Model'!G635+'ROR-Model'!G637 -> -1048109.576 | H23: ='ROR-Model'!H635+'ROR-Model'!H637 -> 0 | I23: ='ROR-Model'!I635+'ROR-Model'!I637 -> 25942398.24 | L23: =SUM(J23:K23) -> 0 | M23: 0 | N23: 25942398.24
A24: =+A23+1 -> 13 | D24: Total | E24: =+F24+G24+H24-I24 -> 0 | F24: =SUM(F22:F23) -> 845200956.9 | G24: -1227560.268 | H24: 0 | I24: 843973396.7 | J24: 0 | K24: 0 | L24: 0 | M24: 0 | N24: 843973396.7
E25: =+F25+G25+H25-I25 -> 0 | M25: 0 | N25: =SUM(F25:H25) -> 0
A26: =A24+1 -> 14 | C26: O&M Expenses | M26: 0 | N26: 0
A27: =+A26+1 -> 15 | D27: Production | E27: =+F27+G27+H27-I27 -> 0 | F27: ='ROR-Model'!F650 -> -343189.38 | G27: ='ROR-Model'!G650 -> -3140.182827 | H27: ='ROR-Model'!H650 -> 0 | I27: ='ROR-Model'!I650 -> -346329.5628 | J27: ='ROR-Model'!W650 -> -335223.202 | L27: =SUM(J27:K27) -> -335223.202 | M27: 0 | N27: -346329.5628
A28: 16 | D28: Distribution | E28: 0 | F28: ='ROR-Model'!F753 -> 74841437.02 | G28: ='ROR-Model'!G753 -> 377083.5 | H28: ='ROR-Model'!H753 -> 0 | I28: ='ROR-Model'!I753 -> 75218520.52 | J28: ='ROR-Model'!W753 -> 72085302.94 | L28: =SUM(J28:K28) -> 72085302.94 | M28: 0 | N28: 75218520.52
A29: 17 | D29: Customer Accounts | E29: 0 | F29: ='ROR-Model'!F806 -> 13351043.44 | G29: ='ROR-Model'!G806 -> -976503.6182 | H29: ='ROR-Model'!H806 -> 0 | I29: ='ROR-Model'!I806 -> 12374539.82 | J29: ='ROR-Model'!W806 -> 12024980.19 | K29: =+K13*'Control Panel'!F22 -> 17806.74401 | L29: =SUM(J29:K29) -> 12042786.94 | M29: 0 | N29: 12374539.82
A30: 18 | D30: Customer Service & Information | E30: 0 | F30: ='ROR-Model'!F834 -> 32814432.55 | G30: ='ROR-Model'!G834 -> -29739057.05 | H30: ='ROR-Model'!H834 -> 0 | I30: ='ROR-Model'!I834 -> 3075375.499 | J30: ='ROR-Model'!W834 -> 3001802.387 | L30: =SUM(J30:K30) -> 3001802.387 | M30: 0 | N30: 3075375.499
A31: 19 | D31: Administrative & General | E31: 0 | F31: ='ROR-Model'!F902 -> 32745361.03 | G31: ='ROR-Model'!G902 -> 10928030.38 | H31: ='ROR-Model'!H902 -> 0 | I31: ='ROR-Model'!I902 -> 43673391.41 | J31: ='ROR-Model'!W902 -> 41939904.04 | L31: =SUM(J31:K31) -> 41939904.04 | M31: 0 | N31: 43673391.41
A32: 20 | D32: Total O&M Expense | E32: 0 | F32: =SUM(F27:F31) -> 153409084.7 | G32: -19413586.97 | H32: 0 | I32: 133995497.7 | J32: 128716766.4 | K32: 17806.74401 | L32: 128734573.1 | M32: 0 | N32: 133995497.7
M33: 0 | N33: 0
A34: =+A32+1 -> 21 | C34: Other Operating Expenses | M34: 0 | N34: 0
A35: =+A34+1 -> 22 | D35: Depreciation, Depletion, Amortization | E35: =+F35+G35+H35-I35 -> 0 | F35: ='ROR-Model'!F926 -> 89881138.67 | G35: ='ROR-Model'!G926 -> 18000767.79 | H35: ='ROR-Model'!H926 -> 0 | I35: ='ROR-Model'!I926 -> 107881906.5 | J35: ='ROR-Model'!W926 -> 104458264.1 | L35: =SUM(J35:K35) -> 104458264.1 | M35: 0 | N35: 107881906.5
A36: =+A35+1 -> 23 | D36: Taxes Other Than Income Taxes | E36: =+F36+G36+H36-I36 -> 0 | F36: ='ROR-Model'!F934 -> 26498629.17 | G36: ='ROR-Model'!G934 -> 4393399.2 | H36: ='ROR-Model'!H934 -> 0 | I36: ='ROR-Model'!I934 -> 30892028.37 | J36: ='ROR-Model'!W934 -> 29538052.78 | L36: =SUM(J36:K36) -> 29538052.78 | M36: 0 | N36: 30892028.37
A37: =+A36+1 -> 24 | D37: Income Taxes | E37: =+F37+G37+H37-I37 -> 0 | F37: ='ROR-Model'!F936+'ROR-Model'!F938+'ROR-Model'!F940+'ROR-Model'!F942 -> 34367820.69 | G37: ='ROR-Model'!G936+'ROR-Model'!G938+'ROR-Model'!G940+'ROR-Model'!G942 -> -614924.6125 | H37: ='ROR-Model'!H936+'ROR-Model'!H938+'ROR-Model'!H940+'ROR-Model'!H942 -> 9606044.974 | I37: ='ROR-Model'!I936+'ROR-Model'!I938+'ROR-Model'!I940+'ROR-Model'!I942 -> 43358941.05 | J37: ='ROR-Model'!W936 -> 42773746.03 | K37: =(K13-K29)*Taxes!L14 -> 2069791.491 | L37: =SUM(J37:K37) -> 44843537.52 | M37: 0 | N37: 43358941.05
A38: =+A37+1 -> 25 | D38: Total Other Operating Expenses | E38: =+F38+G38+H38-I38 -> 0 | F38: =SUM(F35:F37) -> 150747588.5 | G38: 21779242.38 | H38: 9606044.974 | I38: =SUM(I35:I37) -> 182132875.9 | J38: 176770062.9 | K38: 2069791.491 | L38: 178839854.4 | M38: 0 | N38: 182132875.9
M39: 0 | N39: 0
M40: 0 | N40: 0
A41: =+A38+1 -> 26 | C41: Total Utility Operating Expenses | E41: =+F41+G41+H41-I41 -> 0 | F41: =+F24+F32+F38 -> 1149357630 | G41: =+G24+G32+G38 -> 1138095.14 | H41: 9606044.974 | I41: =+I24+I32+I38 -> 1160101770 | J41: 305486829.3 | K41: 2087598.235 | L41: 307574427.5 | M41: 0 | N41: 1160101770
M42: 0 | N42: 0
M43: 0 | N43: 0
A44: =+A41+1 -> 27 | B44: NET OPERATING INCOME | E44: =+F44+G44+H44-I44 -> 3.576278687e-07 | F44: =+F18-F41 -> 164261155.1 | G44: =+G18-G41 -> 28867941.58 | H44: =+H18-H41 -> -9606044.974 | I44: =+I18-I41 -> 183523051.7 | J44: =+J18-J41 -> 180342027.6 | K44: =+L44-J44 -> 6326583.857 | L44: =L74*L77 -> 186668611.5 | M44: 3.576278687e-07 | N44: 183523051.7
M45: 0
A47: =+A44+1 -> 28 | B47: RATE BASE SUMMARY
A49: =+A47+1 -> 29 | B49: Net Utility Plant
A50: =+A49+1 -> 30 | C50: 101 | D50: Gas Plant In Service | E50: =+F50+G50+H50-I50 -> 0 | F50: ='ROR-Model'!F1123 -> 3707350263 | G50: ='ROR-Model'!G1123 -> 486717116.6 | H50: ='ROR-Model'!H1123 -> 0 | I50: ='ROR-Model'!I1123 -> 4194067380 | J50: ='ROR-Model'!W1123 -> 4056537567 | L50: =SUM(J50:K50) -> 4056537567 | M50: =+N50-I50 -> 0 | N50: =SUM(F50:H50) -> 4194067380 | R50: =L50-F50 -> 349187303.6
A51: 31 | C51: 105 | D51: Gas Plant Held For Future Use | E51: 0 | F51: ='ROR-Model'!F1127 -> 0 | G51: ='ROR-Model'!G1127 -> 0 | H51: ='ROR-Model'!H1127 -> 0 | I51: ='ROR-Model'!I1127 -> 0 | J51: ='ROR-Model'!W1127 -> 0 | L51: 0 | M51: 0 | N51: 0
A52: 32 | C52: 106 | D52: Completed Construction Not Classified | E52: 0 | F52: ='ROR-Model'!F1134 -> 446573733.1 | G52: ='ROR-Model'!G1134 -> -247675475.2 | H52: ='ROR-Model'!H1134 -> 0 | I52: ='ROR-Model'!I1134 -> 198898257.9 | J52: ='ROR-Model'!W1134 -> 196474797.9 | L52: 196474797.9 | M52: 0 | N52: 198898257.9
A53: 33 | C53: 108 | D53: Accumulated Depreciation | E53: 0 | F53: ='ROR-Model'!F1141 -> -968496960.4 | G53: ='ROR-Model'!G1141 -> -38492277.42 | H53: ='ROR-Model'!H1141 -> 0 | I53: ='ROR-Model'!I1141 -> -1006989238 | J53: ='ROR-Model'!W1141 -> -961795411.4 | L53: -961795411.4 | M53: 0 | N53: -1006989238
A54: 34 | C54: 111 | D54: Accumulated Amort & Depletion | E54: 0 | F54: ='ROR-Model'!F1148 -> -6636083.01 | G54: ='ROR-Model'!G1148 -> -619151.9033 | H54: ='ROR-Model'!H1148 -> 0 | I54: ='ROR-Model'!I1148 -> -7255234.913 | J54: ='ROR-Model'!W1148 -> -6814810.511 | L54: -6814810.511 | M54: 0 | N54: -7255234.913
A55: 35 | C55: 254 | D55: Other Regulatory Liabilities ARC | F55: ='ROR-Model'!F1155 -> -410360382 | G55: ='ROR-Model'!G1155 -> 1722778.5 | H55: ='ROR-Model'!H1155 -> 0 | I55: ='ROR-Model'!I1155 -> -408637603.5 | J55: ='ROR-Model'!W1155 -> -395076333 | L55: -395076333
A56: 36 | C56: Total Net Utility Plant | E56: 0 | F56: =SUM(F50:F55) -> 2768430571 | G56: =SUM(G50:G55) -> 201652990.5 | H56: =SUM(H50:H55) -> 0 | I56: =SUM(I50:I55) -> 2970083562 | J56: =SUM(J50:J55) -> 2889325810 | K56: =SUM(K50:K54) -> 0 | L56: =SUM(L50:L55) -> 2889325810 | M56: 0 | N56: 2970083562
M57: 0
A58: =+A56+1 -> 37 | B58: Other Rate Base Accounts | M58: 0
A59: =+A58+1 -> 38 | C59: 154 | D59: Materials & Supplies | E59: =+F59+G59+H59-I59 -> 0 | F59: ='ROR-Model'!F1173 -> 25205737.3 | G59: ='ROR-Model'!G1173 -> 0 | H59: ='ROR-Model'!H1173 -> 0 | I59: ='ROR-Model'!I1173 -> 25205737.3 | J59: ='ROR-Model'!W1173 -> 24499936.33 | L59: =SUM(J59:K59) -> 24499936.33 | M59: 0 | N59: =SUM(F59:H59) -> 25205737.3
A60: 39 | C60: 164-1 | D60: Gas Stored Underground | E60: 0 | F60: ='ROR-Model'!F1177 -> 48124018.94 | G60: ='ROR-Model'!G1177 -> -48124018.94 | H60: ='ROR-Model'!H1177 -> 0 | I60: ='ROR-Model'!I1177 -> 0 | J60: ='ROR-Model'!W1177 -> 0 | L60: 0 | M60: 0 | N60: 0
A61: 40 | C61: 165 | D61: Prepayments | E61: 0 | F61: ='ROR-Model'!F1181 -> 1512116.55 | G61: ='ROR-Model'!G1181 -> 5088262.656 | H61: ='ROR-Model'!H1181 -> 0 | I61: ='ROR-Model'!I1181 -> 6600379.206 | J61: ='ROR-Model'!W1181 -> 6404953.625 | L61: 6404953.625 | M61: 0 | N61: 6600379.206
A62: 41 | C62: 190008 | D62: Accum Deferred Income Tax Federal | E62: 0 | F62: =+'ROR-Model'!F1188 -> 14248609.73 | G62: =+'ROR-Model'!G1188 -> 0 | H62: ='ROR-Model'!H1188 -> 0 | I62: =+'ROR-Model'!I1188 -> 14248609.73 | J62: =+'ROR-Model'!W1188 -> 13826733.54 | L62: 13826733.54 | M62: 0 | N62: 14248609.73
A63: 42 | C63: 190009 | D63: Accum Deferred Income Tax State | E63: 0 | F63: =+'ROR-Model'!F1195 -> 3282252.01 | G63: =+'ROR-Model'!G1195 -> 0 | H63: ='ROR-Model'!H1195 -> 0 | I63: =+'ROR-Model'!I1195 -> 3282252.01 | J63: =+'ROR-Model'!W1195 -> 3185083.088 | L63: 3185083.088 | M63: 0 | N63: 3282252.01
A64: 43 | C64: 235-1 | D64: Customer Deposits | E64: 0 | F64: ='ROR-Model'!F1200 -> -2855760.89 | G64: ='ROR-Model'!G1200 -> 0 | H64: ='ROR-Model'!H1200 -> 0 | I64: ='ROR-Model'!I1200 -> -2855760.89 | J64: ='ROR-Model'!W1200 -> -2754786.84 | L64: -2754786.84 | M64: 0 | N64: -2855760.89
A65: 44 | C65: 252 | D65: Contributions in Aid of Construction | E65: 0 | F65: =+'ROR-Model'!F1205 -> 0 | G65: ='ROR-Model'!G1205 -> 0 | H65: ='ROR-Model'!H1205 -> 0 | I65: ='ROR-Model'!I1205 -> 0 | J65: ='ROR-Model'!W1205 -> 0 | L65: 0 | M65: 0 | N65: 0
A66: 45 | C66: 253-1 | D66: Unclaimed Customer Deposits | E66: 0 | F66: ='ROR-Model'!F1209 -> -120981.89 | G66: ='ROR-Model'!G1209 -> 17182.0975 | H66: ='ROR-Model'!H1209 -> 0 | I66: ='ROR-Model'!I1209 -> -103799.7925 | J66: ='ROR-Model'!W1209 -> -100726.4638 | L66: -100726.4638 | M66: 0 | N66: -103799.7925
A67: 46 | C67: 255 | D67: Deferred Investment Tax Credits | E67: 0 | F67: ='ROR-Model'!F1216 -> 0 | G67: ='ROR-Model'!G1216 -> 0 | H67: ='ROR-Model'!H1216 -> 0 | I67: ='ROR-Model'!I1216 -> 0 | J67: ='ROR-Model'!W1216 -> 0 | L67: 0 | M67: 0 | N67: 0
A68: 47 | C68: 282 | D68: Accum Deferred Income Taxes | E68: 0 | F68: ='ROR-Model'!F1223+'ROR-Model'!F1230 -> -357258227.4 | G68: ='ROR-Model'!G1223+'ROR-Model'!G1230 -> 35626270.97 | H68: ='ROR-Model'!H1223+'ROR-Model'!H1230 -> 0 | I68: ='ROR-Model'!I1223+'ROR-Model'!I1230 -> -321631956.5 | J68: ='ROR-Model'!W1223+'ROR-Model'!W1230 -> -313025011.2 | L68: -313025011.2 | M68: 0 | N68: -321631956.5
A69: 48 | C69: 186-7 | D69: Deferred Pension Asset | E69: =+F69+G69+H69-I69 -> 0 | F69: ='ROR-Model'!F1234 -> 158620260.5 | G69: ='ROR-Model'!G1234 -> -158620260.5 | H69: ='ROR-Model'!H1234 -> 0 | I69: ='ROR-Model'!I1234 -> 0 | J69: ='ROR-Model'!W1234 -> 0 | L69: =SUM(J69:K69) -> 0
A70: 49 | D70: Working Capital - Cash | F70: ='ROR-Model'!F1274 -> 24063926.26 | G70: ='ROR-Model'!G1274 -> -212349.8585 | H70: ='ROR-Model'!H1274 -> 219754.7275 | I70: ='ROR-Model'!I1274 -> 24071331.13 | J70: ='ROR-Model'!W1274 -> 23312732.48 | L70: =SUM(J70:K70) -> 23312732.48 | M70: 0 | N70: 24071331.13
A71: 50 | C71: Total Other Rate Base Accounts | F71: =SUM(F59:F70) -> -85178048.94 | G71: =SUM(G59:G70) -> -166224913.6 | H71: 219754.7275 | I71: =SUM(I59:I70) -> -251183207.8 | J71: =SUM(J59:J70) -> -244651085.4 | K71: 0 | L71: -244651085.4 | M71: 0 | N71: -251183207.8
M72: 0 | N72: 0
M73: 0 | N73: 0
A74: =+A71+1 -> 51 | B74: TOTAL RATE BASE | F74: =+F56+F71 -> 2683252522 | G74: =+G56+G71 -> 35428076.95 | H74: =+H56+H71 -> 219754.7275 | I74: =+I56+I71 -> 2718900354 | J74: =+J56+J71 -> 2644674724 | L74: =+L56+L71 -> 2644674724 | M74: 0 | N74: 2718900354 | R74: =L74-F74 -> -38577797.58
M75: 0
E76: =SUM(E13:E74) -> 3.576278687e-07 | M76: 0 | N76: =SUM(F76:H76) -> 0
A77: =+A74+1 -> 52 | B77: RETURN ON RATE BASE | F77: =F44/F74 -> 0.06121718092 | I77: =I44/I74 -> 0.0674989988 | J77: =J44/J74 -> 0.06819062699 | L77: ='Capital Str'!F10 -> 0.07058282433 | M77: =+N77-I77 -> -0.006281817874 | N77: =SUM(F77:H77) -> 0.06121718092
N78: =SUM(F78:H78) -> 0
A79: =+A77+1 -> 53 | B79: RETURN ON EQUITY | F79: =(F77-'Capital Str'!$F$7)/'Capital Str'!$D$9 -> 0.07865011716 | I79: =(I77-'Capital Str'!$F$7)/'Capital Str'!$D$9 -> 0.09028720383 | J79: =(J77-'Capital Str'!$F$7)/'Capital Str'!$D$9 -> 0.09156844716 | L79: ='Capital Str'!E9 -> 0.096 | M79: =+N79-I79 -> -0.01163708668 | N79: =SUM(F79:H79) -> 0.07865011716

Sheet Adjustments
A1: ='Control Panel'!$B$1 -> Dominion Energy | F1: =IF(F8="Y",1,0) -> 1 | G1: =IF(G8="Y",1,0) -> 1 | H1: =IF(H8="Y",1,0) -> 1 | I1: 1 | J1: 1 | K1: 1 | L1: 1 | M1: =IF(M8="Y",1,0) -> 1 | N1: 1 | O1: 1 | P1: 1 | Q1: 1 | R1: 0 | S1: 1
A2: ='Control Panel'!$B$2 -> Utah - DEC 2023 Adjusted Avg Results
A3: ='Control Panel'!$B$3 -> 12 Months Ended : Dec-2023 | J3: 12 Mos Dec-2022
A4: FILLED AND EXTERNAL PARTY ADJUSTMENTS
J5: 44896
F6: 1 | G6: =+F6+1 -> 2 | H6: =+G6+1 -> 3 | I6: =+H6+1 -> 4 | J6: =+I6+1 -> 5 | K6: =+J6+1 -> 6 | L6: 7 | M6: =+L6+1 -> 8 | N6: =+M6+1 -> 9 | O6: =+N6+1 -> 10 | P6: =+O6+1 -> 11 | Q6: =+P6+1 -> 12 | R6: =+Q6+1 -> 13 | S6: 14
F8: =VLOOKUP(F$6,'Control Panel'!$A$8:$F$57,5) -> Y | G8: =VLOOKUP(G$6,'Control Panel'!$A$8:$F$57,5) -> Y | H8: =VLOOKUP(H$6,'Control Panel'!$A$8:$F$57,5) -> Y | I8: =VLOOKUP(I$6,'Control Panel'!$A$8:$F$57,5) -> Y | J8: =VLOOKUP(J$6,'Control Panel'!$A$8:$F$57,5) -> Y | K8: =VLOOKUP(K$6,'Control Panel'!$A$8:$F$57,5) -> Y | L8: =VLOOKUP(L$6,'Control Panel'!$A$8:$F$57,5) -> Y | M8: =VLOOKUP(M$6,'Control Panel'!$A$8:$F$57,5) -> Y | N8: =VLOOKUP(N$6,'Control Panel'!$A$8:$F$57,5) -> Y | O8: =VLOOKUP(O$6,'Control Panel'!$A$8:$F$57,5) -> Y | P8: =VLOOKUP(P$6,'Control Panel'!$A$8:$F$57,5) -> Y | Q8: =VLOOKUP(Q$6,'Control Panel'!$A$8:$F$57,5) -> Y | R8: =VLOOKUP(R$6,'Control Panel'!$A$8:$F$57,5) -> N | S8: =VLOOKUP(S$6,'Control Panel'!$A$8:$F$57,5) -> Y
A9: FERC Acct | C9: Description | F9: =VLOOKUP(F$6,Adjustments,2) -> AVG RB DEC 2023 | G9: Expense Dec 2023 | H9: AVG Projected Rev 2023 with CET | I9: Underground Storage | J9: Wexpro | K9: Energy Efficiency 2023 | L9: Utah Bad Debt 2023 | M9: Incentives 2023 | N9: Sporting Events DEC 2023 | O9: Advertising DEC 2023 | P9: Don & Membership DEC 2023 | Q9: Reserve Accrual Dec 2023 | R9: Labor Adj | S9: Pension 2023 | T9: TOTAL QGC ADJUSTMENTS | V9: RESULTING TOTAL | W9: CHECKS MUST BE (0)
A10: UTILITY OPERATING REVENUE
A11: TARIFF DTH SALES AND REVENUE
A15: Utah
B16: GS-R | C16: Distribution Non-Gas Rev | H16: =H1*Revenue!$U$15 -> 53576029.77 | K16: 0 | S16: =Pension!G16*$S$1 -> 0 | T16: =SUM(F16:S16) -> 53576029.77 | V16: =SUM(T16:T16) -> 53576029.77 | W16: =+V16-'ROR-Model'!G16 -> 0
W17: =+V17-'ROR-Model'!G17 -> 0
C18: Supplier Non-Gas Revenue | H18: =H1*Revenue!$U$17 -> 0 | S18: =Pension!G18*$S$1 -> 0 | T18: =SUM(F18:S18) -> 0 | V18: =SUM(T18:T18) -> 0 | W18: =+V18-'ROR-Model'!G18 -> 0
W19: =+V19-'ROR-Model'!G19 -> 0
C20: Commodity Revenue | H20: =H1*Revenue!$U$19 -> 0 | S20: =Pension!G20*$S$1 -> 0 | T20: =SUM(F20:S20) -> 0 | V20: =SUM(T20:T20) -> 0 | W20: =+V20-'ROR-Model'!G20 -> 0
C21: Total Revenue | F21: =SUM(F16:F20) -> 0 | H21: =H1*SUM(H16:H20) -> 53576029.77 | I21: =SUM(I16:I20) -> 0 | J21: =SUM(J16:J20) -> 0 | K21: 0 | L21: 0 | M21: 0 | N21: 0 | O21: 0 | P21: 0 | Q21: =SUM(Q16:Q20) -> 0 | R21: =SUM(R16:R20) -> 0 | S21: 0 | T21: =SUM(F21:S21) -> 53576029.77 | V21: =SUM(T21:T21) -> 53576029.77 | W21: =+V21-'ROR-Model'!G21 -> 0
W22: =+V22-'ROR-Model'!G22 -> 0
C23: Total Dth | H23: =H1*Revenue!$U$22 -> 1200103.667 | T23: =SUM(F23:S23) -> 1200103.667 | V23: =SUM(T23:T23) -> 1200103.667 | W23: =+V23-'ROR-Model'!G23 -> 0
W24: =+V24-'ROR-Model'!G24 -> 0
B25: GS-C | C25: Distribution Non-Gas Rev | H25: =H1*Revenue!$U$24 -> 0 | S25: =Pension!G25*$S$1 -> 0 | T25: =SUM(F25:S25) -> 0 | V25: =SUM(T25:T25) -> 0 | W25: =+V25-'ROR-Model'!G25 -> 0
W26: =+V26-'ROR-Model'!G26 -> 0
C27: Supplier Non-Gas Revenue | H27: =H1*Revenue!$U$26 -> 0 | S27: =Pension!G27*$S$1 -> 0 | T27: =SUM(F27:S27) -> 0 | V27: =SUM(T27:T27) -> 0 | W27: =+V27-'ROR-Model'!G27 -> 0
W28: =+V28-'ROR-Model'!G28 -> 0
C29: Commodity Revenue | H29: =H1*Revenue!$U$28 -> 0 | S29: =Pension!G29*$S$1 -> 0 | T29: =SUM(F29:S29) -> 0 | V29: =SUM(T29:T29) -> 0 | W29: =+V29-'ROR-Model'!G29 -> 0
C30: Total Revenue | F30: =SUM(F25:F29) -> 0 | H30: =H1*SUM(H25:H29) -> 0 | I30: =SUM(I25:I29) -> 0 | J30: =SUM(J25:J29) -> 0 | K30: 0 | L30: 0 | M30: 0 | N30: 0 | O30: 0 | P30: 0 | Q30: =SUM(Q25:Q29) -> 0 | R30: =SUM(R25:R29) -> 0 | S30: 0 | T30: =SUM(F30:S30) -> 0 | V30: =SUM(T30:T30) -> 0 | W30: =+V30-'ROR-Model'!G30 -> 0
W31: =+V31-'ROR-Model'!G31 -> 0
C32: Total Dth | H32: =H1*Revenue!$U$31 -> 0 | T32: =SUM(F32:S32) -> 0 | V32: =SUM(T32:T32) -> 0 | W32: =+V32-'ROR-Model'!G32 -> 0
W33: =+V33-'ROR-Model'!G33 -> 0
B34: GSS | C34: Distribution Non-Gas Rev | H34: =H1*Revenue!$U$33 -> 0 | S34: =Pension!G34*$S$1 -> 0 | T34: =SUM(F34:S34) -> 0 | V34: =SUM(T34:T34) -> 0 | W34: =+V34-'ROR-Model'!G34 -> 0
W35: =+V35-'ROR-Model'!G35 -> 0
C36: Supplier Non-Gas Revenue | H36: =H1*Revenue!$U$35 -> 0 | S36: =Pension!G36*$S$1 -> 0 | T36: =SUM(F36:S36) -> 0 | V36: =SUM(T36:T36) -> 0 | W36: =+V36-'ROR-Model'!G36 -> 0
W37: =+V37-'ROR-Model'!G37 -> 0
C38: Commodity Revenue | H38: =H1*Revenue!$U$37 -> 0 | S38: =Pension!G38*$S$1 -> 0 | T38: =SUM(F38:S38) -> 0 | V38: =SUM(T38:T38) -> 0 | W38: =+V38-'ROR-Model'!G38 -> 0
C39: Total Revenue | F39: =SUM(F34:F38) -> 0 | H39: =H1*SUM(H34:H38) -> 0 | I39: =SUM(I34:I38) -> 0 | J39: =SUM(J34:J38) -> 0 | K39: 0 | L39: 0 | M39: 0 | N39: 0 | O39: 0 | P39: 0 | Q39: =SUM(Q34:Q38) -> 0 | R39: =SUM(R34:R38) -> 0 | S39: 0 | T39: =SUM(F39:S39) -> 0 | V39: =SUM(T39:T39) -> 0 | W39: =+V39-'ROR-Model'!G39 -> 0
W40: =+V40-'ROR-Model'!G40 -> 0
C41: Total Dth | H41: =H1*Revenue!$U$40 -> 0 | T41: =SUM(F41:S41) -> 0 | V41: =SUM(T41:T41) -> 0 | W41: =+V41-'ROR-Model'!G41 -> 0
W42: =+V42-'ROR-Model'!G42 -> 0
B43: F1_FS_F1A_F1B | C43: Distribution Non-Gas Rev | H43: =H1*Revenue!$U$42 -> 1011122.492 | S43: =Pension!G43*$S$1 -> 0 | T43: =SUM(F43:S43) -> 1011122.492 | V43: =SUM(T43:T43) -> 1011122.492 | W43: =+V43-'ROR-Model'!G43 -> 0
W44: =+V44-'ROR-Model'!G44 -> 0
C45: Supplier Non-Gas Revenue | H45: =H1*Revenue!$U$44 -> 0 | S45: =Pension!G45*$S$1 -> 0 | T45: =SUM(F45:S45) -> 0 | V45: =SUM(T45:T45) -> 0 | W45: =+V45-'ROR-Model'!G45 -> 0
W46: =+V46-'ROR-Model'!G46 -> 0
C47: Commodity Revenue | H47: =H1*Revenue!$U$46 -> 0 | S47: =Pension!G47*$S$1 -> 0 | T47: =SUM(F47:S47) -> 0 | V47: =SUM(T47:T47) -> 0 | W47: =+V47-'ROR-Model'!G47 -> 0
C48: Total Revenue | F48: =SUM(F43:F47) -> 0 | H48: =H1*SUM(H43:H47) -> 1011122.492 | I48: =SUM(I43:I47) -> 0 | J48: =SUM(J43:J47) -> 0 | K48: 0 | L48: 0 | M48: 0 | N48: 0 | O48: 0 | P48: 0 | Q48: =SUM(Q43:Q47) -> 0 | R48: =SUM(R43:R47) -> 0 | S48: 0 | T48: =SUM(T43:T47) -> 1011122.492 | V48: =SUM(V43:V47) -> 1011122.492 | W48: =+V48-'ROR-Model'!G48 -> 0
W49: =+V49-'ROR-Model'!G49 -> 0
C50: Total Dth | H50: =H1*Revenue!$U$49 -> -55503.196 | T50: =SUM(F50:S50) -> -55503.196 | V50: =SUM(T50:T50) -> -55503.196 | W50: =+V50-'ROR-Model'!G50 -> 0
W51: =+V51-'ROR-Model'!G51 -> 0
B52: F-3 | C52: Distribution Non-Gas Rev | H52: =H1*Revenue!$U$51 -> 0 | S52: =Pension!G52*$S$1 -> 0 | T52: =SUM(F52:S52) -> 0 | V52: =SUM(T52:T52) -> 0 | W52: =+V52-'ROR-Model'!G52 -> 0
C53: Supplier Non-Gas Revenue | S53: =Pension!G53*$S$1 -> 0 | T53: =SUM(F53:S53) -> 0 | V53: =SUM(T53:T53) -> 0 | W53: =+V53-'ROR-Model'!G53 -> 0
C54: Supplier Non-Gas Demand Revenue | H54: =H1*Revenue!$U$53 -> 0 | S54: =Pension!G54*$S$1 -> 0 | T54: =SUM(F54:S54) -> 0 | V54: =SUM(T54:T54) -> 0 | W54: =+V54-'ROR-Model'!G54 -> 0
C55: Commodity Tariff Revenue | S55: =Pension!G55*$S$1 -> 0 | T55: =SUM(F55:S55) -> 0 | V55: =SUM(T55:T55) -> 0 | W55: =+V55-'ROR-Model'!G55 -> 0
C56: Commodity Demand Revenue | H56: =H1*Revenue!$U$55 -> 0 | S56: =Pension!G56*$S$1 -> 0 | T56: =SUM(F56:S56) -> 0 | V56: =SUM(T56:T56) -> 0 | W56: =+V56-'ROR-Model'!G56 -> 0
C57: Total Revenue | F57: =SUM(F52:F56) -> 0 | H57: =H1*SUM(H52:H56) -> 0 | I57: =SUM(I52:I56) -> 0 | J57: =SUM(J52:J56) -> 0 | K57: 0 | L57: 0 | M57: 0 | N57: 0 | O57: 0 | P57: 0 | Q57: =SUM(Q52:Q56) -> 0 | R57: =SUM(R52:R56) -> 0 | S57: 0 | T57: =SUM(T52:T56) -> 0 | V57: =SUM(V52:V56) -> 0 | W57: =+V57-'ROR-Model'!G57 -> 0
W58: =+V58-'ROR-Model'!G58 -> 0
C59: Total Sales Dth | H59: =H1*Revenue!$U$58 -> 0 | T59: =SUM(F59:S59) -> 0 | V59: =SUM(T59:T59) -> 0 | W59: =+V59-'ROR-Model'!G59 -> 0
W60: =+V60-'ROR-Model'!G60 -> 0
B61: NGV | C61: Distribution Non-Gas Rev | H61: =H1*Revenue!$U$60 -> 332109.8779 | S61: =Pension!G61*$S$1 -> 0 | T61: =SUM(F61:S61) -> 332109.8779 | V61: =SUM(T61:T61) -> 332109.8779 | W61: =+V61-'ROR-Model'!G61 -> 0
W62: =+V62-'ROR-Model'!G62 -> 0
C63: Supplier Non-Gas Revenue | H63: =H1*Revenue!$U$62 -> 0 | S63: =Pension!G63*$S$1 -> 0 | T63: =SUM(F63:S63) -> 0 | V63: =SUM(T63:T63) -> 0 | W63: =+V63-'ROR-Model'!G63 -> 0
W64: =+V64-'ROR-Model'!G64 -> 0
C65: Commodity Revenue | H65: =H1*Revenue!$U$64 -> 0 | S65: =Pension!G65*$S$1 -> 0 | T65: =SUM(F65:S65) -> 0 | V65: =SUM(T65:T65) -> 0 | W65: =+V65-'ROR-Model'!G65 -> 0
C66: Total Revenue | F66: =SUM(F61:F65) -> 0 | H66: =H1*SUM(H61:H65) -> 332109.8779 | I66: =SUM(I61:I65) -> 0 | J66: =SUM(J61:J65) -> 0 | K66: 0 | L66: 0 | M66: 0 | N66: 0 | O66: 0 | P66: 0 | Q66: =SUM(Q61:Q65) -> 0 | R66: =SUM(R61:R65) -> 0 | S66: 0 | T66: =SUM(T61:T65) -> 332109.8779 | V66: =SUM(V61:V65) -> 332109.8779 | W66: =+V66-'ROR-Model'!G66 -> 0
W67: =+V67-'ROR-Model'!G67 -> 0
C68: Total Dth | H68: =H1*Revenue!$U$67 -> -3036.825 | T68: =SUM(F68:S68) -> -3036.825 | V68: =SUM(T68:T68) -> -3036.825 | W68: =+V68-'ROR-Model'!G68 -> 0
W69: =+V69-'ROR-Model'!G69 -> 0
B70: F-4 | C70: Distribution Non-Gas Rev | S70: =Pension!G70*$S$1 -> 0 | T70: =SUM(F70:S70) -> 0 | V70: =SUM(T70:T70) -> 0 | W70: =+V70-'ROR-Model'!G70 -> 0
W71: =+V71-'ROR-Model'!G71 -> 0
C72: Supplier Non-Gas Revenue | S72: =Pension!G72*$S$1 -> 0 | T72: =SUM(F72:S72) -> 0 | V72: =SUM(T72:T72) -> 0 | W72: =+V72-'ROR-Model'!G72 -> 0
W73: =+V73-'ROR-Model'!G73 -> 0
C74: Commodity Revenue | S74: =Pension!G74*$S$1 -> 0 | T74: =SUM(F74:S74) -> 0 | V74: =SUM(T74:T74) -> 0 | W74: =+V74-'ROR-Model'!G74 -> 0
C75: Total Revenue | F75: =SUM(F70:F74) -> 0 | H75: =H1*SUM(H70:H74) -> 0 | I75: =SUM(I70:I74) -> 0 | J75: =SUM(J70:J74) -> 0 | K75: 0 | L75: 0 | M75: 0 | N75: 0 | O75: 0 | P75: 0 | Q75: =SUM(Q70:Q74) -> 0 | R75: =SUM(R70:R74) -> 0 | S75: 0 | T75: =SUM(T70:T74) -> 0 | V75: =SUM(V70:V74) -> 0 | W75: =+V75-'ROR-Model'!G75 -> 0
W76: =+V76-'ROR-Model'!G76 -> 0
C77: Total Dth | H77: =H1*Revenue!$U$76 -> 0 | T77: =SUM(F77:S77) -> 0 | V77: =SUM(T77:T77) -> 0 | W77: =+V77-'ROR-Model'!G77 -> 0
W78: =+V78-'ROR-Model'!G78 -> 0
B79: I-2 | C79: Distribution Non-Gas Rev | H79: =H1*Revenue!$U$78 -> 0 | S79: =Pension!G79*$S$1 -> 0 | T79: =SUM(F79:S79) -> 0 | V79: =SUM(T79:T79) -> 0 | W79: =+V79-'ROR-Model'!G79 -> 0
W80: =+V80-'ROR-Model'!G80 -> 0
C81: Supplier Non-Gas Revenue | H81: =H1*Revenue!$U$80 -> 0 | S81: =Pension!G81*$S$1 -> 0 | T81: =SUM(F81:S81) -> 0 | V81: =SUM(T81:T81) -> 0 | W81: =+V81-'ROR-Model'!G81 -> 0
W82: =+V82-'ROR-Model'!G82 -> 0
C83: Commodity Revenue | H83: =H1*Revenue!$U$82 -> 0 | S83: =Pension!G83*$S$1 -> 0 | T83: =SUM(F83:S83) -> 0 | V83: =SUM(T83:T83) -> 0 | W83: =+V83-'ROR-Model'!G83 -> 0
C84: Total Revenue | F84: =SUM(F79:F83) -> 0 | H84: =H1*SUM(H79:H83) -> 0 | I84: =SUM(I79:I83) -> 0 | J84: =SUM(J79:J83) -> 0 | K84: 0 | L84: 0 | M84: 0 | N84: 0 | O84: 0 | P84: 0 | Q84: =SUM(Q79:Q83) -> 0 | R84: =SUM(R79:R83) -> 0 | S84: 0 | T84: =SUM(T79:T83) -> 0 | V84: =SUM(V79:V83) -> 0 | W84: =+V84-'ROR-Model'!G84 -> 0
W85: =+V85-'ROR-Model'!G85 -> 0
C86: Total Dth | H86: =H1*Revenue!$U$85 -> 0 | T86: =SUM(F86:S86) -> 0 | V86: =SUM(T86:T86) -> 0 | W86: =+V86-'ROR-Model'!G86 -> 0
W87: =+V87-'ROR-Model'!G87 -> 0
B88: I-4 | C88: Distribution Non-Gas Rev | H88: =H1*Revenue!$U$87 -> 0 | S88: =Pension!G88*$S$1 -> 0 | T88: =SUM(F88:S88) -> 0 | V88: =SUM(T88:T88) -> 0 | W88: =+V88-'ROR-Model'!G88 -> 0
W89: =+V89-'ROR-Model'!G89 -> 0
C90: Supplier Non-Gas Revenue | H90: =H1*Revenue!$U$89 -> 0 | S90: =Pension!G90*$S$1 -> 0 | T90: =SUM(F90:S90) -> 0 | V90: =SUM(T90:T90) -> 0 | W90: =+V90-'ROR-Model'!G90 -> 0
W91: =+V91-'ROR-Model'!G91 -> 0
C92: Commodity Revenue | H92: =H1*Revenue!$U$91 -> 0 | S92: =Pension!G92*$S$1 -> 0 | T92: =SUM(F92:S92) -> 0 | V92: =SUM(T92:T92) -> 0 | W92: =+V92-'ROR-Model'!G92 -> 0
C93: Total Revenue | F93: =SUM(F88:F92) -> 0 | H93: =H1*SUM(H88:H92) -> 0 | I93: =SUM(I88:I92) -> 0 | J93: =SUM(J88:J92) -> 0 | K93: 0 | L93: 0 | M93: 0 | N93: 0 | O93: 0 | P93: 0 | Q93: =SUM(Q88:Q92) -> 0 | R93: =SUM(R88:R92) -> 0 | S93: 0 | T93: =SUM(T88:T92) -> 0 | V93: =SUM(V88:V92) -> 0 | W93: =+V93-'ROR-Model'!G93 -> 0
W94: =+V94-'ROR-Model'!G94 -> 0
C95: Total Dth | H95: =H1*Revenue!$U$94 -> 0 | T95: =SUM(F95:S95) -> 0 | V95: =SUM(T95:T95) -> 0 | W95: =+V95-'ROR-Model'!G95 -> 0
W96: =+V96-'ROR-Model'!G96 -> 0
B97: IS_IS-2 | C97: Distribution Non-Gas Rev | H97: =H1*Revenue!$U$96 -> -30651.68368 | S97: =Pension!G97*$S$1 -> 0 | T97: =SUM(F97:S97) -> -30651.68368 | V97: =SUM(T97:T97) -> -30651.68368 | W97: =+V97-'ROR-Model'!G97 -> 0
W98: =+V98-'ROR-Model'!G98 -> 0
C99: Supplier Non-Gas Revenue | H99: =H1*Revenue!$U$98 -> -79.64908 | S99: =Pension!G99*$S$1 -> 0 | T99: =SUM(F99:S99) -> -79.64908 | V99: =SUM(T99:T99) -> -79.64908 | W99: =+V99-'ROR-Model'!G99 -> 0
W100: =+V100-'ROR-Model'!G100 -> 0
C101: Commodity Revenue | H101: =H1*Revenue!$U$100 -> 774718.6371 | S101: =Pension!G101*$S$1 -> 0 | T101: =SUM(F101:S101) -> 774718.6371 | V101: =SUM(T101:T101) -> 774718.6371 | W101: =+V101-'ROR-Model'!G101 -> 0
C102: Total Revenue | F102: =SUM(F97:F101) -> 0 | H102: =H1*SUM(H97:H101) -> 743987.3043 | I102: =SUM(I97:I101) -> 0 | J102: =SUM(J97:J101) -> 0 | K102: 0 | L102: 0 | M102: 0 | N102: 0 | O102: 0 | P102: 0 | Q102: =SUM(Q97:Q101) -> 0 | R102: =SUM(R97:R101) -> 0 | S102: 0 | T102: =SUM(T97:T101) -> 743987.3043 | V102: =SUM(V97:V101) -> 743987.3043 | W102: =+V102-'ROR-Model'!G102 -> 0
W103: =+V103-'ROR-Model'!G103 -> 0
C104: Total Dth | H104: =H1*Revenue!$U$103 -> -855.879 | T104: =SUM(F104:S104) -> -855.879 | V104: =SUM(T104:T104) -> -855.879 | W104: =+V104-'ROR-Model'!G104 -> 0
W105: =+V105-'ROR-Model'!G105 -> 0
B106: IS-4 | C106: Distribution Non-Gas Rev | H106: =H1*Revenue!$U$105 -> 0 | S106: =Pension!G106*$S$1 -> 0 | T106: =SUM(F106:S106) -> 0 | V106: =SUM(T106:T106) -> 0 | W106: =+V106-'ROR-Model'!G106 -> 0
W107: =+V107-'ROR-Model'!G107 -> 0
C108: Supplier Non-Gas Revenue | H108: =H1*Revenue!$U$107 -> 0 | S108: =Pension!G108*$S$1 -> 0 | T108: =SUM(F108:S108) -> 0 | V108: =SUM(T108:T108) -> 0 | W108: =+V108-'ROR-Model'!G108 -> 0
W109: =+V109-'ROR-Model'!G109 -> 0
C110: Commodity Revenue | H110: =H1*Revenue!$U$109 -> 0 | S110: =Pension!G110*$S$1 -> 0 | T110: =SUM(F110:S110) -> 0 | V110: =SUM(T110:T110) -> 0 | W110: =+V110-'ROR-Model'!G110 -> 0
C111: Total Revenue | F111: =SUM(F106:F110) -> 0 | H111: =H1*SUM(H106:H110) -> 0 | I111: =SUM(I106:I110) -> 0 | J111: =SUM(J106:J110) -> 0 | K111: 0 | L111: 0 | M111: 0 | N111: 0 | O111: 0 | P111: 0 | Q111: =SUM(Q106:Q110) -> 0 | R111: =SUM(R106:R110) -> 0 | S111: 0 | T111: =SUM(T106:T110) -> 0 | V111: =SUM(V106:V110) -> 0 | W111: =+V111-'ROR-Model'!G111 -> 0
W112: =+V112-'ROR-Model'!G112 -> 0
C113: Total Dth | H113: =H1*Revenue!$U$112 -> 0 | T113: =SUM(F113:S113) -> 0 | V113: =SUM(T113:T113) -> 0 | W113: =+V113-'ROR-Model'!G113 -> 0
W114: =+V114-'ROR-Model'!G114 -> 0
B115: FT1-L | C115: Distribution Non-Gas Rev | H115: =H1*Revenue!$U$114 -> 2240124 | S115: =Pension!G115*$S$1 -> 0 | T115: =SUM(F115:S115) -> 2240124 | V115: =SUM(T115:T115) -> 2240124 | W115: =+V115-'ROR-Model'!G115 -> 0
W116: =+V116-'ROR-Model'!G116 -> 0
C117: Supplier Non-Gas Revenue | H117: =H1*Revenue!$U$116 -> 0 | S117: =Pension!G117*$S$1 -> 0 | T117: =SUM(F117:S117) -> 0 | V117: =SUM(T117:T117) -> 0 | W117: =+V117-'ROR-Model'!G117 -> 0
W118: =+V118-'ROR-Model'!G118 -> 0
C119: Commodity Revenue | H119: =H1*Revenue!$U$118 -> 0 | S119: =Pension!G119*$S$1 -> 0 | T119: =SUM(F119:S119) -> 0 | V119: =SUM(T119:T119) -> 0 | W119: =+V119-'ROR-Model'!G119 -> 0
C120: Total Revenue | F120: =SUM(F115:F119) -> 0 | H120: =H1*SUM(H115:H119) -> 2240124 | I120: =SUM(I115:I119) -> 0 | J120: =SUM(J115:J119) -> 0 | K120: 0 | L120: 0 | M120: 0 | N120: 0 | O120: 0 | P120: 0 | Q120: =SUM(Q115:Q119) -> 0 | R120: =SUM(R115:R119) -> 0 | S120: 0 | T120: =SUM(T115:T119) -> 2240124 | V120: =SUM(V115:V119) -> 2240124 | W120: =+V120-'ROR-Model'!G120 -> 0
W121: =+V121-'ROR-Model'!G121 -> 0
C122: Total Dth | H122: =H1*Revenue!$U$121 -> 48089361 | T122: =SUM(F122:S122) -> 48089361 | V122: =SUM(T122:T122) -> 48089361 | W122: =+V122-'ROR-Model'!G122 -> 0
W123: =+V123-'ROR-Model'!G123 -> 0
B124: FT_TBF | C124: Distribution Non-Gas Rev | H124: =H1*Revenue!$U$123 -> -2626710.372 | S124: =Pension!G124*$S$1 -> 0 | T124: =SUM(F124:S124) -> -2626710.372 | V124: =SUM(T124:T124) -> -2626710.372 | W124: =+V124-'ROR-Model'!G124 -> 0
W125: =+V125-'ROR-Model'!G125 -> 0
C126: Supplier Non-Gas Revenue | H126: =H1*Revenue!$U$125 -> -220332.675 | S126: =Pension!G126*$S$1 -> 0 | T126: =SUM(F126:S126) -> -220332.675 | V126: =SUM(T126:T126) -> -220332.675 | W126: =+V126-'ROR-Model'!G126 -> 0
W127: =+V127-'ROR-Model'!G127 -> 0
C128: Commodity Revenue | H128: =H1*Revenue!$U$127 -> 0 | S128: =Pension!G128*$S$1 -> 0 | T128: =SUM(F128:S128) -> 0 | V128: =SUM(T128:T128) -> 0 | W128: =+V128-'ROR-Model'!G128 -> 0
C129: Total Revenue | F129: =SUM(F124:F128) -> 0 | H129: =H1*SUM(H124:H128) -> -2847043.047 | I129: =SUM(I124:I128) -> 0 | J129: =SUM(J124:J128) -> 0 | K129: 0 | L129: 0 | M129: 0 | N129: 0 | O129: 0 | P129: 0 | Q129: =SUM(Q124:Q128) -> 0 | R129: =SUM(R124:R128) -> 0 | S129: 0 | T129: =SUM(T124:T128) -> -2847043.047 | V129: =SUM(V124:V128) -> -2847043.047 | W129: =+V129-'ROR-Model'!G129 -> 0
W130: =+V130-'ROR-Model'!G130 -> 0
C131: Total Dth | H131: =H1*Revenue!$U$130 -> -41393246 | T131: =SUM(F131:S131) -> -41393246 | V131: =SUM(T131:T131) -> -41393246 | W131: =+V131-'ROR-Model'!G131 -> 0
W132: =+V132-'ROR-Model'!G132 -> 0
B133: FT-2 | C133: Distribution Non-Gas Rev | H133: =H1*Revenue!$U$132 -> 0 | S133: =Pension!G133*$S$1 -> 0 | T133: =SUM(F133:S133) -> 0 | V133: =SUM(T133:T133) -> 0 | W133: =+V133-'ROR-Model'!G133 -> 0
W134: =+V134-'ROR-Model'!G134 -> 0
C135: Supplier Non-Gas Revenue | H135: =H1*Revenue!$U$134 -> 0 | S135: =Pension!G135*$S$1 -> 0 | T135: =SUM(F135:S135) -> 0 | V135: =SUM(T135:T135) -> 0 | W135: =+V135-'ROR-Model'!G135 -> 0
W136: =+V136-'ROR-Model'!G136 -> 0
C137: Commodity Revenue | H137: =H1*Revenue!$U$136 -> 0 | S137: =Pension!G137*$S$1 -> 0 | T137: =SUM(F137:S137) -> 0 | V137: =SUM(T137:T137) -> 0 | W137: =+V137-'ROR-Model'!G137 -> 0
C138: Total Revenue | F138: =SUM(F133:F137) -> 0 | H138: =H1*SUM(H133:H137) -> 0 | I138: =SUM(I133:I137) -> 0 | J138: =SUM(J133:J137) -> 0 | K138: 0 | L138: 0 | M138: 0 | N138: 0 | O138: 0 | P138: 0 | Q138: =SUM(Q133:Q137) -> 0 | R138: =SUM(R133:R137) -> 0 | S138: 0 | T138: =SUM(T133:T137) -> 0 | V138: =SUM(V133:V137) -> 0 | W138: =+V138-'ROR-Model'!G138 -> 0
W139: =+V139-'ROR-Model'!G139 -> 0
C140: Total Dth | H140: =H1*Revenue!$U$139 -> 0 | T140: =SUM(F140:S140) -> 0 | V140: =SUM(T140:T140) -> 0 | W140: =+V140-'ROR-Model'!G140 -> 0
W141: =+V141-'ROR-Model'!G141 -> 0
B142: MT | C142: Distribution Non-Gas Rev | H142: =H1*Revenue!$U$141 -> -100824.3325 | S142: =Pension!G142*$S$1 -> 0 | T142: =SUM(F142:S142) -> -100824.3325 | V142: =SUM(T142:T142) -> -100824.3325 | W142: =+V142-'ROR-Model'!G142 -> 0
W143: =+V143-'ROR-Model'!G143 -> 0
C144: Supplier Non-Gas Revenue | H144: =H1*Revenue!$U$143 -> -1314.84 | S144: =Pension!G144*$S$1 -> 0 | T144: =SUM(F144:S144) -> -1314.84 | V144: =SUM(T144:T144) -> -1314.84 | W144: =+V144-'ROR-Model'!G144 -> 0
W145: =+V145-'ROR-Model'!G145 -> 0
C146: Commodity Revenue | H146: =H1*Revenue!$U$145 -> 0 | S146: =Pension!G146*$S$1 -> 0 | T146: =SUM(F146:S146) -> 0 | V146: =SUM(T146:T146) -> 0 | W146: =+V146-'ROR-Model'!G146 -> 0
C147: Total Revenue | F147: =SUM(F142:F146) -> 0 | H147: =H1*SUM(H142:H146) -> -102139.1725 | I147: =SUM(I142:I146) -> 0 | J147: =SUM(J142:J146) -> 0 | K147: 0 | L147: 0 | M147: 0 | N147: 0 | O147: 0 | P147: 0 | Q147: =SUM(Q142:Q146) -> 0 | R147: =SUM(R142:R146) -> 0 | S147: 0 | T147: =SUM(T142:T146) -> -102139.1725 | V147: =SUM(V142:V146) -> -102139.1725 | W147: =+V147-'ROR-Model'!G147 -> 0
W148: =+V148-'ROR-Model'!G148 -> 0
C149: Total Dth | H149: =H1*Revenue!$U$148 -> -2177 | T149: =SUM(F149:S149) -> -2177 | V149: =SUM(T149:T149) -> -2177 | W149: =+V149-'ROR-Model'!G149 -> 0
W150: =+V150-'ROR-Model'!G150 -> 0
B151: FT-E | C151: Distribution Non-Gas Rev | H151: =H1*Revenue!$U$150 -> 0 | S151: =Pension!G151*$S$1 -> 0 | T151: =SUM(F151:S151) -> 0 | V151: =SUM(T151:T151) -> 0 | W151: =+V151-'ROR-Model'!G151 -> 0
W152: =+V152-'ROR-Model'!G152 -> 0
C153: Supplier Non-Gas Revenue | H153: =H1*Revenue!$U$152 -> 0 | S153: =Pension!G153*$S$1 -> 0 | T153: =SUM(F153:S153) -> 0 | V153: =SUM(T153:T153) -> 0 | W153: =+V153-'ROR-Model'!G153 -> 0
W154: =+V154-'ROR-Model'!G154 -> 0
C155: Commodity Revenue | H155: =H1*Revenue!$U$154 -> 0 | S155: =Pension!G155*$S$1 -> 0 | T155: =SUM(F155:S155) -> 0 | V155: =SUM(T155:T155) -> 0 | W155: =+V155-'ROR-Model'!G155 -> 0
C156: Total Revenue | F156: =SUM(F151:F155) -> 0 | H156: =H1*SUM(H151:H155) -> 0 | I156: =SUM(I151:I155) -> 0 | J156: =SUM(J151:J155) -> 0 | K156: 0 | L156: 0 | M156: 0 | N156: 0 | O156: 0 | P156: 0 | Q156: =SUM(Q151:Q155) -> 0 | R156: =SUM(R151:R155) -> 0 | S156: 0 | T156: =SUM(T151:T155) -> 0 | V156: =SUM(V151:V155) -> 0 | W156: =+V156-'ROR-Model'!G156 -> 0
W157: =+V157-'ROR-Model'!G157 -> 0
C158: Total Dth | H158: =H1*Revenue!$U$157 -> 0 | T158: =SUM(F158:S158) -> 0 | V158: =SUM(T158:T158) -> 0 | W158: =+V158-'ROR-Model'!G158 -> 0
W159: =+V159-'ROR-Model'!G159 -> 0
B160: IT_TS_ITA_ITB | C160: Distribution Non-Gas Rev | H160: =H1*Revenue!$U$159 -> 4988600.059 | S160: =Pension!G160*$S$1 -> 0 | T160: =SUM(F160:S160) -> 4988600.059 | V160: =SUM(T160:T160) -> 4988600.059 | W160: =+V160-'ROR-Model'!G160 -> 0
W161: =+V161-'ROR-Model'!G161 -> 0
C162: Supplier Non-Gas Revenue | H162: =H1*Revenue!$U$161 -> -732442.1654 | S162: =Pension!G162*$S$1 -> 0 | T162: =SUM(F162:S162) -> -732442.1654 | V162: =SUM(T162:T162) -> -732442.1654 | W162: =+V162-'ROR-Model'!G162 -> 0
W163: =+V163-'ROR-Model'!G163 -> 0
C164: Commodity Revenue | H164: =H1*Revenue!$U$163 -> 0 | S164: =Pension!G164*$S$1 -> 0 | T164: =SUM(F164:S164) -> 0 | V164: =SUM(T164:T164) -> 0 | W164: =+V164-'ROR-Model'!G164 -> 0
C165: Total Revenue | F165: =SUM(F160:F164) -> 0 | H165: =H1*SUM(H160:H164) -> 4256157.893 | I165: =SUM(I160:I164) -> 0 | J165: =SUM(J160:J164) -> 0 | K165: 0 | L165: 0 | M165: 0 | N165: 0 | O165: 0 | P165: 0 | Q165: =SUM(Q160:Q164) -> 0 | R165: =SUM(R160:R164) -> 0 | S165: 0 | T165: =SUM(T160:T164) -> 4256157.893 | V165: =SUM(V160:V164) -> 4256157.893 | W165: =+V165-'ROR-Model'!G165 -> 0
W166: =+V166-'ROR-Model'!G166 -> 0
C167: Total Dth | H167: =H1*Revenue!$U$166 -> -6257801.8 | T167: =SUM(F167:S167) -> -6257801.8 | V167: =SUM(T167:T167) -> -6257801.8 | W167: =+V167-'ROR-Model'!G167 -> 0
W168: =+V168-'ROR-Model'!G168 -> 0
B169: IT-S | C169: Distribution Non-Gas Rev | H169: =H1*Revenue!$U$168 -> 0 | S169: =Pension!G169*$S$1 -> 0 | T169: =SUM(F169:S169) -> 0 | V169: =SUM(T169:T169) -> 0 | W169: =+V169-'ROR-Model'!G169 -> 0
W170: =+V170-'ROR-Model'!G170 -> 0
C171: Supplier Non-Gas Revenue | H171: =H1*Revenue!$U$170 -> 0 | S171: =Pension!G171*$S$1 -> 0 | T171: =SUM(F171:S171) -> 0 | V171: =SUM(T171:T171) -> 0 | W171: =+V171-'ROR-Model'!G171 -> 0
W172: =+V172-'ROR-Model'!G172 -> 0
C173: Commodity Revenue | H173: =H1*Revenue!$U$172 -> 0 | S173: =Pension!G173*$S$1 -> 0 | T173: =SUM(F173:S173) -> 0 | V173: =SUM(T173:T173) -> 0 | W173: =+V173-'ROR-Model'!G173 -> 0
C174: Total Revenue | F174: =SUM(F169:F173) -> 0 | H174: =H1*SUM(H169:H173) -> 0 | I174: =SUM(I169:I173) -> 0 | J174: =SUM(J169:J173) -> 0 | K174: 0 | L174: 0 | M174: 0 | N174: 0 | O174: 0 | P174: 0 | Q174: =SUM(Q169:Q173) -> 0 | R174: =SUM(R169:R173) -> 0 | S174: 0 | T174: =SUM(T169:T173) -> 0 | V174: =SUM(V169:V173) -> 0 | W174: =+V174-'ROR-Model'!G174 -> 0
W175: =+V175-'ROR-Model'!G175 -> 0
C176: Total Dth | H176: =H1*Revenue!$U$175 -> 0 | T176: =SUM(F176:S176) -> 0 | V176: =SUM(T176:T176) -> 0 | W176: =+V176-'ROR-Model'!G176 -> 0
W177: =+V177-'ROR-Model'!G177 -> 0
B178: FT-2C | C178: Distribution Non-Gas Rev | H178: =H1*Revenue!$U$177 -> 0 | S178: =Pension!G178*$S$1 -> 0 | T178: =SUM(F178:S178) -> 0 | V178: =SUM(T178:T178) -> 0 | W178: =+V178-'ROR-Model'!G178 -> 0
W179: =+V179-'ROR-Model'!G179 -> 0
C180: Supplier Non-Gas Revenue | H180: =H1*Revenue!$U$179 -> 0 | S180: =Pension!G180*$S$1 -> 0 | T180: =SUM(F180:S180) -> 0 | V180: =SUM(T180:T180) -> 0 | W180: =+V180-'ROR-Model'!G180 -> 0
W181: =+V181-'ROR-Model'!G181 -> 0
C182: Commodity Revenue | H182: =H1*Revenue!$U$181 -> 0 | S182: =Pension!G182*$S$1 -> 0 | T182: =SUM(F182:S182) -> 0 | V182: =SUM(T182:T182) -> 0 | W182: =+V182-'ROR-Model'!G182 -> 0
C183: Total Revenue | F183: =SUM(F178:F182) -> 0 | H183: =H1*SUM(H178:H182) -> 0 | I183: =SUM(I178:I182) -> 0 | J183: =SUM(J178:J182) -> 0 | K183: 0 | L183: 0 | M183: 0 | N183: 0 | O183: 0 | P183: 0 | Q183: =SUM(Q178:Q182) -> 0 | R183: =SUM(R178:R182) -> 0 | S183: 0 | T183: =SUM(T178:T182) -> 0 | V183: =SUM(V178:V182) -> 0 | W183: =+V183-'ROR-Model'!G183 -> 0
W184: =+V184-'ROR-Model'!G184 -> 0
C185: Total Dth | H185: =H1*Revenue!$U$184 -> 0 | T185: =SUM(F185:S185) -> 0 | V185: =SUM(T185:T185) -> 0 | W185: =+V185-'ROR-Model'!G185 -> 0
W186: =+V186-'ROR-Model'!G186 -> 0
B187: E-1 | C187: Distribution Non-Gas Rev | H187: =H1*Revenue!$U$186 -> 0 | S187: =Pension!G187*$S$1 -> 0 | T187: =SUM(F187:S187) -> 0 | V187: =SUM(T187:T187) -> 0 | W187: =+V187-'ROR-Model'!G187 -> 0
W188: =+V188-'ROR-Model'!G188 -> 0
C189: Supplier Non-Gas Revenue | H189: =H1*Revenue!$U$188 -> 0 | S189: =Pension!G189*$S$1 -> 0 | T189: =SUM(F189:S189) -> 0 | V189: =SUM(T189:T189) -> 0 | W189: =+V189-'ROR-Model'!G189 -> 0
W190: =+V190-'ROR-Model'!G190 -> 0
C191: Commodity Revenue | H191: =H1*Revenue!$U$190 -> 0 | S191: =Pension!G191*$S$1 -> 0 | T191: =SUM(F191:S191) -> 0 | V191: =SUM(T191:T191) -> 0 | W191: =+V191-'ROR-Model'!G191 -> 0
C192: Total Revenue | F192: =SUM(F187:F191) -> 0 | H192: =H1*SUM(H187:H191) -> 0 | I192: =SUM(I187:I191) -> 0 | J192: =SUM(J187:J191) -> 0 | K192: 0 | L192: 0 | M192: 0 | N192: 0 | O192: 0 | P192: 0 | Q192: =SUM(Q187:Q191) -> 0 | R192: =SUM(R187:R191) -> 0 | S192: 0 | T192: =SUM(T187:T191) -> 0 | V192: =SUM(V187:V191) -> 0 | W192: =+V192-'ROR-Model'!G192 -> 0
W193: =+V193-'ROR-Model'!G193 -> 0
C194: Total Dth | H194: =H1*Revenue!$U$193 -> 0 | T194: =SUM(F194:S194) -> 0 | V194: =SUM(T194:T194) -> 0 | W194: =+V194-'ROR-Model'!G194 -> 0
W195: =+V195-'ROR-Model'!G195 -> 0
B196: CET | C196: Distribution Non-Gas Revenue | F196: 0 | H196: =H1*Revenue!$U$195 -> 1084959.23 | I196: 0 | J196: 0 | K196: 0 | L196: 0 | M196: 0 | N196: 0 | O196: 0 | P196: 0 | Q196: 0 | R196: 0 | S196: =Pension!G196*$S$1 -> 0 | T196: =SUM(F196:S196) -> 1084959.23 | V196: =SUM(T196:T196) -> 1084959.23 | W196: =+V196-'ROR-Model'!G196 -> 0
B197: DSM | C197: Distribution Non-Gas Revenue | F197: 0 | H197: =H1*Revenue!$U$196 -> -29176620.22 | I197: 0 | J197: 0 | K197: =K1*'ENERGY EFFICIENCY SERVICES ADJ'!H12 -> 0 | L197: 0 | M197: 0 | N197: 0 | O197: 0 | P197: 0 | Q197: 0 | R197: 0 | S197: =Pension!G197*$S$1 -> 0 | T197: =SUM(F197:S197) -> -29176620.22 | V197: =SUM(T197:T197) -> -29176620.22 | W197: =+V197-'ROR-Model'!G197 -> 0
B198: Utah Totals | W198: =+V198-'ROR-Model'!G198 -> 0
W199: =+V199-'ROR-Model'!G199 -> 0
C200: Distribution Non-Gas Rev | F200: =+F16+F34+F43+F52+F61+F70+F79+F88+F97+F106+F115+F124+F133+F142+F151+F160+F169+F178+F187+F25+F196+F197 -> 0 | H200: =+H16+H34+H43+H52+H61+H70+H79+H88+H97+H106+H115+H124+H133+H142+H151+H160+H169+H178+H187+H25+H196+H197 -> 31298138.82 | I200: =+I16+I34+I43+I52+I61+I70+I79+I88+I97+I106+I115+I124+I133+I142+I151+I160+I169+I178+I187+I25+I196+I197 -> 0 | J200: 0 | K200: =+K16+K34+K43+K52+K61+K70+K79+K88+K97+K106+K115+K124+K133+K142+K151+K160+K169+K178+K187+K25+K196+K197 -> 0 | L200: 0 | M200: 0 | N200: 0 | O200: 0 | P200: 0 | Q200: 0 | R200: =+R16+R34+R43+R52+R61+R70+R79+R88+R97+R106+R115+R124+R133+R142+R151+R160+R169+R178+R187+R25+R196+R197 -> 0 | S200: =Pension!G200*$S$1 -> 0 | T200: =+T16+T34+T43+T52+T61+T70+T79+T88+T97+T106+T115+T124+T133+T142+T151+T160+T169+T178+T187+T25+T196+T197 -> 31298138.82 | V200: =+V16+V34+V43+V52+V61+V70+V79+V88+V97+V106+V115+V124+V133+V142+V151+V160+V169+V178+V187+V25+V196+V197 -> 31298138.82 | W200: =+V200-'ROR-Model'!G200 -> 0
C201: Supplier Non-Gas Revenue | F201: =F1*+F18+F36+F45+F54+F62+F63+F72+F81+F90+F99+F108+F117+F126+F135+F144+F153+F162+F171+F180+F189+F27 -> 0 | H201: =H1*+H18+H36+H45+H54+H62+H63+H72+H81+H90+H99+H108+H117+H126+H135+H144+H153+H162+H171+H180+H189+H27 -> -954169.3295 | I201: =I1*+I18+I36+I45+I54+I62+I63+I72+I81+I90+I99+I108+I117+I126+I135+I144+I153+I162+I171+I180+I189+I27 -> 0 | J201: =J1*+J18+J36+J45+J54+J62+J63+J72+J81+J90+J99+J108+J117+J126+J135+J144+J153+J162+J171+J180+J189+J27 -> 0 | K201: 0 | L201: 0 | M201: 0 | N201: 0 | O201: 0 | P201: 0 | Q201: 0 | R201: =R1*+R18+R36+R45+R54+R62+R63+R72+R81+R90+R99+R108+R117+R126+R135+R144+R153+R162+R171+R180+R189+R27 -> 0 | S201: =Pension!G201*$S$1 -> 0 | T201: =+T18+T36+T45+T54+T62+T63+T72+T81+T90+T99+T108+T117+T126+T135+T144+T153+T162+T171+T180+T189+T27 -> -954169.3295 | V201: =+V18+V36+V45+V54+V62+V63+V72+V81+V90+V99+V108+V117+V126+V135+V144+V153+V162+V171+V180+V189+V27 -> -954169.3295 | W201: =+V201-'ROR-Model'!G201 -> 0
C202: Commodity Revenue | F202: =F1*+F20+F38+F47+F56+F64+F65+F74+F83+F92+F101+F110+F119+F128+F137+F146+F155+F164+F173+F182+F191+F29 -> 0 | H202: =H1*+H20+H38+H47+H56+H64+H65+H74+H83+H92+H101+H110+H119+H128+H137+H146+H155+H164+H173+H182+H191+H29 -> 774718.6371 | I202: =I1*+I20+I38+I47+I56+I64+I65+I74+I83+I92+I101+I110+I119+I128+I137+I146+I155+I164+I173+I182+I191+I29 -> 0 | J202: =J1*+J20+J38+J47+J56+J64+J65+J74+J83+J92+J101+J110+J119+J128+J137+J146+J155+J164+J173+J182+J191+J29 -> 0 | K202: 0 | L202: 0 | M202: 0 | N202: 0 | O202: 0 | P202: 0 | Q202: 0 | R202: =R1*+R20+R38+R47+R56+R64+R65+R74+R83+R92+R101+R110+R119+R128+R137+R146+R155+R164+R173+R182+R191+R29 -> 0 | S202: =Pension!G202*$S$1 -> 0 | T202: =+T20+T38+T47+T56+T64+T65+T74+T83+T92+T101+T110+T119+T128+T137+T146+T155+T164+T173+T182+T191+T29 -> 774718.6371 | V202: =+V20+V38+V47+V56+V64+V65+V74+V83+V92+V101+V110+V119+V128+V137+V146+V155+V164+V173+V182+V191+V29 -> 774718.6371 | W202: =+V202-'ROR-Model'!G202 -> 0
C203: Total Utah Revenue | F203: =+F21+F39+F48+F57+F66+F75+F84+F93+F102+F111+F120+F129+F138+F147+F156+F165+F174+F183+F192+F30+F196+F197 -> 0 | H203: =+H21+H39+H48+H57+H66+H75+H84+H93+H102+H111+H120+H129+H138+H147+H156+H165+H174+H183+H192+H30+H196+H197 -> 31118688.13 | I203: =+I21+I39+I48+I57+I66+I75+I84+I93+I102+I111+I120+I129+I138+I147+I156+I165+I174+I183+I192+I30+I196+I197 -> 0 | J203: 0 | K203: =+K21+K39+K48+K57+K66+K75+K84+K93+K102+K111+K120+K129+K138+K147+K156+K165+K174+K183+K192+K30+K196+K197 -> 0 | L203: 0 | M203: 0 | N203: 0 | O203: =+O21+O39+O48+O57+O66+O75+O84+O93+O102+O111+O120+O129+O138+O147+O156+O165+O174+O183+O192+O30+O196+O197 -> 0 | P203: =+P21+P39+P48+P57+P66+P75+P84+P93+P102+P111+P120+P129+P138+P147+P156+P165+P174+P183+P192+P30+P196+P197 -> 0 | Q203: 0 | R203: =+R21+R39+R48+R57+R66+R75+R84+R93+R102+R111+R120+R129+R138+R147+R156+R165+R174+R183+R192+R30+R196+R197 -> 0 | S203: 0 | T203: 31118688.13 | V203: 31118688.13
W204: =+V204-'ROR-Model'!G204 -> 0
... 1042 more rows

Sheet ROR-Model
A1: ='Control Panel'!$B$1 -> Dominion Energy | L1: Jurisdictional Allocation Base Summary
A2: ='Control Panel'!$B$2 -> Utah - DEC 2023 Adjusted Avg Results | K2: #1 | L2: Gross Plant | M2: ='Utah Allocation'!D18 -> 0.9703917647 | N2: ='Utah Allocation'!E18 -> 0.02960823534 | O2: 'ROR-Model'!I1057+'ROR-Model'!I1068+'ROR-Model'!I1074+'ROR-Model'!I1080+'ROR-Model'!I1091+'ROR-Model'!I1112+'ROR-Model'!I1119+'ROR-Model'!I1126+'ROR-Model'!I1219
A3: ='Control Panel'!$B$3 -> 12 Months Ended : Dec-2023 | J3: 12 Mos Dec-2022 | K3: #2 | L3: Rate Base | M3: ='Utah Allocation'!D35 -> 0.9720049174 | N3: ='Utah Allocation'!E35 -> 0.02799508256
K4: #3 | L4: Sales | M4: ='Utah Allocation'!D46 -> 0.9679312366 | N4: ='Utah Allocation'!E46 -> 0.03206876343
J5: 2022-12-01 | K5: #4 | L5: Utah | M5: 1 | N5: 0 | P5: PT = Pass Through Item
K6: #5 | L6: Wyoming | M6: 0 | N6: 1
F7: Historical | G7: CASE | H7: Imputed | I7: Adjusted | Q7: Utah | T7: Wyoming | W7: HOT
A8: FERC | F8: 12 Months | G8: Adjustments | H8: Tax | I8: System | P8: Utah Method & Allocations | S8: Wyoming Method & Allocations | W8: This Scenario
A9: Account | C9: Description | F9: 2022-12-01 | G9: Total | H9: Adjustment | I9: Total | L9: Alloc Base | M9: Utah | N9: Wyoming | Q9: General | R9: PT | T9: General | U9: PT | W9: =+'Control Panel'!F11 -> Utah
Q10: Utah | T10: Wyoming | Y10: 1
A11: UTILITY OPERATING REVENUE | Y11: =Y10+1 -> 2
Y12: =Y11+1 -> 3
A13: TARIFF DTH SALES AND REVENUE | Y13: 4
Y14: 5
A15: Utah | Y15: 6
B16: GSR | C16: Distribution Non-Gas Rev | F16: =Revenue!$F$15 -> 366586961.3 | G16: =+Adjustments!V16 -> 53576029.77 | I16: =SUM($F$16:$H$16) -> 420162991.1 | L16: Utah | M16: =VLOOKUP($L16,$L$2:$N$7,2,FALSE)*I16 -> 420162991.1 | N16: =VLOOKUP($L16,$L$2:$N$7,3,FALSE)*I16 -> 0 | P16: G | Q16: =IF(P16="G",M16,IF(P16="PT",0,ERR)) -> 420162991.1 | R16: =IF(P16="PT",M16,IF(P16="G",0,ERR)) -> 0 | S16: G | T16: =IF(S16="G",N16,IF(S16="PT",0,ERR)) -> 0 | U16: =IF(S16="PT",N16,IF(S16="G",0,ERR)) -> 0 | W16: =HLOOKUP($W$9,'ROR-Model'!$Q$10:$U$1284,Y16) -> 420162991.1 | Y16: 7
Y17: 8
C18: Supplier Non-Gas Revenue | F18: =Revenue!$F$17 -> 91329833.72 | G18: =+Adjustments!V18 -> 0 | I18: =SUM($F$18:$H$18) -> 91329833.72 | L18: Utah | M18: =VLOOKUP($L18,$L$2:$N$7,2,FALSE)*I18 -> 91329833.72 | N18: =VLOOKUP($L18,$L$2:$N$7,3,FALSE)*I18 -> 0 | P18: PT | Q18: =IF(P18="G",M18,IF(P18="PT",0,ERR)) -> 0 | R18: =IF(P18="PT",M18,IF(P18="G",0,ERR)) -> 91329833.72 | S18: PT | T18: =IF(S18="G",N18,IF(S18="PT",0,ERR)) -> 0 | U18: =IF(S18="PT",N18,IF(S18="G",0,ERR)) -> 0 | W18: =HLOOKUP($W$9,'ROR-Model'!$Q$10:$U$1284,Y18) -> 0 | Y18: 9
Y19: 10
C20: Commodity Revenue | F20: =Revenue!$F$19 -> 666407574.5 | G20: =+Adjustments!V20 -> 0 | I20: =SUM($F$20:$H$20) -> 666407574.5 | L20: Utah | M20: =VLOOKUP($L20,$L$2:$N$7,2,FALSE)*I20 -> 666407574.5 | N20: =VLOOKUP($L20,$L$2:$N$7,3,FALSE)*I20 -> 0 | P20: PT | Q20: =IF(P20="G",M20,IF(P20="PT",0,ERR)) -> 0 | R20: =IF(P20="PT",M20,IF(P20="G",0,ERR)) -> 666407574.5 | S20: PT | T20: =IF(S20="G",N20,IF(S20="PT",0,ERR)) -> 0 | U20: =IF(S20="PT",N20,IF(S20="G",0,ERR)) -> 0 | W20: =HLOOKUP($W$9,'ROR-Model'!$Q$10:$U$1284,Y20) -> 0 | Y20: 11
C21: Total Revenue | F21: =SUM(F16:F20) -> 1124324369 | G21: =SUM(G16:G20) -> 53576029.77 | H21: =SUM(H16:H20) -> 0 | I21: =SUM(I16:I20) -> 1177900399 | M21: =SUM(M16:M20) -> 1177900399 | N21: =SUM(N16:N20) -> 0 | Q21: =SUM(Q16:Q20) -> 420162991.1 | R21: =SUM(R16:R20) -> 757737408.2 | T21: =SUM(T16:T20) -> 0 | U21: =SUM(U16:U20) -> 0 | W21: =HLOOKUP($W$9,'ROR-Model'!$Q$10:$U$1284,Y21) -> 420162991.1 | Y21: 12
Y22: 13
C23: Total Dth | F23: =Revenue!$F$22 -> 114075139.3 | G23: =+Adjustments!V23 -> 1200103.667 | I23: =SUM($F$23:$H$23) -> 115275243 | L23: Utah | M23: =VLOOKUP($L23,$L$2:$N$7,2,FALSE)*I23 -> 115275243 | N23: =VLOOKUP($L23,$L$2:$N$7,3,FALSE)*I23 -> 0 | P23: G | Q23: =IF(P23="G",M23,IF(P23="PT",0,ERR)) -> 115275243 | R23: =IF(P23="PT",M23,IF(P23="G",0,ERR)) -> 0 | S23: G | T23: =IF(S23="G",N23,IF(S23="PT",0,ERR)) -> 0 | U23: =IF(S23="PT",N23,IF(S23="G",0,ERR)) -> 0 | W23: =HLOOKUP($W$9,'ROR-Model'!$Q$10:$U$1284,Y23) -> 115275243 | Y23: 14
Y24: 15
B25: GSC | C25: Distribution Non-Gas Rev | F25: =Revenue!$F$24 -> 0 | G25: =+Adjustments!V25 -> 0 | I25: =SUM($F$25:$H$25) -> 0 | L25: Utah | M25: =VLOOKUP($L25,$L$2:$N$7,2,FALSE)*I25 -> 0 | N25: =VLOOKUP($L25,$L$2:$N$7,3,FALSE)*I25 -> 0 | P25: G | Q25: =IF(P25="G",M25,IF(P25="PT",0,ERR)) -> 0 | R25: =IF(P25="PT",M25,IF(P25="G",0,ERR)) -> 0 | S25: G | T25: =IF(S25="G",N25,IF(S25="PT",0,ERR)) -> 0 | U25: =IF(S25="PT",N25,IF(S25="G",0,ERR)) -> 0 | W25: =HLOOKUP($W$9,'ROR-Model'!$Q$10:$U$1284,Y25) -> 0 | Y25: 16
Y26: 17
C27: Supplier Non-Gas Revenue | F27: =Revenue!$F$26 -> 0 | G27: =+Adjustments!V27 -> 0 | I27: =SUM($F$27:$H$27) -> 0 | L27: Utah | M27: =VLOOKUP($L27,$L$2:$N$7,2,FALSE)*I27 -> 0 | N27: =VLOOKUP($L27,$L$2:$N$7,3,FALSE)*I27 -> 0 | P27: PT | Q27: =IF(P27="G",M27,IF(P27="PT",0,ERR)) -> 0 | R27: =IF(P27="PT",M27,IF(P27="G",0,ERR)) -> 0 | S27: PT | T27: =IF(S27="G",N27,IF(S27="PT",0,ERR)) -> 0 | U27: =IF(S27="PT",N27,IF(S27="G",0,ERR)) -> 0 | W27: =HLOOKUP($W$9,'ROR-Model'!$Q$10:$U$1284,Y27) -> 0 | Y27: 18
Y28: 19
C29: Commodity Revenue | F29: =Revenue!$F$28 -> 0 | G29: =+Adjustments!V29 -> 0 | I29: =SUM($F$29:$H$29) -> 0 | L29: Utah | M29: =VLOOKUP($L29,$L$2:$N$7,2,FALSE)*I29 -> 0 | N29: =VLOOKUP($L29,$L$2:$N$7,3,FALSE)*I29 -> 0 | P29: PT | Q29: =IF(P29="G",M29,IF(P29="PT",0,ERR)) -> 0 | R29: =IF(P29="PT",M29,IF(P29="G",0,ERR)) -> 0 | S29: PT | T29: =IF(S29="G",N29,IF(S29="PT",0,ERR)) -> 0 | U29: =IF(S29="PT",N29,IF(S29="G",0,ERR)) -> 0 | W29: =HLOOKUP($W$9,'ROR-Model'!$Q$10:$U$1284,Y29) -> 0 | Y29: 20
C30: Total Revenue | F30: =SUM(F25:F29) -> 0 | G30: =SUM(G25:G29) -> 0 | H30: =SUM(H25:H29) -> 0 | I30: =SUM(I25:I29) -> 0 | M30: =SUM(M25:M29) -> 0 | N30: =SUM(N25:N29) -> 0 | Q30: =SUM(Q25:Q29) -> 0 | R30: =SUM(R25:R29) -> 0 | T30: =SUM(T25:T29) -> 0 | U30: =SUM(U25:U29) -> 0 | W30: =HLOOKUP($W$9,'ROR-Model'!$Q$10:$U$1284,Y30) -> 0 | Y30: 21
Y31: 22
C32: Total Dth | F32: =Revenue!$F$31 -> 0 | G32: =+Adjustments!V32 -> 0 | I32: =SUM(F32:H32) -> 0 | L32: Utah | M32: =VLOOKUP($L32,$L$2:$N$7,2,FALSE)*I32 -> 0 | N32: =VLOOKUP($L32,$L$2:$N$7,3,FALSE)*I32 -> 0 | P32: G | Q32: =IF(P32="G",M32,IF(P32="PT",0,ERR)) -> 0 | R32: =IF(P32="PT",M32,IF(P32="G",0,ERR)) -> 0 | S32: G | T32: =IF(S32="G",N32,IF(S32="PT",0,ERR)) -> 0 | U32: =IF(S32="PT",N32,IF(S32="G",0,ERR)) -> 0 | W32: =HLOOKUP($W$9,'ROR-Model'!$Q$10:$U$1284,Y32) -> 0 | Y32: 23
Y33: 24
B34: GSS | C34: Distribution Non-Gas Rev | F34: =Revenue!$F$33 -> 0 | G34: =+Adjustments!V34 -> 0 | I34: =SUM(F34:H34) -> 0 | L34: Utah | M34: =VLOOKUP($L34,$L$2:$N$7,2,FALSE)*I34 -> 0 | N34: =VLOOKUP($L34,$L$2:$N$7,3,FALSE)*I34 -> 0 | P34: G | Q34: =IF(P34="G",M34,IF(P34="PT",0,ERR)) -> 0 | R34: =IF(P34="PT",M34,IF(P34="G",0,ERR)) -> 0 | S34: G | T34: =IF(S34="G",N34,IF(S34="PT",0,ERR)) -> 0 | U34: =IF(S34="PT",N34,IF(S34="G",0,ERR)) -> 0 | W34: =HLOOKUP($W$9,'ROR-Model'!$Q$10:$U$1284,Y34) -> 0 | Y34: 25
Y35: 26
C36: Supplier Non-Gas Revenue | F36: =Revenue!$F$35 -> 0 | G36: =+Adjustments!V36 -> 0 | I36: =SUM($F$36:$H$36) -> 0 | L36: Utah | M36: =VLOOKUP($L36,$L$2:$N$7,2,FALSE)*I36 -> 0 | N36: =VLOOKUP($L36,$L$2:$N$7,3,FALSE)*I36 -> 0 | P36: PT | Q36: =IF(P36="G",M36,IF(P36="PT",0,ERR)) -> 0 | R36: =IF(P36="PT",M36,IF(P36="G",0,ERR)) -> 0 | S36: PT | T36: =IF(S36="G",N36,IF(S36="PT",0,ERR)) -> 0 | U36: =IF(S36="PT",N36,IF(S36="G",0,ERR)) -> 0 | W36: =HLOOKUP($W$9,'ROR-Model'!$Q$10:$U$1284,Y36) -> 0 | Y36: 27
Y37: 28
C38: Commodity Revenue | F38: =Revenue!$F$37 -> 0 | G38: =+Adjustments!V38 -> 0 | I38: =SUM($F$38:$H$38) -> 0 | L38: Utah | M38: =VLOOKUP($L38,$L$2:$N$7,2,FALSE)*I38 -> 0 | N38: =VLOOKUP($L38,$L$2:$N$7,3,FALSE)*I38 -> 0 | P38: PT | Q38: =IF(P38="G",M38,IF(P38="PT",0,ERR)) -> 0 | R38: =IF(P38="PT",M38,IF(P38="G",0,ERR)) -> 0 | S38: PT | T38: =IF(S38="G",N38,IF(S38="PT",0,ERR)) -> 0 | U38: =IF(S38="PT",N38,IF(S38="G",0,ERR)) -> 0 | W38: =HLOOKUP($W$9,'ROR-Model'!$Q$10:$U$1284,Y38) -> 0 | Y38: 29
C39: Total Revenue | F39: =SUM(F34:F38) -> 0 | G39: =SUM(G34:G38) -> 0 | H39: =SUM(H34:H38) -> 0 | I39: =SUM(I34:I38) -> 0 | M39: =SUM(M34:M38) -> 0 | N39: =SUM(N34:N38) -> 0 | Q39: =SUM(Q34:Q38) -> 0 | R39: =SUM(R34:R38) -> 0 | T39: =SUM(T34:T38) -> 0 | U39: =SUM(U34:U38) -> 0 | W39: =HLOOKUP($W$9,'ROR-Model'!$Q$10:$U$1284,Y39) -> 0 | Y39: 30
Y40: 31
C41: Total Dth | F41: =Revenue!$F$40 -> 0 | G41: =+Adjustments!V41 -> 0 | I41: =SUM($F$41:$H$41) -> 0 | L41: Utah | M41: =VLOOKUP($L41,$L$2:$N$7,2,FALSE)*I41 -> 0 | N41: =VLOOKUP($L41,$L$2:$N$7,3,FALSE)*I41 -> 0 | P41: G | Q41: =IF(P41="G",M41,IF(P41="PT",0,ERR)) -> 0 | R41: =IF(P41="PT",M41,IF(P41="G",0,ERR)) -> 0 | S41: G | T41: =IF(S41="G",N41,IF(S41="PT",0,ERR)) -> 0 | U41: =IF(S41="PT",N41,IF(S41="G",0,ERR)) -> 0 | W41: =HLOOKUP($W$9,'ROR-Model'!$Q$10:$U$1284,Y41) -> 0 | Y41: 32
Y42: 33
B43: F-1 | C43: Distribution Non-Gas Rev | F43: =Revenue!$F$42 -> 2951255.65 | G43: =+Adjustments!V43 -> 1011122.492 | I43: =SUM($F$43:$H$43) -> 3962378.142 | L43: Utah | M43: =VLOOKUP($L43,$L$2:$N$7,2,FALSE)*I43 -> 3962378.142 | N43: =VLOOKUP($L43,$L$2:$N$7,3,FALSE)*I43 -> 0 | P43: G | Q43: =IF(P43="G",M43,IF(P43="PT",0,ERR)) -> 3962378.142 | R43: =IF(P43="PT",M43,IF(P43="G",0,ERR)) -> 0 | S43: G | T43: =IF(S43="G",N43,IF(S43="PT",0,ERR)) -> 0 | U43: =IF(S43="PT",N43,IF(S43="G",0,ERR)) -> 0 | W43: =HLOOKUP($W$9,'ROR-Model'!$Q$10:$U$1284,Y43) -> 3962378.142 | Y43: 34
Y44: 35
C45: Supplier Non-Gas Revenue | F45: =Revenue!$F$44 -> 2250007.21 | G45: =+Adjustments!V45 -> 0 | I45: =SUM($F$45:$H$45) -> 2250007.21 | L45: Utah | M45: =VLOOKUP($L45,$L$2:$N$7,2,FALSE)*I45 -> 2250007.21 | N45: =VLOOKUP($L45,$L$2:$N$7,3,FALSE)*I45 -> 0 | P45: PT | Q45: =IF(P45="G",M45,IF(P45="PT",0,ERR)) -> 0 | R45: =IF(P45="PT",M45,IF(P45="G",0,ERR)) -> 2250007.21 | S45: PT | T45: =IF(S45="G",N45,IF(S45="PT",0,ERR)) -> 0 | U45: =IF(S45="PT",N45,IF(S45="G",0,ERR)) -> 0 | W45: =HLOOKUP($W$9,'ROR-Model'!$Q$10:$U$1284,Y45) -> 0 | Y45: 36
Y46: 37
C47: Commodity Revenue | F47: =Revenue!$F$46 -> 15220594.31 | G47: =+Adjustments!V47 -> 0 | I47: =SUM($F$47:$H$47) -> 15220594.31 | L47: Utah | M47: =VLOOKUP($L47,$L$2:$N$7,2,FALSE)*I47 -> 15220594.31 | N47: =VLOOKUP($L47,$L$2:$N$7,3,FALSE)*I47 -> 0 | P47: PT | Q47: =IF(P47="G",M47,IF(P47="PT",0,ERR)) -> 0 | R47: =IF(P47="PT",M47,IF(P47="G",0,ERR)) -> 15220594.31 | S47: PT | T47: =IF(S47="G",N47,IF(S47="PT",0,ERR)) -> 0 | U47: =IF(S47="PT",N47,IF(S47="G",0,ERR)) -> 0 | W47: =HLOOKUP($W$9,'ROR-Model'!$Q$10:$U$1284,Y47) -> 0 | Y47: 38
C48: Total Revenue | F48: =SUM(F43:F47) -> 20421857.17 | G48: =SUM(G43:G47) -> 1011122.492 | H48: =SUM(H43:H47) -> 0 | I48: =SUM(I43:I47) -> 21432979.66 | M48: =SUM(M43:M47) -> 21432979.66 | N48: =SUM(N43:N47) -> 0 | Q48: =SUM(Q43:Q47) -> 3962378.142 | R48: =SUM(R43:R47) -> 17470601.52 | T48: =SUM(T43:T47) -> 0 | U48: =SUM(U43:U47) -> 0 | W48: =HLOOKUP($W$9,'ROR-Model'!$Q$10:$U$1284,Y48) -> 3962378.142 | Y48: 39
Y49: 40
C50: Total Dth | F50: =Revenue!$F$49 -> 2657366.196 | G50: =+Adjustments!V50 -> -55503.196 | I50: =SUM($F$50:$H$50) -> 2601863 | L50: Utah | M50: =VLOOKUP($L50,$L$2:$N$7,2,FALSE)*I50 -> 2601863 | N50: =VLOOKUP($L50,$L$2:$N$7,3,FALSE)*I50 -> 0 | P50: G | Q50: =IF(P50="G",M50,IF(P50="PT",0,ERR)) -> 2601863 | R50: =IF(P50="PT",M50,IF(P50="G",0,ERR)) -> 0 | S50: G | T50: =IF(S50="G",N50,IF(S50="PT",0,ERR)) -> 0 | U50: =IF(S50="PT",N50,IF(S50="G",0,ERR)) -> 0 | W50: =HLOOKUP($W$9,'ROR-Model'!$Q$10:$U$1284,Y50) -> 2601863 | Y50: 41
Y51: 42
B52: F-3 | C52: Distribution Non-Gas Rev | F52: =Revenue!$F$51 -> 0 | G52: =+Adjustments!V52 -> 0 | I52: =SUM($F$52:$H$52) -> 0 | L52: Utah | M52: =VLOOKUP($L52,$L$2:$N$7,2,FALSE)*I52 -> 0 | N52: =VLOOKUP($L52,$L$2:$N$7,3,FALSE)*I52 -> 0 | P52: G | Q52: =IF(P52="G",M52,IF(P52="PT",0,ERR)) -> 0 | R52: =IF(P52="PT",M52,IF(P52="G",0,ERR)) -> 0 | S52: G | T52: =IF(S52="G",N52,IF(S52="PT",0,ERR)) -> 0 | U52: =IF(S52="PT",N52,IF(S52="G",0,ERR)) -> 0 | W52: =HLOOKUP($W$9,'ROR-Model'!$Q$10:$U$1284,Y52) -> 0 | Y52: 43
C53: Supplier Non-Gas Revenue | I53: =SUM($F$53:$H$53) -> 0 | L53: Utah | M53: =VLOOKUP($L53,$L$2:$N$7,2,FALSE)*I53 -> 0 | N53: =VLOOKUP($L53,$L$2:$N$7,3,FALSE)*I53 -> 0 | P53: PT | Q53: =IF(P53="G",M53,IF(P53="PT",0,ERR)) -> 0 | R53: =IF(P53="PT",M53,IF(P53="G",0,ERR)) -> 0 | S53: PT | T53: =IF(S53="G",N53,IF(S53="PT",0,ERR)) -> 0 | U53: =IF(S53="PT",N53,IF(S53="G",0,ERR)) -> 0 | W53: =HLOOKUP($W$9,'ROR-Model'!$Q$10:$U$1284,Y53) -> 0 | Y53: 44
C54: Supplier Non-Gas Demand Revenue | F54: =Revenue!$F$53 -> 0 | G54: =+Adjustments!V54 -> 0 | I54: =SUM($F$54:$H$54) -> 0 | L54: Utah | M54: =VLOOKUP($L54,$L$2:$N$7,2,FALSE)*I54 -> 0 | N54: =VLOOKUP($L54,$L$2:$N$7,3,FALSE)*I54 -> 0 | P54: PT | Q54: =IF(P54="G",M54,IF(P54="PT",0,ERR)) -> 0 | R54: =IF(P54="PT",M54,IF(P54="G",0,ERR)) -> 0 | S54: PT | T54: =IF(S54="G",N54,IF(S54="PT",0,ERR)) -> 0 | U54: =IF(S54="PT",N54,IF(S54="G",0,ERR)) -> 0 | W54: =HLOOKUP($W$9,'ROR-Model'!$Q$10:$U$1284,Y54) -> 0 | Y54: 45
C55: Commodity Tariff Revenue | I55: =SUM($F$55:$H$55) -> 0 | L55: Utah | M55: =VLOOKUP($L55,$L$2:$N$7,2,FALSE)*I55 -> 0 | N55: =VLOOKUP($L55,$L$2:$N$7,3,FALSE)*I55 -> 0 | P55: PT | Q55: =IF(P55="G",M55,IF(P55="PT",0,ERR)) -> 0 | R55: =IF(P55="PT",M55,IF(P55="G",0,ERR)) -> 0 | S55: PT | T55: =IF(S55="G",N55,IF(S55="PT",0,ERR)) -> 0 | U55: =IF(S55="PT",N55,IF(S55="G",0,ERR)) -> 0 | W55: =HLOOKUP($W$9,'ROR-Model'!$Q$10:$U$1284,Y55) -> 0 | Y55: 46
C56: Commodity Demand Revenue | F56: =Revenue!$F$55 -> 0 | G56: =+Adjustments!V56 -> 0 | I56: =SUM($F$56:$H$56) -> 0 | L56: Utah | M56: =VLOOKUP($L56,$L$2:$N$7,2,FALSE)*I56 -> 0 | N56: =VLOOKUP($L56,$L$2:$N$7,3,FALSE)*I56 -> 0 | P56: PT | Q56: =IF(P56="G",M56,IF(P56="PT",0,ERR)) -> 0 | R56: =IF(P56="PT",M56,IF(P56="G",0,ERR)) -> 0 | S56: PT | T56: =IF(S56="G",N56,IF(S56="PT",0,ERR)) -> 0 | U56: =IF(S56="PT",N56,IF(S56="G",0,ERR)) -> 0 | W56: =HLOOKUP($W$9,'ROR-Model'!$Q$10:$U$1284,Y56) -> 0 | Y56: 47
C57: Total Revenue | F57: =SUM(F52:F56) -> 0 | G57: =SUM(G52:G56) -> 0 | H57: =SUM(H52:H56) -> 0 | I57: =SUM(I52:I56) -> 0 | M57: =SUM(M52:M56) -> 0 | N57: =SUM(N52:N56) -> 0 | Q57: =SUM(Q52:Q56) -> 0 | R57: =SUM(R52:R56) -> 0 | T57: =SUM(T52:T56) -> 0 | U57: =SUM(U52:U56) -> 0 | W57: =HLOOKUP($W$9,'ROR-Model'!$Q$10:$U$1284,Y57) -> 0 | Y57: 48
Y58: 49
C59: Total Sales Dth | F59: =Revenue!$F$58 -> 0 | G59: =+Adjustments!V59 -> 0 | I59: =SUM($F$59:$H$59) -> 0 | L59: Utah | M59: =VLOOKUP($L59,$L$2:$N$7,2,FALSE)*I59 -> 0 | N59: =VLOOKUP($L59,$L$2:$N$7,3,FALSE)*I59 -> 0 | P59: G | Q59: =IF(P59="G",M59,IF(P59="PT",0,ERR)) -> 0 | R59: =IF(P59="PT",M59,IF(P59="G",0,ERR)) -> 0 | S59: G | T59: =IF(S59="G",N59,IF(S59="PT",0,ERR)) -> 0 | U59: =IF(S59="PT",N59,IF(S59="G",0,ERR)) -> 0 | W59: =HLOOKUP($W$9,'ROR-Model'!$Q$10:$U$1284,Y59) -> 0 | Y59: 50
W60: =HLOOKUP($W$9,'ROR-Model'!$Q$10:$U$1284,Y60) -> 0 | Y60: 51
B61: NGV | C61: Distribution Non-Gas Rev | F61: =Revenue!$F$60 -> 2381926.051 | G61: =+Adjustments!V61 -> 332109.8779 | I61: =SUM($F$61:$H$61) -> 2714035.929 | L61: Utah | M61: =VLOOKUP($L61,$L$2:$N$7,2,FALSE)*I61 -> 2714035.929 | N61: =VLOOKUP($L61,$L$2:$N$7,3,FALSE)*I61 -> 0 | P61: G | Q61: =IF(P61="G",M61,IF(P61="PT",0,ERR)) -> 2714035.929 | R61: =IF(P61="PT",M61,IF(P61="G",0,ERR)) -> 0 | S61: G | T61: =IF(S61="G",N61,IF(S61="PT",0,ERR)) -> 0 | U61: =IF(S61="PT",N61,IF(S61="G",0,ERR)) -> 0 | W61: =HLOOKUP($W$9,'ROR-Model'!$Q$10:$U$1284,Y61) -> 2714035.929 | Y61: 52
F62: =Revenue!$F$61 -> 0 | W62: =HLOOKUP($W$9,'ROR-Model'!$Q$10:$U$1284,Y62) -> 0 | Y62: 53
C63: Supplier Non-Gas Revenue | F63: =Revenue!$F$62 -> 266114.744 | G63: =+Adjustments!V63 -> 0 | I63: =SUM($F$63:$H$63) -> 266114.744 | L63: Utah | M63: =VLOOKUP($L63,$L$2:$N$7,2,FALSE)*I63 -> 266114.744 | N63: =VLOOKUP($L63,$L$2:$N$7,3,FALSE)*I63 -> 0 | P63: PT | Q63: =IF(P63="G",M63,IF(P63="PT",0,ERR)) -> 0 | R63: =IF(P63="PT",M63,IF(P63="G",0,ERR)) -> 266114.744 | S63: PT | T63: =IF(S63="G",N63,IF(S63="PT",0,ERR)) -> 0 | U63: =IF(S63="PT",N63,IF(S63="G",0,ERR)) -> 0 | W63: =HLOOKUP($W$9,'ROR-Model'!$Q$10:$U$1284,Y63) -> 0 | Y63: 54
F64: =Revenue!$F$63 -> 0 | W64: =HLOOKUP($W$9,'ROR-Model'!$Q$10:$U$1284,Y64) -> 0 | Y64: 55
C65: Commodity Revenue | F65: =Revenue!$F$64 -> 1278069.445 | G65: =+Adjustments!V65 -> 0 | I65: =SUM($F$65:$H$65) -> 1278069.445 | L65: Utah | M65: =VLOOKUP($L65,$L$2:$N$7,2,FALSE)*I65 -> 1278069.445 | N65: =VLOOKUP($L65,$L$2:$N$7,3,FALSE)*I65 -> 0 | P65: PT | Q65: =IF(P65="G",M65,IF(P65="PT",0,ERR)) -> 0 | R65: =IF(P65="PT",M65,IF(P65="G",0,ERR)) -> 1278069.445 | S65: PT | T65: =IF(S65="G",N65,IF(S65="PT",0,ERR)) -> 0 | U65: =IF(S65="PT",N65,IF(S65="G",0,ERR)) -> 0 | W65: =HLOOKUP($W$9,'ROR-Model'!$Q$10:$U$1284,Y65) -> 0 | Y65: 56
C66: Total Revenue | F66: =SUM(F61:F65) -> 3926110.24 | G66: =SUM(G61:G65) -> 332109.8779 | H66: =SUM(H61:H65) -> 0 | I66: =SUM(I61:I65) -> 4258220.118 | M66: =SUM(M61:M65) -> 4258220.118 | N66: =SUM(N61:N65) -> 0 | Q66: =SUM(Q61:Q65) -> 2714035.929 | R66: =SUM(R61:R65) -> 1544184.189 | T66: =SUM(T61:T65) -> 0 | U66: =SUM(U61:U65) -> 0 | W66: =HLOOKUP($W$9,'ROR-Model'!$Q$10:$U$1284,Y66) -> 2714035.929 | Y66: 57
Y67: 58
C68: Total Dth | F68: =Revenue!$F$67 -> 265189.825 | G68: =+Adjustments!V68 -> -3036.825 | I68: =SUM($F$68:$H$68) -> 262153 | L68: Utah | M68: =VLOOKUP($L68,$L$2:$N$7,2,FALSE)*I68 -> 262153 | N68: =VLOOKUP($L68,$L$2:$N$7,3,FALSE)*I68 -> 0 | P68: G | Q68: =IF(P68="G",M68,IF(P68="PT",0,ERR)) -> 262153 | R68: =IF(P68="PT",M68,IF(P68="G",0,ERR)) -> 0 | S68: G | T68: =IF(S68="G",N68,IF(S68="PT",0,ERR)) -> 0 | U68: =IF(S68="PT",N68,IF(S68="G",0,ERR)) -> 0 | W68: =HLOOKUP($W$9,'ROR-Model'!$Q$10:$U$1284,Y68) -> 262153 | Y68: 59
Y69: 60
B70: F-4 | C70: Distribution Non-Gas Rev | F70: =Revenue!$F$69 -> 0 | G70: =+Adjustments!V70 -> 0 | I70: =SUM($F$70:$H$70) -> 0 | L70: Utah | M70: =VLOOKUP($L70,$L$2:$N$7,2,FALSE)*I70 -> 0 | N70: =VLOOKUP($L70,$L$2:$N$7,3,FALSE)*I70 -> 0 | P70: G | Q70: =IF(P70="G",M70,IF(P70="PT",0,ERR)) -> 0 | R70: =IF(P70="PT",M70,IF(P70="G",0,ERR)) -> 0 | S70: G | T70: =IF(S70="G",N70,IF(S70="PT",0,ERR)) -> 0 | U70: =IF(S70="PT",N70,IF(S70="G",0,ERR)) -> 0 | W70: =HLOOKUP($W$9,'ROR-Model'!$Q$10:$U$1284,Y70) -> 0 | Y70: 61
Y71: 62
C72: Supplier Non-Gas Revenue | F72: =Revenue!$F$71 -> 0 | G72: =+Adjustments!V72 -> 0 | I72: =SUM($F$72:$H$72) -> 0 | L72: Utah | M72: =VLOOKUP($L72,$L$2:$N$7,2,FALSE)*I72 -> 0 | N72: =VLOOKUP($L72,$L$2:$N$7,3,FALSE)*I72 -> 0 | P72: PT | Q72: =IF(P72="G",M72,IF(P72="PT",0,ERR)) -> 0 | R72: =IF(P72="PT",M72,IF(P72="G",0,ERR)) -> 0 | S72: PT | T72: =IF(S72="G",N72,IF(S72="PT",0,ERR)) -> 0 | U72: =IF(S72="PT",N72,IF(S72="G",0,ERR)) -> 0 | W72: =HLOOKUP($W$9,'ROR-Model'!$Q$10:$U$1284,Y72) -> 0 | Y72: 63
Y73: 64
C74: Commodity Revenue | F74: =Revenue!$F$73 -> 0 | G74: =+Adjustments!V74 -> 0 | I74: =SUM($F$74:$H$74) -> 0 | L74: Utah | M74: =VLOOKUP($L74,$L$2:$N$7,2,FALSE)*I74 -> 0 | N74: =VLOOKUP($L74,$L$2:$N$7,3,FALSE)*I74 -> 0 | P74: PT | Q74: =IF(P74="G",M74,IF(P74="PT",0,ERR)) -> 0 | R74: =IF(P74="PT",M74,IF(P74="G",0,ERR)) -> 0 | S74: PT | T74: =IF(S74="G",N74,IF(S74="PT",0,ERR)) -> 0 | U74: =IF(S74="PT",N74,IF(S74="G",0,ERR)) -> 0 | W74: =HLOOKUP($W$9,'ROR-Model'!$Q$10:$U$1284,Y74) -> 0 | Y74: 65
C75: Total Revenue | F75: =SUM(F70:F74) -> 0 | G75: =SUM(G70:G74) -> 0 | H75: =SUM(H70:H74) -> 0 | I75: =SUM(I70:I74) -> 0 | M75: =SUM(M70:M74) -> 0 | N75: =SUM(N70:N74) -> 0 | Q75: =SUM(Q70:Q74) -> 0 | R75: =SUM(R70:R74) -> 0 | T75: =SUM(T70:T74) -> 0 | U75: =SUM(U70:U74) -> 0 | W75: =HLOOKUP($W$9,'ROR-Model'!$Q$10:$U$1284,Y75) -> 0 | Y75: 66
Y76: =Y75+1 -> 67
C77: Total Dth | F77: =Revenue!$F$76 -> 0 | G77: =+Adjustments!V77 -> 0 | I77: =SUM($F$77:$H$77) -> 0 | L77: Utah | M77: =VLOOKUP($L77,$L$2:$N$7,2,FALSE)*I77 -> 0 | N77: =VLOOKUP($L77,$L$2:$N$7,3,FALSE)*I77 -> 0 | P77: G | Q77: =IF(P77="G",M77,IF(P77="PT",0,ERR)) -> 0 | R77: =IF(P77="PT",M77,IF(P77="G",0,ERR)) -> 0 | S77: G | T77: =IF(S77="G",N77,IF(S77="PT",0,ERR)) -> 0 | U77: =IF(S77="PT",N77,IF(S77="G",0,ERR)) -> 0 | W77: =HLOOKUP($W$9,'ROR-Model'!$Q$10:$U$1284,Y77) -> 0 | Y77: 68
Y78: 69
B79: Blank | C79: Distribution Non-Gas Rev | F79: =Revenue!$F$78 -> 0 | G79: =+Adjustments!V79 -> 0 | I79: =SUM($F$79:$H$79) -> 0 | L79: Utah | M79: =VLOOKUP($L79,$L$2:$N$7,2,FALSE)*I79 -> 0 | N79: =VLOOKUP($L79,$L$2:$N$7,3,FALSE)*I79 -> 0 | P79: G | Q79: =IF(P79="G",M79,IF(P79="PT",0,ERR)) -> 0 | R79: =IF(P79="PT",M79,IF(P79="G",0,ERR)) -> 0 | S79: G | T79: =IF(S79="G",N79,IF(S79="PT",0,ERR)) -> 0 | U79: =IF(S79="PT",N79,IF(S79="G",0,ERR)) -> 0 | W79: =HLOOKUP($W$9,'ROR-Model'!$Q$10:$U$1284,Y79) -> 0 | Y79: 70
Y80: 71
C81: Supplier Non-Gas Revenue | F81: =Revenue!$F$80 -> 0 | G81: =+Adjustments!V81 -> 0 | I81: =SUM($F$81:$H$81) -> 0 | L81: Utah | M81: =VLOOKUP($L81,$L$2:$N$7,2,FALSE)*I81 -> 0 | N81: =VLOOKUP($L81,$L$2:$N$7,3,FALSE)*I81 -> 0 | P81: PT | Q81: =IF(P81="G",M81,IF(P81="PT",0,ERR)) -> 0 | R81: =IF(P81="PT",M81,IF(P81="G",0,ERR)) -> 0 | S81: PT | T81: =IF(S81="G",N81,IF(S81="PT",0,ERR)) -> 0 | U81: =IF(S81="PT",N81,IF(S81="G",0,ERR)) -> 0 | W81: =HLOOKUP($W$9,'ROR-Model'!$Q$10:$U$1284,Y81) -> 0 | Y81: 72
Y82: 73
C83: Commodity Revenue | F83: =Revenue!$F$82 -> 0 | G83: =+Adjustments!V83 -> 0 | I83: =SUM($F$83:$H$83) -> 0 | L83: Utah | M83: =VLOOKUP($L83,$L$2:$N$7,2,FALSE)*I83 -> 0 | N83: =VLOOKUP($L83,$L$2:$N$7,3,FALSE)*I83 -> 0 | P83: PT | Q83: =IF(P83="G",M83,IF(P83="PT",0,ERR)) -> 0 | R83: =IF(P83="PT",M83,IF(P83="G",0,ERR)) -> 0 | S83: PT | T83: =IF(S83="G",N83,IF(S83="PT",0,ERR)) -> 0 | U83: =IF(S83="PT",N83,IF(S83="G",0,ERR)) -> 0 | W83: =HLOOKUP($W$9,'ROR-Model'!$Q$10:$U$1284,Y83) -> 0 | Y83: 74
C84: Total Revenue | F84: =SUM(F79:F83) -> 0 | G84: =SUM(G79:G83) -> 0 | H84: =SUM(H79:H83) -> 0 | I84: =SUM(I79:I83) -> 0 | M84: =SUM(M79:M83) -> 0 | N84: =SUM(N79:N83) -> 0 | Q84: =SUM(Q79:Q83) -> 0 | R84: =SUM(R79:R83) -> 0 | T84: =SUM(T79:T83) -> 0 | U84: =SUM(U79:U83) -> 0 | W84: =HLOOKUP($W$9,'ROR-Model'!$Q$10:$U$1284,Y84) -> 0 | Y84: 75
Y85: 76
C86: Total Dth | F86: =Revenue!$F$85 -> 0 | G86: =+Adjustments!V86 -> 0 | I86: =SUM($F$86:$H$86) -> 0 | L86: Utah | M86: =VLOOKUP($L86,$L$2:$N$7,2,FALSE)*I86 -> 0 | N86: =VLOOKUP($L86,$L$2:$N$7,3,FALSE)*I86 -> 0 | P86: G | Q86: =IF(P86="G",M86,IF(P86="PT",0,ERR)) -> 0 | R86: =IF(P86="PT",M86,IF(P86="G",0,ERR)) -> 0 | S86: G | T86: =IF(S86="G",N86,IF(S86="PT",0,ERR)) -> 0 | U86: =IF(S86="PT",N86,IF(S86="G",0,ERR)) -> 0 | W86: =HLOOKUP($W$9,'ROR-Model'!$Q$10:$U$1284,Y86) -> 0 | Y86: 77
Y87: 78
B88: I-4 | C88: Distribution Non-Gas Rev | F88: =Revenue!$F$87 -> 0 | G88: =+Adjustments!V88 -> 0 | I88: =SUM($F$88:$H$88) -> 0 | L88: Utah | M88: =VLOOKUP($L88,$L$2:$N$7,2,FALSE)*I88 -> 0 | N88: =VLOOKUP($L88,$L$2:$N$7,3,FALSE)*I88 -> 0 | P88: G | Q88: =IF(P88="G",M88,IF(P88="PT",0,ERR)) -> 0 | R88: =IF(P88="PT",M88,IF(P88="G",0,ERR)) -> 0 | S88: G | T88: =IF(S88="G",N88,IF(S88="PT",0,ERR)) -> 0 | U88: =IF(S88="PT",N88,IF(S88="G",0,ERR)) -> 0 | W88: =HLOOKUP($W$9,'ROR-Model'!$Q$10:$U$1284,Y88) -> 0 | Y88: 79
Y89: 80
C90: Supplier Non-Gas Revenue | F90: =Revenue!$F$89 -> 0 | G90: =+Adjustments!V90 -> 0 | I90: =SUM($F$90:$H$90) -> 0 | L90: Utah | M90: =VLOOKUP($L90,$L$2:$N$7,2,FALSE)*I90 -> 0 | N90: =VLOOKUP($L90,$L$2:$N$7,3,FALSE)*I90 -> 0 | P90: PT | Q90: =IF(P90="G",M90,IF(P90="PT",0,ERR)) -> 0 | R90: =IF(P90="PT",M90,IF(P90="G",0,ERR)) -> 0 | S90: PT | T90: =IF(S90="G",N90,IF(S90="PT",0,ERR)) -> 0 | U90: =IF(S90="PT",N90,IF(S90="G",0,ERR)) -> 0 | W90: =HLOOKUP($W$9,'ROR-Model'!$Q$10:$U$1284,Y90) -> 0 | Y90: 81
Y91: 82
C92: Commodity Revenue | F92: =Revenue!$F$91 -> 0 | G92: =+Adjustments!V92 -> 0 | I92: =SUM($F$92:$H$92) -> 0 | L92: Utah | M92: =VLOOKUP($L92,$L$2:$N$7,2,FALSE)*I92 -> 0 | N92: =VLOOKUP($L92,$L$2:$N$7,3,FALSE)*I92 -> 0 | P92: PT | Q92: =IF(P92="G",M92,IF(P92="PT",0,ERR)) -> 0 | R92: =IF(P92="PT",M92,IF(P92="G",0,ERR)) -> 0 | S92: PT | T92: =IF(S92="G",N92,IF(S92="PT",0,ERR)) -> 0 | U92: =IF(S92="PT",N92,IF(S92="G",0,ERR)) -> 0 | W92: =HLOOKUP($W$9,'ROR-Model'!$Q$10:$U$1284,Y92) -> 0 | Y92: 83
C93: Total Revenue | F93: =SUM(F88:F92) -> 0 | G93: =SUM(G88:G92) -> 0 | H93: =SUM(H88:H92) -> 0 | I93: =SUM(I88:I92) -> 0 | M93: =SUM(M88:M92) -> 0 | N93: =SUM(N88:N92) -> 0 | Q93: =SUM(Q88:Q92) -> 0 | R93: =SUM(R88:R92) -> 0 | T93: =SUM(T88:T92) -> 0 | U93: =SUM(U88:U92) -> 0 | W93: =HLOOKUP($W$9,'ROR-Model'!$Q$10:$U$1284,Y93) -> 0 | Y93: 84
Y94: 85
C95: Total Dth | F95: =Revenue!$F$94 -> 0 | G95: =+Adjustments!V95 -> 0 | I95: =SUM($F$95:$H$95) -> 0 | L95: Utah | M95: =VLOOKUP($L95,$L$2:$N$7,2,FALSE)*I95 -> 0 | N95: =VLOOKUP($L95,$L$2:$N$7,3,FALSE)*I95 -> 0 | P95: G | Q95: =IF(P95="G",M95,IF(P95="PT",0,ERR)) -> 0 | R95: =IF(P95="PT",M95,IF(P95="G",0,ERR)) -> 0 | S95: G | T95: =IF(S95="G",N95,IF(S95="PT",0,ERR)) -> 0 | U95: =IF(S95="PT",N95,IF(S95="G",0,ERR)) -> 0 | W95: =HLOOKUP($W$9,'ROR-Model'!$Q$10:$U$1284,Y95) -> 0 | Y95: 86
Y96: 87
B97: IS | C97: Distribution Non-Gas Rev | F97: =Revenue!$F$96 -> 268664.68 | G97: =+Adjustments!V97 -> -30651.68368 | I97: =SUM($F$97:$H$97) -> 238012.9963 | L97: Utah | M97: =VLOOKUP($L97,$L$2:$N$7,2,FALSE)*I97 -> 238012.9963 | N97: =VLOOKUP($L97,$L$2:$N$7,3,FALSE)*I97 -> 0 | P97: G | Q97: =IF(P97="G",M97,IF(P97="PT",0,ERR)) -> 238012.9963 | R97: =IF(P97="PT",M97,IF(P97="G",0,ERR)) -> 0 | S97: G | T97: =IF(S97="G",N97,IF(S97="PT",0,ERR)) -> 0 | U97: =IF(S97="PT",N97,IF(S97="G",0,ERR)) -> 0 | W97: =HLOOKUP($W$9,'ROR-Model'!$Q$10:$U$1284,Y97) -> 238012.9963 | Y97: 88
Y98: 89
C99: Supplier Non-Gas Revenue | F99: =Revenue!$F$98 -> 51818.94 | G99: =+Adjustments!V99 -> -79.64908 | I99: =SUM($F$99:$H$99) -> 51739.29092 | L99: Utah | M99: =VLOOKUP($L99,$L$2:$N$7,2,FALSE)*I99 -> 51739.29092 | N99: =VLOOKUP($L99,$L$2:$N$7,3,FALSE)*I99 -> 0 | P99: PT | Q99: =IF(P99="G",M99,IF(P99="PT",0,ERR)) -> 0 | R99: =IF(P99="PT",M99,IF(P99="G",0,ERR)) -> 51739.29092 | S99: PT | T99: =IF(S99="G",N99,IF(S99="PT",0,ERR)) -> 0 | U99: =IF(S99="PT",N99,IF(S99="G",0,ERR)) -> 0 | W99: =HLOOKUP($W$9,'ROR-Model'!$Q$10:$U$1284,Y99) -> 0 | Y99: 90
Y100: 91
C101: Commodity Revenue | F101: =Revenue!$F$100 -> 1686379.08 | G101: =+Adjustments!V101 -> 774718.6371 | I101: =SUM($F$101:$H$101) -> 2461097.717 | L101: Utah | M101: =VLOOKUP($L101,$L$2:$N$7,2,FALSE)*I101 -> 2461097.717 | N101: =VLOOKUP($L101,$L$2:$N$7,3,FALSE)*I101 -> 0 | P101: PT | Q101: =IF(P101="G",M101,IF(P101="PT",0,ERR)) -> 0 | R101: =IF(P101="PT",M101,IF(P101="G",0,ERR)) -> 2461097.717 | S101: PT | T101: =IF(S101="G",N101,IF(S101="PT",0,ERR)) -> 0 | U101: =IF(S101="PT",N101,IF(S101="G",0,ERR)) -> 0 | W101: =HLOOKUP($W$9,'ROR-Model'!$Q$10:$U$1284,Y101) -> 0 | Y101: 92
C102: Total Revenue | F102: =SUM(F97:F101) -> 2006862.7 | G102: =SUM(G97:G101) -> 743987.3043 | H102: =SUM(H97:H101) -> 0 | I102: =SUM(I97:I101) -> 2750850.004 | M102: =SUM(M97:M101) -> 2750850.004 | N102: =SUM(N97:N101) -> 0 | Q102: =SUM(Q97:Q101) -> 238012.9963 | R102: =SUM(R97:R101) -> 2512837.008 | T102: =SUM(T97:T101) -> 0 | U102: =SUM(U97:U101) -> 0 | W102: =HLOOKUP($W$9,'ROR-Model'!$Q$10:$U$1284,Y102) -> 238012.9963 | Y102: 93
Y103: 94
C104: Total Dth | F104: =Revenue!$F$103 -> 289289.879 | G104: =+Adjustments!V104 -> -855.879 | I104: =SUM($F$104:$H$104) -> 288434 | L104: Utah | M104: =VLOOKUP($L104,$L$2:$N$7,2,FALSE)*I104 -> 288434 | N104: =VLOOKUP($L104,$L$2:$N$7,3,FALSE)*I104 -> 0 | P104: G | Q104: =IF(P104="G",M104,IF(P104="PT",0,ERR)) -> 288434 | R104: =IF(P104="PT",M104,IF(P104="G",0,ERR)) -> 0 | S104: G | T104: =IF(S104="G",N104,IF(S104="PT",0,ERR)) -> 0 | U104: =IF(S104="PT",N104,IF(S104="G",0,ERR)) -> 0 | W104: =HLOOKUP($W$9,'ROR-Model'!$Q$10:$U$1284,Y104) -> 288434 | Y104: 95
Y105: 96
B106: IS-4 | C106: Distribution Non-Gas Rev | F106: =Revenue!$F$105 -> 0 | G106: =+Adjustments!V106 -> 0 | I106: =SUM($F$106:$H$106) -> 0 | L106: Utah | M106: =VLOOKUP($L106,$L$2:$N$7,2,FALSE)*I106 -> 0 | N106: =VLOOKUP($L106,$L$2:$N$7,3,FALSE)*I106 -> 0 | P106: G | Q106: =IF(P106="G",M106,IF(P106="PT",0,ERR)) -> 0 | R106: =IF(P106="PT",M106,IF(P106="G",0,ERR)) -> 0 | S106: G | T106: =IF(S106="G",N106,IF(S106="PT",0,ERR)) -> 0 | U106: =IF(S106="PT",N106,IF(S106="G",0,ERR)) -> 0 | W106: =HLOOKUP($W$9,'ROR-Model'!$Q$10:$U$1284,Y106) -> 0 | Y106: 97
Y107: 98
C108: Supplier Non-Gas Revenue | F108: =Revenue!$F$107 -> 0 | G108: =+Adjustments!V108 -> 0 | I108: =SUM($F$108:$H$108) -> 0 | L108: Utah | M108: =VLOOKUP($L108,$L$2:$N$7,2,FALSE)*I108 -> 0 | N108: =VLOOKUP($L108,$L$2:$N$7,3,FALSE)*I108 -> 0 | P108: PT | Q108: =IF(P108="G",M108,IF(P108="PT",0,ERR)) -> 0 | R108: =IF(P108="PT",M108,IF(P108="G",0,ERR)) -> 0 | S108: PT | T108: =IF(S108="G",N108,IF(S108="PT",0,ERR)) -> 0 | U108: =IF(S108="PT",N108,IF(S108="G",0,ERR)) -> 0 | W108: =HLOOKUP($W$9,'ROR-Model'!$Q$10:$U$1284,Y108) -> 0 | Y108: 99
Y109: 100
C110: Commodity Revenue | F110: =Revenue!$F$109 -> 0 | G110: =+Adjustments!V110 -> 0 | I110: =SUM($F$110:$H$110) -> 0 | L110: Utah | M110: =VLOOKUP($L110,$L$2:$N$7,2,FALSE)*I110 -> 0 | N110: =VLOOKUP($L110,$L$2:$N$7,3,FALSE)*I110 -> 0 | P110: PT | Q110: =IF(P110="G",M110,IF(P110="PT",0,ERR)) -> 0 | R110: =IF(P110="PT",M110,IF(P110="G",0,ERR)) -> 0 | S110: PT | T110: =IF(S110="G",N110,IF(S110="PT",0,ERR)) -> 0 | U110: =IF(S110="PT",N110,IF(S110="G",0,ERR)) -> 0 | W110: =HLOOKUP($W$9,'ROR-Model'!$Q$10:$U$1284,Y110) -> 0 | Y110: 101
C111: Total Revenue | F111: =SUM(F106:F110) -> 0 | G111: =SUM(G106:G110) -> 0 | H111: =SUM(H106:H110) -> 0 | I111: =SUM(I106:I110) -> 0 | M111: =SUM(M106:M110) -> 0 | N111: =SUM(N106:N110) -> 0 | Q111: =SUM(Q106:Q110) -> 0 | R111: =SUM(R106:R110) -> 0 | T111: =SUM(T106:T110) -> 0 | U111: =SUM(U106:U110) -> 0 | W111: =HLOOKUP($W$9,'ROR-Model'!$Q$10:$U$1284,Y111) -> 0 | Y111: 102
Y112: 103
C113: Total Dth | F113: =Revenue!$F$112 -> 0 | G113: =+Adjustments!V113 -> 0 | I113: =SUM($F$113:$H$113) -> 0 | L113: Utah | M113: =VLOOKUP($L113,$L$2:$N$7,2,FALSE)*I113 -> 0 | N113: =VLOOKUP($L113,$L$2:$N$7,3,FALSE)*I113 -> 0 | P113: G | Q113: =IF(P113="G",M113,IF(P113="PT",0,ERR)) -> 0 | R113: =IF(P113="PT",M113,IF(P113="G",0,ERR)) -> 0 | S113: G | T113: =IF(S113="G",N113,IF(S113="PT",0,ERR)) -> 0 | U113: =IF(S113="PT",N113,IF(S113="G",0,ERR)) -> 0 | W113: =HLOOKUP($W$9,'ROR-Model'!$Q$10:$U$1284,Y113) -> 0 | Y113: 104
Y114: 105
B115: FT1-L | C115: Distribution Non-Gas Rev | F115: =Revenue!$F$114 -> 0 | G115: =+Adjustments!V115 -> 2240124 | I115: =SUM($F$115:$H$115) -> 2240124 | L115: Utah | M115: =VLOOKUP($L115,$L$2:$N$7,2,FALSE)*I115 -> 2240124 | N115: =VLOOKUP($L115,$L$2:$N$7,3,FALSE)*I115 -> 0 | P115: G | Q115: =IF(P115="G",M115,IF(P115="PT",0,ERR)) -> 2240124 | R115: =IF(P115="PT",M115,IF(P115="G",0,ERR)) -> 0 | S115: G | T115: =IF(S115="G",N115,IF(S115="PT",0,ERR)) -> 0 | U115: =IF(S115="PT",N115,IF(S115="G",0,ERR)) -> 0 | W115: =HLOOKUP($W$9,'ROR-Model'!$Q$10:$U$1284,Y115) -> 2240124 | Y115: 106
Y116: 107
C117: Supplier Non-Gas Revenue | F117: =Revenue!$F$116 -> 0 | G117: =+Adjustments!V117 -> 0 | I117: =SUM($F$117:$H$117) -> 0 | L117: Utah | M117: =VLOOKUP($L117,$L$2:$N$7,2,FALSE)*I117 -> 0 | N117: =VLOOKUP($L117,$L$2:$N$7,3,FALSE)*I117 -> 0 | P117: PT | Q117: =IF(P117="G",M117,IF(P117="PT",0,ERR)) -> 0 | R117: =IF(P117="PT",M117,IF(P117="G",0,ERR)) -> 0 | S117: PT | T117: =IF(S117="G",N117,IF(S117="PT",0,ERR)) -> 0 | U117: =IF(S117="PT",N117,IF(S117="G",0,ERR)) -> 0 | W117: =HLOOKUP($W$9,'ROR-Model'!$Q$10:$U$1284,Y117) -> 0 | Y117: 108
Y118: 109
C119: Commodity Revenue | F119: =Revenue!$F$118 -> 0 | G119: =+Adjustments!V119 -> 0 | I119: =SUM($F$119:$H$119) -> 0 | L119: Utah | M119: =VLOOKUP($L119,$L$2:$N$7,2,FALSE)*I119 -> 0 | N119: =VLOOKUP($L119,$L$2:$N$7,3,FALSE)*I119 -> 0 | P119: PT | Q119: =IF(P119="G",M119,IF(P119="PT",0,ERR)) -> 0 | R119: =IF(P119="PT",M119,IF(P119="G",0,ERR)) -> 0 | S119: PT | T119: =IF(S119="G",N119,IF(S119="PT",0,ERR)) -> 0 | U119: =IF(S119="PT",N119,IF(S119="G",0,ERR)) -> 0 | W119: =HLOOKUP($W$9,'ROR-Model'!$Q$10:$U$1284,Y119) -> 0 | Y119: 110
C120: Total Revenue | F120: =SUM(F115:F119) -> 0 | G120: =SUM(G115:G119) -> 2240124 | H120: =SUM(H115:H119) -> 0 | I120: =SUM(I115:I119) -> 2240124 | M120: =SUM(M115:M119) -> 2240124 | N120: =SUM(N115:N119) -> 0 | Q120: =SUM(Q115:Q119) -> 2240124 | R120: =SUM(R115:R119) -> 0 | T120: =SUM(T115:T119) -> 0 | U120: =SUM(U115:U119) -> 0 | W120: =HLOOKUP($W$9,'ROR-Model'!$Q$10:$U$1284,Y120) -> 2240124 | Y120: 111
Y121: 112
C122: Total Dth | F122: =Revenue!$F$121 -> 0 | G122: =+Adjustments!V122 -> 48089361 | I122: =SUM($F$122:$H$122) -> 48089361 | L122: Utah | M122: =VLOOKUP($L122,$L$2:$N$7,2,FALSE)*I122 -> 48089361 | N122: =VLOOKUP($L122,$L$2:$N$7,3,FALSE)*I122 -> 0 | P122: G | Q122: =IF(P122="G",M122,IF(P122="PT",0,ERR)) -> 48089361 | R122: =IF(P122="PT",M122,IF(P122="G",0,ERR)) -> 0 | S122: G | T122: =IF(S122="G",N122,IF(S122="PT",0,ERR)) -> 0 | U122: =IF(S122="PT",N122,IF(S122="G",0,ERR)) -> 0 | W122: =HLOOKUP($W$9,'ROR-Model'!$Q$10:$U$1284,Y122) -> 48089361 | Y122: 113
Y123: 114
B124: TBF | C124: Distribution Non-Gas Rev | F124: =Revenue!$F$123 -> 8787763.3 | G124: =+Adjustments!V124 -> -2626710.372 | I124: =SUM($F$124:$H$124) -> 6161052.928 | L124: Utah | M124: =VLOOKUP($L124,$L$2:$N$7,2,FALSE)*I124 -> 6161052.928 | N124: =VLOOKUP($L124,$L$2:$N$7,3,FALSE)*I124 -> 0 | P124: G | Q124: =IF(P124="G",M124,IF(P124="PT",0,ERR)) -> 6161052.928 | R124: =IF(P124="PT",M124,IF(P124="G",0,ERR)) -> 0 | S124: G | T124: =IF(S124="G",N124,IF(S124="PT",0,ERR)) -> 0 | U124: =IF(S124="PT",N124,IF(S124="G",0,ERR)) -> 0 | W124: =HLOOKUP($W$9,'ROR-Model'!$Q$10:$U$1284,Y124) -> 6161052.928 | Y124: 115
Y125: 116
C126: Supplier Non-Gas Revenue | F126: =Revenue!$F$125 -> 313018.53 | G126: =+Adjustments!V126 -> -220332.675 | I126: =SUM($F$126:$H$126) -> 92685.855 | L126: Utah | M126: =VLOOKUP($L126,$L$2:$N$7,2,FALSE)*I126 -> 92685.855 | N126: =VLOOKUP($L126,$L$2:$N$7,3,FALSE)*I126 -> 0 | P126: PT | Q126: =IF(P126="G",M126,IF(P126="PT",0,ERR)) -> 0 | R126: =IF(P126="PT",M126,IF(P126="G",0,ERR)) -> 92685.855 | S126: PT | T126: =IF(S126="G",N126,IF(S126="PT",0,ERR)) -> 0 | U126: =IF(S126="PT",N126,IF(S126="G",0,ERR)) -> 0 | W126: =HLOOKUP($W$9,'ROR-Model'!$Q$10:$U$1284,Y126) -> 0 | Y126: 117
Y127: 118
C128: Commodity Revenue | F128: =Revenue!$F$127 -> 0 | G128: =+Adjustments!V128 -> 0 | I128: =SUM($F$128:$H$128) -> 0 | L128: Utah | M128: =VLOOKUP($L128,$L$2:$N$7,2,FALSE)*I128 -> 0 | N128: =VLOOKUP($L128,$L$2:$N$7,3,FALSE)*I128 -> 0 | P128: PT | Q128: =IF(P128="G",M128,IF(P128="PT",0,ERR)) -> 0 | R128: =IF(P128="PT",M128,IF(P128="G",0,ERR)) -> 0 | S128: PT | T128: =IF(S128="G",N128,IF(S128="PT",0,ERR)) -> 0 | U128: =IF(S128="PT",N128,IF(S128="G",0,ERR)) -> 0 | W128: =HLOOKUP($W$9,'ROR-Model'!$Q$10:$U$1284,Y128) -> 0 | Y128: 119
C129: Total Revenue | F129: =SUM(F124:F128) -> 9100781.83 | G129: =SUM(G124:G128) -> -2847043.047 | H129: =SUM(H124:H128) -> 0 | I129: =SUM(I124:I128) -> 6253738.783 | M129: =SUM(M124:M128) -> 6253738.783 | N129: =SUM(N124:N128) -> 0 | Q129: =SUM(Q124:Q128) -> 6161052.928 | R129: =SUM(R124:R128) -> 92685.855 | T129: =SUM(T124:T128) -> 0 | U129: =SUM(U124:U128) -> 0 | W129: =HLOOKUP($W$9,'ROR-Model'!$Q$10:$U$1284,Y129) -> 6161052.928 | Y129: 120
Y130: 121
C131: Total Dth | F131: =Revenue!$F$130 -> 51210460 | G131: =+Adjustments!V131 -> -41393246 | I131: =SUM($F$131:$H$131) -> 9817214 | L131: Utah | M131: =VLOOKUP($L131,$L$2:$N$7,2,FALSE)*I131 -> 9817214 | N131: =VLOOKUP($L131,$L$2:$N$7,3,FALSE)*I131 -> 0 | P131: G | Q131: =IF(P131="G",M131,IF(P131="PT",0,ERR)) -> 9817214 | R131: =IF(P131="PT",M131,IF(P131="G",0,ERR)) -> 0 | S131: G | T131: =IF(S131="G",N131,IF(S131="PT",0,ERR)) -> 0 | U131: =IF(S131="PT",N131,IF(S131="G",0,ERR)) -> 0 | W131: =HLOOKUP($W$9,'ROR-Model'!$Q$10:$U$1284,Y131) -> 9817214 | Y131: 122
Y132: 123
B133: FT-2 | C133: Distribution Non-Gas Rev | F133: =Revenue!$F$132 -> 0 | G133: =+Adjustments!V133 -> 0 | I133: =SUM($F$133:$H$133) -> 0 | L133: Utah | M133: =VLOOKUP($L133,$L$2:$N$7,2,FALSE)*I133 -> 0 | N133: =VLOOKUP($L133,$L$2:$N$7,3,FALSE)*I133 -> 0 | P133: G | Q133: =IF(P133="G",M133,IF(P133="PT",0,ERR)) -> 0 | R133: =IF(P133="PT",M133,IF(P133="G",0,ERR)) -> 0 | S133: G | T133: =IF(S133="G",N133,IF(S133="PT",0,ERR)) -> 0 | U133: =IF(S133="PT",N133,IF(S133="G",0,ERR)) -> 0 | W133: =HLOOKUP($W$9,'ROR-Model'!$Q$10:$U$1284,Y133) -> 0 | Y133: 124
Y134: 125
C135: Supplier Non-Gas Revenue | F135: =Revenue!$F$134 -> 0 | G135: =+Adjustments!V135 -> 0 | I135: =SUM($F$135:$H$135) -> 0 | L135: Utah | M135: =VLOOKUP($L135,$L$2:$N$7,2,FALSE)*I135 -> 0 | N135: =VLOOKUP($L135,$L$2:$N$7,3,FALSE)*I135 -> 0 | P135: PT | Q135: =IF(P135="G",M135,IF(P135="PT",0,ERR)) -> 0 | R135: =IF(P135="PT",M135,IF(P135="G",0,ERR)) -> 0 | S135: PT | T135: =IF(S135="G",N135,IF(S135="PT",0,ERR)) -> 0 | U135: =IF(S135="PT",N135,IF(S135="G",0,ERR)) -> 0 | W135: =HLOOKUP($W$9,'ROR-Model'!$Q$10:$U$1284,Y135) -> 0 | Y135: 126
Y136: 127
C137: Commodity Revenue | F137: =Revenue!$F$136 -> 0 | G137: =+Adjustments!V137 -> 0 | I137: =SUM($F$137:$H$137) -> 0 | L137: Utah | M137: =VLOOKUP($L137,$L$2:$N$7,2,FALSE)*I137 -> 0 | N137: =VLOOKUP($L137,$L$2:$N$7,3,FALSE)*I137 -> 0 | P137: PT | Q137: =IF(P137="G",M137,IF(P137="PT",0,ERR)) -> 0 | R137: =IF(P137="PT",M137,IF(P137="G",0,ERR)) -> 0 | S137: PT | T137: =IF(S137="G",N137,IF(S137="PT",0,ERR)) -> 0 | U137: =IF(S137="PT",N137,IF(S137="G",0,ERR)) -> 0 | W137: =HLOOKUP($W$9,'ROR-Model'!$Q$10:$U$1284,Y137) -> 0 | Y137: 128
C138: Total Revenue | F138: =SUM(F133:F137) -> 0 | G138: =SUM(G133:G137) -> 0 | H138: =SUM(H133:H137) -> 0 | I138: =SUM(I133:I137) -> 0 | M138: =SUM(M133:M137) -> 0 | N138: =SUM(N133:N137) -> 0 | Q138: =SUM(Q133:Q137) -> 0 | R138: =SUM(R133:R137) -> 0 | T138: =SUM(T133:T137) -> 0 | U138: =SUM(U133:U137) -> 0 | W138: =HLOOKUP($W$9,'ROR-Model'!$Q$10:$U$1284,Y138) -> 0 | Y138: 129
Y139: 130
C140: Total Dth | F140: =Revenue!$F$139 -> 0 | G140: =+Adjustments!V140 -> 0 | I140: =SUM($F$140:$H$140) -> 0 | L140: Utah | M140: =VLOOKUP($L140,$L$2:$N$7,2,FALSE)*I140 -> 0 | N140: =VLOOKUP($L140,$L$2:$N$7,3,FALSE)*I140 -> 0 | P140: G | Q140: =IF(P140="G",M140,IF(P140="PT",0,ERR)) -> 0 | R140: =IF(P140="PT",M140,IF(P140="G",0,ERR)) -> 0 | S140: G | T140: =IF(S140="G",N140,IF(S140="PT",0,ERR)) -> 0 | U140: =IF(S140="PT",N140,IF(S140="G",0,ERR)) -> 0 | W140: =HLOOKUP($W$9,'ROR-Model'!$Q$10:$U$1284,Y140) -> 0 | Y140: =Y139+1 -> 131
Y141: 132
B142: MT | C142: Distribution Non-Gas Rev | F142: =Revenue!$F$141 -> 128502.54 | G142: =+Adjustments!V142 -> -100824.3325 | I142: =SUM($F$142:$H$142) -> 27678.20754 | L142: Utah | M142: =VLOOKUP($L142,$L$2:$N$7,2,FALSE)*I142 -> 27678.20754 | N142: =VLOOKUP($L142,$L$2:$N$7,3,FALSE)*I142 -> 0 | P142: G | Q142: =IF(P142="G",M142,IF(P142="PT",0,ERR)) -> 27678.20754 | R142: =IF(P142="PT",M142,IF(P142="G",0,ERR)) -> 0 | S142: G | T142: =IF(S142="G",N142,IF(S142="PT",0,ERR)) -> 0 | U142: =IF(S142="PT",N142,IF(S142="G",0,ERR)) -> 0 | W142: =HLOOKUP($W$9,'ROR-Model'!$Q$10:$U$1284,Y142) -> 27678.20754 | Y142: 133
Y143: 134
C144: Supplier Non-Gas Revenue | F144: =Revenue!$F$143 -> 1314.84 | G144: =+Adjustments!V144 -> -1314.84 | I144: =SUM($F$144:$H$144) -> 0 | L144: Utah | M144: =VLOOKUP($L144,$L$2:$N$7,2,FALSE)*I144 -> 0 | N144: =VLOOKUP($L144,$L$2:$N$7,3,FALSE)*I144 -> 0 | P144: PT | Q144: =IF(P144="G",M144,IF(P144="PT",0,ERR)) -> 0 | R144: =IF(P144="PT",M144,IF(P144="G",0,ERR)) -> 0 | S144: PT | T144: =IF(S144="G",N144,IF(S144="PT",0,ERR)) -> 0 | U144: =IF(S144="PT",N144,IF(S144="G",0,ERR)) -> 0 | W144: =HLOOKUP($W$9,'ROR-Model'!$Q$10:$U$1284,Y144) -> 0 | Y144: 135
Y145: 136
C146: Commodity Revenue | F146: =Revenue!$F$145 -> 0 | G146: =+Adjustments!V146 -> 0 | I146: =SUM($F$146:$H$146) -> 0 | L146: Utah | M146: =VLOOKUP($L146,$L$2:$N$7,2,FALSE)*I146 -> 0 | N146: =VLOOKUP($L146,$L$2:$N$7,3,FALSE)*I146 -> 0 | P146: PT | Q146: =IF(P146="G",M146,IF(P146="PT",0,ERR)) -> 0 | R146: =IF(P146="PT",M146,IF(P146="G",0,ERR)) -> 0 | S146: PT | T146: =IF(S146="G",N146,IF(S146="PT",0,ERR)) -> 0 | U146: =IF(S146="PT",N146,IF(S146="G",0,ERR)) -> 0 | W146: =HLOOKUP($W$9,'ROR-Model'!$Q$10:$U$1284,Y146) -> 0 | Y146: 137
C147: Total Revenue | F147: =SUM(F142:F146) -> 129817.38 | G147: =SUM(G142:G146) -> -102139.1725 | H147: =SUM(H142:H146) -> 0 | I147: =SUM(I142:I146) -> 27678.20754 | M147: =SUM(M142:M146) -> 27678.20754 | N147: =SUM(N142:N146) -> 0 | Q147: =SUM(Q142:Q146) -> 27678.20754 | R147: =SUM(R142:R146) -> 0 | T147: =SUM(T142:T146) -> 0 | U147: =SUM(U142:U146) -> 0 | W147: =HLOOKUP($W$9,'ROR-Model'!$Q$10:$U$1284,Y147) -> 27678.20754 | Y147: 138
Y148: 139
C149: Total Dth | F149: =Revenue!$F$148 -> 29303 | G149: =+Adjustments!V149 -> -2177 | I149: =SUM($F$149:$H$149) -> 27126 | L149: Utah | M149: =VLOOKUP($L149,$L$2:$N$7,2,FALSE)*I149 -> 27126 | N149: =VLOOKUP($L149,$L$2:$N$7,3,FALSE)*I149 -> 0 | P149: G | Q149: =IF(P149="G",M149,IF(P149="PT",0,ERR)) -> 27126 | R149: =IF(P149="PT",M149,IF(P149="G",0,ERR)) -> 0 | S149: G | T149: =IF(S149="G",N149,IF(S149="PT",0,ERR)) -> 0 | U149: =IF(S149="PT",N149,IF(S149="G",0,ERR)) -> 0 | W149: =HLOOKUP($W$9,'ROR-Model'!$Q$10:$U$1284,Y149) -> 27126 | Y149: 140
Y150: 141
B151: Blank | C151: Distribution Non-Gas Rev | F151: =Revenue!$F$150 -> 0 | G151: =+Adjustments!V151 -> 0 | I151: =SUM($F$151:$H$151) -> 0 | L151: Utah | M151: =VLOOKUP($L151,$L$2:$N$7,2,FALSE)*I151 -> 0 | N151: =VLOOKUP($L151,$L$2:$N$7,3,FALSE)*I151 -> 0 | P151: G | Q151: =IF(P151="G",M151,IF(P151="PT",0,ERR)) -> 0 | R151: =IF(P151="PT",M151,IF(P151="G",0,ERR)) -> 0 | S151: G | T151: =IF(S151="G",N151,IF(S151="PT",0,ERR)) -> 0 | U151: =IF(S151="PT",N151,IF(S151="G",0,ERR)) -> 0 | W151: =HLOOKUP($W$9,'ROR-Model'!$Q$10:$U$1284,Y151) -> 0 | Y151: 142
Y152: 143
C153: Supplier Non-Gas Revenue | F153: =Revenue!$F$152 -> 0 | G153: =+Adjustments!V153 -> 0 | I153: =SUM($F$153:$H$153) -> 0 | L153: Utah | M153: =VLOOKUP($L153,$L$2:$N$7,2,FALSE)*I153 -> 0 | N153: =VLOOKUP($L153,$L$2:$N$7,3,FALSE)*I153 -> 0 | P153: PT | Q153: =IF(P153="G",M153,IF(P153="PT",0,ERR)) -> 0 | R153: =IF(P153="PT",M153,IF(P153="G",0,ERR)) -> 0 | S153: PT | T153: =IF(S153="G",N153,IF(S153="PT",0,ERR)) -> 0 | U153: =IF(S153="PT",N153,IF(S153="G",0,ERR)) -> 0 | W153: =HLOOKUP($W$9,'ROR-Model'!$Q$10:$U$1284,Y153) -> 0 | Y153: 144
Y154: 145
C155: Commodity Revenue | F155: =Revenue!$F$154 -> 0 | G155: =+Adjustments!V155 -> 0 | I155: =SUM($F$155:$H$155) -> 0 | L155: Utah | M155: =VLOOKUP($L155,$L$2:$N$7,2,FALSE)*I155 -> 0 | N155: =VLOOKUP($L155,$L$2:$N$7,3,FALSE)*I155 -> 0 | P155: PT | Q155: =IF(P155="G",M155,IF(P155="PT",0,ERR)) -> 0 | R155: =IF(P155="PT",M155,IF(P155="G",0,ERR)) -> 0 | S155: PT | T155: =IF(S155="G",N155,IF(S155="PT",0,ERR)) -> 0 | U155: =IF(S155="PT",N155,IF(S155="G",0,ERR)) -> 0 | W155: =HLOOKUP($W$9,'ROR-Model'!$Q$10:$U$1284,Y155) -> 0 | Y155: 146
C156: Total Revenue | F156: =SUM(F151:F155) -> 0 | G156: =SUM(G151:G155) -> 0 | H156: =SUM(H151:H155) -> 0 | I156: =SUM(I151:I155) -> 0 | M156: =SUM(M151:M155) -> 0 | N156: =SUM(N151:N155) -> 0 | Q156: =SUM(Q151:Q155) -> 0 | R156: =SUM(R151:R155) -> 0 | T156: =SUM(T151:T155) -> 0 | U156: =SUM(U151:U155) -> 0 | W156: =HLOOKUP($W$9,'ROR-Model'!$Q$10:$U$1284,Y156) -> 0 | Y156: 147
Y157: 148
C158: Total Dth | F158: =Revenue!$F$157 -> 0 | G158: =+Adjustments!V158 -> 0 | I158: =SUM($F$158:$H$158) -> 0 | L158: Utah | M158: =VLOOKUP($L158,$L$2:$N$7,2,FALSE)*I158 -> 0 | N158: =VLOOKUP($L158,$L$2:$N$7,3,FALSE)*I158 -> 0 | P158: G | Q158: =IF(P158="G",M158,IF(P158="PT",0,ERR)) -> 0 | R158: =IF(P158="PT",M158,IF(P158="G",0,ERR)) -> 0 | S158: G | T158: =IF(S158="G",N158,IF(S158="PT",0,ERR)) -> 0 | U158: =IF(S158="PT",N158,IF(S158="G",0,ERR)) -> 0 | W158: =HLOOKUP($W$9,'ROR-Model'!$Q$10:$U$1284,Y158) -> 0 | Y158: 149
Y159: 150
B160: IT | C160: Distribution Non-Gas Rev | F160: =Revenue!$F$159 -> 39467757.68 | G160: =+Adjustments!V160 -> 4988600.059 | I160: =SUM($F$160:$H$160) -> 44456357.74 | L160: Utah | M160: =VLOOKUP($L160,$L$2:$N$7,2,FALSE)*I160 -> 44456357.74 | N160: =VLOOKUP($L160,$L$2:$N$7,3,FALSE)*I160 -> 0 | P160: G | Q160: =IF(P160="G",M160,IF(P160="PT",0,ERR)) -> 44456357.74 | R160: =IF(P160="PT",M160,IF(P160="G",0,ERR)) -> 0 | S160: G | T160: =IF(S160="G",N160,IF(S160="PT",0,ERR)) -> 0 | U160: =IF(S160="PT",N160,IF(S160="G",0,ERR)) -> 0 | W160: =HLOOKUP($W$9,'ROR-Model'!$Q$10:$U$1284,Y160) -> 44456357.74 | Y160: 151
Y161: 152
C162: Supplier Non-Gas Revenue | F162: =Revenue!$F$161 -> 1211082.25 | G162: =+Adjustments!V162 -> -732442.1654 | I162: =SUM($F$162:$H$162) -> 478640.0846 | L162: Utah | M162: =VLOOKUP($L162,$L$2:$N$7,2,FALSE)*I162 -> 478640.0846 | N162: =VLOOKUP($L162,$L$2:$N$7,3,FALSE)*I162 -> 0 | P162: PT | Q162: =IF(P162="G",M162,IF(P162="PT",0,ERR)) -> 0 | R162: =IF(P162="PT",M162,IF(P162="G",0,ERR)) -> 478640.0846 | S162: PT | T162: =IF(S162="G",N162,IF(S162="PT",0,ERR)) -> 0 | U162: =IF(S162="PT",N162,IF(S162="G",0,ERR)) -> 0 | W162: =HLOOKUP($W$9,'ROR-Model'!$Q$10:$U$1284,Y162) -> 0 | Y162: 153
Y163: 154
C164: Commodity Revenue | F164: =Revenue!$F$163 -> 0 | G164: =+Adjustments!V164 -> 0 | I164: =SUM($F$164:$H$164) -> 0 | L164: Utah | M164: =VLOOKUP($L164,$L$2:$N$7,2,FALSE)*I164 -> 0 | N164: =VLOOKUP($L164,$L$2:$N$7,3,FALSE)*I164 -> 0 | P164: PT | Q164: =IF(P164="G",M164,IF(P164="PT",0,ERR)) -> 0 | R164: =IF(P164="PT",M164,IF(P164="G",0,ERR)) -> 0 | S164: PT | T164: =IF(S164="G",N164,IF(S164="PT",0,ERR)) -> 0 | U164: =IF(S164="PT",N164,IF(S164="G",0,ERR)) -> 0 | W164: =HLOOKUP($W$9,'ROR-Model'!$Q$10:$U$1284,Y164) -> 0 | Y164: 155
C165: Total Revenue | F165: =SUM(F160:F164) -> 40678839.93 | G165: =SUM(G160:G164) -> 4256157.893 | H165: =SUM(H160:H164) -> 0 | I165: =SUM(I160:I164) -> 44934997.82 | M165: =SUM(M160:M164) -> 44934997.82 | N165: =SUM(N160:N164) -> 0 | Q165: =SUM(Q160:Q164) -> 44456357.74 | R165: =SUM(R160:R164) -> 478640.0846 | T165: =SUM(T160:T164) -> 0 | U165: =SUM(U160:U164) -> 0 | W165: =HLOOKUP($W$9,'ROR-Model'!$Q$10:$U$1284,Y165) -> 44456357.74 | Y165: 156
Y166: 157
C167: Total Dth | F167: =Revenue!$F$166 -> 53106228.8 | G167: =+Adjustments!V167 -> -6257801.8 | I167: =SUM($F$167:$H$167) -> 46848427 | L167: Utah | M167: =VLOOKUP($L167,$L$2:$N$7,2,FALSE)*I167 -> 46848427 | N167: =VLOOKUP($L167,$L$2:$N$7,3,FALSE)*I167 -> 0 | P167: G | Q167: =IF(P167="G",M167,IF(P167="PT",0,ERR)) -> 46848427 | R167: =IF(P167="PT",M167,IF(P167="G",0,ERR)) -> 0 | S167: G | T167: =IF(S167="G",N167,IF(S167="PT",0,ERR)) -> 0 | U167: =IF(S167="PT",N167,IF(S167="G",0,ERR)) -> 0 | W167: =HLOOKUP($W$9,'ROR-Model'!$Q$10:$U$1284,Y167) -> 46848427 | Y167: 158
Y168: 159
B169: IT-S | C169: Distribution Non-Gas Rev | F169: =Revenue!$F$168 -> 0 | G169: =+Adjustments!V169 -> 0 | I169: =SUM($F$169:$H$169) -> 0 | L169: Utah | M169: =VLOOKUP($L169,$L$2:$N$7,2,FALSE)*I169 -> 0 | N169: =VLOOKUP($L169,$L$2:$N$7,3,FALSE)*I169 -> 0 | P169: G | Q169: =IF(P169="G",M169,IF(P169="PT",0,ERR)) -> 0 | R169: =IF(P169="PT",M169,IF(P169="G",0,ERR)) -> 0 | S169: G | T169: =IF(S169="G",N169,IF(S169="PT",0,ERR)) -> 0 | U169: =IF(S169="PT",N169,IF(S169="G",0,ERR)) -> 0 | W169: =HLOOKUP($W$9,'ROR-Model'!$Q$10:$U$1284,Y169) -> 0 | Y169: 160
Y170: 161
C171: Supplier Non-Gas Revenue | F171: =Revenue!$F$170 -> 0 | G171: =+Adjustments!V171 -> 0 | I171: =SUM($F$171:$H$171) -> 0 | L171: Utah | M171: =VLOOKUP($L171,$L$2:$N$7,2,FALSE)*I171 -> 0 | N171: =VLOOKUP($L171,$L$2:$N$7,3,FALSE)*I171 -> 0 | P171: PT | Q171: =IF(P171="G",M171,IF(P171="PT",0,ERR)) -> 0 | R171: =IF(P171="PT",M171,IF(P171="G",0,ERR)) -> 0 | S171: PT | T171: =IF(S171="G",N171,IF(S171="PT",0,ERR)) -> 0 | U171: =IF(S171="PT",N171,IF(S171="G",0,ERR)) -> 0 | W171: =HLOOKUP($W$9,'ROR-Model'!$Q$10:$U$1284,Y171) -> 0 | Y171: 162
Y172: 163
C173: Commodity Revenue | F173: =Revenue!$F$172 -> 0 | G173: =+Adjustments!V173 -> 0 | I173: =SUM($F$173:$H$173) -> 0 | L173: Utah | M173: =VLOOKUP($L173,$L$2:$N$7,2,FALSE)*I173 -> 0 | N173: =VLOOKUP($L173,$L$2:$N$7,3,FALSE)*I173 -> 0 | P173: PT | Q173: =IF(P173="G",M173,IF(P173="PT",0,ERR)) -> 0 | R173: =IF(P173="PT",M173,IF(P173="G",0,ERR)) -> 0 | S173: PT | T173: =IF(S173="G",N173,IF(S173="PT",0,ERR)) -> 0 | U173: =IF(S173="PT",N173,IF(S173="G",0,ERR)) -> 0 | W173: =HLOOKUP($W$9,'ROR-Model'!$Q$10:$U$1284,Y173) -> 0 | Y173: 164
C174: Total Revenue | F174: =SUM(F169:F173) -> 0 | G174: =SUM(G169:G173) -> 0 | H174: =SUM(H169:H173) -> 0 | I174: =SUM(I169:I173) -> 0 | M174: =SUM(M169:M173) -> 0 | N174: =SUM(N169:N173) -> 0 | Q174: =SUM(Q169:Q173) -> 0 | R174: =SUM(R169:R173) -> 0 | T174: =SUM(T169:T173) -> 0 | U174: =SUM(U169:U173) -> 0 | W174: =HLOOKUP($W$9,'ROR-Model'!$Q$10:$U$1284,Y174) -> 0 | Y174: 165
Y175: 166
C176: Total Dth | F176: =Revenue!$F$175 -> 0 | G176: =+Adjustments!V176 -> 0 | I176: =SUM($F$176:$H$176) -> 0 | L176: Utah | M176: =VLOOKUP($L176,$L$2:$N$7,2,FALSE)*I176 -> 0 | N176: =VLOOKUP($L176,$L$2:$N$7,3,FALSE)*I176 -> 0 | P176: G | Q176: =IF(P176="G",M176,IF(P176="PT",0,ERR)) -> 0 | R176: =IF(P176="PT",M176,IF(P176="G",0,ERR)) -> 0 | S176: G | T176: =IF(S176="G",N176,IF(S176="PT",0,ERR)) -> 0 | U176: =IF(S176="PT",N176,IF(S176="G",0,ERR)) -> 0 | W176: =HLOOKUP($W$9,'ROR-Model'!$Q$10:$U$1284,Y176) -> 0 | Y176: 167
Y177: 168
B178: FT-2C | C178: Distribution Non-Gas Rev | F178: =Revenue!$F$177 -> 0 | G178: =+Adjustments!V178 -> 0 | I178: =SUM($F$178:$H$178) -> 0 | L178: Utah | M178: =VLOOKUP($L178,$L$2:$N$7,2,FALSE)*I178 -> 0 | N178: =VLOOKUP($L178,$L$2:$N$7,3,FALSE)*I178 -> 0 | P178: G | Q178: =IF(P178="G",M178,IF(P178="PT",0,ERR)) -> 0 | R178: =IF(P178="PT",M178,IF(P178="G",0,ERR)) -> 0 | S178: G | T178: =IF(S178="G",N178,IF(S178="PT",0,ERR)) -> 0 | U178: =IF(S178="PT",N178,IF(S178="G",0,ERR)) -> 0 | W178: =HLOOKUP($W$9,'ROR-Model'!$Q$10:$U$1284,Y178) -> 0 | Y178: 169
Y179: 170
C180: Supplier Non-Gas Revenue | F180: =Revenue!$F$179 -> 0 | G180: =+Adjustments!V180 -> 0 | I180: =SUM($F$180:$H$180) -> 0 | L180: Utah | M180: =VLOOKUP($L180,$L$2:$N$7,2,FALSE)*I180 -> 0 | N180: =VLOOKUP($L180,$L$2:$N$7,3,FALSE)*I180 -> 0 | P180: PT | Q180: =IF(P180="G",M180,IF(P180="PT",0,ERR)) -> 0 | R180: =IF(P180="PT",M180,IF(P180="G",0,ERR)) -> 0 | S180: PT | T180: =IF(S180="G",N180,IF(S180="PT",0,ERR)) -> 0 | U180: =IF(S180="PT",N180,IF(S180="G",0,ERR)) -> 0 | W180: =HLOOKUP($W$9,'ROR-Model'!$Q$10:$U$1284,Y180) -> 0 | Y180: 171
Y181: 172
C182: Commodity Revenue | F182: =Revenue!$F$181 -> 0 | G182: =+Adjustments!V182 -> 0 | I182: =SUM($F$182:$H$182) -> 0 | L182: Utah | M182: =VLOOKUP($L182,$L$2:$N$7,2,FALSE)*I182 -> 0 | N182: =VLOOKUP($L182,$L$2:$N$7,3,FALSE)*I182 -> 0 | P182: PT | Q182: =IF(P182="G",M182,IF(P182="PT",0,ERR)) -> 0 | R182: =IF(P182="PT",M182,IF(P182="G",0,ERR)) -> 0 | S182: PT | T182: =IF(S182="G",N182,IF(S182="PT",0,ERR)) -> 0 | U182: =IF(S182="PT",N182,IF(S182="G",0,ERR)) -> 0 | W182: =HLOOKUP($W$9,'ROR-Model'!$Q$10:$U$1284,Y182) -> 0 | Y182: 173
C183: Total Revenue | F183: =SUM(F178:F182) -> 0 | G183: =SUM(G178:G182) -> 0 | H183: =SUM(H178:H182) -> 0 | I183: =SUM(I178:I182) -> 0 | M183: =SUM(M178:M182) -> 0 | N183: =SUM(N178:N182) -> 0 | Q183: =SUM(Q178:Q182) -> 0 | R183: =SUM(R178:R182) -> 0 | T183: =SUM(T178:T182) -> 0 | U183: =SUM(U178:U182) -> 0 | W183: =HLOOKUP($W$9,'ROR-Model'!$Q$10:$U$1284,Y183) -> 0 | Y183: 174
Y184: 175
C185: Total Dth | F185: =Revenue!$F$184 -> 0 | G185: =+Adjustments!V185 -> 0 | I185: =SUM($F$185:$H$185) -> 0 | L185: Utah | M185: =VLOOKUP($L185,$L$2:$N$7,2,FALSE)*I185 -> 0 | N185: =VLOOKUP($L185,$L$2:$N$7,3,FALSE)*I185 -> 0 | P185: G | Q185: =IF(P185="G",M185,IF(P185="PT",0,ERR)) -> 0 | R185: =IF(P185="PT",M185,IF(P185="G",0,ERR)) -> 0 | S185: G | T185: =IF(S185="G",N185,IF(S185="PT",0,ERR)) -> 0 | U185: =IF(S185="PT",N185,IF(S185="G",0,ERR)) -> 0 | W185: =HLOOKUP($W$9,'ROR-Model'!$Q$10:$U$1284,Y185) -> 0 | Y185: 176
Y186: 177
B187: Blank | C187: Distribution Non-Gas Rev | F187: =Revenue!$F$186 -> 0 | G187: =+Adjustments!V187 -> 0 | I187: =SUM($F$187:$H$187) -> 0 | L187: Utah | M187: =VLOOKUP($L187,$L$2:$N$7,2,FALSE)*I187 -> 0 | N187: =VLOOKUP($L187,$L$2:$N$7,3,FALSE)*I187 -> 0 | P187: G | Q187: =IF(P187="G",M187,IF(P187="PT",0,ERR)) -> 0 | R187: =IF(P187="PT",M187,IF(P187="G",0,ERR)) -> 0 | S187: G | T187: =IF(S187="G",N187,IF(S187="PT",0,ERR)) -> 0 | U187: =IF(S187="PT",N187,IF(S187="G",0,ERR)) -> 0 | W187: =HLOOKUP($W$9,'ROR-Model'!$Q$10:$U$1284,Y187) -> 0 | Y187: 178
Y188: 179
C189: Supplier Non-Gas Revenue | F189: =Revenue!$F$188 -> 0 | G189: =+Adjustments!V189 -> 0 | I189: =SUM($F$189:$H$189) -> 0 | L189: Utah | M189: =VLOOKUP($L189,$L$2:$N$7,2,FALSE)*I189 -> 0 | N189: =VLOOKUP($L189,$L$2:$N$7,3,FALSE)*I189 -> 0 | P189: PT | Q189: =IF(P189="G",M189,IF(P189="PT",0,ERR)) -> 0 | R189: =IF(P189="PT",M189,IF(P189="G",0,ERR)) -> 0 | S189: PT | T189: =IF(S189="G",N189,IF(S189="PT",0,ERR)) -> 0 | U189: =IF(S189="PT",N189,IF(S189="G",0,ERR)) -> 0 | W189: =HLOOKUP($W$9,'ROR-Model'!$Q$10:$U$1284,Y189) -> 0 | Y189: 180
Y190: 181
C191: Commodity Revenue | F191: =Revenue!$F$190 -> 0 | G191: =+Adjustments!V191 -> 0 | I191: =SUM($F$191:$H$191) -> 0 | L191: Utah | M191: =VLOOKUP($L191,$L$2:$N$7,2,FALSE)*I191 -> 0 | N191: =VLOOKUP($L191,$L$2:$N$7,3,FALSE)*I191 -> 0 | P191: PT | Q191: =IF(P191="G",M191,IF(P191="PT",0,ERR)) -> 0 | R191: =IF(P191="PT",M191,IF(P191="G",0,ERR)) -> 0 | S191: PT | T191: =IF(S191="G",N191,IF(S191="PT",0,ERR)) -> 0 | U191: =IF(S191="PT",N191,IF(S191="G",0,ERR)) -> 0 | W191: =HLOOKUP($W$9,'ROR-Model'!$Q$10:$U$1284,Y191) -> 0 | Y191: 182
C192: Total Revenue | F192: =SUM(F187:F191) -> 0 | G192: =SUM(G187:G191) -> 0 | H192: =SUM(H187:H191) -> 0 | I192: =SUM(I187:I191) -> 0 | M192: =SUM(M187:M191) -> 0 | N192: =SUM(N187:N191) -> 0 | Q192: =SUM(Q187:Q191) -> 0 | R192: =SUM(R187:R191) -> 0 | T192: =SUM(T187:T191) -> 0 | U192: =SUM(U187:U191) -> 0 | W192: =HLOOKUP($W$9,'ROR-Model'!$Q$10:$U$1284,Y192) -> 0 | Y192: 183
Y193: 184
C194: Total Dth | F194: =Revenue!$F$193 -> 0 | G194: =+Adjustments!V194 -> 0 | I194: =SUM($F$194:$H$194) -> 0 | L194: Utah | M194: =VLOOKUP($L194,$L$2:$N$7,2,FALSE)*I194 -> 0 | N194: =VLOOKUP($L194,$L$2:$N$7,3,FALSE)*I194 -> 0 | P194: G | Q194: =IF(P194="G",M194,IF(P194="PT",0,ERR)) -> 0 | R194: =IF(P194="PT",M194,IF(P194="G",0,ERR)) -> 0 | S194: G | T194: =IF(S194="G",N194,IF(S194="PT",0,ERR)) -> 0 | U194: =IF(S194="PT",N194,IF(S194="G",0,ERR)) -> 0 | W194: =HLOOKUP($W$9,'ROR-Model'!$Q$10:$U$1284,Y194) -> 0 | Y194: 185
Y195: 186
B196: CET | C196: Distribution Non-Gas Revenue | F196: =Revenue!$F$195 -> -1084959.23 | G196: =+Adjustments!V196 -> 1084959.23 | I196: =SUM($F$196:$H$196) -> 0 | L196: Utah | M196: =VLOOKUP($L196,$L$2:$N$7,2,FALSE)*I196 -> 0 | N196: =VLOOKUP($L196,$L$2:$N$7,3,FALSE)*I196 -> 0 | P196: G | Q196: =IF(P196="G",M196,IF(P196="PT",0,ERR)) -> 0 | R196: =IF(P196="PT",M196,IF(P196="G",0,ERR)) -> 0 | S196: G | T196: =IF(S196="G",N196,IF(S196="PT",0,ERR)) -> 0 | U196: =IF(S196="PT",N196,IF(S196="G",0,ERR)) -> 0 | W196: =HLOOKUP($W$9,'ROR-Model'!$Q$10:$U$1284,Y196) -> 0 | Y196: 187
B197: DSM | C197: Distribution Non-Gas Revenue | F197: =Revenue!$F$196 -> 29176620.22 | G197: =+Adjustments!V197 -> -29176620.22 | I197: =SUM($F$197:$H$197) -> 0 | L197: Utah | M197: =VLOOKUP($L197,$L$2:$N$7,2,FALSE)*I197 -> 0 | N197: =VLOOKUP($L197,$L$2:$N$7,3,FALSE)*I197 -> 0 | P197: G | Q197: =IF(P197="G",M197,IF(P197="PT",0,ERR)) -> 0 | R197: =IF(P197="PT",M197,IF(P197="G",0,ERR)) -> 0 | S197: G | T197: =IF(S197="G",N197,IF(S197="PT",0,ERR)) -> 0 | U197: =IF(S197="PT",N197,IF(S197="G",0,ERR)) -> 0 | W197: =HLOOKUP($W$9,'ROR-Model'!$Q$10:$U$1284,Y197) -> 0 | Y197: 188
B198: Utah Totals | Y198: 189
Y199: 190
C200: Distribution Non-Gas Rev | F200: =+F16+F34+F43+F52+F61+F70+F79+F88+F97+F106+F115+F124+F133+F142+F151+F160+F169+F178+F187+F25+F196+F197 -> 448664492.2 | G200: =+G16+G34+G43+G52+G61+G70+G79+G88+G97+G106+G115+G124+G133+G142+G151+G160+G169+G178+G187+G25+G196+G197 -> 31298138.82 | H200: =+H16+H34+H43+H52+H61+H70+H79+H88+H97+H106+H115+H124+H133+H142+H151+H160+H169+H178+H187+H25+H196+H197 -> 0 | I200: =+I16+I34+I43+I52+I61+I70+I79+I88+I97+I106+I115+I124+I133+I142+I151+I160+I169+I178+I187+I25+I196+I197 -> 479962631 | M200: =+M16+M34+M43+M52+M61+M70+M79+M88+M97+M106+M115+M124+M133+M142+M151+M160+M169+M178+M187+M25+M196+M197 -> 479962631 | N200: =+N16+N34+N43+N52+N61+N70+N79+N88+N97+N106+N115+N124+N133+N142+N151+N160+N169+N178+N187+N25+N196+N197 -> 0 | Q200: =+Q16+Q34+Q43+Q52+Q61+Q70+Q79+Q88+Q97+Q106+Q115+Q124+Q133+Q142+Q151+Q160+Q169+Q178+Q187+Q25+Q196+Q197 -> 479962631 | R200: =+R16+R34+R43+R52+R61+R70+R79+R88+R97+R106+R115+R124+R133+R142+R151+R160+R169+R178+R187+R25+R196 -> 0 | T200: =+T16+T34+T43+T52+T61+T70+T79+T88+T97+T106+T115+T124+T133+T142+T151+T160+T169+T178+T187+T25+T196 -> 0 | U200: =+U16+U34+U43+U52+U61+U70+U79+U88+U97+U106+U115+U124+U133+U142+U151+U160+U169+U178+U187+U25+U196 -> 0 | W200: =HLOOKUP($W$9,'ROR-Model'!$Q$10:$U$1284,Y200) -> 479962631 | Y200: 191
... 1084 more rows

Sheet Taxes
B1: ='Control Panel'!$B$2 -> Utah - DEC 2023 Adjusted Avg Results
B2: ='Control Panel'!$B$3 -> 12 Months Ended : Dec-2023
B3: ='Control Panel'!$B$4 -> Capital Structure : AVG CAP STR 2023 | J3: 12 Mos Dec-2022
L4: A | N4: B | O4: C | P4: D | Q4: E | R4: F | S4: G | T4: H
J5: 2022-12-01
L6: Total | N6: Colorado | O6: Idaho | P6: Montana | Q6: Nevada | R6: New Mexico | S6: Utah | T6: Wyoming
C7: Imputed Tax Adjustment | I7: 1 | J7: State Tax Rates | N7: 0.0455 | O7: 0.065 | P7: 0.0675 | Q7: 0 | R7: 0.059 | S7: 0.0465 | T7: 0
C8: A | D8: B | E8: C | F8: B
C9: System | D9: Utah | E9: Wyoming | F9: ='Control Panel'!F11 -> Utah | I9: 2 | K9: Ave State Rate | L9: =SUM(N9:T9) -> 0.04624824318 | N9: 7.6443185e-05 | O9: 8.78e-05 | P9: 1e-07 | Q9: 0 | R9: 1.2e-06 | S9: 0.0460827 | T9: 0
C10: Total | D10: Jurisdiction | E10: Jurisdiction | F10: Jurisdiction
B11: ALGEBRAIC METHOD - SOLVING FOR TWO UNKNOWNS | I11: 3 | J11: Federal Tax Rate | L11: 0.21
B12: Federal Income Tax Rate | C12: =$L$11 -> 0.21 | D12: =$L$11 -> 0.21 | E12: =$L$11 -> 0.21 | F12: =HLOOKUP($F$9,taxes,4) -> 0.21 | G12: tF
B13: State Income Tax Rate | C13: =$L$9 -> 0.04624824318 | D13: =$L$9 -> 0.04624824318 | E13: =$L$9 -> 0.04624824318 | F13: =HLOOKUP($F$9,taxes,5) -> 0.04624824318 | G13: tS
B14: Weight of Debt in Capital Structure | C14: ='Capital Str'!$D$7 -> 0.4601898182 | D14: ='Capital Str'!$D$7 -> 0.4601898182 | E14: ='Capital Str'!$D$7 -> 0.4601898182 | F14: =HLOOKUP($F$9,taxes,6) -> 0.4601898182 | G14: wD | I14: 4 | J14: Combined Federal & State Tax Rate | L14: =L11*(1-L9)+L9 -> 0.2465361121 | N14: Combined Rate = Average State Rate + (Federal Rate * (1 - Average State Rate))
B15: Cost of Debt | C15: ='Capital Str'!$E$7 -> 0.04076806166 | D15: ='Capital Str'!$E$7 -> 0.04076806166 | E15: ='Capital Str'!$E$7 -> 0.04076806166 | F15: =HLOOKUP($F$9,taxes,7) -> 0.04076806166 | G15: rD | J15: (Updated Oct 2015)
B16: Net Lead Lag Days | C16: ='Control Panel'!$F$21 -> 8.35 | D16: ='Control Panel'!$F$21 -> 8.35 | E16: ='Control Panel'!$F$21 -> 8.35 | F16: =HLOOKUP($F$9,taxes,8) -> 8.35 | G16: NLD
B17: Revenues | C17: ='ROR-Model'!I512 -> 1343624822 | D17: ='ROR-Model'!M512 -> 1303859855 | E17: ='ROR-Model'!N512-'ROR-Model'!N325 -> 39617837.11 | F17: =HLOOKUP($F$9,taxes,9) -> 1303859855 | G17: R | I17: 5 | J17: Gross-Up Factors | L17: UT | N17: WY
B18: Gas Expenses | C18: ='ROR-Model'!I640 -> 843973396.7 | D18: ='ROR-Model'!M640 -> 818030998.4 | E18: ='ROR-Model'!N640 -> 25942398.24 | F18: =HLOOKUP($F$9,taxes,10) -> 818030998.4 | G18: GAS | I18: 6 | K18: Tax Factor | L18: =(Taxes!$L$14/(1-Taxes!$L$14)) -> 0.3272036206 | N18: =(Taxes!$L$11/(1-Taxes!$L$11)) -> 0.2658227848 | O18: Tax Factor = (Tax Rate/(1 - Tax Rate))
B19: O&M Expenses | C19: ='ROR-Model'!I905 -> 133995497.7 | D19: ='ROR-Model'!Q905 -> 128716766.4 | E19: ='ROR-Model'!N905 -> 5278731.33 | F19: =HLOOKUP($F$9,taxes,11) -> 128716766.4 | G19: O&M | I19: 7 | K19: Gross-Up Factor | L19: =1/(1-Taxes!$L$14) -> 1.327203621 | N19: =1/(1-Taxes!$L$11) -> 1.265822785 | O19: Gross-Up Factor = 1 / (1 - Tax Rate))
B20: Depreciation | C20: ='ROR-Model'!I917 -> 107881906.5 | D20: ='ROR-Model'!Q917 -> 104458264.1 | E20: ='ROR-Model'!W917 -> 104458264.1 | F20: =HLOOKUP($F$9,taxes,12) -> 104458264.1 | G20: DEPR | I20: 8 | K20: Tax & Bad Debt Gross-Up Factor | L20: 1.329832504 | N20: 1.268330087 | O20: Tax & Bad Debt Gross-Up Factor = 1 / (1 - (Tax Rate + (Bad Debt Rate * (1 - Tax Rate))))
B21: Amortization | C21: ='ROR-Model'!I924 -> 0 | D21: ='ROR-Model'!Q924 -> 0 | E21: ='ROR-Model'!W924 -> 0 | F21: =HLOOKUP($F$9,taxes,13) -> 0 | G21: AMORT | I21: 9 | K21: Tax & Bad Debt Factor | L21: =L20-1 -> 0.329832504 | N21: =N20-1 -> 0.268330087
B22: Non-Income Taxes | C22: ='ROR-Model'!I934 -> 30892028.37 | D22: ='ROR-Model'!Q934 -> 29538052.78 | E22: ='ROR-Model'!W934 -> 29538052.78 | F22: =HLOOKUP($F$9,taxes,14) -> 29538052.78 | G22: NIT
B23: Rate Base excluding CWC | C23: ='ROR-Model'!I1252 -> 2694829023 | D23: ='ROR-Model'!Q1252 -> 2621361992 | E23: ='ROR-Model'!W1252 -> 2621361992 | F23: =HLOOKUP($F$9,taxes,15) -> 2621361992 | G23: RB*
B24: Deferred Income Taxes | C24: 0 | D24: ='ROR-Model'!W958 -> 0 | E24: ='ROR-Model'!X958 -> 0 | F24: =HLOOKUP($F$9,taxes,16) -> 0 | G24: DIT
B25: Deferred Income Taxes - Credit | C25: ='ROR-Model'!I960 -> 0 | D25: ='ROR-Model'!W960 -> 0 | E25: ='ROR-Model'!X960 -> 0 | F25: =HLOOKUP($F$9,taxes,17) -> 0 | G25: DITCr
B26: CWC = CWC* + (NLD/365)∙IT | C26: CWC is a function of IT, and
B27: IT = IT* - (tS+tF∙(1-tS))∙rD∙wD∙CWC | C27: IT is a function of CWC
B28: where IT = SIT + FIT + DIT + DITCr, and
B29: CWC* = | C29: =($C16/365)*(C18+C19+C22) -> 23079421.11 | D29: =($D16/365)*(D18+D19+D22) -> 22334209.8 | E29: =($D16/365)*(E18+E19+E22) -> 1389970.336 | F29: =HLOOKUP($F$9,taxes,21) -> 22334209.8
B30: IT* = | C30: =($C13+$C12*(1-$C13))*(C17-SUM(C18:C22)-$C15*$C14*C23) -> 43470277.59 | D30: =($C13+$C12*(1-$C13))*(D17-SUM(D18:D22)-$C15*$C14*D23) -> 42881573.84 | E30: =($C13+$C12*(1-$C13))*(E17-SUM(E18:E22)-$C15*$C14*E23) -> -43089360.93 | F30: =HLOOKUP($F$9,taxes,22) -> 42881573.84
B31: Solution:
B32: CWC = | C32: =(C29+($C16/365)*C30)/(1+($C16/365)*($C13+$C12*(1-$C13))*$C15*$C14) -> 24071331.13 | D32: =(D29+($C16/365)*D30)/(1+($C16/365)*($C13+$C12*(1-$C13))*$C15*$C14) -> 23312732.48 | E32: =(E29+($C16/365)*E30)/(1+($C16/365)*($C13+$C12*(1-$C13))*$C15*$C14) -> 404184.6543 | F32: =HLOOKUP($F$9,taxes,24) -> 23312732.48
B33: SIT = | C33: =$C13*(C17-SUM(C18:C22)-$C15*$C14*(C23+C32)) -> 8133797.653 | D33: =$C13*(D17-SUM(D18:D22)-$C15*$C14*(D23+D32)) -> 8024019.651 | E33: =$C13*(E17-SUM(E18:E22)-$C15*$C14*(E23+E32)) -> -8083577.23 | F33: =HLOOKUP($F$9,taxes,25) -> 8024019.651
B34: FIT = | C34: =$C12*(C17-SUM(C18:C22)-$C15*$C14*(C23+C32)-C33)-C24-C25 -> 35225143.4 | D34: =$C12*(D17-SUM(D18:D22)-$C15*$C14*(D23+D32)-D33)-D24-D25 -> 34749726.38 | E34: =$C12*(E17-SUM(E18:E22)-$C15*$C14*(E23+E32)-E33)-E24-E25 -> -35007653.16 | F34: =HLOOKUP($F$9,taxes,26) -> 34749726.38
B35: IT = | C35: =C34+C33+C25+C24 -> 43358941.05 | D35: =D34+D33+D25+D24 -> 42773746.03 | E35: =E34+E33+E25+E24 -> -43091230.39 | F35: =HLOOKUP($F$9,taxes,27) -> 42773746.03
B38: Historically Adjusted Income Taxes | C38: =SUM('ROR-Model'!F936:G945) -> 33752896.08
B39: Tax Adjustment | C39: =C35-C38 -> 9606044.974
B40: RATE BASE METHOD
B41: System Average Rate Base | C41: ='ROR-Model'!I1284 -> 2718900354 | D41: ='ROR-Model'!Q1284 -> 2644674724 | E41: ='ROR-Model'!T1284 -> 74563487.58 | F41: =HLOOKUP($F$9,taxes,33) -> 2644674724
B42: Adj System Return On Rate Base | C42: =Report!I77 -> 0.0674989988 | D42: =D43/D41 -> 0.06819062699 | E42: =E43/E41 -> 0.6267640047 | F42: =HLOOKUP($F$9,taxes,34) -> 0.06819062699
B43: Allowed Return | C43: =+C41*C42 -> 183523051.7 | D43: ='ROR-Model'!W512-'ROR-Model'!W956 -> 180342027.6 | E43: ='ROR-Model'!T512-'ROR-Model'!T956 -> 46733710.08 | F43: =HLOOKUP($F$9,taxes,35) -> 180342027.6
B45: System Average Rate Base | C45: =C41 -> 2718900354 | D45: =D41 -> 2644674724 | E45: =E41 -> 74563487.58 | F45: =HLOOKUP($F$9,taxes,37) -> 2644674724
B46: System Weighted Cost Of Debt | C46: =+'Capital Str'!$F$12 -> 0.01876104688 | D46: =+'Capital Str'!$F$12 -> 0.01876104688 | E46: =+'Capital Str'!$F$12 -> 0.01876104688 | F46: =HLOOKUP($F$9,taxes,38) -> 0.01876104688
B47: Imputed Interest Cost | C47: =+C45*C46 -> 51009417.01 | D47: =+D45*D46 -> 49616866.5 | E47: =+E45*E46 -> 1398889.086 | F47: =HLOOKUP($F$9,taxes,39) -> 49616866.5
B49: Taxable Return | C49: =+C43-C47 -> 132513634.7 | D49: =+D43-D47 -> 130725161.1 | E49: =+E43-E47 -> 45334821 | F49: =HLOOKUP($F$9,taxes,41) -> 130725161.1
B50: Tax Factor (Tax Rate/(1-Tax Rate)) | C50: =$L$18 -> 0.3272036206 | D50: =$L$18 -> 0.3272036206 | E50: =$L$18 -> 0.3272036206 | F50: =HLOOKUP($F$9,taxes,42) -> 0.3272036206
B51: Income Tax on Return | C51: =+C49*C50 -> 43358941.05 | D51: =+D49*D50 -> 42773746.03 | E51: =+E49*E50 -> 14833717.57 | F51: =HLOOKUP($F$9,taxes,43) -> 42773746.03
B52: OPERATING INCOME METHOD
B53: Total Utility Operating Revenue | C53: =C17 -> 1343624822 | D53: =D17 -> 1303859855 | E53: 39617837.11 | F53: =HLOOKUP($F$9,taxes,45) -> 1303859855
B54: Gas Purchase Expenses | C54: 843973396.7 | D54: 818030998.4 | E54: 25942398.24 | F54: =HLOOKUP($F$9,taxes,46) -> 818030998.4
B55: O&M Expenses | C55: 133995497.7 | D55: =D19 -> 128716766.4 | E55: 5278731.33 | F55: =HLOOKUP($F$9,taxes,47) -> 128716766.4
B56: Depreciation | C56: 107881906.5 | D56: 104458264.1 | E56: 104458264.1 | F56: =HLOOKUP($F$9,taxes,48) -> 104458264.1
B57: Amortization | C57: 0 | D57: 0 | E57: 0 | F57: =HLOOKUP($F$9,taxes,49) -> 0
B58: Taxes Other Than Income | C58: 30892028.37 | D58: =D22 -> 29538052.78 | E58: 29538052.78 | F58: =HLOOKUP($F$9,taxes,50) -> 29538052.78
B59: Net Utility Income Before Tax | C59: =C53-SUM(C54:C58) -> 226881992.8 | D59: =D53-SUM(D54:D58) -> 223115773.7 | E59: =E53-SUM(E54:E58) -> -125599609.4 | F59: =HLOOKUP($F$9,taxes,51) -> 223115773.7
B61: Rate Base | C61: ='ROR-Model'!I1284 -> 2718900354 | D61: ='ROR-Model'!M1284 -> 2644674724 | E61: ='ROR-Model'!T1284 -> 74563487.58 | F61: =HLOOKUP($F$9,taxes,53) -> 2644674724
B62: Proposed Weighted Cost of Debt | C62: =C46 -> 0.01876104688 | D62: =D46 -> 0.01876104688 | E62: =E46 -> 0.01876104688 | F62: =HLOOKUP($F$9,taxes,54) -> 0.01876104688
B63: Imputed Interest | C63: =C61*C62 -> 51009417.01 | D63: =D61*D62 -> 49616866.5 | E63: =E61*E62 -> 1398889.086 | F63: =HLOOKUP($F$9,taxes,55) -> 49616866.5
B65: State Taxable Income | C65: =C59-C63 -> 175872575.7 | D65: =D59-D63 -> 173498907.2 | E65: =E59-E63 -> -126998498.4 | F65: =HLOOKUP($F$9,taxes,57) -> 173498907.2
B66: State Income Tax Rate | C66: =$L$9 -> 0.04624824318 | D66: =$L$9 -> 0.04624824318 | E66: =$L$9 -> 0.04624824318 | F66: =HLOOKUP($F$9,taxes,58) -> 0.04624824318
B67: State Income Tax | C67: =C65*C66 -> 8133797.653 | D67: =D65*D66 -> 8024019.651 | E67: =E65*E66 -> -5873457.44 | F67: =HLOOKUP($F$9,taxes,59) -> 8024019.651
B69: Federal Taxable Income | C69: =C65-C67-(C24+C25)/C12 -> 167738778.1 | D69: =D65-D67-(D24+D25)/D12 -> 165474887.5 | E69: =E65-E67-(E24+E25)/E12 -> -121125041 | F69: =HLOOKUP($F$9,taxes,61) -> 165474887.5
B70: Federal Income Tax Rate | C70: =$L$11 -> 0.21 | D70: =$L$11 -> 0.21 | E70: =$L$11 -> 0.21 | F70: =HLOOKUP($F$9,taxes,62) -> 0.21
B71: Federal Income Tax | C71: =C69*C70 -> 35225143.4 | D71: =D69*D70 -> 34749726.38 | E71: =E69*E70 -> -25436258.61 | F71: =HLOOKUP($F$9,taxes,63) -> 34749726.38
B73: Deferred Income Taxes | C73: =C24 -> 0 | D73: 0 | E73: 0 | F73: =HLOOKUP($F$9,taxes,65) -> 0
B74: Deferred Income Taxes - Credit | C74: 0 | D74: 0 | E74: 0 | F74: =HLOOKUP($F$9,taxes,66) -> 0
B75: Total Income Tax | C75: =C74+C73+C71+C67 -> 43358941.05 | D75: =D74+D73+D71+D67 -> 42773746.03 | E75: =E74+E73+E71+E67 -> -31309716.05 | F75: =HLOOKUP($F$9,taxes,67) -> 42773746.03

Sheet Summaries
A1: =+'Control Panel'!$B$1 -> Dominion Energy
A2: =+'Control Panel'!$B$2 -> Utah - DEC 2023 Adjusted Avg Results
A3: =+'Control Panel'!$B$3 -> 12 Months Ended : Dec-2023 | J3: 12 Mos Dec-2022
G4: =+Adjustments!F6 -> 1 | H4: =+Adjustments!G6 -> 2 | I4: =+Adjustments!H6 -> 3 | J4: =+Adjustments!I6 -> 4 | K4: =+Adjustments!J6 -> 5 | L4: =+Adjustments!K6 -> 6 | M4: =+Adjustments!L6 -> 7 | N4: =+Adjustments!M6 -> 8 | O4: =+Adjustments!N6 -> 9 | P4: =+Adjustments!O6 -> 10 | Q4: =+Adjustments!P6 -> 11 | R4: =+Adjustments!Q6 -> 12 | S4: =+Adjustments!R6 -> 13 | T4: =+Adjustments!S6 -> 14
G5: =+Adjustments!F8 -> Y | H5: =+Adjustments!G8 -> Y | I5: =+Adjustments!H8 -> Y | J5: 44896 | K5: =+Adjustments!J8 -> Y | L5: =+Adjustments!K8 -> Y | M5: =+Adjustments!L8 -> Y | N5: =+Adjustments!M8 -> Y | O5: =+Adjustments!N8 -> Y | P5: =+Adjustments!O8 -> Y | Q5: =+Adjustments!P8 -> Y | R5: =+Adjustments!Q8 -> Y | S5: =+Adjustments!R8 -> N | T5: =+Adjustments!S8 -> Y
G6: =Adjustments!F9 -> AVG RB DEC 2023 | H6: =Adjustments!G9 -> Expense Dec 2023 | I6: =Adjustments!H9 -> AVG Projected Rev 2023 with CET | J6: =Adjustments!I9 -> Underground Storage | K6: =Adjustments!J9 -> Wexpro | L6: =Adjustments!K9 -> Energy Efficiency 2023 | M6: =Adjustments!L9 -> Utah Bad Debt 2023 | N6: =Adjustments!M9 -> Incentives 2023 | O6: =Adjustments!N9 -> Sporting Events DEC 2023 | P6: =Adjustments!O9 -> Advertising DEC 2023 | Q6: =Adjustments!P9 -> Don & Membership DEC 2023 | R6: =Adjustments!Q9 -> Reserve Accrual Dec 2023 | S6: =Adjustments!R9 -> Labor Adj | T6: =Adjustments!S9 -> Pension 2023 | U6: =Adjustments!T9 -> TOTAL QGC ADJUSTMENTS | V6: =Adjustments!V9 -> RESULTING TOTAL | W6: =Adjustments!W9 -> CHECKS MUST BE (0)
A8: 1 | B8: NET INCOME SUMMARY
A10: =+A8+1 -> 2 | B10: Utility Operating Revenue
A11: =+A10+1 -> 3 | D11: System Distribution Non-Gas Revenue | G11: =Adjustments!F363+Adjustments!F365 -> 0 | H11: =Adjustments!G363+Adjustments!G365 -> 0 | I11: =Adjustments!H363+Adjustments!H365 -> 31233596.98 | J11: =Adjustments!I363+Adjustments!I365 -> 0 | K11: =Adjustments!J363+Adjustments!J365 -> 0 | L11: =Adjustments!K363+Adjustments!K365 -> 0 | M11: =Adjustments!L363+Adjustments!L365 -> 0 | N11: =Adjustments!M363+Adjustments!M365 -> 0 | O11: =Adjustments!N363+Adjustments!N365 -> 0 | P11: =Adjustments!O363+Adjustments!O365 -> 0 | Q11: =Adjustments!P363+Adjustments!P365 -> 0 | R11: =Adjustments!Q363+Adjustments!Q365 -> 0 | S11: =Adjustments!R363+Adjustments!R365 -> 0 | T11: =Adjustments!S363+Adjustments!S365 -> 0 | U11: =Adjustments!T363+Adjustments!T365 -> 31233596.98 | V11: =SUM(G11:T11) -> 31233596.98 | W11: =+U11-V11 -> 0
A12: 4 | D12: System Supplier Non-Gas Revenue | G12: =Adjustments!F364 -> 0 | H12: =Adjustments!G364 -> 0 | I12: =Adjustments!H364 -> -933252.0088 | J12: =Adjustments!I364 -> 0 | K12: =Adjustments!J364 -> 0 | L12: =Adjustments!K364 -> 0 | M12: =Adjustments!L364 -> 0 | N12: =Adjustments!M364 -> 0 | O12: =Adjustments!N364 -> 0 | P12: =Adjustments!O364 -> 0 | Q12: =Adjustments!P364 -> 0 | R12: =Adjustments!Q364 -> 0 | S12: =Adjustments!R364 -> 0 | T12: =Adjustments!S364 -> 0 | U12: =Adjustments!T364 -> -933252.0088 | V12: =SUM(G12:T12) -> -933252.0088 | W12: =+U12-V12 -> 0
A13: 5 | D13: System Commodity Revenue | G13: =Adjustments!F366 -> 0 | H13: =Adjustments!G366 -> 0 | I13: =Adjustments!H366 -> -294308.2592 | J13: =Adjustments!I366 -> 0 | K13: =Adjustments!J366 -> 0 | L13: =Adjustments!K366 -> 0 | M13: =Adjustments!L366 -> 0 | N13: =Adjustments!M366 -> 0 | O13: =Adjustments!N366 -> 0 | P13: =Adjustments!O366 -> 0 | Q13: =Adjustments!P366 -> 0 | R13: =Adjustments!Q366 -> 0 | S13: =Adjustments!R366 -> 0 | T13: =Adjustments!S366 -> 0 | U13: =Adjustments!T366 -> -294308.2592 | V13: =SUM(G13:T13) -> -294308.2592 | W13: 0
A14: 6 | D14: Pass-Through Related Other Revenue | G14: =Adjustments!F501+Adjustments!F505 -> 0 | H14: =Adjustments!G501+Adjustments!G505 -> 0 | I14: =Adjustments!H501+Adjustments!H505 -> 0 | J14: =Adjustments!I501+Adjustments!I505 -> 0 | K14: =Adjustments!J501+Adjustments!J505 -> 0 | L14: =Adjustments!K501+Adjustments!K505 -> 0 | M14: =Adjustments!L501+Adjustments!L505 -> 0 | N14: =Adjustments!M501+Adjustments!M505 -> 0 | O14: =Adjustments!N501+Adjustments!N505 -> 0 | P14: =Adjustments!O501+Adjustments!O505 -> 0 | Q14: =Adjustments!P501+Adjustments!P505 -> 0 | R14: =Adjustments!Q501+Adjustments!Q505 -> 0 | S14: =Adjustments!R501+Adjustments!R505 -> 0 | T14: =Adjustments!S501+Adjustments!S505 -> 0 | U14: =Adjustments!T501+Adjustments!T505 -> 0 | V14: =SUM(G14:T14) -> 0 | W14: 0
A15: 7 | D15: General Related Other Revenue | G15: =Adjustments!F502+Adjustments!F506 -> 0 | H15: =Adjustments!G502+Adjustments!G506 -> 0 | I15: =Adjustments!H502+Adjustments!H506 -> 0 | J15: =Adjustments!I502+Adjustments!I506 -> 0 | K15: =Adjustments!J502+Adjustments!J506 -> 0 | L15: =Adjustments!K502+Adjustments!K506 -> 0 | M15: =Adjustments!L502+Adjustments!L506 -> 0 | N15: =Adjustments!M502+Adjustments!M506 -> 0 | O15: =Adjustments!N502+Adjustments!N506 -> 0 | P15: =Adjustments!O502+Adjustments!O506 -> 0 | Q15: =Adjustments!P502+Adjustments!P506 -> 0 | R15: =Adjustments!Q502+Adjustments!Q506 -> 0 | S15: =Adjustments!R502+Adjustments!R506 -> 0 | T15: =Adjustments!S502+Adjustments!S506 -> 0 | U15: =Adjustments!T502+Adjustments!T506 -> 0 | V15: =SUM(G15:T15) -> 0 | W15: 0
A16: 8 | C16: Total Utility Operating Revenue | G16: =SUM(G11:G15) -> 0 | H16: =SUM(H11:H15) -> 0 | I16: 30006036.71 | J16: 0 | K16: 0 | L16: 0 | M16: 0 | N16: 0 | O16: 0 | P16: 0 | Q16: 0 | R16: =SUM(R11:R15) -> 0 | S16: =SUM(S11:S15) -> 0 | T16: =SUM(T11:T15) -> 0 | U16: =SUM(U11:U15) -> 30006036.71 | V16: 30006036.71 | W16: 0
A18: =+A16+1 -> 9 | B18: Utility Operating Expenses
A19: =+A18+1 -> 10 | C19: Gas Purchase Expenses
A20: =+A19+1 -> 11 | D20: Utah Gas Purchase Exp | G20: =Adjustments!F632+Adjustments!F635 -> 0 | H20: =Adjustments!G632+Adjustments!G635 -> 0 | I20: =Adjustments!H632+Adjustments!H635 -> -179450.6924 | J20: =Adjustments!I632+Adjustments!I635 -> 0 | K20: =Adjustments!J632+Adjustments!J635 -> 0 | L20: =Adjustments!K632+Adjustments!K635 -> 0 | M20: =Adjustments!L632+Adjustments!L635 -> 0 | N20: =Adjustments!M632+Adjustments!M635 -> 0 | O20: =Adjustments!N632+Adjustments!N635 -> 0 | P20: =Adjustments!O632+Adjustments!O635 -> 0 | Q20: =Adjustments!P632+Adjustments!P635 -> 0 | R20: =Adjustments!Q632+Adjustments!Q635 -> 0 | S20: =Adjustments!R632+Adjustments!R635 -> 0 | T20: =Adjustments!S632+Adjustments!S635 -> 0 | U20: =Adjustments!T632+Adjustments!T635 -> -179450.6924 | V20: =SUM(G20:T20) -> -179450.6924 | W20: =+U20-V20 -> 0
A21: =+A20+1 -> 12 | D21: Wyoming Gas Purchase Exp | G21: =Adjustments!F634+Adjustments!F636 -> 0 | H21: =Adjustments!G634+Adjustments!G636 -> 0 | I21: =Adjustments!H634+Adjustments!H636 -> -1048109.576 | J21: =Adjustments!I634+Adjustments!I636 -> 0 | K21: =Adjustments!J634+Adjustments!J636 -> 0 | L21: =Adjustments!K634+Adjustments!K636 -> 0 | M21: =Adjustments!L634+Adjustments!L636 -> 0 | N21: =Adjustments!M634+Adjustments!M636 -> 0 | O21: =Adjustments!N634+Adjustments!N636 -> 0 | P21: =Adjustments!O634+Adjustments!O636 -> 0 | Q21: =Adjustments!P634+Adjustments!P636 -> 0 | R21: =Adjustments!Q634+Adjustments!Q636 -> 0 | S21: =Adjustments!R634+Adjustments!R636 -> 0 | T21: =Adjustments!S634+Adjustments!S636 -> 0 | U21: =Adjustments!T634+Adjustments!T636 -> -1048109.576 | V21: =SUM(G21:T21) -> -1048109.576 | W21: =+U21-V21 -> 0
A22: =+A21+1 -> 13 | D22: Total Gas Purchase Expenses | G22: =SUM(G20:G21) -> 0 | H22: =SUM(H20:H21) -> 0 | I22: -1227560.268 | J22: 0 | K22: 0 | L22: 0 | M22: 0 | N22: 0 | O22: 0 | P22: 0 | Q22: 0 | R22: =SUM(R20:R21) -> 0 | S22: =SUM(S20:S21) -> 0 | T22: =SUM(T20:T21) -> 0 | U22: =SUM(U20:U21) -> -1227560.268 | V22: -1227560.268 | W22: 0
A24: =+A22+1 -> 14 | D24: Utah Gathering & CO2 | G24: =Adjustments!F631 -> 0 | H24: =Adjustments!G631 -> 0 | I24: =Adjustments!H631 -> 0 | J24: =Adjustments!I631 -> 0 | K24: =Adjustments!J631 -> 0 | L24: =Adjustments!K631 -> 0 | M24: =Adjustments!L631 -> 0 | N24: =Adjustments!M631 -> 0 | O24: =Adjustments!N631 -> 0 | P24: =Adjustments!O631 -> 0 | Q24: =Adjustments!P631 -> 0 | R24: =Adjustments!Q631 -> 0 | S24: =Adjustments!R631 -> 0 | T24: =Adjustments!S631 -> 0 | U24: =Adjustments!T631 -> 0 | V24: =SUM(G24:T24) -> 0 | W24: =+U24-V24 -> 0
A25: =+A24+1 -> 15 | D25: Wyoming Gathering & CO2 | G25: =Adjustments!F633 -> 0 | H25: =Adjustments!G633 -> 0 | I25: =Adjustments!H633 -> 0 | J25: =Adjustments!I633 -> 0 | K25: =Adjustments!J633 -> 0 | L25: =Adjustments!K633 -> 0 | M25: =Adjustments!L633 -> 0 | N25: =Adjustments!M633 -> 0 | O25: =Adjustments!N633 -> 0 | P25: =Adjustments!O633 -> 0 | Q25: =Adjustments!P633 -> 0 | R25: =Adjustments!Q633 -> 0 | S25: =Adjustments!R633 -> 0 | T25: =Adjustments!S633 -> 0 | U25: =Adjustments!T633 -> 0 | V25: =SUM(G25:T25) -> 0 | W25: 0
A26: =+A25+1 -> 16 | D26: Total Gathering & CO2 | G26: =SUM(G24:G25) -> 0 | H26: =SUM(H24:H25) -> 0 | I26: 0 | J26: 0 | K26: 0 | L26: 0 | M26: 0 | N26: 0 | O26: 0 | P26: 0 | Q26: 0 | R26: =SUM(R24:R25) -> 0 | S26: =SUM(S24:S25) -> 0 | T26: =SUM(T24:T25) -> 0 | U26: =SUM(U24:U25) -> 0 | V26: 0 | W26: 0
A28: =+A26+1 -> 17 | C28: O&M Expenses
A29: =+A28+1 -> 18 | D29: Production | G29: =Adjustments!F649 -> 0 | H29: =Adjustments!G649 -> -3140.182827 | I29: =Adjustments!H649 -> 0 | J29: =Adjustments!I649 -> 0 | K29: =Adjustments!J649 -> 0 | L29: =Adjustments!K649 -> 0 | M29: =Adjustments!L649 -> 0 | N29: =Adjustments!M649 -> 0 | O29: =Adjustments!N649 -> 0 | P29: =Adjustments!O649 -> 0 | Q29: =Adjustments!P649 -> 0 | R29: =Adjustments!Q649 -> 0 | S29: =Adjustments!R649 -> 0 | T29: =Adjustments!S649 -> 0 | U29: =Adjustments!T649 -> -3140.182827 | V29: =SUM(G29:T29) -> -3140.182827 | W29: =+U29-V29 -> 0
A30: 19 | D30: Distribution | G30: =Adjustments!F752 -> 0 | H30: =Adjustments!G752 -> 377083.5 | I30: =Adjustments!H752 -> 0 | J30: =Adjustments!I752 -> 0 | K30: =Adjustments!J752 -> 0 | L30: =Adjustments!K752 -> 0 | M30: =Adjustments!L752 -> 0 | N30: =Adjustments!M752 -> 0 | O30: =Adjustments!N752 -> 0 | P30: =Adjustments!O752 -> 0 | Q30: =Adjustments!P752 -> 0 | R30: =Adjustments!Q752 -> 0 | S30: =Adjustments!R752 -> 0 | T30: =Adjustments!S752 -> 0 | U30: =Adjustments!T752 -> 377083.5 | V30: =SUM(G30:T30) -> 377083.5 | W30: 0
A31: 20 | D31: Customer Accounts | G31: =Adjustments!F805 -> 0 | H31: =Adjustments!G805 -> 300405.523 | I31: =Adjustments!H805 -> 0 | J31: =Adjustments!I805 -> 0 | K31: =Adjustments!J805 -> 0 | L31: =Adjustments!K805 -> 0 | M31: =Adjustments!L805 -> -1276909.141 | N31: =Adjustments!M805 -> 0 | O31: =Adjustments!N805 -> 0 | P31: =Adjustments!O805 -> 0 | Q31: =Adjustments!P805 -> 0 | R31: =Adjustments!Q805 -> 0 | S31: =Adjustments!R805 -> 0 | T31: =Adjustments!S805 -> 0 | U31: =Adjustments!T805 -> -976503.6182 | V31: =SUM(G31:T31) -> -976503.6182 | W31: 0
A32: 21 | D32: Customer Service & Information | G32: =Adjustments!F833 -> 0 | H32: =Adjustments!G833 -> 602198.6154 | I32: =Adjustments!H833 -> 0 | J32: =Adjustments!I833 -> 0 | K32: =Adjustments!J833 -> 0 | L32: =Adjustments!K833 -> -30341255.67 | M32: =Adjustments!L833 -> 0 | N32: =Adjustments!M833 -> 0 | O32: =Adjustments!N833 -> 0 | P32: =Adjustments!O833 -> 0 | Q32: =Adjustments!P833 -> 0 | R32: =Adjustments!Q833 -> 0 | S32: =Adjustments!R833 -> 0 | T32: =Adjustments!S833 -> 0 | U32: =Adjustments!T833 -> -29739057.05 | V32: =SUM(G32:T32) -> -29739057.05 | W32: 0
A33: 22 | D33: Administrative & General | G33: =Adjustments!F889 -> 0 | H33: =Adjustments!G889 -> 1323877.869 | I33: =Adjustments!H889 -> 0 | J33: =Adjustments!I889 -> 0 | K33: =Adjustments!J889 -> 0 | L33: =Adjustments!K889 -> 0 | M33: =Adjustments!L889 -> 0 | N33: =Adjustments!M889 -> -2244314.018 | O33: =Adjustments!N889 -> 0 | P33: =Adjustments!O889 -> 0 | Q33: =Adjustments!P889 -> -186958.8704 | R33: =Adjustments!Q889 -> -350726.6006 | S33: =Adjustments!R889 -> 0 | T33: =Adjustments!S889 -> 12386152 | U33: =Adjustments!T889 -> 10928030.38 | V33: =SUM(G33:T33) -> 10928030.38 | W33: 0
A34: 23 | D34: Total O&M Expense | G34: =SUM(G29:G33) -> 0 | H34: =SUM(H29:H33) -> 2600425.325 | I34: 0 | J34: 0 | K34: 0 | L34: -30341255.67 | M34: -1276909.141 | N34: -2244314.018 | O34: 0 | P34: 0 | Q34: -186958.8704 | R34: =SUM(R29:R33) -> -350726.6006 | S34: =SUM(S29:S33) -> 0 | T34: =SUM(T29:T33) -> 12386152 | U34: =SUM(U29:U33) -> -19413586.97 | V34: -19413586.97 | W34: 0
A36: =+A34+1 -> 24 | C36: Other Operating Expenses
A37: =+A36+1 -> 25 | D37: Depreciation, Deplection, Amortization | G37: =Adjustments!F913 -> 0 | H37: =Adjustments!G913 -> 18000767.79 | I37: =Adjustments!H913 -> 0 | J37: =Adjustments!I913 -> 0 | K37: =Adjustments!J913 -> 0 | L37: =Adjustments!K913 -> 0 | M37: =Adjustments!L913 -> 0 | N37: =Adjustments!M913 -> 0 | O37: =Adjustments!N913 -> 0 | P37: =Adjustments!O913 -> 0 | Q37: =Adjustments!P913 -> 0 | R37: =Adjustments!Q913 -> 0 | S37: =Adjustments!R913 -> 0 | T37: =Adjustments!S913 -> 0 | U37: =Adjustments!T913 -> 18000767.79 | V37: =SUM(G37:T37) -> 18000767.79 | W37: =+U37-V37 -> 0
A38: =+A37+1 -> 26 | D38: Taxes Other Than Income Taxes | G38: =Adjustments!F921 -> 0 | H38: =Adjustments!G921 -> 4393399.2 | I38: =Adjustments!H921 -> 0 | J38: =Adjustments!I921 -> 0 | K38: =Adjustments!J921 -> 0 | L38: =Adjustments!K921 -> 0 | M38: =Adjustments!L921 -> 0 | N38: =Adjustments!M921 -> 0 | O38: =Adjustments!N921 -> 0 | P38: =Adjustments!O921 -> 0 | Q38: =Adjustments!P921 -> 0 | R38: =Adjustments!Q921 -> 0 | S38: =Adjustments!R921 -> 0 | T38: =Adjustments!S921 -> 0 | U38: =Adjustments!T921 -> 4393399.2 | V38: =SUM(G38:T38) -> 4393399.2 | W38: 0
A39: =+A38+1 -> 27 | D39: Income Taxes | G39: =Adjustments!F923+Adjustments!F925+Adjustments!F927+Adjustments!F929 -> 0 | H39: =Adjustments!G923+Adjustments!G925+Adjustments!G927+Adjustments!G929 -> -13742383.18 | I39: =Adjustments!H923+Adjustments!H925+Adjustments!H927+Adjustments!H929 -> 7700209.568 | J39: =Adjustments!I923+Adjustments!I925+Adjustments!I927+Adjustments!I929 -> 0 | K39: =Adjustments!J923+Adjustments!J925+Adjustments!J927+Adjustments!J929 -> 0 | L39: =Adjustments!K923+Adjustments!K925+Adjustments!K927+Adjustments!K929 -> 7480215.209 | M39: =Adjustments!L923+Adjustments!L925+Adjustments!L927+Adjustments!L929 -> 314804.2152 | N39: =Adjustments!M923+Adjustments!M925+Adjustments!M927+Adjustments!M929 -> 553304.4523 | O39: =Adjustments!N923+Adjustments!N925+Adjustments!N927+Adjustments!N929 -> 0 | P39: =Adjustments!O923+Adjustments!O925+Adjustments!O927+Adjustments!O929 -> 0 | Q39: =Adjustments!P923+Adjustments!P925+Adjustments!P927+Adjustments!P929 -> 46092.11302 | R39: =Adjustments!Q923+Adjustments!Q925+Adjustments!Q927+Adjustments!Q929 -> 86466.77253 | S39: =Adjustments!R923+Adjustments!R925+Adjustments!R927+Adjustments!R929 -> 0 | T39: =Adjustments!S923+Adjustments!S925+Adjustments!S927+Adjustments!S929 -> -3053633.758 | U39: =Adjustments!T923+Adjustments!T925+Adjustments!T927+Adjustments!T929 -> -614924.6125 | V39: =SUM(G39:T39) -> -614924.6125 | W39: 0
A40: =+A39+1 -> 28 | D40: Total Other Operating Expenses | G40: =SUM(G37:G39) -> 0 | H40: =SUM(H37:H39) -> 8651783.809 | I40: 7700209.568 | J40: 0 | K40: 0 | L40: 7480215.209 | M40: 314804.2152 | N40: 553304.4523 | O40: 0 | P40: 0 | Q40: 46092.11302 | R40: =SUM(R37:R39) -> 86466.77253 | S40: =SUM(S37:S39) -> 0 | T40: =SUM(T37:T39) -> -3053633.758 | U40: =SUM(U37:U39) -> 21779242.38 | V40: 21779242.38 | W40: 0
A43: =+A40+1 -> 29 | C43: Total Utility Operating Expenses | G43: =+G22+G26+G34+G40 -> 0 | H43: =+H22+H26+H34+H40 -> 11252209.13 | I43: 6472649.3 | J43: 0 | K43: 0 | L43: -22861040.46 | M43: -962104.926 | N43: -1691009.565 | O43: 0 | P43: 0 | Q43: -140866.7573 | R43: =+R22+R26+R34+R40 -> -264259.8281 | S43: =+S22+S26+S34+S40 -> 0 | T43: =+T22+T26+T34+T40 -> 9332518.242 | U43: =+U22+U26+U34+U40 -> 1138095.14 | V43: 1138095.14 | W43: 0
A46: =+A43+1 -> 30 | B46: NET OPERATING INCOME | G46: =+G16-G43 -> 0 | H46: =+H16-H43 -> -11252209.13 | I46: 23533387.42 | J46: 0 | K46: 0 | L46: 22861040.46 | M46: 962104.926 | N46: 1691009.565 | O46: 0 | P46: 0 | Q46: 140866.7573 | R46: =+R16-R43 -> 264259.8281 | S46: =+S16-S43 -> 0 | T46: =+T16-T43 -> -9332518.242 | U46: =+U16-U43 -> 28867941.58 | V46: 28867941.58 | W46: 0
A49: =+A46+1 -> 31 | B49: RATE BASE SUMMARY
A51: =+A49+1 -> 32 | B51: Net Utility Plant
A52: =+A51+1 -> 33 | C52: 101 | D52: Gas Plant In Service | G52: =Adjustments!F1105 -> 491755109.2 | H52: =Adjustments!G1105 -> 0 | I52: =Adjustments!H1105 -> 0 | J52: =Adjustments!I1105 -> 0 | K52: =Adjustments!J1105 -> -5037992.568 | L52: =Adjustments!K1105 -> 0 | M52: =Adjustments!L1105 -> 0 | N52: =Adjustments!M1105 -> 0 | O52: =Adjustments!N1105 -> 0 | P52: =Adjustments!O1105 -> 0 | Q52: =Adjustments!P1105 -> 0 | R52: =Adjustments!Q1105 -> 0 | S52: =Adjustments!R1105 -> 0 | T52: =Adjustments!S1105 -> 0 | U52: =Adjustments!T1105 -> 486717116.6 | V52: =SUM(G52:T52) -> 486717116.6 | W52: =+U52-V52 -> 0
A53: 34 | C53: 105 | D53: Gas Plant Held For Future Use | G53: =Adjustments!F1109 -> 0 | H53: =Adjustments!G1109 -> 0 | I53: =Adjustments!H1109 -> 0 | J53: =Adjustments!I1109 -> 0 | K53: =Adjustments!J1109 -> 0 | L53: =Adjustments!K1109 -> 0 | M53: =Adjustments!L1109 -> 0 | N53: =Adjustments!M1109 -> 0 | O53: =Adjustments!N1109 -> 0 | P53: =Adjustments!O1109 -> 0 | Q53: =Adjustments!P1109 -> 0 | R53: =Adjustments!Q1109 -> 0 | S53: =Adjustments!R1109 -> 0 | T53: =Adjustments!S1109 -> 0 | U53: =Adjustments!T1109 -> 0 | V53: =SUM(G53:T53) -> 0 | W53: 0
A54: 35 | C54: 106 | D54: Completed Construction Not Classified | G54: =Adjustments!F1116 -> -246850134.2 | H54: =Adjustments!G1116 -> 0 | I54: =Adjustments!H1116 -> 0 | J54: =Adjustments!I1116 -> 0 | K54: =Adjustments!J1116 -> 0 | L54: =Adjustments!K1116 -> 0 | M54: =Adjustments!L1116 -> 0 | N54: =Adjustments!M1116 -> -825341.0399 | O54: =Adjustments!N1116 -> 0 | P54: =Adjustments!O1116 -> 0 | Q54: =Adjustments!P1116 -> 0 | R54: =Adjustments!Q1116 -> 0 | S54: =Adjustments!R1116 -> 0 | T54: =Adjustments!S1116 -> 0 | U54: =Adjustments!T1116 -> -247675475.2 | V54: =SUM(G54:T54) -> -247675475.2 | W54: 0
A55: 36 | C55: 108 | D55: Accumulated Depreciation | G55: =Adjustments!F1123 -> -43096472.39 | H55: =Adjustments!G1123 -> 0 | I55: =Adjustments!H1123 -> 0 | J55: =Adjustments!I1123 -> 0 | K55: =Adjustments!J1123 -> 4604194.963 | L55: =Adjustments!K1123 -> 0 | M55: =Adjustments!L1123 -> 0 | N55: =Adjustments!M1123 -> 0 | O55: =Adjustments!N1123 -> 0 | P55: =Adjustments!O1123 -> 0 | Q55: =Adjustments!P1123 -> 0 | R55: =Adjustments!Q1123 -> 0 | S55: =Adjustments!R1123 -> 0 | T55: =Adjustments!S1123 -> 0 | U55: =Adjustments!T1123 -> -38492277.42 | V55: =SUM(G55:T55) -> -38492277.42 | W55: 0
A56: 37 | C56: 111 | D56: Accumulated Amort & Depletion | G56: =Adjustments!F1130 -> -1029594.582 | H56: =Adjustments!G1130 -> 0 | I56: =Adjustments!H1130 -> 0 | J56: =Adjustments!I1130 -> 0 | K56: =Adjustments!J1130 -> 410442.6788 | L56: =Adjustments!K1130 -> 0 | M56: =Adjustments!L1130 -> 0 | N56: =Adjustments!M1130 -> 0 | O56: =Adjustments!N1130 -> 0 | P56: =Adjustments!O1130 -> 0 | Q56: =Adjustments!P1130 -> 0 | R56: =Adjustments!Q1130 -> 0 | S56: =Adjustments!R1130 -> 0 | T56: =Adjustments!S1130 -> 0 | U56: =Adjustments!T1130 -> -619151.9033 | V56: =SUM(G56:T56) -> -619151.9033 | W56: 0
A57: 38 | C57: 254 | D57: Other Regulatory Liabilities ARC | G57: =Adjustments!F1137 -> 1722778.5 | H57: =Adjustments!G1137 -> 0 | I57: =Adjustments!H1137 -> 0 | J57: =Adjustments!I1137 -> 0 | K57: =Adjustments!J1137 -> 0 | L57: =Adjustments!K1137 -> 0 | M57: =Adjustments!L1137 -> 0 | N57: =Adjustments!M1137 -> 0 | O57: =Adjustments!N1137 -> 0 | P57: =Adjustments!O1137 -> 0 | Q57: =Adjustments!P1137 -> 0 | R57: =Adjustments!Q1137 -> 0 | S57: =Adjustments!R1137 -> 0 | T57: =Adjustments!S1137 -> 0 | U57: =Adjustments!T1137 -> 1722778.5 | V57: =Adjustments!#REF! ->  | W57: =Adjustments!#REF! -> 
A58: 39 | C58: Total Net Utility Plant | G58: =SUM(G52:G57) -> 202501686.5 | H58: 0 | I58: 0 | J58: 0 | K58: -23354.92593 | L58: 0 | M58: 0 | N58: -825341.0399 | O58: 0 | P58: 0 | Q58: 0 | R58: 0 | S58: =SUM(S52:S57) -> 0 | T58: 0 | U58: =SUM(U52:U57) -> 201652990.5 | V58: =SUM(V52:V56) -> 199930212 | W58: 0
A60: =+A58+1 -> 40 | B60: Other Rate Base Accounts
A61: =+A60+1 -> 41 | C61: 154 | D61: Materials & Supplies | G61: =Adjustments!F1155 -> 0 | H61: =Adjustments!G1155 -> 0 | I61: =Adjustments!H1155 -> 0 | J61: =Adjustments!I1155 -> 0 | K61: =Adjustments!J1155 -> 0 | L61: =Adjustments!K1155 -> 0 | M61: =Adjustments!L1155 -> 0 | N61: =Adjustments!M1155 -> 0 | O61: =Adjustments!N1155 -> 0 | P61: =Adjustments!O1155 -> 0 | Q61: =Adjustments!P1155 -> 0 | R61: =Adjustments!Q1155 -> 0 | S61: =Adjustments!R1155 -> 0 | T61: =Adjustments!S1155 -> 0 | U61: =Adjustments!T1155 -> 0 | V61: =SUM(G61:T61) -> 0 | W61: =+U61-V61 -> 0
A62: 42 | C62: 164-1 | D62: Gas Stored Underground | G62: =Adjustments!F1159 -> 0 | H62: =Adjustments!G1159 -> 0 | I62: =Adjustments!H1159 -> 0 | J62: =Adjustments!I1159 -> -48124018.94 | K62: =Adjustments!J1159 -> 0 | L62: =Adjustments!K1159 -> 0 | M62: =Adjustments!L1159 -> 0 | N62: =Adjustments!M1159 -> 0 | O62: =Adjustments!N1159 -> 0 | P62: =Adjustments!O1159 -> 0 | Q62: =Adjustments!P1159 -> 0 | R62: =Adjustments!Q1159 -> 0 | S62: =Adjustments!R1159 -> 0 | T62: =Adjustments!S1159 -> 0 | U62: =Adjustments!T1159 -> -48124018.94 | V62: -48124018.94 | W62: 0
A63: 43 | C63: 165 | D63: Prepayments | G63: =Adjustments!F1163 -> 5088262.656 | H63: =Adjustments!G1163 -> 0 | I63: =Adjustments!H1163 -> 0 | J63: =Adjustments!I1163 -> 0 | K63: =Adjustments!J1163 -> 0 | L63: =Adjustments!K1163 -> 0 | M63: =Adjustments!L1163 -> 0 | N63: =Adjustments!M1163 -> 0 | O63: =Adjustments!N1163 -> 0 | P63: =Adjustments!O1163 -> 0 | Q63: =Adjustments!P1163 -> 0 | R63: =Adjustments!Q1163 -> 0 | S63: =Adjustments!R1163 -> 0 | T63: =Adjustments!S1163 -> 0 | U63: =Adjustments!T1163 -> 5088262.656 | V63: 5088262.656 | W63: 0
A64: 44 | C64: 190 | D64: Accum Deferred Income Taxes | G64: =Adjustments!F1170+Adjustments!F1177 -> 0 | H64: =Adjustments!G1170+Adjustments!G1177 -> 0 | I64: =Adjustments!H1170+Adjustments!H1177 -> 0 | J64: =Adjustments!I1170+Adjustments!I1177 -> 0 | K64: =Adjustments!J1170+Adjustments!J1177 -> 0 | L64: =Adjustments!K1170+Adjustments!K1177 -> 0 | M64: =Adjustments!L1170+Adjustments!L1177 -> 0 | N64: =Adjustments!M1170+Adjustments!M1177 -> 0 | O64: =Adjustments!N1170+Adjustments!N1177 -> 0 | P64: =Adjustments!O1170+Adjustments!O1177 -> 0 | Q64: =Adjustments!P1170+Adjustments!P1177 -> 0 | R64: =Adjustments!Q1170+Adjustments!Q1177 -> 0 | S64: =Adjustments!R1170+Adjustments!R1177 -> 0 | T64: =Adjustments!S1170+Adjustments!S1177 -> 0 | U64: =Adjustments!T1170+Adjustments!T1177 -> 0 | V64: 0 | W64: 0
A65: 45 | C65: 235-1 | D65: Customer Deposits | G65: =Adjustments!F1182 -> 0 | H65: =Adjustments!G1182 -> 0 | I65: =Adjustments!H1182 -> 0 | J65: =Adjustments!I1182 -> 0 | K65: =Adjustments!J1182 -> 0 | L65: =Adjustments!K1182 -> 0 | M65: =Adjustments!L1182 -> 0 | N65: =Adjustments!M1182 -> 0 | O65: =Adjustments!N1182 -> 0 | P65: =Adjustments!O1182 -> 0 | Q65: =Adjustments!P1182 -> 0 | R65: =Adjustments!Q1182 -> 0 | S65: =Adjustments!R1182 -> 0 | T65: =Adjustments!S1182 -> 0 | U65: =Adjustments!T1182 -> 0 | V65: 0 | W65: 0
A66: 46 | C66: 252 | D66: Misc Customer Credits | G66: =Adjustments!F1187 -> 0 | H66: =Adjustments!G1187 -> 0 | I66: =Adjustments!H1187 -> 0 | J66: =Adjustments!I1187 -> 0 | K66: =Adjustments!J1187 -> 0 | L66: =Adjustments!K1187 -> 0 | M66: =Adjustments!L1187 -> 0 | N66: =Adjustments!M1187 -> 0 | O66: =Adjustments!N1187 -> 0 | P66: =Adjustments!O1187 -> 0 | Q66: =Adjustments!P1187 -> 0 | R66: =Adjustments!Q1187 -> 0 | S66: =Adjustments!R1187 -> 0 | T66: =Adjustments!S1187 -> 0 | U66: =Adjustments!T1187 -> 0 | V66: 0 | W66: 0
A67: 47 | C67: 253-1 | D67: Unclaimed Customer Deposits | G67: =Adjustments!F1191 -> 17182.0975 | H67: =Adjustments!G1191 -> 0 | I67: =Adjustments!H1191 -> 0 | J67: =Adjustments!I1191 -> 0 | K67: =Adjustments!J1191 -> 0 | L67: =Adjustments!K1191 -> 0 | M67: =Adjustments!L1191 -> 0 | N67: =Adjustments!M1191 -> 0 | O67: =Adjustments!N1191 -> 0 | P67: =Adjustments!O1191 -> 0 | Q67: =Adjustments!P1191 -> 0 | R67: =Adjustments!Q1191 -> 0 | S67: =Adjustments!R1191 -> 0 | T67: =Adjustments!S1191 -> 0 | U67: =Adjustments!T1191 -> 17182.0975 | V67: 17182.0975 | W67: 0
A68: 48 | C68: 255 | D68: Deferred Investment Tax Credits | G68: =Adjustments!F1198 -> 0 | H68: =Adjustments!G1198 -> 0 | I68: =Adjustments!H1198 -> 0 | J68: =Adjustments!I1198 -> 0 | K68: =Adjustments!J1198 -> 0 | L68: =Adjustments!K1198 -> 0 | M68: =Adjustments!L1198 -> 0 | N68: =Adjustments!M1198 -> 0 | O68: =Adjustments!N1198 -> 0 | P68: =Adjustments!O1198 -> 0 | Q68: =Adjustments!P1198 -> 0 | R68: =Adjustments!Q1198 -> 0 | S68: =Adjustments!R1198 -> 0 | T68: =Adjustments!S1198 -> 0 | U68: =Adjustments!T1198 -> 0 | V68: 0 | W68: 0
A69: 49 | C69: 282 | D69: Accum Deferred Income Taxes | G69: =(Adjustments!F1205+Adjustments!F1212+Adjustments!F1216) -> -6950535.315 | H69: =(Adjustments!G1205+Adjustments!G1212+Adjustments!G1216) -> 0 | I69: =(Adjustments!H1205+Adjustments!H1212+Adjustments!H1216) -> 0 | J69: =(Adjustments!I1205+Adjustments!I1212+Adjustments!I1216) -> 0 | K69: =(Adjustments!J1205+Adjustments!J1212+Adjustments!J1216) -> 0 | L69: =(Adjustments!K1205+Adjustments!K1212+Adjustments!K1216) -> 0 | M69: =(Adjustments!L1205+Adjustments!L1212+Adjustments!L1216) -> 0 | N69: =(Adjustments!M1205+Adjustments!M1212+Adjustments!M1216) -> 0 | O69: =(Adjustments!N1205+Adjustments!N1212+Adjustments!N1216) -> 0 | P69: =(Adjustments!O1205+Adjustments!O1212+Adjustments!O1216) -> 0 | Q69: =(Adjustments!P1205+Adjustments!P1212+Adjustments!P1216) -> 0 | R69: =(Adjustments!Q1205+Adjustments!Q1212+Adjustments!Q1216) -> 0 | S69: =(Adjustments!R1205+Adjustments!R1212+Adjustments!R1216) -> 0 | T69: =(Adjustments!S1205+Adjustments!S1212+Adjustments!S1216) -> -116043454.2 | U69: =(Adjustments!T1205+Adjustments!T1212+Adjustments!T1216) -> -122993989.5 | V69: -122993989.5 | W69: 0
A70: 50 | D70: Working Capital - Cash | G70: =Adjustments!F1254 -> 0 | H70: =Adjustments!G1254 -> 19027.81782 | I70: =Adjustments!H1254 -> 148072.936 | J70: =Adjustments!I1254 -> 0 | K70: =Adjustments!J1254 -> 0 | L70: =Adjustments!K1254 -> -522985.4461 | M70: =Adjustments!L1254 -> -22009.79762 | N70: =Adjustments!M1254 -> -38684.73937 | O70: =Adjustments!N1254 -> 0 | P70: =Adjustments!O1254 -> 0 | Q70: =Adjustments!P1254 -> -3222.568284 | R70: =Adjustments!Q1254 -> -6045.396067 | S70: =Adjustments!R1254 -> 0 | T70: =Adjustments!S1254 -> 213497.3351 | U70: =Adjustments!T1254 -> -212349.8585 | V70: -212349.8585 | W70: 0
A71: 51 | C71: Total Other Rate Base Accounts | G71: =SUM(G61:G70) -> -1845090.562 | H71: =SUM(H61:H70) -> 19027.81782 | I71: 148072.936 | J71: -48124018.94 | K71: 0 | L71: -522985.4461 | M71: -22009.79762 | N71: -38684.73937 | O71: 0 | P71: 0 | Q71: -3222.568284 | R71: =SUM(R61:R70) -> -6045.396067 | S71: =SUM(S61:S70) -> 0 | T71: =SUM(T61:T70) -> -115829956.9 | U71: =SUM(U61:U70) -> -166224913.6 | V71: -166224913.6 | W71: 0
A74: =+A71+1 -> 52 | B74: TOTAL RATE BASE | G74: =+G58+G71 -> 200656595.9 | H74: =+H58+H71 -> 19027.81782 | I74: 148072.936 | J74: -48124018.94 | K74: -23354.92593 | L74: -522985.4461 | M74: -22009.79762 | N74: -864025.7793 | O74: 0 | P74: 0 | Q74: -3222.568284 | R74: =+R58+R71 -> -6045.396067 | S74: =+S58+S71 -> 0 | T74: =+T58+T71 -> -115829956.9 | U74: =+U58+U71 -> 35428076.95 | V74: =+V58+V71 -> 33705298.45 | W74: 0

Sheet PROJECTED EXPENSES
G1: BOOKED | H1: BOOKED | I1: BOOKED | J1: BOOKED | K1: BOOKED | L1: BOOKED | M1: BOOKED | N1: BOOKED | O1: BOOKED | P1: BOOKED | Q1: BOOKED | R1: BOOKED | T1: PROJECTED | U1: PROJECTED | V1: PROJECTED | W1: PROJECTED | X1: PROJECTED | Y1: PROJECTED | Z1: PROJECTED | AA1: PROJECTED | AB1: PROJECTED | AC1: PROJECTED | AD1: PROJECTED | AE1: PROJECTED | AF1: PROJECTED | AG1: PROJECTED | AH1: PROJECTED | AI1: PROJECTED | AJ1: PROJECTED | AK1: PROJECTED | AL1: PROJECTED | AM1: PROJECTED | AN1: PROJECTED | AO1: PROJECTED | AP1: PROJECTED | AQ1: PROJECTED | AT1: 12 Months Ended | AU1: 12 Months Ended | AV1: 12 Months Ended | AW1: 2021 | AX1: 2022
J2: 2022-04-01 | K2: 2022-05-01 | L2: 2022-06-01 | M2: 2022-07-01 | N2: 2022-08-01 | O2: 2022-09-01 | P2: 2022-10-01 | Q2: 2022-11-01 | R2: 2022-12-01 | T2: 2023-01-01 | U2: 2023-02-01 | V2: 2023-03-01 | W2: 2023-04-01 | X2: 2023-05-01 | Y2: 2023-06-01 | Z2: 2023-07-01 | AA2: 2023-08-01 | AB2: 2023-09-01 | AC2: 2023-10-01 | AD2: 2023-11-01 | AE2: 2023-12-01 | AF2: 2024-01-01 | AG2: 2024-02-01 | AH2: 2024-03-01 | AI2: 2024-04-01 | AJ2: 2024-05-01 | AK2: 2024-06-01 | AL2: 2024-07-01 | AM2: 2024-08-01 | AN2: 2024-09-01 | AO2: 2024-10-01 | AP2: 2024-11-01 | AQ2: 2024-12-01 | AT2: =R2 -> 2022-12-01 | AU2: =AE2 -> 2023-12-01 | AV2: =AQ2 -> 2024-12-01 | AW2: 4th Qtr 2022 Inflation Rates | AX2: 4th Qtr 2022 Inflation Rates | AY2: 2021 Inflation Rate | AZ2: 2022 Inflation Rate
C3: FERC Acct | E3: Description | J3: 12 Mos Dec-2022 | AT3: USED | AU3: USED | AV3: USED | AW3: 2023 | AX3: 2024 | AY3: 2023 | AZ3: 2024 | BA3: 1
BA4: 2
C5: UTILITY OPERATING EXPENSES | J5: 2022-12-01 | BA5: 3
B6: 615 | C6: OPERATION AND MAINTENANCE EXPENSES | BA6: 4
B7: 616 | BA7: 5
B8: 617 | C8: Production Expenses | BA8: 6
B9: 618 | BA9: 7
B10: 619 | C10: 810 | D10: Gas Used for Compressor Station Fuel | G10: 0 | H10: -12.58 | I10: -3240 | J10: -6.24 | K10: -5.79 | L10: -3104.89 | M10: -5.78 | N10: 0 | O10: -6.66 | P10: -4479.99 | Q10: 0 | R10: -4364.49 | T10: =T264+T518 -> 0 | U10: -12.695107 | V10: -3269.646 | W10: =W264+W518 -> -6.297096 | X10: -5.8429785 | Y10: -3133.299743 | Z10: -5.832887 | AA10: 0 | AB10: -6.720939 | AC10: -4520.981908 | AD10: 0 | AE10: =AE264+AE518 -> -4404.425083 | AF10: =AF264+AF518 -> 0 | AG10: -12.81164808 | AH10: -3299.66135 | AI10: -6.354903341 | AJ10: -5.896617043 | AK10: -3162.063435 | AL10: -5.886432903 | AM10: 0 | AN10: -6.78263722 | AO10: -4562.484522 | AP10: 0 | AQ10: =AQ264+AQ518 -> -4444.857706 | AT10: =SUM(G10:R10) -> -15226.42 | AU10: =SUM(T10:AE10) -> -15365.74174 | AV10: =SUM(AF10:AQ10) -> -15506.79925 | BA10: 8
B11: 620 | C11: 812 | D11: Gas Used for Other Utility Operations | G11: -51914.53 | H11: -52188.16 | I11: -42208.8 | J11: -31355.73 | K11: -20288.5 | L11: -12262.41 | M11: -6194.82 | N11: -5826.21 | O11: -8241.97 | P11: -8821.9 | Q11: -26154.53 | R11: -62505.4 | T11: =T265+T519 -> -52389.54795 | U11: -52665.68166 | V11: -42595.01052 | W11: -31642.63493 | X11: -20474.13977 | Y11: -12374.61105 | Z11: -6251.502603 | AA11: -5879.519822 | AB11: -8317.384025 | AC11: -8902.620385 | AD11: -26393.84395 | AE11: -63077.32441 | AF11: =AF265+AF519 -> -52870.484 | AG11: -53149.15262 | AH11: -42986.03272 | AI11: -31933.11432 | AJ11: -20662.09238 | AK11: -12488.20998 | AL11: -6308.891397 | AM11: -5933.493813 | AN11: -8393.737611 | AO11: -8984.34644 | AP11: -26636.13944 | AQ11: -63656.37425 | AT11: =SUM(G11:R11) -> -327962.96 | AU11: =SUM(T11:AE11) -> -330963.8211 | AV11: =SUM(AF11:AQ11) -> -334002.069 | BA11: 9
B12: 621 | BA12: 10
B13: 622 | D13: Total Production Expenses | G13: =SUM(G10:G11) -> -51914.53 | H13: =SUM(H10:H11) -> -52200.74 | I13: -45448.8 | J13: -31361.97 | K13: -20294.29 | L13: -15367.3 | M13: -6200.6 | N13: -5826.21 | O13: -8248.63 | P13: -13301.89 | Q13: -26154.53 | R13: -66869.89 | T13: =SUM(T10:T12) -> -52389.54795 | U13: -52678.37677 | V13: -45864.65652 | W13: =SUM(W10:W12) -> -31648.93203 | X13: -20479.98275 | Y13: -15507.91079 | Z13: -6257.33549 | AA13: -5879.519822 | AB13: -8324.104965 | AC13: -13423.60229 | AD13: -26393.84395 | AE13: -67481.74949 | AF13: =SUM(AF10:AF12) -> -52870.484 | AG13: -53161.96427 | AH13: -46285.69407 | AI13: -31939.46922 | AJ13: -20667.989 | AK13: -15650.27342 | AL13: -6314.77783 | AM13: -5933.493813 | AN13: -8400.520248 | AO13: -13546.83096 | AP13: -26636.13944 | AQ13: -68101.23195 | AT13: =SUM(G13:R13) -> -343189.38 | AU13: =SUM(T13:AE13) -> -346329.5628 | AV13: =SUM(AF13:AQ13) -> -349508.8682 | BA13: 11
B14: 623 | BA14: 12
B15: 624 | C15: Distribution Operations & Maintenance Expenses | BA15: 13
B16: 625 | BA16: 14
B17: 626 | C17: 870 | D17: Operation Supervision & Engineering | BA17: 15
B18: 627 | E18: Utah | G18: 1069280.22 | H18: 645440.46 | I18: 648258.15 | J18: 394054.98 | K18: 600169.32 | L18: 617787.72 | M18: 732149.18 | N18: 740343.3 | O18: 671183.11 | P18: 558614.57 | Q18: 623344.6 | R18: 706464.75 | T18: =T272+T526 -> 1105818.047 | U18: 667495.4756 | V18: 670409.4475 | W18: =W272+W526 -> 407520.031 | X18: =X272+X526 -> 620677.3987 | Y18: 638897.828 | Z18: 757167.0749 | AA18: 765641.192 | AB18: 694117.7645 | AC18: 577702.7026 | AD18: 644644.5893 | AE18: 730604.9954 | AF18: =AF272+AF526 -> 1133635.554 | AG18: 684286.719 | AH18: 687273.9935 | AI18: 417771.4384 | AJ18: 636290.9056 | AK18: 654969.6806 | AL18: 776214.0603 | AM18: 784901.3489 | AN18: 711578.7073 | AO18: 592235.1556 | AP18: 660861.0051 | AQ18: 748983.796 | AT18: =SUM(G18:R18) -> 8007090.36 | AU18: =SUM(T18:AE18) -> 8280696.547 | AV18: =SUM(AF18:AQ18) -> 8489002.364 | BA18: 16
B19: 628 | E19: Wyoming | G19: 63615.07 | H19: 44870.8 | I19: 43999.41 | J19: 30860.74 | K19: 45594.66 | L19: 39922.25 | M19: 48213.58 | N19: 47107.59 | O19: 46598.2 | P19: 42516.77 | Q19: 49452.18 | R19: 49110.32 | T19: =T273+T527 -> 65788.828 | U19: 46404.05714 | V19: 45502.89132 | W19: 31915.26655 | X19: 47152.65179 | Y19: 41286.41277 | Z19: 49861.06157 | AA19: 48717.27935 | AB19: 48190.48324 | AC19: 43969.58879 | AD19: 51141.98513 | AE19: 50788.44361 | AF19: =AF273+AF527 -> 67443.78486 | AG19: 47571.37864 | AH19: 46647.54345 | AI19: 32718.11395 | AJ19: 48338.80463 | AK19: 42324.9969 | AL19: 51115.34605 | AM19: 49942.79131 | AN19: 49402.74334 | AO19: 45075.66979 | AP19: 52428.49201 | AQ19: 52066.05694 | AT19: =SUM(G19:R19) -> 551861.57 | AU19: =SUM(T19:AE19) -> 570718.9493 | AV19: =SUM(AF19:AQ19) -> 585075.7219 | BA19: 17
B20: 629 | E20: Total | F20: =G19/G20 -> 0.05615264761 | G20: =SUM(G18:G19) -> 1132895.29 | H20: =SUM(H18:H19) -> 690311.26 | I20: 692257.56 | J20: 424915.72 | K20: 645763.98 | L20: 657709.97 | M20: 780362.76 | N20: 787450.89 | O20: 717781.31 | P20: 601131.34 | Q20: 672796.78 | R20: 755575.07 | T20: =SUM(T18:T19) -> 1171606.875 | U20: 713899.5328 | V20: 715912.3388 | W20: =SUM(W18:W19) -> 439435.2976 | X20: 667830.0505 | Y20: 680184.2408 | Z20: 807028.1365 | AA20: 814358.4713 | AB20: 742308.2478 | AC20: 621672.2914 | AD20: 695786.5744 | AE20: 781393.439 | AF20: =SUM(AF18:AF19) -> 1201079.339 | AG20: 731858.0976 | AH20: 733921.5369 | AI20: 450489.5523 | AJ20: 684629.7102 | AK20: 697294.6775 | AL20: 827329.4064 | AM20: 834844.1402 | AN20: 760981.4506 | AO20: 637310.8254 | AP20: 713289.4971 | AQ20: 801049.853 | AT20: =SUM(G20:R20) -> 8558951.93 | AU20: =SUM(T20:AE20) -> 8851415.496 | AV20: =SUM(AF20:AQ20) -> 9074078.086 | BA20: 18
B21: 630 | BA21: 19
B22: 631 | C22: 871 | D22: Distribution Load Dispatching | BA22: 20
B23: 632 | E23: Utah | G23: 28333.93 | H23: 34919.38 | I23: 34581.82 | J23: 37548.27 | K23: 74903.19 | L23: 38324.28 | M23: 37437.73 | N23: 316838.88 | O23: 38964.29 | P23: -37129.18 | Q23: 368681.7 | R23: 136118.65 | T23: =T277+T531 -> 29321.01976 | U23: 36135.89188 | V23: 35786.57206 | W23: =W277+W531 -> 38856.36644 | X23: 77512.64701 | Y23: 39659.41087 | Z23: 38741.97548 | AA23: 327876.8269 | AB23: 40321.71736 | AC23: -38422.6763 | AD23: 381525.733 | AE23: 140860.7146 | AF23: =AF277+AF531 -> 29456.23563 | AG23: 36302.53499 | AH23: 35951.60426 | AI23: 39035.5552 | AJ23: 77870.10182 | AK23: 39842.30292 | AL23: 38920.63672 | AM23: 329388.8531 | AN23: 40507.66369 | AO23: -38599.86507 | AP23: 383285.1647 | AQ23: 141510.3033 | AT23: =SUM(G23:R23) -> 1109522.94 | AU23: =SUM(T23:AE23) -> 1148176.199 | AV23: =SUM(AF23:AQ23) -> 1153471.091 | BA23: 21
B24: 633 | E24: Wyoming | F24: =G24/G25 -> 0.02963268147 | G24: 865.25 | H24: 1081.56 | I24: 531.53 | J24: 437.07 | K24: 452.12 | L24: 552.47 | M24: 382.49 | N24: 447.25 | O24: 465.17 | P24: 333.56 | Q24: 2393.08 | R24: 3294.21 | T24: =T278+T532 -> 895.3933447 | U24: 1119.239094 | V24: 550.0472979 | W24: 452.296526 | X24: 467.8708339 | Y24: 571.7167999 | Z24: 395.8150828 | AA24: 462.8311741 | AB24: 481.3754662 | AC24: 345.1804728 | AD24: 2476.449472 | AE24: 3408.972794 | AF24: =AF278+AF532 -> 899.5225116 | AG24: 1124.400541 | AH24: 552.5838782 | AI24: 454.3823221 | AJ24: 470.0284518 | AK24: 574.3533106 | AL24: 397.6404108 | AM24: 464.9655514 | AN24: 483.5953617 | AO24: 346.7722958 | AP24: 2487.869786 | AQ24: 3424.693503 | AT24: =SUM(G24:R24) -> 11235.76 | AU24: =SUM(T24:AE24) -> 11627.18836 | AV24: =SUM(AF24:AQ24) -> 11680.80792 | BA24: 22
B25: 634 | E25: Total | G25: =SUM(G23:G24) -> 29199.18 | H25: =SUM(H23:H24) -> 36000.94 | I25: 35113.35 | J25: 37985.34 | K25: 75355.31 | L25: 38876.75 | M25: 37820.22 | N25: 317286.13 | O25: 39429.46 | P25: -36795.62 | Q25: 371074.78 | R25: 139412.86 | T25: =SUM(T23:T24) -> 30216.41311 | U25: 37255.13098 | V25: 36336.61936 | W25: =SUM(W23:W24) -> 39308.66297 | X25: 77980.51784 | Y25: 40231.12767 | Z25: 39137.79056 | AA25: 328339.6581 | AB25: 40803.09283 | AC25: -38077.49582 | AD25: 384002.1825 | AE25: 144269.6874 | AF25: =SUM(AF23:AF24) -> 30355.75814 | AG25: 37426.93553 | AH25: 36504.18813 | AI25: 39489.93752 | AJ25: 78340.13027 | AK25: 40416.65623 | AL25: 39318.27713 | AM25: 329853.8186 | AN25: 40991.25905 | AO25: -38253.09277 | AP25: 385773.0345 | AQ25: 144934.9968 | AT25: =SUM(G25:R25) -> 1120758.7 | AU25: =SUM(T25:AE25) -> 1159803.387 | AV25: =SUM(AF25:AQ25) -> 1165151.899 | BA25: 23
B26: 635 | BA26: 24
B27: 636 | C27: 872 | D27: Compressor Station Labor & Expenses | BA27: 25
B28: 637 | E28: Utah | G28: 0 | H28: 0 | I28: 0 | J28: 0 | K28: 0 | L28: 0 | M28: 0 | N28: 0 | O28: 0 | P28: 0 | Q28: 0 | R28: 0 | T28: =T282+T536 -> 0 | U28: 0 | V28: 0 | W28: =W282+W536 -> 0 | X28: 0 | Y28: 0 | Z28: 0 | AA28: 0 | AB28: 0 | AC28: 0 | AD28: 0 | AE28: 0 | AF28: =AF282+AF536 -> 0 | AG28: 0 | AH28: 0 | AI28: 0 | AJ28: 0 | AK28: 0 | AL28: 0 | AM28: 0 | AN28: 0 | AO28: 0 | AP28: 0 | AQ28: 0 | AT28: =SUM(G28:R28) -> 0 | AU28: =SUM(T28:AE28) -> 0 | AV28: =SUM(AF28:AQ28) -> 0 | BA28: 26
B29: 638 | E29: Wyoming | G29: 0 | H29: 0 | I29: 0 | J29: 0 | K29: 0 | L29: 0 | M29: 0 | N29: 0 | O29: 0 | P29: 0 | Q29: 0 | R29: 0 | T29: 0 | U29: 0 | V29: 0 | W29: 0 | X29: 0 | Y29: 0 | Z29: 0 | AA29: 0 | AB29: 0 | AC29: 0 | AD29: 0 | AE29: 0 | AF29: =AF283+AF537 -> 0 | AG29: 0 | AH29: 0 | AI29: 0 | AJ29: 0 | AK29: 0 | AL29: 0 | AM29: 0 | AN29: 0 | AO29: 0 | AP29: 0 | AQ29: 0 | AT29: =SUM(G29:R29) -> 0 | AU29: =SUM(T29:AE29) -> 0 | AV29: =SUM(AF29:AQ29) -> 0 | BA29: 27
B30: 639 | E30: Total | G30: =SUM(G28:G29) -> 0 | H30: =SUM(H28:H29) -> 0 | I30: 0 | J30: 0 | K30: 0 | L30: 0 | M30: 0 | N30: 0 | O30: 0 | P30: 0 | Q30: 0 | R30: 0 | T30: =SUM(T28:T29) -> 0 | U30: 0 | V30: 0 | W30: =SUM(W28:W29) -> 0 | X30: 0 | Y30: 0 | Z30: 0 | AA30: 0 | AB30: 0 | AC30: 0 | AD30: 0 | AE30: 0 | AF30: =SUM(AF28:AF29) -> 0 | AG30: 0 | AH30: 0 | AI30: 0 | AJ30: 0 | AK30: 0 | AL30: 0 | AM30: 0 | AN30: 0 | AO30: 0 | AP30: 0 | AQ30: 0 | AT30: =SUM(G30:R30) -> 0 | AU30: =SUM(T30:AE30) -> 0 | AV30: =SUM(AF30:AQ30) -> 0 | BA30: 28
B31: 640 | BA31: 29
B32: 641 | C32: 873 | D32: Compressor Station Fuel & Power | BA32: 30
B33: 642 | E33: Utah | G33: 0 | H33: 0 | I33: 0 | J33: 0 | K33: 0 | L33: 0 | M33: 1306.26 | N33: -1306.26 | O33: 0 | P33: 0 | Q33: 0 | R33: 0 | T33: =T287+T541 -> 0 | U33: 0 | V33: 0 | W33: =W287+W541 -> 0 | X33: 0 | Y33: 0 | Z33: 1146.89628 | AA33: -1146.89628 | AB33: 0 | AC33: 0 | AD33: 0 | AE33: 0 | AF33: =AF287+AF541 -> 0 | AG33: 0 | AH33: 0 | AI33: 0 | AJ33: 0 | AK33: 0 | AL33: 1032.206652 | AM33: -1032.206652 | AN33: 0 | AO33: 0 | AP33: 0 | AQ33: 0 | AT33: =SUM(G33:R33) -> 0 | AU33: =SUM(T33:AE33) -> 0 | AV33: =SUM(AF33:AQ33) -> 0 | BA33: 31
B34: 643 | E34: Wyoming | G34: 0 | H34: 0 | I34: 0 | J34: 0 | K34: 0 | L34: 0 | M34: 0 | N34: 0 | O34: 0 | P34: 10.54 | Q34: 28.15 | R34: 4.83 | T34: =T288+T542 -> 0 | U34: 0 | V34: 0 | W34: 0 | X34: 0 | Y34: 0 | Z34: 0 | AA34: 0 | AB34: 0 | AC34: 9.25412 | AD34: 24.7157 | AE34: 4.24074 | AF34: =AF288+AF542 -> 0 | AG34: 0 | AH34: 0 | AI34: 0 | AJ34: 0 | AK34: 0 | AL34: 0 | AM34: 0 | AN34: 0 | AO34: 8.328708 | AP34: 22.24413 | AQ34: 3.816666 | AT34: =SUM(G34:R34) -> 43.52 | AU34: =SUM(T34:AE34) -> 38.21056 | AV34: =SUM(AF34:AQ34) -> 34.389504 | BA34: 32
B35: 644 | E35: Total | G35: =SUM(G33:G34) -> 0 | H35: =SUM(H33:H34) -> 0 | I35: 0 | J35: 0 | K35: 0 | L35: 0 | M35: 1306.26 | N35: -1306.26 | O35: 0 | P35: 10.54 | Q35: 28.15 | R35: 4.83 | T35: =SUM(T33:T34) -> 0 | U35: 0 | V35: 0 | W35: =SUM(W33:W34) -> 0 | X35: 0 | Y35: 0 | Z35: 1146.89628 | AA35: -1146.89628 | AB35: 0 | AC35: 9.25412 | AD35: 24.7157 | AE35: 4.24074 | AF35: =SUM(AF33:AF34) -> 0 | AG35: 0 | AH35: 0 | AI35: 0 | AJ35: 0 | AK35: 0 | AL35: 1032.206652 | AM35: -1032.206652 | AN35: 0 | AO35: 8.328708 | AP35: 22.24413 | AQ35: 3.816666 | AT35: =SUM(G35:R35) -> 43.52 | AU35: =SUM(T35:AE35) -> 38.21056 | AV35: =SUM(AF35:AQ35) -> 34.389504 | BA35: 33
B36: 645 | BA36: 34
B37: 646 | C37: 874 | D37: Mains & Service Expenses | BA37: 35
B38: 647 | E38: Utah | G38: 1224056.44 | H38: 1428604.39 | I38: 1523369.19 | J38: 1783849.68 | K38: 1675483.29 | L38: 1940778.12 | M38: 1691906.91 | N38: 1763607.31 | O38: 1916228.65 | P38: 1586068.8 | Q38: 1479672.68 | R38: 1533402.4 | T38: =T292+T546 -> 1201774.024 | U38: 1402598.434 | V38: 1495638.159 | W38: =W292+W546 -> 1751376.928 | X38: 1644983.212 | Y38: 1905448.682 | Z38: 1661107.861 | AA38: 1731503.045 | AB38: 1881346.104 | AC38: 1557196.401 | AD38: 1452737.09 | AE38: 1505488.727 | AF38: =AF292+AF546 -> 1183372.615 | AG38: 1381122.028 | AH38: 1472737.141 | AI38: 1724560.071 | AJ38: 1619795.442 | AK38: 1876272.698 | AL38: 1635673.192 | AM38: 1704990.494 | AN38: 1852539.176 | AO38: 1533352.811 | AP38: 1430492.967 | AQ38: 1482436.878 | AT38: =SUM(G38:R38) -> 19547027.86 | AU38: =SUM(T38:AE38) -> 19191198.67 | AV38: =SUM(AF38:AQ38) -> 18897345.51 | BA38: 36
B39: 648 | E39: Wyoming | G39: 31947.32 | H39: 27095.04 | I39: 38457.78 | J39: 34079.47 | K39: 50737.13 | L39: 61899.9 | M39: 44390.74 | N39: 59433.1 | O39: 46048.21 | P39: 54025.16 | Q39: 58676.09 | R39: 35980.47 | T39: =T293+T547 -> 31365.759 | U39: 26601.80869 | V39: 37757.70422 | W39: 33459.09588 | X39: 49813.52401 | Y39: 60773.08975 | Z39: 43582.6621 | AA39: 58351.19475 | AB39: 45209.95993 | AC39: 53041.69954 | AD39: 57607.96517 | AE39: 35325.49055 | AF39: =AF293+AF547 -> 30885.49055 | AG39: 26194.48523 | AH39: 37179.56313 | AI39: 32946.77452 | AJ39: 49050.78576 | AK39: 59842.54004 | AL39: 42915.33001 | AM39: 57457.7288 | AN39: 44517.71087 | AO39: 52229.53188 | AP39: 56725.87945 | AQ39: 34784.5912 | AT39: =SUM(G39:R39) -> 542770.41 | AU39: =SUM(T39:AE39) -> 532889.9536 | AV39: =SUM(AF39:AQ39) -> 524730.4114 | BA39: 37
B40: 649 | E40: Total | G40: =SUM(G38:G39) -> 1256003.76 | H40: =SUM(H38:H39) -> 1455699.43 | I40: 1561826.97 | J40: 1817929.15 | K40: 1726220.42 | L40: 2002678.02 | M40: 1736297.65 | N40: 1823040.41 | O40: 1962276.86 | P40: 1640093.96 | Q40: 1538348.77 | R40: 1569382.87 | T40: =SUM(T38:T39) -> 1233139.783 | U40: 1429200.243 | V40: 1533395.864 | W40: =SUM(W38:W39) -> 1784836.024 | X40: 1694796.736 | Y40: 1966221.772 | Z40: 1704690.523 | AA40: 1789854.24 | AB40: 1926556.064 | AC40: 1610238.101 | AD40: 1510345.055 | AE40: 1540814.218 | AF40: =SUM(AF38:AF39) -> 1214258.105 | AG40: 1407316.513 | AH40: 1509916.704 | AI40: 1757506.845 | AJ40: 1668846.228 | AK40: 1936115.238 | AL40: 1678588.522 | AM40: 1762448.223 | AN40: 1897056.887 | AO40: 1585582.343 | AP40: 1487218.846 | AQ40: 1517221.47 | AT40: =SUM(G40:R40) -> 20089798.27 | AU40: =SUM(T40:AE40) -> 19724088.62 | AV40: =SUM(AF40:AQ40) -> 19422075.92 | BA40: 38
B41: 650 | BA41: 39
B42: 651 | C42: 875 | D42: Measuring & Regulating Station Expenses | BA42: 40
B43: 652 | E43: Utah | G43: 482506.88 | H43: 336855.93 | I43: 419570.88 | J43: 154240.53 | K43: 193783.91 | L43: 177890.1 | M43: 187793.58 | N43: 214382.81 | O43: 151756.04 | P43: 156329.86 | Q43: 463887.7 | R43: 298147.11 | T43: =T297+T551 -> 495520.1245 | U43: 345940.9581 | V43: 430886.7362 | W43: =W297+W551 -> 158400.4079 | X43: 199010.2757 | Y43: 182687.8085 | Z43: 192858.3861 | AA43: 220164.7295 | AB43: 155848.9111 | AC43: 160546.0873 | AD43: 476398.7839 | AE43: 306188.1585 | AF43: =AF297+AF551 -> 501781.6502 | AG43: 350312.3612 | AH43: 436331.537 | AI43: 160401.9981 | AJ43: 201525.0231 | AK43: 184996.3008 | AL43: 195295.3966 | AM43: 222946.7903 | AN43: 157818.2599 | AO43: 162574.7909 | AP43: 482418.6872 | AQ43: 310057.2345 | AT43: =SUM(G43:R43) -> 3237145.33 | AU43: =SUM(T43:AE43) -> 3324451.367 | AV43: =SUM(AF43:AQ43) -> 3366460.03 | BA43: 41
B44: 653 | E44: Wyoming | G44: 14273.72 | H44: 9951.01 | I44: 12115.08 | J44: 4508.08 | K44: 5296 | L44: 5287.38 | M44: 5536.4 | N44: 6450.65 | O44: 4305.6 | P44: 4681.76 | Q44: 13036.62 | R44: 8778.56 | T44: =T298+T552 -> 14658.68323 | U44: 10219.38944 | V44: 12441.82456 | W44: 4629.663235 | X44: 5438.833493 | Y44: 5429.981011 | Z44: 5685.717098 | AA44: 6624.624484 | AB44: 4421.722335 | AC44: 4808.027397 | AD44: 13388.21856 | AE44: 9015.318381 | AF44: =AF298+AF552 -> 14843.9143 | AG44: 10348.5244 | AH44: 12599.0428 | AI44: 4688.164906 | AJ44: 5507.560057 | AK44: 5498.595713 | AL44: 5757.56335 | AM44: 6708.335023 | AN44: 4477.596409 | AO44: 4868.782925 | AP44: 13557.39569 | AQ44: 9129.238371 | AT44: =SUM(G44:R44) -> 94220.86 | AU44: =SUM(T44:AE44) -> 96762.00322 | AV44: =SUM(AF44:AQ44) -> 97984.71395 | BA44: 42
B45: 654 | E45: Total | G45: =SUM(G43:G44) -> 496780.6 | H45: =SUM(H43:H44) -> 346806.94 | I45: 431685.96 | J45: 158748.61 | K45: 199079.91 | L45: 183177.48 | M45: 193329.98 | N45: 220833.46 | O45: 156061.64 | P45: 161011.62 | Q45: 476924.32 | R45: 306925.67 | T45: =SUM(T43:T44) -> 510178.8077 | U45: 356160.3476 | V45: 443328.5607 | W45: =SUM(W43:W44) -> 163030.0712 | X45: 204449.1092 | Y45: 188117.7895 | Z45: 198544.1032 | AA45: 226789.354 | AB45: 160270.6334 | AC45: 165354.1147 | AD45: 489787.0025 | AE45: 315203.4769 | AF45: =SUM(AF43:AF44) -> 516625.5645 | AG45: 360660.8856 | AH45: 448930.5798 | AI45: 165090.1631 | AJ45: 207032.5832 | AK45: 190494.8966 | AL45: 201052.9599 | AM45: 229655.1253 | AN45: 162295.8563 | AO45: 167443.5738 | AP45: 495976.0829 | AQ45: 319186.4729 | AT45: =SUM(G45:R45) -> 3331366.19 | AU45: =SUM(T45:AE45) -> 3421213.371 | AV45: =SUM(AF45:AQ45) -> 3464444.744 | BA45: 43
B46: 655 | BA46: 44
B47: 656 | C47: 878 | D47: Meter & House Regulator Expenses | BA47: 45
B48: 657 | E48: Utah | G48: 211804.66 | H48: 174065.68 | I48: 197681.77 | J48: 175750.07 | K48: 226213.71 | L48: 185583.2 | M48: 216269.37 | N48: 238401.78 | O48: 228735.48 | P48: 256333.54 | Q48: 254434.86 | R48: 367379.55 | T48: =T302+T556 -> 217250.1052 | U48: 178540.8654 | V48: 202764.1192 | W48: =W302+W556 -> 180268.5607 | X48: 232029.6083 | Y48: 190354.498 | Z48: 221829.6018 | AA48: 244531.0306 | AB48: 234616.2124 | AC48: 262923.8117 | AD48: 260976.3171 | AE48: 376824.787 | AF48: =AF302+AF556 -> 221645.0027 | AG48: 182152.6879 | AH48: 206865.9701 | AI48: 183915.3338 | AJ48: 236723.4903 | AK48: 194205.3063 | AL48: 226317.141 | AM48: 249477.8122 | AN48: 239362.4205 | AO48: 268242.6731 | AP48: 266255.7813 | AQ48: 384447.8274 | AT48: =SUM(G48:R48) -> 2732653.67 | AU48: =SUM(T48:AE48) -> 2802909.517 | AV48: =SUM(AF48:AQ48) -> 2859611.447 | BA48: 46
B49: 658 | E49: Wyoming | G49: 15391.38 | H49: 14318.65 | I49: 23770.72 | J49: 15953.72 | K49: 11304.14 | L49: 16131.46 | M49: 15928.2 | N49: 20885.31 | O49: 16642.11 | P49: 18996.97 | Q49: 18378.63 | R49: 28340.76 | T49: =T303+T557 -> 15787.08856 | U49: 14686.77894 | V49: 24381.85931 | W49: 16363.88618 | X49: 11594.76663 | Y49: 16546.19583 | Z49: 16337.71007 | AA49: 21422.26613 | AB49: 17069.97452 | AC49: 19485.37738 | AD49: 18851.14001 | AE49: 29069.3939 | AF49: =AF303+AF557 -> 16106.45612 | AG49: 14983.8876 | AH49: 24875.09623 | AI49: 16694.92217 | AJ49: 11829.32491 | AK49: 16880.91988 | AL49: 16668.21652 | AM49: 21855.63147 | AN49: 17415.29443 | AO49: 19879.5601 | AP49: 19232.49232 | AQ49: 29657.45809 | AT49: =SUM(G49:R49) -> 216042.05 | AU49: =SUM(T49:AE49) -> 221596.4375 | AV49: =SUM(AF49:AQ49) -> 226079.2598 | BA49: 47
B50: 659 | E50: Total | G50: =SUM(G48:G49) -> 227196.04 | H50: =SUM(H48:H49) -> 188384.33 | I50: 221452.49 | J50: 191703.79 | K50: 237517.85 | L50: 201714.66 | M50: 232197.57 | N50: 259287.09 | O50: 245377.59 | P50: 275330.51 | Q50: 272813.49 | R50: 395720.31 | T50: =SUM(T48:T49) -> 233037.1938 | U50: 193227.6443 | V50: 227145.9785 | W50: =SUM(W48:W49) -> 196632.4468 | X50: 243624.3749 | Y50: 206900.6938 | Z50: 238167.3119 | AA50: 265953.2967 | AB50: 251686.1869 | AC50: 282409.189 | AD50: 279827.4571 | AE50: 405894.1809 | AF50: =SUM(AF48:AF49) -> 237751.4589 | AG50: 197136.5755 | AH50: 231741.0663 | AI50: 200610.256 | AJ50: 248552.8152 | AK50: 211086.2262 | AL50: 242985.3575 | AM50: 271333.4436 | AN50: 256777.7149 | AO50: 288122.2332 | AP50: 285488.2737 | AQ50: 414105.2855 | AT50: =SUM(G50:R50) -> 2948695.72 | AU50: =SUM(T50:AE50) -> 3024505.955 | AV50: =SUM(AF50:AQ50) -> 3085690.706 | BA50: 48
B51: 660 | BA51: 49
B52: 661 | C52: 879 | D52: Customer Installations Expenses | BA52: 50
B53: 662 | E53: Utah | G53: 170627.09 | H53: 139528.15 | I53: 167454.62 | J53: 135177.73 | K53: 156370.1 | L53: 137401.27 | M53: 144844.22 | N53: 146210.95 | O53: 148210.94 | P53: 166782.62 | Q53: 192311.26 | R53: 236403.58 | T53: =T307+T561 -> 175213.41 | U53: 143278.5553 | V53: 171955.6665 | W53: =W307+W561 -> 138811.1995 | X53: 160573.2035 | Y53: 141094.5064 | Z53: 148737.517 | AA53: 150140.9836 | AB53: 152194.7317 | AC53: 171265.6037 | AD53: 197480.4331 | AE53: 242757.9195 | AF53: =AF307+AF561 -> 179551.2193 | AG53: 146825.7442 | AH53: 176212.823 | AI53: 142247.7887 | AJ53: 164548.561 | AK53: 144587.6242 | AL53: 152419.855 | AM53: 153858.0676 | AN53: 155962.661 | AO53: 175505.676 | AP53: 202369.5137 | AQ53: 248767.9479 | AT53: =SUM(G53:R53) -> 1941322.53 | AU53: =SUM(T53:AE53) -> 1993503.73 | AV53: =SUM(AF53:AQ53) -> 2042857.481 | BA53: 51
B54: 663 | E54: Wyoming | F54: =G54/G55 -> 0.02102016797 | G54: 3663.62 | H54: 6315.57 | I54: 4754.41 | J54: 4590.27 | K54: 5467.24 | L54: 1677.58 | M54: 3138.35 | N54: 3518.78 | O54: 3152.74 | P54: 4175.8 | Q54: 8344.3 | R54: 11660.12 | T54: =T308+T562 -> 3762.095181 | U54: 6485.32748 | V54: 4882.204745 | W54: 4713.652793 | X54: 5614.195046 | Y54: 1722.672011 | Z54: 3222.706343 | AA54: 3613.361997 | AB54: 3237.483134 | AC54: 4288.04217 | AD54: 8568.588122 | AE54: 11973.53472 | AF54: =AF308+AF562 -> 3855.234466 | AG54: 6645.886619 | AH54: 5003.074908 | AI54: 4830.350066 | AJ54: 5753.187306 | AK54: 1765.320703 | AL54: 3302.491821 | AM54: 3702.819051 | AN54: 3317.634446 | AO54: 4394.202478 | AP54: 8780.723151 | AQ54: 12269.967 | AT54: =SUM(G54:R54) -> 60458.78 | AU54: =SUM(T54:AE54) -> 62083.86374 | AV54: =SUM(AF54:AQ54) -> 63620.89201 | BA54: 52
B55: 664 | E55: Total | G55: =SUM(G53:G54) -> 174290.71 | H55: =SUM(H53:H54) -> 145843.72 | I55: 172209.03 | J55: 139768 | K55: 161837.34 | L55: 139078.85 | M55: 147982.57 | N55: 149729.73 | O55: 151363.68 | P55: 170958.42 | Q55: 200655.56 | R55: 248063.7 | T55: =SUM(T53:T54) -> 178975.5051 | U55: 149763.8828 | V55: 176837.8712 | W55: =SUM(W53:W54) -> 143524.8523 | X55: 166187.3985 | Y55: 142817.1785 | Z55: 151960.2233 | AA55: 153754.3456 | AB55: 155432.2149 | AC55: 175553.6458 | AD55: 206049.0213 | AE55: 254731.4542 | AF55: =SUM(AF53:AF54) -> 183406.4538 | AG55: 153471.6308 | AH55: 181215.8979 | AI55: 147078.1388 | AJ55: 170301.7483 | AK55: 146352.9449 | AL55: 155722.3468 | AM55: 157560.8867 | AN55: 159280.2954 | AO55: 179899.8785 | AP55: 211150.2368 | AQ55: 261037.9149 | AT55: =SUM(G55:R55) -> 2001781.31 | AU55: =SUM(T55:AE55) -> 2055587.593 | AV55: =SUM(AF55:AQ55) -> 2106478.374 | BA55: 53
B56: 665 | BA56: 54
B57: 666 | C57: 880 | D57: Other Expenses | BA57: 55
B58: 667 | E58: Utah | G58: 1021194.55 | H58: 1358863.78 | I58: 2171929.16 | J58: 1408930.27 | K58: 1848073.69 | L58: 1323032 | M58: 1902229.12 | N58: 1893687.81 | O58: 1454697.76 | P58: 2065417.63 | Q58: 1810874.8 | R58: 1556569.36 | T58: =T312+T566 -> 1035566.577 | U58: 1377988.076 | V58: 2202496.327 | W58: =W312+W566 -> 1428759.188 | X58: 1874082.999 | Y58: 1341652.009 | Z58: 1929000.598 | AA58: 1920339.08 | AB58: 1475170.798 | AC58: 2094485.781 | AD58: 1836360.581 | AE58: 1578476.113 | AF58: =AF312+AF566 -> 1034297.392 | AG58: 1376299.222 | AH58: 2199796.96 | AI58: 1427008.11 | AJ58: 1871786.134 | AK58: 1340007.688 | AL58: 1926636.427 | AM58: 1917985.524 | AN58: 1473362.838 | AO58: 2091918.792 | AP58: 1834109.949 | AQ58: 1576541.542 | AT58: =SUM(G58:R58) -> 19815499.93 | AU58: =SUM(T58:AE58) -> 20094378.13 | AV58: =SUM(AF58:AQ58) -> 20069750.58 | BA58: 56
B59: 668 | E59: Wyoming | G59: 112037.41 | H59: 95748.18 | I59: 174949.64 | J59: 123490.34 | K59: 116481.32 | L59: 105250.84 | M59: 93472.67 | N59: 99703.84 | O59: 63666.7 | P59: 111188.69 | Q59: 123362.52 | R59: 107260.7 | T59: =T313+T567 -> 113614.1954 | U59: 97095.715 | V59: 177411.8358 | W59: 125228.311 | X59: 118120.6478 | Y59: 106732.113 | Z59: 94788.18007 | AA59: 101107.0459 | AB59: 64562.72859 | AC59: 112753.5307 | AD59: 125098.692 | AE59: 108770.2592 | AF59: =AF313+AF567 -> 113474.9505 | AG59: 96976.71507 | AH59: 177194.4009 | AI59: 125074.8319 | AJ59: 117975.8799 | AK59: 106601.3027 | AL59: 94672.00824 | AM59: 100983.1297 | AN59: 64483.60089 | AO59: 112615.3407 | AP59: 124945.3718 | AQ59: 108636.951 | AT59: =SUM(G59:R59) -> 1326612.85 | AU59: =SUM(T59:AE59) -> 1345283.254 | AV59: =SUM(AF59:AQ59) -> 1343634.483 | BA59: 57
B60: 669 | E60: Total | G60: =SUM(G58:G59) -> 1133231.96 | H60: =SUM(H58:H59) -> 1454611.96 | I60: 2346878.8 | J60: 1532420.61 | K60: 1964555.01 | L60: 1428282.84 | M60: 1995701.79 | N60: 1993391.65 | O60: 1518364.46 | P60: 2176606.32 | Q60: 1934237.32 | R60: 1663830.06 | T60: =SUM(T58:T59) -> 1149180.772 | U60: 1475083.791 | V60: 2379908.162 | W60: =SUM(W58:W59) -> 1553987.499 | X60: 1992203.647 | Y60: 1448384.122 | Z60: 2023788.778 | AA60: 2021446.126 | AB60: 1539733.527 | AC60: 2207239.312 | AD60: 1961459.273 | AE60: 1687246.372 | AF60: =SUM(AF58:AF59) -> 1147772.343 | AG60: 1473275.937 | AH60: 2376991.361 | AI60: 1552082.942 | AJ60: 1989762.014 | AK60: 1446608.991 | AL60: 2021308.435 | AM60: 2018968.654 | AN60: 1537846.439 | AO60: 2204534.132 | AP60: 1959055.321 | AQ60: 1685178.493 | AT60: =SUM(G60:R60) -> 21142112.78 | AU60: =SUM(T60:AE60) -> 21439661.38 | AV60: =SUM(AF60:AQ60) -> 21413385.06 | BA60: 58
B61: 670 | BA61: 59
B62: 671 | C62: 881 | D62: Rents | BA62: 60
B63: 672 | E63: Utah | G63: 1936.26 | H63: 1501.93 | I63: 30462.73 | J63: 10592.7 | K63: 11723.72 | L63: 11461.89 | M63: 11726.25 | N63: 49522.72 | O63: 12130.52 | P63: 12287.99 | Q63: 11048.25 | R63: 13765.54 | T63: =T317+T571 -> 1993.708976 | U63: 1546.492373 | V63: 31366.56143 | W63: =W317+W571 -> 10906.98619 | X63: 12071.56363 | Y63: 11801.96512 | Z63: 12074.1687 | AA63: 50992.06273 | AB63: 12490.43342 | AC63: 12652.57556 | AD63: 11376.05239 | AE63: 14173.96458 | AF63: =AF317+AF571 -> 1985.23981 | AG63: 1539.922959 | AH63: 31233.318 | AI63: 10860.65391 | AJ63: 12020.28429 | AK63: 11751.83102 | AL63: 12022.87829 | AM63: 50775.45125 | AN63: 12437.37474 | AO63: 12598.82812 | AP63: 11327.72754 | AQ63: 14113.75436 | AT63: =SUM(G63:R63) -> 178160.5 | AU63: =SUM(T63:AE63) -> 183446.5351 | AV63: =SUM(AF63:AQ63) -> 182667.2643 | BA63: 61
B64: 673 | E64: Wyoming | G64: 64.01 | H64: 49.66 | I64: 33.9 | J64: 30.44 | K64: 67.82 | L64: 59.14 | M64: 67.9 | N64: 83.4 | O64: 81.27 | P64: 84.63 | Q64: 44.49 | R64: 132.42 | T64: =T318+T572 -> 65.90918139 | U64: 51.13341584 | V64: 34.90581548 | W64: 31.34315703 | X64: 69.83222437 | Y64: 60.89468813 | Z64: 69.91459798 | AA64: 85.87448411 | AB64: 83.68128686 | AC64: 87.1409783 | AD64: 45.81002156 | AE64: 136.3489111 | AF64: =AF318+AF572 -> 65.62920281 | AG64: 50.9162039 | AH64: 34.7575375 | AI64: 31.21001302 | AJ64: 69.53558092 | AK64: 60.63601085 | AL64: 69.61760461 | AM64: 85.50969402 | AN64: 83.32581335 | AO64: 86.77080822 | AP64: 45.61542311 | AQ64: 135.7697084 | AT64: =SUM(G64:R64) -> 799.08 | AU64: =SUM(T64:AE64) -> 822.7887622 | AV64: =SUM(AF64:AQ64) -> 819.2936007 | BA64: 62
B65: 674 | E65: Total | G65: =SUM(G63:G64) -> 2000.27 | H65: =SUM(H63:H64) -> 1551.59 | I65: 30496.63 | J65: 10623.14 | K65: 11791.54 | L65: 11521.03 | M65: 11794.15 | N65: 49606.12 | O65: 12211.79 | P65: 12372.62 | Q65: 11092.74 | R65: 13897.96 | T65: =SUM(T63:T64) -> 2059.618158 | U65: 1597.625789 | V65: 31401.46725 | W65: =SUM(W63:W64) -> 10938.32934 | X65: 12141.39586 | Y65: 11862.8598 | Z65: 12144.0833 | AA65: 51077.93722 | AB65: 12574.1147 | AC65: 12739.71654 | AD65: 11421.86241 | AE65: 14310.31349 | AF65: =SUM(AF63:AF64) -> 2050.869013 | AG65: 1590.839162 | AH65: 31268.07554 | AI65: 10891.86392 | AJ65: 12089.81987 | AK65: 11812.46703 | AL65: 12092.4959 | AM65: 50860.96095 | AN65: 12520.70056 | AO65: 12685.59893 | AP65: 11373.34297 | AQ65: 14249.52407 | AT65: =SUM(G65:R65) -> 178959.58 | AU65: =SUM(T65:AE65) -> 184269.3239 | AV65: =SUM(AF65:AQ65) -> 183486.5579 | BA65: 63
B66: 675 | BA66: 64
B67: 676 | C67: 885 | D67: Maintenance Supervision & Engineering | BA67: 65
B68: 677 | E68: Utah | G68: 0 | H68: 0 | I68: 0 | J68: 0 | K68: 0 | L68: 0 | M68: 0 | N68: 0 | O68: 0 | P68: 0 | Q68: 0 | R68: 0 | T68: =T322+T576 -> 0 | U68: 0 | V68: 0 | W68: =W322+W576 -> 0 | X68: 0 | Y68: 0 | Z68: 0 | AA68: 0 | AB68: 0 | AC68: 0 | AD68: 0 | AE68: 0 | AF68: =AF322+AF576 -> 0 | AG68: 0 | AH68: 0 | AI68: 0 | AJ68: 0 | AK68: 0 | AL68: 0 | AM68: 0 | AN68: 0 | AO68: 0 | AP68: 0 | AQ68: 0 | AT68: =SUM(G68:R68) -> 0 | AU68: =SUM(T68:AE68) -> 0 | AV68: =SUM(AF68:AQ68) -> 0 | BA68: 66
B69: 678 | E69: Wyoming | G69: 0 | H69: 0 | I69: 0 | J69: 0 | K69: 0 | L69: 0 | M69: 0 | N69: 0 | O69: 0 | P69: 0 | Q69: 0 | R69: 0 | T69: =T323+T577 -> 0 | U69: 0 | V69: 0 | W69: 0 | X69: 0 | Y69: 0 | Z69: 0 | AA69: 0 | AB69: 0 | AC69: 0 | AD69: 0 | AE69: 0 | AF69: =AF323+AF577 -> 0 | AG69: 0 | AH69: 0 | AI69: 0 | AJ69: 0 | AK69: 0 | AL69: 0 | AM69: 0 | AN69: 0 | AO69: 0 | AP69: 0 | AQ69: 0 | AT69: =SUM(G69:R69) -> 0 | AU69: =SUM(T69:AE69) -> 0 | AV69: =SUM(AF69:AQ69) -> 0 | BA69: 67
B70: 679 | E70: Total | G70: =SUM(G68:G69) -> 0 | H70: =SUM(H68:H69) -> 0 | I70: 0 | J70: 0 | K70: 0 | L70: 0 | M70: 0 | N70: 0 | O70: 0 | P70: 0 | Q70: 0 | R70: 0 | T70: =SUM(T68:T69) -> 0 | U70: 0 | V70: 0 | W70: =SUM(W68:W69) -> 0 | X70: 0 | Y70: 0 | Z70: 0 | AA70: 0 | AB70: 0 | AC70: 0 | AD70: 0 | AE70: 0 | AF70: =SUM(AF68:AF69) -> 0 | AG70: 0 | AH70: 0 | AI70: 0 | AJ70: 0 | AK70: 0 | AL70: 0 | AM70: 0 | AN70: 0 | AO70: 0 | AP70: 0 | AQ70: 0 | AT70: =SUM(G70:R70) -> 0 | AU70: =SUM(T70:AE70) -> 0 | AV70: =SUM(AF70:AQ70) -> 0 | BA70: 68
B71: 680 | BA71: 69
B72: 681 | C72: 886 | D72: Maintenance of Structures & Improvements | BA72: 70
B73: 682 | E73: Utah | G73: 0 | H73: 0 | I73: 0 | J73: 0 | K73: 0 | L73: 0 | M73: 0 | N73: 0 | O73: 0 | P73: 0 | Q73: 0 | R73: 0 | T73: =T327+T581 -> 0 | U73: 0 | V73: 0 | W73: =W327+W581 -> 0 | X73: 0 | Y73: 0 | Z73: 0 | AA73: 0 | AB73: 0 | AC73: 0 | AD73: 0 | AE73: 0 | AF73: =AF327+AF581 -> 0 | AG73: 0 | AH73: 0 | AI73: 0 | AJ73: 0 | AK73: 0 | AL73: 0 | AM73: 0 | AN73: 0 | AO73: 0 | AP73: 0 | AQ73: 0 | AT73: =SUM(G73:R73) -> 0 | AU73: =SUM(T73:AE73) -> 0 | AV73: =SUM(AF73:AQ73) -> 0 | BA73: 71
B74: 683 | E74: Wyoming | G74: 0 | H74: 0 | I74: 0 | J74: 0 | K74: 0 | L74: 0 | M74: 0 | N74: 0 | O74: 0 | P74: 0 | Q74: 0 | R74: 0 | T74: =T328+T582 -> 0 | U74: 0 | V74: 0 | W74: 0 | X74: 0 | Y74: 0 | Z74: 0 | AA74: 0 | AB74: 0 | AC74: 0 | AD74: 0 | AE74: 0 | AF74: =AF328+AF582 -> 0 | AG74: 0 | AH74: 0 | AI74: 0 | AJ74: 0 | AK74: 0 | AL74: 0 | AM74: 0 | AN74: 0 | AO74: 0 | AP74: 0 | AQ74: 0 | AT74: =SUM(G74:R74) -> 0 | AU74: =SUM(T74:AE74) -> 0 | AV74: =SUM(AF74:AQ74) -> 0 | BA74: 72
B75: 684 | E75: Total | G75: =SUM(G73:G74) -> 0 | H75: =SUM(H73:H74) -> 0 | I75: 0 | J75: 0 | K75: 0 | L75: 0 | M75: 0 | N75: 0 | O75: 0 | P75: 0 | Q75: 0 | R75: 0 | T75: =SUM(T73:T74) -> 0 | U75: 0 | V75: 0 | W75: =SUM(W73:W74) -> 0 | X75: 0 | Y75: 0 | Z75: 0 | AA75: 0 | AB75: 0 | AC75: 0 | AD75: 0 | AE75: 0 | AF75: =SUM(AF73:AF74) -> 0 | AG75: 0 | AH75: 0 | AI75: 0 | AJ75: 0 | AK75: 0 | AL75: 0 | AM75: 0 | AN75: 0 | AO75: 0 | AP75: 0 | AQ75: 0 | AT75: =SUM(G75:R75) -> 0 | AU75: =SUM(T75:AE75) -> 0 | AV75: =SUM(AF75:AQ75) -> 0 | BA75: 73
B76: 685 | BA76: 74
B77: 686 | C77: 887 | D77: Maintenance of Mains | BA77: 75
B78: 687 | E78: Utah | G78: 809461.75 | H78: 783976.41 | I78: 834726.09 | J78: 821356.73 | K78: 912573.33 | L78: 817348.06 | M78: 805672.69 | N78: 449366.29 | O78: 810136.65 | P78: 803315.42 | Q78: 664403.53 | R78: 744545.16 | T78: =T332+T586 -> 792419.0907 | U78: 767470.3269 | V78: 817151.5074 | W78: =W332+W586 -> 804063.6301 | X78: 893359.7274 | Y78: 800139.3599 | Z78: 788709.8067 | AA78: 439905.1924 | AB78: 793079.7811 | AC78: 786402.1674 | AD78: 650414.9715 | AE78: 728869.2747 | AF78: =AF332+AF586 -> 763773.9508 | AG78: 739727.0594 | AH78: 787612.316 | AI78: 774997.552 | AJ78: 861065.6868 | AK78: 771215.1402 | AL78: 760198.7537 | AM78: 424003.0696 | AN78: 764410.758 | AO78: 757974.5332 | AP78: 626903.1354 | AQ78: 702521.3958 | AT78: =SUM(G78:R78) -> 9256882.11 | AU78: =SUM(T78:AE78) -> 9061984.836 | AV78: =SUM(AF78:AQ78) -> 8734403.351 | BA78: 76
B79: 688 | E79: Wyoming | F79: =G79/G80 -> 0.001510805891 | G79: 1224.79 | H79: 1960.22 | I79: 1610.85 | J79: 3539.83 | K79: 4126.5 | L79: 7119.57 | M79: 4735.48 | N79: 3466.4 | O79: 1709.96 | P79: 3666.04 | Q79: 1759.77 | R79: 9633.37 | T79: =T333+T587 -> 1199.002891 | U79: 1918.948919 | V79: 1576.934663 | W79: 3465.301319 | X79: 4039.619386 | Y79: 6969.67236 | Z79: 4635.777732 | AA79: 3393.417337 | AB79: 1673.957971 | AC79: 3588.854054 | AD79: 1722.719255 | AE79: 9430.546033 | AF79: =AF333+AF587 -> 1155.660162 | AG79: 1849.580878 | AH79: 1519.930088 | AI79: 3340.03422 | AJ79: 3893.591276 | AK79: 6717.725831 | AL79: 4468.199107 | AM79: 3270.74877 | AN79: 1613.446102 | AO79: 3459.12065 | AP79: 1660.444716 | AQ79: 9089.641437 | AT79: =SUM(G79:R79) -> 44552.78 | AU79: =SUM(T79:AE79) -> 43614.75192 | AV79: =SUM(AF79:AQ79) -> 42038.12324 | BA79: 77
B80: 689 | E80: Total | G80: =SUM(G78:G79) -> 810686.54 | H80: =SUM(H78:H79) -> 785936.63 | I80: 836336.94 | J80: 824896.56 | K80: 916699.83 | L80: 824467.63 | M80: 810408.17 | N80: 452832.69 | O80: 811846.61 | P80: 806981.46 | Q80: 666163.3 | R80: 754178.53 | T80: =SUM(T78:T79) -> 793618.0936 | U80: 769389.2759 | V80: 818728.4421 | W80: =SUM(W78:W79) -> 807528.9314 | X80: 897399.3468 | Y80: 807109.0322 | Z80: 793345.5845 | AA80: 443298.6098 | AB80: 794753.7391 | AC80: 789991.0215 | AD80: 652137.6908 | AE80: 738299.8208 | AF80: =SUM(AF78:AF79) -> 764929.611 | AG80: 741576.6403 | AH80: 789132.2461 | AI80: 778337.5863 | AJ80: 864959.2781 | AK80: 777932.866 | AL80: 764666.9528 | AM80: 427273.8183 | AN80: 766024.2041 | AO80: 761433.6539 | AP80: 628563.5801 | AQ80: 711611.0372 | AT80: =SUM(G80:R80) -> 9301434.89 | AU80: =SUM(T80:AE80) -> 9105599.588 | AV80: =SUM(AF80:AQ80) -> 8776441.474 | BA80: 78
B81: 690 | BA81: 79
B82: 691 | C82: 888 | D82: Maint of Compressor Station Equipment | BA82: 80
B83: 692 | E83: Utah | G83: 241777.47 | H83: 269922.22 | I83: 234845.62 | J83: 250465.88 | K83: 290665.37 | L83: 335034.79 | M83: 304599.15 | N83: 421176.4 | O83: 323618.44 | P83: 250974.17 | Q83: 345974.49 | R83: 367454.45 | T83: =T337+T591 -> 244388.9595 | U83: 272837.7068 | V83: 237382.2371 | W83: =W337+W591 -> 253171.2148 | X83: 293804.908 | Y83: 338653.5715 | Z83: 307889.1897 | AA83: 425725.6152 | AB83: 327113.911 | AC83: 253684.995 | AD83: 349711.4335 | AE83: 371423.403 | AF83: =AF337+AF591 -> 242044.6065 | AG83: 270220.4533 | AH83: 235105.0976 | AI83: 250742.6162 | AJ83: 290986.5221 | AK83: 335404.9653 | AL83: 304935.6973 | AM83: 421641.7519 | AN83: 323976.0015 | AO83: 251251.4679 | AP83: 346356.7524 | AQ83: 367860.4453 | AT83: =SUM(G83:R83) -> 3636508.45 | AU83: =SUM(T83:AE83) -> 3675787.145 | AV83: =SUM(AF83:AQ83) -> 3640526.377 | BA83: 81
B84: 693 | E84: Wyoming | G84: 3720.98 | H84: 4111.28 | I84: 3559.67 | J84: 2959.15 | K84: 3598.37 | L84: 4018.62 | M84: 3886.92 | N84: 3983.61 | O84: 2995.21 | P84: 3758.48 | Q84: 3827.33 | R84: 5220.79 | T84: =T338+T592 -> 3761.17109 | U84: 4155.686803 | V84: 3598.118747 | W84: 2991.112403 | X84: 3637.236754 | Y84: 4062.025962 | Z84: 3928.903443 | AA84: 4026.637812 | AB84: 3027.561895 | AC84: 3799.076135 | AD84: 3868.669799 | AE84: 5277.180854 | AF84: =AF338+AF592 -> 3725.091259 | AG84: 4115.822496 | AH84: 3563.60303 | AI84: 2962.419523 | AJ84: 3602.345789 | AK84: 4023.060117 | AL84: 3891.214604 | AM84: 3988.011435 | AN84: 2998.519366 | AO84: 3762.632692 | AP84: 3831.558763 | AQ84: 5226.558378 | AT84: =SUM(G84:R84) -> 45640.41 | AU84: =SUM(T84:AE84) -> 46133.3817 | AV84: =SUM(AF84:AQ84) -> 45690.83745 | BA84: 82
B85: 694 | E85: Total | G85: =SUM(G83:G84) -> 245498.45 | H85: =SUM(H83:H84) -> 274033.5 | I85: 238405.29 | J85: 253425.03 | K85: 294263.74 | L85: 339053.41 | M85: 308486.07 | N85: 425160.01 | O85: 326613.65 | P85: 254732.65 | Q85: 349801.82 | R85: 372675.24 | T85: =SUM(T83:T84) -> 248150.1306 | U85: 276993.3936 | V85: 240980.3558 | W85: =SUM(W83:W84) -> 256162.3272 | X85: 297442.1447 | Y85: 342715.5974 | Z85: 311818.0931 | AA85: 429752.253 | AB85: 330141.4729 | AC85: 257484.0711 | AD85: 353580.1033 | AE85: 376700.5839 | AF85: =SUM(AF83:AF84) -> 245769.6978 | AG85: 274336.2758 | AH85: 238668.7007 | AI85: 253705.0358 | AJ85: 294588.8679 | AK85: 339428.0254 | AL85: 308826.9119 | AM85: 425629.7634 | AN85: 326974.5209 | AO85: 255014.1005 | AP85: 350188.3111 | AQ85: 373087.0037 | AT85: =SUM(G85:R85) -> 3682148.86 | AU85: =SUM(T85:AE85) -> 3721920.527 | AV85: =SUM(AF85:AQ85) -> 3686217.215 | BA85: 83
B86: 695 | BA86: 84
B87: 696 | C87: 889 | D87: Maint of Meas. & Reg. Station Equipment | BA87: 85
B88: 697 | E88: Utah | G88: 6247.01 | H88: 22042.51 | I88: 41271.27 | J88: 30134.46 | K88: 39338.94 | L88: 33284.09 | M88: 57018.62 | N88: 20079.2 | O88: 26161.02 | P88: 36531.04 | Q88: 25475.78 | R88: 16448.89 | T88: =T342+T596 -> 6387.107714 | U88: 22536.84333 | V88: 42196.83448 | W88: =W342+W596 -> 30810.26634 | X88: 40221.16935 | Y88: 34030.53109 | Z88: 58297.34027 | AA88: 20529.50343 | AB88: 26747.71653 | AC88: 37350.29837 | AD88: 26047.10909 | AE88: 16817.77878 | AF88: =AF342+AF596 -> 6503.640196 | AG88: 22948.02699 | AH88: 42966.71376 | AI88: 31372.39821 | AJ88: 40955.00271 | AK88: 34651.41654 | AL88: 59360.97252 | AM88: 20904.06326 | AN88: 27235.72737 | AO88: 38031.75281 | AP88: 26522.33738 | AQ88: 17124.61837 | AT88: =SUM(G88:R88) -> 354032.83 | AU88: =SUM(T88:AE88) -> 361972.4988 | AV88: =SUM(AF88:AQ88) -> 368576.6701 | BA88: 86
B89: 698 | E89: Wyoming | G89: 193.19 | H89: 681.75 | I89: 1276.44 | J89: 932.02 | K89: 1216.62 | L89: 1029.37 | M89: 1796.96 | N89: 620.96 | O89: 809.12 | P89: 1129.84 | Q89: 787.93 | R89: 508.76 | T89: =T343+T597 -> 197.5225491 | U89: 697.039173 | V89: 1305.065907 | W89: 952.9218189 | X89: 1243.904362 | Y89: 1052.455025 | Z89: 1837.259277 | AA89: 634.8858744 | AB89: 827.2656189 | AC89: 1155.178202 | AD89: 805.6004042 | AE89: 520.1696365 | AF89: =AF343+AF597 -> 201.1263388 | AG89: 709.7566202 | AH89: 1328.876773 | AI89: 970.307833 | AJ89: 1266.599339 | AK89: 1071.657018 | AL89: 1870.779987 | AM89: 646.4693375 | AN89: 842.3590415 | AO89: 1176.254374 | AP89: 820.298546 | AQ89: 529.6601072 | AT89: =SUM(G89:R89) -> 10982.96 | AU89: =SUM(T89:AE89) -> 11229.26785 | AV89: =SUM(AF89:AQ89) -> 11434.14532 | BA89: 87
B90: 699 | E90: Total | G90: =SUM(G88:G89) -> 6440.2 | H90: =SUM(H88:H89) -> 22724.26 | I90: 42547.71 | J90: 31066.48 | K90: 40555.56 | L90: 34313.46 | M90: 58815.58 | N90: 20700.16 | O90: 26970.14 | P90: 37660.88 | Q90: 26263.71 | R90: 16957.65 | T90: =SUM(T88:T89) -> 6584.630263 | U90: 23233.8825 | V90: 43501.90039 | W90: =SUM(W88:W89) -> 31763.18816 | X90: 41465.07371 | Y90: 35082.98611 | Z90: 60134.59955 | AA90: 21164.3893 | AB90: 27574.98215 | AC90: 38505.47657 | AD90: 26852.7095 | AE90: 17337.94842 | AF90: =SUM(AF88:AF89) -> 6704.766535 | AG90: 23657.78361 | AH90: 44295.59053 | AI90: 32342.70604 | AJ90: 42221.60205 | AK90: 35723.07355 | AL90: 61231.75251 | AM90: 21550.5326 | AN90: 28078.08641 | AO90: 39208.00719 | AP90: 27342.63593 | AQ90: 17654.27847 | AT90: =SUM(G90:R90) -> 365015.79 | AU90: =SUM(T90:AE90) -> 373201.7666 | AV90: =SUM(AF90:AQ90) -> 380010.8154 | BA90: 88
B91: 700 | BA91: 89
B92: 701 | C92: 892 | D92: Maintenance of Services | BA92: 90
B93: 702 | E93: Utah | G93: 82715.01 | H93: 78957.95 | I93: 70417.29 | J93: 65440.65 | K93: 81870.99 | L93: 84222.41 | M93: 84217.92 | N93: 102643.18 | O93: 86772.81 | P93: 86064.82 | Q93: 80298.24 | R93: 86058.67 | T93: =T347+T601 -> 84542.72658 | U93: 80702.64851 | V93: 71973.26936 | W93: =W347+W601 -> 66886.66277 | X93: 83680.05665 | Y93: 86083.43492 | Z93: 86078.84571 | AA93: 104911.2404 | AB93: 88690.18997 | AC93: 87966.55583 | AD93: 82072.55429 | AE93: 87960.26994 | AF93: =AF347+AF601 -> 86137.52144 | AG93: 82225.005 | AH93: 73330.95682 | AI93: 68148.39764 | AJ93: 85258.57829 | AK93: 87707.29335 | AL93: 87702.61757 | AM93: 106890.2623 | AN93: 90363.22164 | AO93: 89625.93703 | AP93: 83620.75238 | AQ93: 89619.53256 | AT93: =SUM(G93:R93) -> 989679.94 | AU93: =SUM(T93:AE93) -> 1011548.455 | AV93: =SUM(AF93:AQ93) -> 1030630.076 | BA93: 91
B94: 703 | E94: Wyoming | G94: 5433.53 | H94: 2099.88 | I94: 2384.52 | J94: 2798.84 | K94: 6397.37 | L94: 5764.08 | M94: 4244.66 | N94: 3718.31 | O94: 4186.52 | P94: 4703.58 | Q94: 1144.51 | R94: 2819 | T94: =T348+T602 -> 5553.592282 | U94: 2146.280109 | V94: 2437.209672 | W94: 2860.684716 | X94: 6538.729824 | Y94: 5891.446298 | Z94: 4338.452354 | AA94: 3800.471833 | AB94: 4279.02766 | AC94: 4807.512903 | AD94: 1169.799726 | AE94: 2881.290182 | AF94: =AF348+AF602 -> 5658.35399 | AG94: 2186.767051 | AH94: 2483.184643 | AI94: 2914.648025 | AJ94: 6662.074943 | AK94: 6002.581207 | AL94: 4420.291937 | AM94: 3872.163073 | AN94: 4359.746269 | AO94: 4898.200739 | AP94: 1191.866563 | AQ94: 2935.642188 | AT94: =SUM(G94:R94) -> 45694.8 | AU94: =SUM(T94:AE94) -> 46704.49756 | AV94: =SUM(AF94:AQ94) -> 47585.52063 | BA94: 92
B95: 704 | E95: Total | G95: =SUM(G93:G94) -> 88148.54 | H95: =SUM(H93:H94) -> 81057.83 | I95: 72801.81 | J95: 68239.49 | K95: 88268.36 | L95: 89986.49 | M95: 88462.58 | N95: 106361.49 | O95: 90959.33 | P95: 90768.4 | Q95: 81442.75 | R95: 88877.67 | T95: =SUM(T93:T94) -> 90096.31886 | U95: 82848.92861 | V95: 74410.47903 | W95: =SUM(W93:W94) -> 69747.34749 | X95: 90218.78647 | Y95: 91974.88122 | Z95: 90417.29806 | AA95: 108711.7123 | AB95: 92969.21763 | AC95: 92774.06874 | AD95: 83242.35402 | AE95: 90841.56012 | AF95: =SUM(AF93:AF94) -> 91795.87543 | AG95: 84411.77205 | AH95: 75814.14147 | AI95: 71063.04566 | AJ95: 91920.65324 | AK95: 93709.87456 | AL95: 92122.90951 | AM95: 110762.4254 | AN95: 94722.96791 | AO95: 94524.13777 | AP95: 84812.61894 | AQ95: 92555.17475 | AT95: =SUM(G95:R95) -> 1035374.74 | AU95: =SUM(T95:AE95) -> 1058252.953 | AV95: =SUM(AF95:AQ95) -> 1078215.597 | BA95: 93
B96: 705 | BA96: 94
B97: 706 | C97: 893 | D97: Maintenance of Meters & House Regulators | BA97: 95
B98: 707 | E98: Utah | G98: 94064.94 | H98: 64604.21 | I98: 106819.67 | J98: 49920.92 | K98: 94073.59 | L98: 75025.46 | M98: 69653.17 | N98: 91571.3 | O98: 68966.87 | P98: 76016.49 | Q98: 58163.93 | R98: 94227.72 | T98: =T352+T606 -> 95275.87874 | U98: 65435.888 | V98: 108194.8059 | W98: =W352+W606 -> 50563.57364 | X98: 95284.6401 | Y98: 75991.29527 | Z98: 70549.84545 | AA98: 92750.13704 | AB98: 69854.71041 | AC98: 76995.08322 | AD98: 58912.69948 | AE98: 95440.75428 | AF98: =AF352+AF606 -> 96649.57535 | AG98: 66379.3488 | AH98: 109754.7688 | AI98: 51292.60401 | AJ98: 96658.46303 | AK98: 77086.94493 | AL98: 71567.03977 | AM98: 94087.41726 | AN98: 70861.88221 | AO98: 78105.20559 | AP98: 59762.10834 | AQ98: 96816.82808 | AT98: =SUM(G98:R98) -> 943108.27 | AU98: =SUM(T98:AE98) -> 955249.3115 | AV98: =SUM(AF98:AQ98) -> 969022.1862 | BA98: 96
B99: 708 | E99: Wyoming | G99: 7397.97 | H99: 12388.34 | I99: 17062.23 | J99: 6416.44 | K99: 20993.96 | L99: 11769.75 | M99: 5512.49 | N99: 8840.62 | O99: 17635.3 | P99: 11765.44 | Q99: 6110.13 | R99: 15993.8 | T99: =T353+T607 -> 7493.207274 | U99: 12547.82047 | V99: 17281.87948 | W99: 6499.041613 | X99: 21264.22435 | Y99: 11921.26709 | Z99: 5583.454673 | AA99: 8954.429133 | AB99: 17862.32686 | AC99: 11916.90161 | AD99: 6188.788352 | AE99: 16199.69512 | AF99: =AF353+AF607 -> 7601.245043 | AG99: 12728.73613 | AH99: 17531.05125 | AI99: 6592.745408 | AJ99: 21570.81394 | AK99: 12093.14905 | AL99: 5663.957449 | AM99: 9083.534937 | AN99: 18119.86757 | AO99: 12088.72062 | AP99: 6278.018886 | AQ99: 16433.26385 | AT99: =SUM(G99:R99) -> 141886.47 | AU99: =SUM(T99:AE99) -> 143713.036 | AV99: =SUM(AF99:AQ99) -> 145785.1041 | BA99: 97
B100: 709 | E100: Total | G100: =SUM(G98:G99) -> 101462.91 | H100: =SUM(H98:H99) -> 76992.55 | I100: 123881.9 | J100: 56337.36 | K100: 115067.55 | L100: 86795.21 | M100: 75165.66 | N100: 100411.92 | O100: 86602.17 | P100: 87781.93 | Q100: 64274.06 | R100: 110221.52 | T100: =SUM(T98:T99) -> 102769.086 | U100: 77983.70847 | V100: 125476.6854 | W100: =SUM(W98:W99) -> 57062.61525 | X100: 116548.8644 | Y100: 87912.56236 | Z100: 76133.30012 | AA100: 101704.5662 | AB100: 87717.03727 | AC100: 88911.98483 | AD100: 65101.48783 | AE100: 111640.4494 | AF100: =SUM(AF98:AF99) -> 104250.8204 | AG100: 79108.08493 | AH100: 127285.8201 | AI100: 57885.34942 | AJ100: 118229.277 | AK100: 89180.09397 | AL100: 77230.99722 | AM100: 103170.9522 | AN100: 88981.74979 | AO100: 90193.92621 | AP100: 66040.12722 | AQ100: 113250.0919 | AT100: =SUM(G100:R100) -> 1084994.74 | AU100: =SUM(T100:AE100) -> 1098962.348 | AV100: =SUM(AF100:AQ100) -> 1114807.29 | BA100: 98
B101: 710 | BA101: 99
B102: 711 | C102: 8941 | D102: Maintenance of Communication Equipment | BA102: 100
B103: 712 | E103: Utah | G103: 0 | H103: 0 | I103: 0 | J103: 0 | K103: 0 | L103: 0 | M103: 0 | N103: 0 | O103: 0 | P103: 0 | Q103: 0 | R103: 0 | T103: =T357+T611 -> 0 | U103: 0 | V103: 0 | W103: =W357+W611 -> 0 | X103: 0 | Y103: 0 | Z103: 0 | AA103: 0 | AB103: 0 | AC103: 0 | AD103: 0 | AE103: 0 | AF103: =AF357+AF611 -> 0 | AG103: 0 | AH103: 0 | AI103: 0 | AJ103: 0 | AK103: 0 | AL103: 0 | AM103: 0 | AN103: 0 | AO103: 0 | AP103: 0 | AQ103: 0 | AT103: =SUM(G103:R103) -> 0 | AU103: =SUM(T103:AE103) -> 0 | AV103: =SUM(AF103:AQ103) -> 0 | BA103: 101
B104: 713 | E104: Wyoming | G104: 0 | H104: 0 | I104: 0 | J104: 0 | K104: 0 | L104: 0 | M104: 0 | N104: 0 | O104: 0 | P104: 0 | Q104: 0 | R104: 0 | T104: =T358+T612 -> 0 | U104: 0 | V104: 0 | W104: 0 | X104: 0 | Y104: 0 | Z104: 0 | AA104: 0 | AB104: 0 | AC104: 0 | AD104: 0 | AE104: 0 | AF104: =AF358+AF612 -> 0 | AG104: 0 | AH104: 0 | AI104: 0 | AJ104: 0 | AK104: 0 | AL104: 0 | AM104: 0 | AN104: 0 | AO104: 0 | AP104: 0 | AQ104: 0 | AT104: =SUM(G104:R104) -> 0 | AU104: =SUM(T104:AE104) -> 0 | AV104: =SUM(AF104:AQ104) -> 0 | BA104: 102
B105: 714 | E105: Total | G105: =SUM(G103:G104) -> 0 | H105: =SUM(H103:H104) -> 0 | I105: 0 | J105: 0 | K105: 0 | L105: 0 | M105: 0 | N105: 0 | O105: 0 | P105: 0 | Q105: 0 | R105: 0 | T105: =SUM(T103:T104) -> 0 | U105: 0 | V105: 0 | W105: =SUM(W103:W104) -> 0 | X105: 0 | Y105: 0 | Z105: 0 | AA105: 0 | AB105: 0 | AC105: 0 | AD105: 0 | AE105: 0 | AF105: =SUM(AF103:AF104) -> 0 | AG105: 0 | AH105: 0 | AI105: 0 | AJ105: 0 | AK105: 0 | AL105: 0 | AM105: 0 | AN105: 0 | AO105: 0 | AP105: 0 | AQ105: 0 | AT105: =SUM(G105:R105) -> 0 | AU105: =SUM(T105:AE105) -> 0 | AV105: =SUM(AF105:AQ105) -> 0 | BA105: 103
B106: 715 | BA106: 104
B107: 716 | C107: 8942 | D107: Maintenance of Other Equipment | BA107: 105
B108: 717 | E108: Utah | G108: 0 | H108: 0 | I108: 0 | J108: 0 | K108: 0 | L108: 0 | M108: 0 | N108: 0 | O108: 0 | P108: 0 | Q108: 0 | R108: 0 | T108: =T362+T616 -> 0 | U108: 0 | V108: 0 | W108: =W362+W616 -> 0 | X108: 0 | Y108: 0 | Z108: 0 | AA108: 0 | AB108: 0 | AC108: 0 | AD108: 0 | AE108: 0 | AF108: =AF362+AF616 -> 0 | AG108: 0 | AH108: 0 | AI108: 0 | AJ108: 0 | AK108: 0 | AL108: 0 | AM108: 0 | AN108: 0 | AO108: 0 | AP108: 0 | AQ108: 0 | AT108: =SUM(G108:R108) -> 0 | AU108: =SUM(T108:AE108) -> 0 | AV108: =SUM(AF108:AQ108) -> 0 | BA108: 106
B109: 718 | E109: Wyoming | G109: 0 | H109: 0 | I109: 0 | J109: 0 | K109: 0 | L109: 0 | M109: 0 | N109: 0 | O109: 0 | P109: 0 | Q109: 0 | R109: 0 | T109: =T363+T617 -> 0 | U109: 0 | V109: 0 | W109: 0 | X109: 0 | Y109: 0 | Z109: 0 | AA109: 0 | AB109: 0 | AC109: 0 | AD109: 0 | AE109: 0 | AF109: =AF363+AF617 -> 0 | AG109: 0 | AH109: 0 | AI109: 0 | AJ109: 0 | AK109: 0 | AL109: 0 | AM109: 0 | AN109: 0 | AO109: 0 | AP109: 0 | AQ109: 0 | AT109: =SUM(G109:R109) -> 0 | AU109: =SUM(T109:AE109) -> 0 | AV109: =SUM(AF109:AQ109) -> 0 | BA109: 107
B110: 719 | E110: Total | G110: =SUM(G108:G109) -> 0 | H110: =SUM(H108:H109) -> 0 | I110: 0 | J110: 0 | K110: 0 | L110: 0 | M110: 0 | N110: 0 | O110: 0 | P110: 0 | Q110: 0 | R110: 0 | T110: =SUM(T108:T109) -> 0 | U110: 0 | V110: 0 | W110: =SUM(W108:W109) -> 0 | X110: 0 | Y110: 0 | Z110: 0 | AA110: 0 | AB110: 0 | AC110: 0 | AD110: 0 | AE110: 0 | AF110: =SUM(AF108:AF109) -> 0 | AG110: 0 | AH110: 0 | AI110: 0 | AJ110: 0 | AK110: 0 | AL110: 0 | AM110: 0 | AN110: 0 | AO110: 0 | AP110: 0 | AQ110: 0 | AT110: =SUM(G110:R110) -> 0 | AU110: =SUM(T110:AE110) -> 0 | AV110: =SUM(AF110:AQ110) -> 0 | BA110: 108
B111: 720 | BA111: 109
B112: 721 | C112: System Total Distribution O&M Expenses | BA112: 110
B113: 722 | D113: Utah Distribution O&M Expenses | G113: =G18+G23+G28+G33+G38+G43+G48+G53+G58+G63+G68+G73+G78+G83+G88+G93+G98+G103+G108 -> 5444006.21 | H113: =H18+H23+H28+H33+H38+H43+H48+H53+H58+H63+H68+H73+H78+H83+H88+H93+H98+H103+H108 -> 5339283 | I113: 6481388.26 | J113: 5317462.87 | K113: 6205243.15 | L113: 5777173.39 | M113: 6246824.17 | N113: 6446525.67 | O113: 5937562.58 | P113: 6017607.77 | Q113: 6378571.82 | R113: 6156985.83 | T113: =T18+T23+T28+T33+T38+T43+T48+T53+T58+T63+T68+T73+T78+T83+T88+T93+T98+T103+T108 -> 5485470.779 | U113: 5362508.162 | V113: 6518202.243 | W113: 5320395.016 | X113: 6227291.409 | Y113: 5786494.9 | Z113: 6274189.107 | AA113: 6493863.742 | AB113: 5951592.982 | AC113: 6040749.387 | AD113: 6428658.348 | AE113: 6195886.86 | AF113: =AF18+AF23+AF28+AF33+AF38+AF43+AF48+AF53+AF58+AF63+AF68+AF73+AF78+AF83+AF88+AF93+AF98+AF103+AF108 -> 5480834.203 | AG113: 5340341.113 | AH113: 6495173.2 | AI113: 5282354.517 | AJ113: 6195484.195 | AK113: 5752699.192 | AL113: 6248296.874 | AM113: 6480818.699 | AN113: 5920416.691 | AO113: 6012817.758 | AP113: 6414285.881 | AQ113: 6180802.104 | AT113: =SUM(G113:R113) -> 71748634.72 | AU113: =SUM(T113:AE113) -> 72085302.94 | AV113: =SUM(AF113:AQ113) -> 71804324.43 | BA113: 111
B114: 723 | D114: Wyoming Distribution O&M Expenses | G114: 259828.24 | H114: 220671.94 | I114: 324506.18 | J114: 230596.41 | K114: 271733.25 | L114: 260482.41 | M114: 231306.84 | N114: 258259.82 | O114: 208296.11 | P114: 261037.26 | Q114: 287345.73 | R114: 278738.11 | T114: =T19+T24+T29+T34+T39+T44+T49+T54+T59+T64+T69+T74+T79+T84+T89+T94+T99+T104+T109 -> 264142.448 | U114: 224129.2247 | V114: 329162.4815 | W114: 233562.5771 | X114: 274996.0365 | Y114: 263019.9426 | Z114: 234267.6144 | AA114: 261194.3203 | AB114: 210927.5485 | AC114: 264055.3645 | AD114: 290959.1418 | AE114: 282800.8846 | AF114: =AF19+AF24+AF29+AF34+AF39+AF44+AF49+AF54+AF59+AF64+AF69+AF74+AF79+AF84+AF89+AF94+AF99+AF104+AF109 -> 265916.4593 | AG114: 225486.8575 | AH114: 330512.7086 | AI114: 234218.9048 | AJ114: 275990.5318 | AK114: 263456.8385 | AL114: 235212.6571 | AM114: 262061.8382 | AN114: 212115.4399 | AO114: 264889.8887 | AP114: 292008.2713 | AQ114: 284323.3085 | AT114: =SUM(G114:R114) -> 3092802.3 | AU114: =SUM(T114:AE114) -> 3133217.584 | AV114: =SUM(AF114:AQ114) -> 3146193.704 | BA114: 112
B115: 724 | BA115: 113
B116: 725 | D116: System Total Distribution O&M Expenses | G116: =G20+G25+G30+G35+G40+G45+G50+G55+G60+G65+G70+G75+G80+G85+G90+G95+G100+G105+G110 -> 5703834.45 | H116: 5559954.94 | I116: 6805894.44 | J116: 5548059.28 | K116: 6476976.4 | L116: 6037655.8 | M116: 6478131.01 | N116: 6704785.49 | O116: 6145858.69 | P116: 6278645.03 | Q116: 6665917.55 | R116: 6435723.94 | T116: =T20+T25+T30+T35+T40+T45+T50+T55+T60+T65+T70+T75+T80+T85+T90+T95+T100+T105+T110 -> 5749613.227 | U116: 5586637.387 | V116: 6847364.724 | W116: 5553957.593 | X116: 6502287.446 | Y116: 6049514.842 | Z116: 6508456.722 | AA116: 6755058.063 | AB116: 6162520.531 | AC116: 6304804.751 | AD116: 6719617.489 | AE116: 6478687.745 | AF116: =AF20+AF25+AF30+AF35+AF40+AF45+AF50+AF55+AF60+AF65+AF70+AF75+AF80+AF85+AF90+AF95+AF100+AF105+AF110 -> 5746750.663 | AG116: 5565827.971 | AH116: 6825685.909 | AI116: 5516573.421 | AJ116: 6471474.727 | AK116: 6016156.03 | AL116: 6483509.531 | AM116: 6742880.537 | AN116: 6132532.131 | AO116: 6277707.647 | AP116: 6706294.152 | AQ116: 6465125.412 | AT116: =SUM(G116:R116) -> 74841437.02 | AU116: =SUM(T116:AE116) -> 75218520.52 | AV116: =SUM(AF116:AQ116) -> 74950518.13 | BA116: 114
B117: 726 | BA117: 115
B118: 727 | C118: Customer Accounts Expense | BA118: 116
B119: 728 | BA119: 117
B120: 729 | C120: 901 | D120: Supervision | BA120: 118
B121: 730 | E121: Utah | G121: 54323.89 | H121: 51566.07 | I121: 44887.66 | J121: 46986.91 | K121: 59381.35 | L121: 58080.6 | M121: 56029.18 | N121: 57473.17 | O121: 55731.4 | P121: 59365.97 | Q121: 52698.07 | R121: 66531.04 | T121: =T375+T629 -> 55838.45116 | U121: 53003.74257 | V121: 46139.13714 | W121: =W375+W629 -> 48296.91466 | X121: 61036.91418 | Y121: 59699.899 | Z121: 57591.28499 | AA121: 59075.53373 | AB121: 57285.20282 | AC121: 61021.10538 | AD121: 54167.30296 | AE121: 68385.93899 | AF121: =AF375+AF629 -> 57329.02215 | AG121: 54418.64287 | AH121: 47370.79127 | AI121: 49586.16925 | AJ121: 62666.25474 | AK121: 61293.54882 | AL121: 59128.64673 | AM121: 60652.51652 | AN121: 58814.3939 | AO121: 62650.02394 | AP121: 55613.26374 | AQ121: 70211.45698 | AT121: =SUM(G121:R121) -> 663055.31 | AU121: =SUM(T121:AE121) -> 681541.4276 | AV121: =SUM(AF121:AQ121) -> 699734.7309 | BA121: 119
B122: 731 | E122: Wyoming | G122: 1521.57 | H122: 1444.93 | I122: 1258.55 | J122: 1318.71 | K122: 1666.33 | L122: 1631.47 | M122: 1567.11 | N122: 1616.26 | O122: 1561.45 | P122: 1667.99 | Q122: 1476.3 | R122: 1864.37 | T122: =T376+T630 -> 1563.991683 | U122: 1485.214944 | V122: 1293.638631 | W122: 1355.475904 | X122: 1712.787621 | Y122: 1676.955717 | Z122: 1610.801347 | AA122: 1661.321659 | AB122: 1604.983545 | AC122: 1714.493902 | AD122: 1517.459546 | AE122: 1916.349017 | AF122: =AF376+AF630 -> 1605.741419 | AG122: 1524.861787 | AH122: 1328.17147 | AI122: 1391.659448 | AJ122: 1758.509368 | AK122: 1721.720955 | AL122: 1653.800637 | AM122: 1705.669556 | AN122: 1647.827533 | AO122: 1760.261197 | AP122: 1557.967137 | AQ122: 1967.504702 | AT122: =SUM(G122:R122) -> 18595.04 | AU122: =SUM(T122:AE122) -> 19113.47352 | AV122: =SUM(AF122:AQ122) -> 19623.69521 | BA122: 120
B123: 732 | E123: Total | G123: =SUM(G121:G122) -> 55845.46 | H123: =SUM(H121:H122) -> 53011 | I123: 46146.21 | J123: 48305.62 | K123: 61047.68 | L123: 59712.07 | M123: 57596.29 | N123: 59089.43 | O123: 57292.85 | P123: 61033.96 | Q123: 54174.37 | R123: 68395.41 | T123: =SUM(T121:T122) -> 57402.44284 | U123: 54488.95752 | V123: 47432.77577 | W123: =SUM(W121:W122) -> 49652.39056 | X123: 62749.7018 | Y123: 61376.85472 | Z123: 59202.08634 | AA123: 60736.85539 | AB123: 58890.18637 | AC123: 62735.59928 | AD123: 55684.76251 | AE123: 70302.28801 | AF123: =SUM(AF121:AF122) -> 58934.76356 | AG123: 55943.50465 | AH123: 48698.96274 | AI123: 50977.8287 | AJ123: 64424.76411 | AK123: 63015.26977 | AL123: 60782.44737 | AM123: 62358.18608 | AN123: 60462.22144 | AO123: 64410.28513 | AP123: 57171.23088 | AQ123: 72178.96168 | AT123: =SUM(G123:R123) -> 681650.35 | AU123: =SUM(T123:AE123) -> 700654.9011 | AV123: =SUM(AF123:AQ123) -> 719358.4261 | BA123: 121
B124: 733 | BA124: 122
B125: 734 | C125: 902 | D125: Meter Reading Expense | BA125: 123
B126: 735 | E126: Utah | G126: 102596.22 | H126: 103389.62 | I126: 120360.45 | J126: 98013.41 | K126: 101806.06 | L126: 122038.48 | M126: 97223.13 | N126: 125686.54 | O126: 111878.76 | P126: 102313.75 | Q126: 105888.28 | R126: 125804.72 | T126: =T380+T634 -> 105339.6989 | U126: 106154.3148 | V126: 123578.9541 | W126: =W380+W634 -> 100634.342 | X126: 104528.4096 | Y126: 125301.8555 | Z126: 99822.92952 | AA126: 129047.4666 | AB126: 114870.4591 | AC126: 105049.6755 | AD126: 108719.7904 | AE126: 129168.8068 | AF126: =AF380+AF634 -> 107242.6256 | AG126: 108071.9573 | AH126: 125811.3669 | AI126: 102452.268 | AJ126: 106416.6806 | AK126: 127565.3919 | AL126: 101626.1976 | AM126: 131378.6663 | AN126: 116945.5558 | AO126: 106947.363 | AP126: 110683.7773 | AQ126: 131502.1984 | AT126: =SUM(G126:R126) -> 1316999.42 | AU126: =SUM(T126:AE126) -> 1352216.703 | AV126: =SUM(AF126:AQ126) -> 1376644.049 | BA126: 124
B127: 736 | E127: Wyoming | G127: 3214.67 | H127: 3202.02 | I127: 3755.34 | J127: 3066.13 | K127: 3103.8 | L127: 3778.93 | M127: 3027.39 | N127: 3897.96 | O127: 3382.06 | P127: 3208.1 | Q127: 3271.64 | R127: 3825.52 | T127: =T381+T635 -> 3300.632029 | U127: 3287.643761 | V127: 3855.75984 | W127: 3148.119988 | X127: 3186.797305 | Y127: 3879.980649 | Z127: 3108.34406 | AA127: 4002.193576 | AB127: 3472.498129 | AC127: 3293.886344 | AD127: 3359.125438 | AE127: 3927.816491 | AF127: =AF381+AF635 -> 3360.256851 | AG127: 3347.033954 | AH127: 3925.412861 | AI127: 3204.989731 | AJ127: 3244.36574 | AK127: 3950.071212 | AL127: 3164.495263 | AM127: 4074.491875 | AN127: 3535.227655 | AO127: 3353.389307 | AP127: 3419.806924 | AQ127: 3998.771192 | AT127: =SUM(G127:R127) -> 40733.56 | AU127: =SUM(T127:AE127) -> 41822.79761 | AV127: =SUM(AF127:AQ127) -> 42578.31257 | BA127: 125
B128: 737 | E128: Total | G128: =SUM(G126:G127) -> 105810.89 | H128: =SUM(H126:H127) -> 106591.64 | I128: 124115.79 | J128: 101079.54 | K128: 104909.86 | L128: 125817.41 | M128: 100250.52 | N128: 129584.5 | O128: 115260.82 | P128: 105521.85 | Q128: 109159.92 | R128: 129630.24 | T128: =SUM(T126:T127) -> 108640.3309 | U128: 109441.9586 | V128: 127434.7139 | W128: =SUM(W126:W127) -> 103782.462 | X128: 107715.2069 | Y128: 129181.8362 | Z128: 102931.2736 | AA128: 133049.6602 | AB128: 118342.9572 | AC128: 108343.5618 | AD128: 112078.9158 | AE128: 133096.6233 | AF128: =SUM(AF126:AF127) -> 110602.8824 | AG128: 111418.9912 | AH128: 129736.7797 | AI128: 105657.2578 | AJ128: 109661.0463 | AK128: 131515.4631 | AL128: 104790.6929 | AM128: 135453.1581 | AN128: 120480.7834 | AO128: 110300.7523 | AP128: 114103.5842 | AQ128: 135500.9696 | AT128: =SUM(G128:R128) -> 1357732.98 | AU128: =SUM(T128:AE128) -> 1394039.5 | AV128: =SUM(AF128:AQ128) -> 1419222.361 | BA128: 126
B129: 738 | BA129: 127
B130: 739 | C130: 9031 | D130: Customer Records Expense | BA130: 128
B131: 740 | E131: Utah | G131: 677379.26 | H131: 648643.46 | I131: 694511.35 | J131: 560851.53 | K131: 602550.74 | L131: 649243.21 | M131: 661272.29 | N131: 638869.25 | O131: 617030.18 | P131: 608409.14 | Q131: 628132.75 | R131: 785396.18 | T131: =T385+T639 -> 695649.844 | U131: 666138.9688 | V131: 713244.0286 | W131: =W385+W639 -> 575979.0746 | X131: 618803.0149 | Y131: 666754.8956 | Z131: 679108.4294 | AA131: 656101.1244 | AB131: 633673.001 | AC131: 624819.4303 | AD131: 645075.0346 | AE131: 806580.2459 | AF131: =AF385+AF639 -> 714283.9372 | AG131: 683982.566 | AH131: 732349.4101 | AI131: 591407.5949 | AJ131: 635378.6429 | AK131: 684614.9914 | AL131: 697299.4344 | AM131: 673675.8419 | AN131: 650646.9453 | AO131: 641556.2176 | AP131: 662354.4006 | AQ131: 828185.7872 | AT131: =SUM(G131:R131) -> 7772289.34 | AU131: =SUM(T131:AE131) -> 7981927.092 | AV131: =SUM(AF131:AQ131) -> 8195735.77 | BA131: 129
B132: 741 | E132: Wyoming | G132: 19041.37 | H132: 18219.49 | I132: 19493.94 | J132: 15779.2 | K132: 16904.72 | L132: 18274.61 | M132: 18615.67 | N132: 17949.46 | O132: 17251.84 | P132: 17134.88 | Q132: 16936.11 | R132: 22444.01 | T132: =T386+T640 -> 19554.96256 | U132: 18710.91444 | V132: 20019.73949 | W132: 16204.80382 | X132: 17360.68186 | Y132: 18767.52116 | Z132: 19117.78039 | AA132: 18433.60107 | AB132: 17717.16454 | AC132: 17597.04984 | AD132: 17392.91852 | AE132: 23049.38013 | AF132: =AF386+AF640 -> 20078.7735 | AG132: 19212.11619 | AH132: 20556.00022 | AI132: 16638.87539 | AJ132: 17825.71548 | AK132: 19270.23922 | AL132: 19629.8807 | AM132: 18927.37454 | AN132: 18191.74712 | AO132: 18068.41495 | AP132: 17858.81565 | AQ132: 23666.79462 | AT132: =SUM(G132:R132) -> 218045.3 | AU132: =SUM(T132:AE132) -> 223926.5178 | AV132: =SUM(AF132:AQ132) -> 229924.7476 | BA132: 130
B133: 742 | E133: Total | G133: =SUM(G131:G132) -> 696420.63 | H133: =SUM(H131:H132) -> 666862.95 | I133: 714005.29 | J133: 576630.73 | K133: 619455.46 | L133: 667517.82 | M133: 679887.96 | N133: 656818.71 | O133: 634282.02 | P133: 625544.02 | Q133: 645068.86 | R133: 807840.19 | T133: =SUM(T131:T132) -> 715204.8066 | U133: 684849.8833 | V133: 733263.7681 | W133: =SUM(W131:W132) -> 592183.8785 | X133: 636163.6967 | Y133: 685522.4167 | Z133: 698226.2098 | AA133: 674534.7254 | AB133: 651390.1655 | AC133: 642416.4801 | AD133: 662467.9531 | AE133: 829629.626 | AF133: =SUM(AF131:AF132) -> 734362.7107 | AG133: 703194.6822 | AH133: 752905.4103 | AI133: 608046.4703 | AJ133: 653204.3583 | AK133: 703885.2306 | AL133: 716929.3151 | AM133: 692603.2164 | AN133: 668838.6924 | AO133: 659624.6326 | AP133: 680213.2163 | AQ133: 851852.5819 | AT133: =SUM(G133:R133) -> 7990334.64 | AU133: =SUM(T133:AE133) -> 8205853.61 | AV133: =SUM(AF133:AQ133) -> 8425660.517 | BA133: 131
B134: 743 | BA134: 132
B135: 744 | C135: 9032 | D135: Collection Expense | BA135: 133
B136: 745 | E136: Utah | G136: 58559.06 | H136: 82189.17 | I136: 67485.3 | J136: 65878.44 | K136: 90452.85 | L136: 98039.18 | M136: 46529.11 | N136: 77720.65 | O136: 83849.33 | P136: 47581.11 | Q136: 107813.6 | R136: 76023.1 | T136: =T390+T644 -> 60407.07331 | U136: 84782.90494 | V136: 69615.00858 | W136: =W390+W644 -> 67957.43911 | X136: 93307.37107 | Y136: 101133.1113 | Z136: 47997.48081 | AA136: 80173.36689 | AB136: 86495.45645 | AC136: 49082.67994 | AD136: 111215.9935 | AE136: 78422.24542 | AF136: =AF390+AF644 -> 61045.84284 | AG136: 85679.43466 | AH136: 70351.14665 | AI136: 68676.04936 | AJ136: 94294.04204 | AK136: 102202.5349 | AL136: 48505.02615 | AM136: 81021.15344 | AN136: 87410.09541 | AO136: 49601.70063 | AP136: 112392.0377 | AQ136: 79251.51488 | AT136: =SUM(G136:R136) -> 902120.9 | AU136: =SUM(T136:AE136) -> 930590.1314 | AV136: =SUM(AF136:AQ136) -> 940430.5787 | BA136: 134
B137: 746 | E137: Wyoming | G137: 2712.44 | H137: 3325.55 | I137: 3584.63 | J137: 3796.52 | K137: 3371.35 | L137: 3811.96 | M137: 1780.9 | N137: 2664.48 | O137: 2754.36 | P137: 1637.63 | Q137: 3053.94 | R137: 2560.63 | T137: =T391+T645 -> 2798.039482 | U137: 3430.498076 | V137: 3697.754151 | W137: 3916.330999 | X137: 3477.743437 | Y137: 3932.258256 | Z137: 1837.10184 | AA137: 2748.565955 | AB137: 2841.282398 | AC137: 1689.310509 | AD137: 3150.316577 | AE137: 2641.438645 | AF137: =AF391+AF645 -> 2827.627116 | AG137: 3466.77359 | AH137: 3736.855742 | AI137: 3957.743913 | AJ137: 3514.518544 | AK137: 3973.839592 | AL137: 1856.528119 | AM137: 2777.630436 | AN137: 2871.327301 | AO137: 1707.173981 | AP137: 3183.629336 | AQ137: 2669.370317 | AT137: =SUM(G137:R137) -> 35054.39 | AU137: =SUM(T137:AE137) -> 36160.64033 | AV137: =SUM(AF137:AQ137) -> 36543.01799 | BA137: 135
B138: 747 | E138: Total | G138: =SUM(G136:G137) -> 61271.5 | H138: =SUM(H136:H137) -> 85514.72 | I138: 71069.93 | J138: 69674.96 | K138: 93824.2 | L138: 101851.14 | M138: 48310.01 | N138: 80385.13 | O138: 86603.69 | P138: 49218.74 | Q138: 110867.54 | R138: 78583.73 | T138: =SUM(T136:T137) -> 63205.11279 | U138: 88213.40301 | V138: 73312.76273 | W138: =SUM(W136:W137) -> 71873.77011 | X138: 96785.11451 | Y138: 105065.3696 | Z138: 49834.58265 | AA138: 82921.93284 | AB138: 89336.73885 | AC138: 50771.99045 | AD138: 114366.3101 | AE138: 81063.68406 | AF138: =SUM(AF136:AF137) -> 63873.46996 | AG138: 89146.20825 | AH138: 74088.00239 | AI138: 72633.79327 | AJ138: 97808.56059 | AK138: 106176.3745 | AL138: 50361.55427 | AM138: 83798.78387 | AN138: 90281.42271 | AO138: 51308.87461 | AP138: 115575.6671 | AQ138: 81920.8852 | AT138: =SUM(G138:R138) -> 937175.29 | AU138: =SUM(T138:AE138) -> 966750.7717 | AV138: =SUM(AF138:AQ138) -> 976973.5967 | BA138: 136
B139: 748 | BA139: 137
B140: 749 | C140: 9033 | D140: Interest Exp - Customer Security Deposits | BA140: 138
B141: 750 | E141: Utah | G141: 0 | H141: 0 | I141: 0 | J141: 0 | K141: 0 | L141: 0 | M141: 0 | N141: 0 | O141: 0 | P141: 0 | Q141: 0 | R141: 0 | T141: =T395+T649 -> 0 | U141: 0 | V141: 0 | W141: =W395+W649 -> 0 | X141: 0 | Y141: 0 | Z141: 0 | AA141: 0 | AB141: 0 | AC141: 0 | AD141: 0 | AE141: 0 | AF141: =AF395+AF649 -> 0 | AG141: 0 | AH141: 0 | AI141: 0 | AJ141: 0 | AK141: 0 | AL141: 0 | AM141: 0 | AN141: 0 | AO141: 0 | AP141: 0 | AQ141: 0 | AT141: =SUM(G141:R141) -> 0 | AU141: =SUM(T141:AE141) -> 0 | AV141: =SUM(AF141:AQ141) -> 0 | BA141: 139
B142: 751 | E142: Wyoming | G142: 0 | H142: 0 | I142: 0 | J142: 0 | K142: 0 | L142: 0 | M142: 0 | N142: 0 | O142: 0 | P142: 0 | Q142: 0 | R142: 0 | T142: =T396+T650 -> 0 | U142: 0 | V142: 0 | W142: 0 | X142: 0 | Y142: 0 | Z142: 0 | AA142: 0 | AB142: 0 | AC142: 0 | AD142: 0 | AE142: 0 | AF142: =AF396+AF650 -> 0 | AG142: 0 | AH142: 0 | AI142: 0 | AJ142: 0 | AK142: 0 | AL142: 0 | AM142: 0 | AN142: 0 | AO142: 0 | AP142: 0 | AQ142: 0 | AT142: =SUM(G142:R142) -> 0 | AU142: =SUM(T142:AE142) -> 0 | AV142: =SUM(AF142:AQ142) -> 0 | BA142: 140
B143: 752 | E143: Total | G143: 0 | H143: 0 | I143: 0 | J143: 0 | K143: 0 | L143: 0 | M143: 0 | N143: 0 | O143: 0 | P143: 0 | Q143: 0 | R143: 0 | T143: =SUM(T141:T142) -> 0 | U143: 0 | V143: 0 | W143: =SUM(W141:W142) -> 0 | X143: 0 | Y143: 0 | Z143: 0 | AA143: 0 | AB143: 0 | AC143: 0 | AD143: 0 | AE143: 0 | AF143: =SUM(AF141:AF142) -> 0 | AG143: 0 | AH143: 0 | AI143: 0 | AJ143: 0 | AK143: 0 | AL143: 0 | AM143: 0 | AN143: 0 | AO143: 0 | AP143: 0 | AQ143: 0 | AT143: =SUM(G143:R143) -> 0 | AU143: =SUM(T143:AE143) -> 0 | AV143: =SUM(AF143:AQ143) -> 0 | BA143: 141
BA144: 142
B145: 754 | C145: 904 | D145: Uncollectible Accounts - DNG | BA145: 143
B146: 755 | E146: Utah | G146: 123977.86 | H146: 95657.38 | I146: 77849.53 | J146: 51368.54 | K146: 36844.6 | L146: 27204.43 | M146: 25714.64 | N146: 25661.44 | O146: 23171.08 | P146: 37324.29 | Q146: 82875.01 | R146: 116601.67 | T146: =T400+T654 -> 123977.86 | U146: 95657.38 | V146: 77849.53 | W146: =W400+W654 -> 51368.54 | X146: 36844.6 | Y146: 27204.43 | Z146: 25714.64 | AA146: 25661.44 | AB146: 23171.08 | AC146: 37324.29 | AD146: 82875.01 | AE146: 116601.67 | AF146: =AF400+AF654 -> 123977.86 | AG146: 95657.38 | AH146: 77849.53 | AI146: 51368.54 | AJ146: 36844.6 | AK146: 27204.43 | AL146: 25714.64 | AM146: 25661.44 | AN146: 23171.08 | AO146: 37324.29 | AP146: 82875.01 | AQ146: 116601.67 | AT146: =SUM(G146:R146) -> 724250.47 | AU146: =SUM(T146:AE146) -> 724250.47 | AV146: =SUM(AF146:AQ146) -> 724250.47 | BA146: 144
B147: 756 | E147: Wyoming | G147: 16584.22 | H147: 15155.29 | I147: 12909.09 | J147: 9603.46 | K147: 7377.02 | L147: 3016.49 | M147: 2987.76 | N147: 2762.3 | O147: 2977.62 | P147: 4107.5 | Q147: 10505.26 | R147: 14340.49 | T147: =T401+T655 -> 16584.22 | U147: 15155.29 | V147: 12909.09 | W147: 9603.46 | X147: 7377.02 | Y147: 3016.49 | Z147: 2987.76 | AA147: 2762.3 | AB147: 2977.62 | AC147: 4107.5 | AD147: 10505.26 | AE147: 14340.49 | AF147: =AF401+AF655 -> 16584.22 | AG147: 15155.29 | AH147: 12909.09 | AI147: 9603.46 | AJ147: 7377.02 | AK147: 3016.49 | AL147: 2987.76 | AM147: 2762.3 | AN147: 2977.62 | AO147: 4107.5 | AP147: 10505.26 | AQ147: 14340.49 | AT147: =SUM(G147:R147) -> 102326.5 | AU147: =SUM(T147:AE147) -> 102326.5 | AV147: =SUM(AF147:AQ147) -> 102326.5 | BA147: 145
B148: 757 | E148: Total | G148: =SUM(G146:G147) -> 140562.08 | H148: =SUM(H146:H147) -> 110812.67 | I148: 90758.62 | J148: 60972 | K148: 44221.62 | L148: 30220.92 | M148: 28702.4 | N148: 28423.74 | O148: 26148.7 | P148: 41431.79 | Q148: 93380.27 | R148: 130942.16 | T148: =SUM(T146:T147) -> 140562.08 | U148: 110812.67 | V148: 90758.62 | W148: =SUM(W146:W147) -> 60972 | X148: 44221.62 | Y148: 30220.92 | Z148: 28702.4 | AA148: 28423.74 | AB148: 26148.7 | AC148: 41431.79 | AD148: 93380.27 | AE148: 130942.16 | AF148: =SUM(AF146:AF147) -> 140562.08 | AG148: 110812.67 | AH148: 90758.62 | AI148: 60972 | AJ148: 44221.62 | AK148: 30220.92 | AL148: 28702.4 | AM148: 28423.74 | AN148: 26148.7 | AO148: 41431.79 | AP148: 93380.27 | AQ148: 130942.16 | AT148: =SUM(G148:R148) -> 826576.97 | AU148: =SUM(T148:AE148) -> 826576.97 | AV148: =SUM(AF148:AQ148) -> 826576.97 | BA148: 146
BA149: 147
B150: 754 | C150: 904 | D150: Uncollectible Accounts - SNG | BA150: 148
B151: 755 | E151: Utah | G151: 39790.3 | H151: 32068.04 | I151: 23546.51 | J151: 7901.26 | K151: 4805.07 | L151: 2414.8 | M151: 2244.41 | N151: 2149.77 | O151: 2313.43 | P151: 4489.75 | Q151: 28531.21 | R151: 38133.42 | T151: =T405+T659 -> 39790.3 | U151: 32068.04 | V151: 23546.51 | W151: =W405+W659 -> 7901.26 | X151: 4805.07 | Y151: 2414.8 | Z151: 2244.41 | AA151: 2149.77 | AB151: 2313.43 | AC151: 4489.75 | AD151: 28531.21 | AE151: 38133.42 | AF151: =AF405+AF659 -> 39790.3 | AG151: 32068.04 | AH151: 23546.51 | AI151: 7901.26 | AJ151: 4805.07 | AK151: 2414.8 | AL151: 2244.41 | AM151: 2149.77 | AN151: 2313.43 | AO151: 4489.75 | AP151: 28531.21 | AQ151: 38133.42 | AT151: =SUM(G151:R151) -> 188387.97 | AU151: =SUM(T151:AE151) -> 188387.97 | AV151: =SUM(AF151:AQ151) -> 188387.97 | BA151: 149
B152: 756 | E152: Wyoming | T152: =T406+T660 -> 0 | U152: 0 | V152: 0 | W152: 0 | X152: 0 | Y152: 0 | Z152: 0 | AA152: 0 | AB152: 0 | AC152: 0 | AD152: 0 | AE152: 0 | AF152: =AF406+AF660 -> 0 | AG152: 0 | AH152: 0 | AI152: 0 | AJ152: 0 | AK152: 0 | AL152: 0 | AM152: 0 | AN152: 0 | AO152: 0 | AP152: 0 | AQ152: 0 | AT152: =SUM(G152:R152) -> 0 | AU152: =SUM(T152:AE152) -> 0 | AV152: =SUM(AF152:AQ152) -> 0 | BA152: 150
B153: 757 | E153: Total | G153: =SUM(G151:G152) -> 39790.3 | H153: =SUM(H151:H152) -> 32068.04 | I153: 23546.51 | J153: 7901.26 | K153: 4805.07 | L153: 2414.8 | M153: 2244.41 | N153: 2149.77 | O153: 2313.43 | P153: 4489.75 | Q153: 28531.21 | R153: 38133.42 | T153: =SUM(T151:T152) -> 39790.3 | U153: 32068.04 | V153: 23546.51 | W153: =SUM(W151:W152) -> 7901.26 | X153: 4805.07 | Y153: 2414.8 | Z153: 2244.41 | AA153: 2149.77 | AB153: 2313.43 | AC153: 4489.75 | AD153: 28531.21 | AE153: 38133.42 | AF153: =SUM(AF151:AF152) -> 39790.3 | AG153: 32068.04 | AH153: 23546.51 | AI153: 7901.26 | AJ153: 4805.07 | AK153: 2414.8 | AL153: 2244.41 | AM153: 2149.77 | AN153: 2313.43 | AO153: 4489.75 | AP153: 28531.21 | AQ153: 38133.42 | AT153: =SUM(G153:R153) -> 188387.97 | AU153: =SUM(T153:AE153) -> 188387.97 | AV153: =SUM(AF153:AQ153) -> 188387.97 | BA153: 151
B154: 753 | BA154: 152
B155: 754 | C155: 904 | D155: Uncollectible Accounts - Commodity | BA155: 153
B156: 755 | E156: Utah | G156: 217737.96 | H156: 175945.72 | I156: 129264.84 | J156: 95996.56 | K156: 58663.84 | L156: 28464.62 | M156: 26519.1 | N156: 29236.68 | O156: 31855.1 | P156: 64220.65 | Q156: 223909.56 | R156: 287370.61 | T156: =T410+T664 -> 217737.96 | U156: 175945.72 | V156: 129264.84 | W156: =W410+W664 -> 95996.56 | X156: 58663.84 | Y156: 28464.62 | Z156: 26519.1 | AA156: 29236.68 | AB156: 31855.1 | AC156: 64220.65 | AD156: 223909.56 | AE156: 287370.61 | AF156: =AF410+AF664 -> 217737.96 | AG156: 175945.72 | AH156: 129264.84 | AI156: 95996.56 | AJ156: 58663.84 | AK156: 28464.62 | AL156: 26519.1 | AM156: 29236.68 | AN156: 31855.1 | AO156: 64220.65 | AP156: 223909.56 | AQ156: 287370.61 | AT156: =SUM(G156:R156) -> 1369185.24 | AU156: =SUM(T156:AE156) -> 1369185.24 | AV156: =SUM(AF156:AQ156) -> 1369185.24 | BA156: 154
B157: 756 | E157: Wyoming | T157: =T411+T665 -> 0 | U157: 0 | V157: 0 | W157: 0 | X157: 0 | Y157: 0 | Z157: 0 | AA157: 0 | AB157: 0 | AC157: 0 | AD157: 0 | AE157: 0 | AF157: =AF411+AF665 -> 0 | AG157: 0 | AH157: 0 | AI157: 0 | AJ157: 0 | AK157: 0 | AL157: 0 | AM157: 0 | AN157: 0 | AO157: 0 | AP157: 0 | AQ157: 0 | AT157: =SUM(G157:R157) -> 0 | AU157: =SUM(T157:AE157) -> 0 | AV157: =SUM(AF157:AQ157) -> 0 | BA157: 155
B158: 757 | E158: Total | G158: =SUM(G156:G157) -> 217737.96 | H158: =SUM(H156:H157) -> 175945.72 | I158: 129264.84 | J158: 95996.56 | K158: 58663.84 | L158: 28464.62 | M158: 26519.1 | N158: 29236.68 | O158: 31855.1 | P158: 64220.65 | Q158: 223909.56 | R158: 287370.61 | T158: =SUM(T156:T157) -> 217737.96 | U158: 175945.72 | V158: 129264.84 | W158: =SUM(W156:W157) -> 95996.56 | X158: 58663.84 | Y158: 28464.62 | Z158: 26519.1 | AA158: 29236.68 | AB158: 31855.1 | AC158: 64220.65 | AD158: 223909.56 | AE158: 287370.61 | AF158: =SUM(AF156:AF157) -> 217737.96 | AG158: 175945.72 | AH158: 129264.84 | AI158: 95996.56 | AJ158: 58663.84 | AK158: 28464.62 | AL158: 26519.1 | AM158: 29236.68 | AN158: 31855.1 | AO158: 64220.65 | AP158: 223909.56 | AQ158: 287370.61 | AT158: =SUM(G158:R158) -> 1369185.24 | AU158: =SUM(T158:AE158) -> 1369185.24 | AV158: =SUM(AF158:AQ158) -> 1369185.24 | BA158: 156
B159: 758 | BA159: 157
B160: 759 | C160: 905 | D160: Miscellaneous Expense | BA160: 158
B161: 760 | E161: Utah | G161: 0 | H161: 0 | I161: 0 | J161: 0 | K161: 0 | L161: 0 | M161: 0 | N161: 0 | O161: 0 | P161: 0 | Q161: 0 | R161: 0 | T161: =T415+T669 -> 0 | U161: 0 | V161: 0 | W161: =W415+W669 -> 0 | X161: 0 | Y161: 0 | Z161: 0 | AA161: 0 | AB161: 0 | AC161: 0 | AD161: 0 | AE161: 0 | AF161: =AF415+AF669 -> 0 | AG161: 0 | AH161: 0 | AI161: 0 | AJ161: 0 | AK161: 0 | AL161: 0 | AM161: 0 | AN161: 0 | AO161: 0 | AP161: 0 | AQ161: 0 | AT161: =SUM(G161:R161) -> 0 | AU161: =SUM(T161:AE161) -> 0 | AV161: =SUM(AF161:AQ161) -> 0 | BA161: 159
B162: 761 | E162: Wyoming | G162: 0 | H162: 0 | I162: 0 | J162: 0 | K162: 0 | L162: 0 | M162: 0 | N162: 0 | O162: 0 | P162: 0 | Q162: 0 | R162: 0 | T162: =T416+T670 -> 0 | U162: 0 | V162: 0 | W162: 0 | X162: 0 | Y162: 0 | Z162: 0 | AA162: 0 | AB162: 0 | AC162: 0 | AD162: 0 | AE162: 0 | AF162: =AF416+AF670 -> 0 | AG162: 0 | AH162: 0 | AI162: 0 | AJ162: 0 | AK162: 0 | AL162: 0 | AM162: 0 | AN162: 0 | AO162: 0 | AP162: 0 | AQ162: 0 | AT162: =SUM(G162:R162) -> 0 | AU162: =SUM(T162:AE162) -> 0 | AV162: =SUM(AF162:AQ162) -> 0 | BA162: 160
B163: 762 | E163: Total | G163: 0 | H163: 0 | I163: 0 | J163: 0 | K163: 0 | L163: 0 | M163: 0 | N163: 0 | O163: 0 | P163: 0 | Q163: 0 | R163: 0 | T163: =SUM(T161:T162) -> 0 | U163: 0 | V163: 0 | W163: =SUM(W161:W162) -> 0 | X163: 0 | Y163: 0 | Z163: 0 | AA163: 0 | AB163: 0 | AC163: 0 | AD163: 0 | AE163: 0 | AF163: =SUM(AF161:AF162) -> 0 | AG163: 0 | AH163: 0 | AI163: 0 | AJ163: 0 | AK163: 0 | AL163: 0 | AM163: 0 | AN163: 0 | AO163: 0 | AP163: 0 | AQ163: 0 | AT163: =SUM(G163:R163) -> 0 | AU163: =SUM(T163:AE163) -> 0 | AV163: =SUM(AF163:AQ163) -> 0 | BA163: 161
B164: 763 | BA164: 162
B165: 764 | C165: System Total Customer Accounts Exp | BA165: 163
B166: 765 | D166: Utah Customer Accounts Expenses | G166: =G161+G156+G151+G146+G141+G136+G131+G126+G121 -> 1274364.55 | H166: 1189459.46 | I166: 1157905.64 | J166: 926996.65 | K166: 954504.51 | L166: 985485.32 | M166: 915531.86 | N166: 956797.5 | O166: 925829.28 | P166: 923704.66 | Q166: 1229848.48 | R166: 1495860.74 | T166: =T161+T156+T151+T146+T141+T136+T131+T126+T121 -> 1298741.187 | U166: 1213751.071 | V166: 1183238.008 | W166: 948134.1304 | X166: 977989.2197 | Y166: 1010973.611 | Z166: 938998.2747 | AA166: 981445.3816 | AB166: 949663.7293 | AC166: 946007.5811 | AD166: 1254493.901 | AE166: 1524662.937 | AF166: =AF161+AF156+AF151+AF146+AF141+AF136+AF131+AF126+AF121 -> 1321407.548 | AG166: 1235823.741 | AH166: 1206543.595 | AI166: 967388.4416 | AJ166: 999069.1302 | AK166: 1033760.317 | AL166: 961037.4549 | AM166: 1003776.068 | AN166: 971156.6004 | AO166: 966789.9952 | AP166: 1276359.259 | AQ166: 1551256.658 | AT166: =SUM(G166:R166) -> 12936288.65 | AU166: =SUM(T166:AE166) -> 13228099.03 | AV166: =SUM(AF166:AQ166) -> 13494368.81 | BA166: 164
B167: 766 | D167: Wyoming Customer Accounts Expenses | G167: 43074.27 | H167: 41347.28 | I167: 41001.55 | J167: 33564.02 | K167: 32423.22 | L167: 30513.46 | M167: 27978.83 | N167: 28890.46 | O167: 27927.33 | P167: 27756.1 | Q167: 35243.25 | R167: 45035.02 | T167: =T162+T157+T152+T147+T142+T137+T132+T127+T122 -> 43801.84576 | U167: 42069.56122 | V167: 41775.98211 | W167: 34228.19071 | X167: 33115.03022 | Y167: 31273.20578 | Z167: 28661.78763 | AA167: 29607.98226 | AB167: 28613.54861 | AC167: 28402.2406 | AD167: 35925.08009 | AE167: 45875.47428 | AF167: =AF162+AF157+AF152+AF147+AF142+AF137+AF132+AF127+AF122 -> 44456.61888 | AG167: 42706.07553 | AH167: 42455.53029 | AI167: 34796.72849 | AJ167: 33720.12913 | AK167: 31932.36098 | AL167: 29292.46472 | AM167: 30247.46641 | AN167: 29223.7496 | AO167: 28996.73944 | AP167: 36525.47905 | AQ167: 46642.93084 | AT167: =SUM(G167:R167) -> 414754.79 | AU167: =SUM(T167:AE167) -> 423349.9293 | AV167: =SUM(AF167:AQ167) -> 430996.2733 | BA167: 165
B168: 767 | BA168: 166
B169: 768 | D169: System Total Customer Accounts Exp | G169: =G123+G128+G133+G138+G143++G148+G153+G158+G163 -> 1317438.82 | H169: =H123+H128+H133+H138+H143++H148+H153+H158+H163 -> 1230806.74 | I169: =I123+I128+I133+I138+I143++I148+I153+I158+I163 -> 1198907.19 | J169: 960560.67 | K169: 986927.73 | L169: 1015998.78 | M169: 943510.69 | N169: 985687.96 | O169: 953756.61 | P169: 951460.76 | Q169: 1265091.73 | R169: =R123+R128+R133+R138+R143++R148+R153+R158+R163 -> 1540895.76 | T169: =T123+T128+T133+T138+T143++T148+T153+T158+T163 -> 1342543.033 | U169: 1255820.632 | V169: 1225013.99 | W169: =W123+W128+W133+W138+W143++W148+W153+W158+W163 -> 982362.3212 | X169: 1011104.25 | Y169: 1042246.817 | Z169: 967660.0624 | AA169: 1011053.364 | AB169: 978277.2779 | AC169: 974409.8217 | AD169: 1290418.982 | AE169: 1570538.411 | AF169: =AF123+AF128+AF133+AF138+AF143++AF148+AF153+AF158+AF163 -> 1365864.167 | AG169: 1278529.816 | AH169: 1248999.125 | AI169: 1002185.17 | AJ169: 1032789.259 | AK169: 1065692.678 | AL169: 990329.9196 | AM169: 1034023.534 | AN169: 1000380.35 | AO169: 995786.7346 | AP169: 1312884.738 | AQ169: 1597899.588 | AT169: =SUM(G169:R169) -> 13351043.44 | AU169: =SUM(T169:AE169) -> 13651448.96 | AV169: =SUM(AF169:AQ169) -> 13925365.08 | BA169: 167
B170: 769 | BA170: 168
B171: 770 | C171: Customer Service & Information Expense | BA171: 169
B172: 771 | BA172: 170
B173: 772 | C173: 907 | D173: Supervision | BA173: 171
B174: 773 | E174: Utah | G174: 56582.73 | H174: 52650.11 | I174: 74935.87 | J174: 45563.31 | K174: 46744.04 | L174: 41311.49 | M174: 43968.97 | N174: 49435.24 | O174: 36969.94 | P174: 32916.1 | Q174: 43890.97 | R174: 46135.94 | T174: =T428+T682 -> 58249.49101 | U174: 54201.02758 | V174: 77143.2606 | W174: =W428+W682 -> 46905.47127 | X174: 48120.9821 | Y174: 42528.40514 | Z174: 45264.16669 | AA174: 50891.45695 | AB174: 38058.96583 | AC174: 33885.71161 | AD174: 45183.86904 | AE174: 47494.96927 | AF174: =AF428+AF682 -> 59783.79461 | AG174: 55628.69382 | AH174: 79175.22999 | AI174: 48140.97105 | AJ174: 49388.49869 | AK174: 43648.6121 | AL174: 46456.43418 | AM174: 52231.94842 | AN174: 39061.44684 | AO174: 34778.26824 | AP174: 46374.02147 | AQ174: 48745.99655 | AT174: =SUM(G174:R174) -> 571104.71 | AU174: =SUM(T174:AE174) -> 587927.7771 | AV174: =SUM(AF174:AQ174) -> 603413.916 | BA174: 172
B175: 774 | E175: Wyoming | G175: 1594.54 | H175: 1483.99 | I175: 2111.18 | J175: 1284.13 | K175: 1316.3 | L175: 1164.27 | M175: 1239.21 | N175: 1393.3 | O175: 1042.31 | P175: 928.16 | Q175: 1237.14 | R175: 1301.09 | T175: =T429+T683 -> 1641.510464 | U175: 1527.703986 | V175: 2173.369161 | W175: 1321.956698 | X175: 1355.074331 | Y175: 1198.565974 | Z175: 1275.713486 | AA175: 1434.342525 | AB175: 1073.013391 | AC175: 955.5008671 | AD175: 1273.58251 | AE175: 1339.416289 | AF175: =AF429+AF683 -> 1684.748188 | AG175: 1567.944024 | AH175: 2230.616153 | AI175: 1356.77731 | AJ175: 1390.767269 | AK175: 1230.136449 | AL175: 1309.316043 | AM175: 1472.123403 | AN175: 1101.276785 | AO175: 980.6689569 | AP175: 1307.128936 | AQ175: 1374.696791 | AT175: =SUM(G175:R175) -> 16095.62 | AU175: =SUM(T175:AE175) -> 16569.74968 | AV175: =SUM(AF175:AQ175) -> 17006.20031 | BA175: 173
B176: 775 | E176: Total | G176: =SUM(G174:G175) -> 58177.27 | H176: =SUM(H174:H175) -> 54134.1 | I176: 77047.05 | J176: 46847.44 | K176: 48060.34 | L176: 42475.76 | M176: 45208.18 | N176: 50828.54 | O176: 38012.25 | P176: 33844.26 | Q176: 45128.11 | R176: 47437.03 | T176: =SUM(T174:T175) -> 59891.00147 | U176: 55728.73156 | V176: 79316.62976 | W176: =SUM(W174:W175) -> 48227.42797 | X176: 49476.05644 | Y176: 43726.97111 | Z176: 46539.88018 | AA176: 52325.79948 | AB176: 39131.97922 | AC176: 34841.21248 | AD176: 46457.45155 | AE176: 48834.38555 | AF176: =SUM(AF174:AF175) -> 61468.5428 | AG176: 57196.63784 | AH176: 81405.84614 | AI176: 49497.74836 | AJ176: 50779.26596 | AK176: 44878.74855 | AL176: 47765.75022 | AM176: 53704.07182 | AN176: 40162.72362 | AO176: 35758.9372 | AP176: 47681.15041 | AQ176: 50120.69334 | AT176: =SUM(G176:R176) -> 587200.33 | AU176: =SUM(T176:AE176) -> 604497.5268 | AV176: =SUM(AF176:AQ176) -> 620420.1163 | BA176: 174
B177: 776 | BA177: 175
B178: 777 | C178: 908 | D178: Customer Assistance Expense | BA178: 176
B179: 778 | E179: Utah | G179: 6172966.76 | H179: 4480125.54 | I179: 3513636.97 | J179: 2742536.52 | K179: 1611752.26 | L179: 875693.7 | M179: 770082.53 | N179: 803776.34 | O179: 886441.97 | P179: 2082062.3 | Q179: 2958026.95 | R179: 4390114.19 | T179: =T433+T687 -> 6286661.165 | U179: 4562641.003 | V179: 3578351.536 | W179: =W433+W687 -> 2793048.87 | X179: 1641437.697 | Y179: 891822.3264 | Z179: 784265.9978 | AA179: 818580.3842 | AB179: 902768.5592 | AC179: 2120409.961 | AD179: 3012508.227 | AE179: 4470971.813 | AF179: =AF433+AF687 -> 6150876.114 | AG179: 4464092.914 | AH179: 3501063.031 | AI179: 2732722.049 | AJ179: 1605984.426 | AK179: 872559.933 | AL179: 767326.7043 | AM179: 800899.9373 | AN179: 883269.7391 | AO179: 2074611.409 | AP179: 2947441.323 | AQ179: 4374403.68 | AT179: =SUM(G179:R179) -> 31287216.03 | AU179: =SUM(T179:AE179) -> 31863467.54 | AV179: =SUM(AF179:AQ179) -> 31175251.26 | BA179: 177
B180: 779 | E180: Wyoming | G180: 28918.15 | H180: 25109.22 | I180: 21511 | J180: 16612.78 | K180: 13088.99 | L180: 5389.24 | M180: 6085.25 | N180: 6862.17 | O180: 6683.18 | P180: 11498.69 | Q180: 16317.55 | R180: 23196.69 | T180: =T434+T688 -> 29450.76778 | U180: 25571.68448 | V180: 21907.19205 | W180: 16918.75608 | X180: 13330.06451 | Y180: 5488.499637 | Z180: 6197.328828 | AA180: 6988.558229 | AB180: 6806.271571 | AC180: 11710.47418 | AD180: 16618.0885 | AE180: 23623.92928 | AF180: =AF434+AF688 -> 28814.66319 | AG180: 25019.36387 | AH180: 21434.0205 | AI180: 16553.32932 | AJ180: 13042.1496 | AK180: 5369.954007 | AL180: 6063.473258 | AM180: 6837.612964 | AN180: 6659.263499 | AO180: 11457.54066 | AP180: 16259.15584 | AQ180: 23113.67807 | AT180: =SUM(G180:R180) -> 181272.91 | AU180: =SUM(T180:AE180) -> 184611.6151 | AV180: =SUM(AF180:AQ180) -> 180624.2048 | BA180: 178
B181: 780 | E181: Total | G181: =SUM(G179:G180) -> 6201884.91 | H181: =SUM(H179:H180) -> 4505234.76 | I181: 3535147.97 | J181: 2759149.3 | K181: 1624841.25 | L181: 881082.94 | M181: 776167.78 | N181: 810638.51 | O181: 893125.15 | P181: 2093560.99 | Q181: 2974344.5 | R181: 4413310.88 | T181: =SUM(T179:T180) -> 6316111.933 | U181: 4588212.687 | V181: 3600258.728 | W181: =SUM(W179:W180) -> 2809967.626 | X181: 1654767.761 | Y181: 897310.826 | Z181: 790463.3266 | AA181: 825568.9425 | AB181: 909574.8308 | AC181: 2132120.435 | AD181: 3029126.316 | AE181: 4494595.743 | AF181: =SUM(AF179:AF180) -> 6179690.777 | AG181: 4489112.278 | AH181: 3522497.051 | AI181: 2749275.378 | AJ181: 1619026.575 | AK181: 877929.887 | AL181: 773390.1775 | AM181: 807737.5502 | AN181: 889929.0026 | AO181: 2086068.95 | AP181: 2963700.478 | AQ181: 4397517.358 | AT181: =SUM(G181:R181) -> 31468488.94 | AU181: =SUM(T181:AE181) -> 32048079.16 | AV181: =SUM(AF181:AQ181) -> 31355875.46 | BA181: 179
B182: 781 | BA182: 180
B183: 782 | C183: 909 | D183: Info & Instructional Advertising Expense | BA183: 181
B184: 783 | E184: Utah | G184: 29068.26 | H184: 81.06 | I184: 84564.89 | J184: 153652.69 | K184: 20170.95 | L184: 50214.38 | M184: 25497.51 | N184: 51488.85 | O184: 84244.92 | P184: 36117.18 | Q184: 56883.42 | R184: 155312.4 | T184: =T438+T692 -> 29271.73782 | U184: 81.62742 | V184: 85156.84423 | W184: =W438+W692 -> 154728.2588 | X184: 20312.14665 | Y184: 50565.88066 | Z184: 25675.99257 | AA184: 51849.27195 | AB184: 84834.63444 | AC184: 36370.00026 | AD184: 57281.60394 | AE184: 156399.5868 | AF184: =AF438+AF692 -> 27808.15093 | AG184: 77.546049 | AH184: 80899.00202 | AI184: 146991.8459 | AJ184: 19296.53932 | AK184: 48037.58663 | AL184: 24392.19294 | AM184: 49256.80835 | AN184: 80592.90272 | AO184: 34551.50025 | AP184: 54417.52374 | AQ184: 148579.6075 | AT184: =SUM(G184:R184) -> 747296.51 | AU184: =SUM(T184:AE184) -> 752527.5856 | AV184: =SUM(AF184:AQ184) -> 714901.2063 | BA184: 182
B185: 784 | E185: Wyoming | G185: 1010.79 | H185: 2.28 | I185: 1.98 | J185: 0 | K185: 0 | L185: 1414.64 | M185: 718.32 | N185: 707.32 | O185: 720.92 | P185: 707.32 | Q185: 2735.59 | R185: 3427.61 | T185: =T439+T693 -> 1017.86553 | U185: 2.29596 | V185: 1.99386 | W185: 0 | X185: 0 | Y185: 1424.54248 | Z185: 723.34824 | AA185: 712.27124 | AB185: 725.96644 | AC185: 712.27124 | AD185: 2754.73913 | AE185: 3451.60327 | AF185: =AF439+AF693 -> 966.9722535 | AG185: 2.181162 | AH185: 1.894167 | AI185: 0 | AJ185: 0 | AK185: 1353.315356 | AL185: 687.180828 | AM185: 676.657678 | AN185: 689.668118 | AO185: 676.657678 | AP185: 2617.002174 | AQ185: 3279.023106 | AT185: =SUM(G185:R185) -> 11446.77 | AU185: =SUM(T185:AE185) -> 11526.89739 | AV185: =SUM(AF185:AQ185) -> 10950.55252 | BA185: 183
B186: 785 | E186: Total | G186: =SUM(G184:G185) -> 30079.05 | H186: =SUM(H184:H185) -> 83.34 | I186: 84566.87 | J186: 153652.69 | K186: 20170.95 | L186: 51629.02 | M186: 26215.83 | N186: 52196.17 | O186: 84965.84 | P186: 36824.5 | Q186: 59619.01 | R186: 158740.01 | T186: =SUM(T184:T185) -> 30289.60335 | U186: 83.92338 | V186: 85158.83809 | W186: =SUM(W184:W185) -> 154728.2588 | X186: 20312.14665 | Y186: 51990.42314 | Z186: 26399.34081 | AA186: 52561.54319 | AB186: 85560.60088 | AC186: 37082.2715 | AD186: 60036.34307 | AE186: 159851.1901 | AF186: =SUM(AF184:AF185) -> 28775.12318 | AG186: 79.727211 | AH186: 80900.89619 | AI186: 146991.8459 | AJ186: 19296.53932 | AK186: 49390.90198 | AL186: 25079.37377 | AM186: 49933.46603 | AN186: 81282.57084 | AO186: 35228.15792 | AP186: 57034.52592 | AQ186: 151858.6306 | AT186: =SUM(G186:R186) -> 758743.28 | AU186: =SUM(T186:AE186) -> 764054.483 | AV186: =SUM(AF186:AQ186) -> 725851.7588 | BA186: 184
B187: 786 | BA187: 185
B188: 787 | C188: 910 | D188: Misc Customer Service & Info Expense | BA188: 186
B189: 788 | E189: Utah | G189: 0 | H189: 0 | I189: 0 | J189: 0 | K189: 0 | L189: 0 | M189: 0 | N189: 0 | O189: 0 | P189: 0 | Q189: 0 | R189: 0 | T189: =T443+T697 -> 0 | U189: 0 | V189: 0 | W189: =W443+W697 -> 0 | X189: 0 | Y189: 0 | Z189: 0 | AA189: 0 | AB189: 0 | AC189: 0 | AD189: 0 | AE189: 0 | AF189: =AF443+AF697 -> 0 | AG189: 0 | AH189: 0 | AI189: 0 | AJ189: 0 | AK189: 0 | AL189: 0 | AM189: 0 | AN189: 0 | AO189: 0 | AP189: 0 | AQ189: 0 | AT189: =SUM(G189:R189) -> 0 | AU189: =SUM(T189:AE189) -> 0 | AV189: =SUM(AF189:AQ189) -> 0 | BA189: 187
B190: 789 | E190: Wyoming | G190: 0 | H190: 0 | I190: 0 | J190: 0 | K190: 0 | L190: 0 | M190: 0 | N190: 0 | O190: 0 | P190: 0 | Q190: 0 | R190: 0 | T190: =T444+T698 -> 0 | U190: 0 | V190: 0 | W190: 0 | X190: 0 | Y190: 0 | Z190: 0 | AA190: 0 | AB190: 0 | AC190: 0 | AD190: 0 | AE190: 0 | AF190: =AF444+AF698 -> 0 | AG190: 0 | AH190: 0 | AI190: 0 | AJ190: 0 | AK190: 0 | AL190: 0 | AM190: 0 | AN190: 0 | AO190: 0 | AP190: 0 | AQ190: 0 | AT190: =SUM(G190:R190) -> 0 | AU190: =SUM(T190:AE190) -> 0 | AV190: =SUM(AF190:AQ190) -> 0 | BA190: 188
B191: 790 | E191: Total | G191: 0 | H191: 0 | I191: 0 | J191: 0 | K191: 0 | L191: 0 | M191: 0 | N191: 0 | O191: 0 | P191: 0 | Q191: 0 | R191: 0 | T191: =SUM(T189:T190) -> 0 | U191: 0 | V191: 0 | W191: =SUM(W189:W190) -> 0 | X191: 0 | Y191: 0 | Z191: 0 | AA191: 0 | AB191: 0 | AC191: 0 | AD191: 0 | AE191: 0 | AF191: =SUM(AF189:AF190) -> 0 | AG191: 0 | AH191: 0 | AI191: 0 | AJ191: 0 | AK191: 0 | AL191: 0 | AM191: 0 | AN191: 0 | AO191: 0 | AP191: 0 | AQ191: 0 | AT191: =SUM(G191:R191) -> 0 | AU191: =SUM(T191:AE191) -> 0 | AV191: =SUM(AF191:AQ191) -> 0 | BA191: 189
B192: 791 | BA192: 190
B193: 792 | C193: System Total Cust Service & Info Exp | BA193: 191
B194: 793 | D194: Utah Total Cust Service & Info Exp | G194: =G174+G179+G184+G189 -> 6258617.75 | H194: 4532856.71 | I194: 3673137.73 | J194: 2941752.52 | K194: 1678667.25 | L194: 967219.57 | M194: 839549.01 | N194: 904700.43 | O194: 1007656.83 | P194: 2151095.58 | Q194: 3058801.34 | R194: 4591562.53 | T194: =T174+T179+T184+T189 -> 6374182.394 | U194: 4616923.658 | V194: 3740651.641 | W194: 2994682.6 | X194: 1709870.826 | Y194: 984916.6122 | Z194: 855206.1571 | AA194: 921321.1131 | AB194: 1025662.159 | AC194: 2190665.673 | AD194: 3114973.7 | AE194: 4674866.37 | AF194: =AF174+AF179+AF184+AF189 -> 6238468.06 | AG194: 4519799.154 | AH194: 3661137.263 | AI194: 2927854.866 | AJ194: 1674669.464 | AK194: 964246.1317 | AL194: 838175.3314 | AM194: 902388.694 | AN194: 1002924.089 | AO194: 2143941.178 | AP194: 3048232.868 | AQ194: 4571729.284 | AT194: =SUM(G194:R194) -> 32605617.25 | AU194: =SUM(T194:AE194) -> 33203922.9 | AV194: =SUM(AF194:AQ194) -> 32493566.38 | BA194: 192
B195: 794 | D195: Wyoming Total Cust Service & Info Exp | G195: 31523.48 | H195: 26595.49 | I195: 23624.16 | J195: 17896.91 | K195: 14405.29 | L195: 7968.15 | M195: 8042.78 | N195: 8962.79 | O195: 8446.41 | P195: 13134.17 | Q195: 20290.28 | R195: 27925.39 | T195: =T175+T180+T185+T190 -> 32110.14378 | U195: 27101.68442 | V195: 24082.55507 | W195: 18240.71277 | X195: 14685.13884 | Y195: 8111.608091 | Z195: 8196.390554 | AA195: 9135.171994 | AB195: 8605.251402 | AC195: 13378.24629 | AD195: 20646.41014 | AE195: 28414.94884 | AF195: =AF175+AF180+AF185+AF190 -> 31466.38364 | AG195: 26589.48906 | AH195: 23666.53082 | AI195: 17910.10663 | AJ195: 14432.91687 | AK195: 7953.405812 | AL195: 8059.970129 | AM195: 8986.394045 | AN195: 8450.208402 | AO195: 13114.8673 | AP195: 20183.28695 | AQ195: 27767.39797 | AT195: =SUM(G195:R195) -> 208815.3 | AU195: =SUM(T195:AE195) -> 212708.2622 | AV195: =SUM(AF195:AQ195) -> 208580.9576 | BA195: 193
B196: 795 | BA196: 194
B197: 796 | D197: System Total Cust Service & Info Exp | G197: =G176+G181+G186+G191 -> 6290141.23 | H197: 4559452.2 | I197: 3696761.89 | J197: 2959649.43 | K197: 1693072.54 | L197: 975187.72 | M197: 847591.79 | N197: 913663.22 | O197: 1016103.24 | P197: 2164229.75 | Q197: 3079091.62 | R197: 4619487.92 | T197: =T176+T181+T186+T191 -> 6406292.538 | U197: 4644025.342 | V197: 3764734.196 | W197: 3012923.313 | X197: 1724555.964 | Y197: 993028.2203 | Z197: 863402.5476 | AA197: 930456.2851 | AB197: 1034267.411 | AC197: 2204043.919 | AD197: 3135620.111 | AE197: 4703281.318 | AF197: =AF176+AF181+AF186+AF191 -> 6269934.443 | AG197: 4546388.643 | AH197: 3684803.793 | AI197: 2945764.973 | AJ197: 1689102.381 | AK197: 972199.5375 | AL197: 846235.3015 | AM197: 911375.0881 | AN197: 1011374.297 | AO197: 2157056.045 | AP197: 3068416.155 | AQ197: 4599496.682 | AT197: =SUM(G197:R197) -> 32814432.55 | AU197: =SUM(T197:AE197) -> 33416631.17 | AV197: =SUM(AF197:AQ197) -> 32702147.34 | BA197: 195
B198: 797 | BA198: 196
B199: 798 | C199: Administrative & General Expense | BA199: 197
B200: 799 | BA200: 198
... 562 more rows

Sheet EXPENSES
B1: EXPENSES
B2: ='Control Panel'!$B$1 -> Dominion Energy
B3: ='Control Panel'!$B$2 -> Utah - DEC 2023 Adjusted Avg Results | J3: 12 Mos Dec-2022
B4: ='Control Panel'!$B$3 -> 12 Months Ended : Dec-2023
F5: Booked | G5: Booked | H5: Forecast | I5: Forecast | J5: 2022-12-01 | K5: HOT
F6: Expense Dec 2019 | G6: Expense Dec 2022 | H6: Expense Dec 2023 | I6: Expense Dec 2024 | K6: =+'Control Panel'!B28 -> Expense Dec 2023 | L6: Adjustment | M6: 1
M7: =+M6+1 -> 2
M8: =+M7+1 -> 3
A9: Line # | B9: FERC Acct | D9: Description | K9: Adjustment | M9: 4
A10: 510 | B10: UTILITY OPERATING EXPENSES | M10: 5
A11: =+A10+1 -> 511 | B11: GAS PURCHASE EXPENSES | M11: 6
A12: 512 | M12: 7
A13: 513 | C13: Utah % of Sales Dth from 191 Acct ===> | M13: 8
A14: 514 | M14: 9
A15: 515 | B15: 758 | C15: Gas Well Royalties | M15: 10
A16: 516 | D16: Utah | F16: 20573059.94 | G16: 55712205.25 | H16: 29772890.33 | I16: 29772890.33 | K16: =IF(HLOOKUP($K$6,$F$6:$I$431,M16,FALSE)="","",HLOOKUP($K$6,$F$6:$I$431,M16,FALSE)) -> 29772890.33 | L16: =+K16-G16 -> -25939314.93 | M16: 11
A17: 517 | D17: Wyoming | F17: 751115.9783 | G17: 1805926.647 | H17: 1107597.652 | I17: 1107597.652 | K17: =IF(HLOOKUP($K$6,$F$6:$I$431,M17,FALSE)="","",HLOOKUP($K$6,$F$6:$I$431,M17,FALSE)) -> 1107597.652 | L17: =+K17-G17 -> -698328.9946 | M17: 12
A18: 518 | D18: Total | F18: 21324175.92 | G18: 57518131.9 | H18: 30880487.98 | I18: 30880487.98 | K18: 30880487.98 | L18: =+K18-G18 -> -26637643.92 | M18: 13
A19: 519 | M19: 14
A20: 520 | B20: 7581 | C20: Gas Well Royalties - Other | M20: 15
A21: 521 | D21: Utah | F21: 311269.65 | G21: 0 | H21: 0 | I21: 0 | K21: 0 | L21: =+K21-G21 -> 0 | M21: 16
A22: 522 | D22: Wyoming | F22: 0 | G22: 0 | H22: 0 | I22: 0 | K22: 0 | L22: =+K22-G22 -> 0 | M22: 17
A23: 523 | D23: Total | F23: 311269.65 | G23: 0 | H23: 0 | I23: 0 | K23: 0 | L23: =+K23-G23 -> 0 | M23: 18
A24: 524 | M24: 19
A25: 525 | B25: 759 | C25: Gath by Others, GRI & ACA - Gas Cost | M25: 20
A26: 526 | D26: Utah | F26: 24917407.16 | G26: 6935060.713 | H26: 27274857.4 | I26: 27274857.4 | K26: 27274857.4 | L26: =+K26-G26 -> 20339796.69 | M26: 21
A27: 527 | D27: Wyoming | F27: 0 | G27: 226032.8071 | H27: 982897.3589 | I27: 982897.3589 | K27: 982897.3589 | L27: =+K27-G27 -> 756864.5517 | M27: 22
A28: 528 | D28: Total | F28: 24917407.16 | G28: 7161093.52 | H28: 28257754.76 | I28: 28257754.76 | K28: 28257754.76 | L28: =+K28-G28 -> 21096661.24 | M28: 23
A29: 529 | M29: 24
A30: 530 | B30: 759 | C30: Gathering by Others - SNG Cost | M30: 25
A31: 531 | D31: Utah | F31: 0 | G31: 0 | H31: 0 | I31: 0 | K31: 0 | L31: =+K31-G31 -> 0 | M31: 26
A32: 532 | E32: Demand | M32: 27
A33: 533 | E33: Commodity | M33: 28
A34: 534 | D34: Wyoming | F34: 0 | G34: 0 | H34: 0 | I34: 0 | K34: 0 | L34: =+K34-G34 -> 0 | M34: 29
A35: 535 | D35: Total | F35: 0 | G35: 0 | H35: 0 | I35: 0 | K35: 0 | L35: =+K35-G35 -> 0 | M35: 30
A36: 536 | M36: 31
A37: 537 | B37: 800 | C37: Natural Gas Well Head Purchases | M37: 32
A38: 538 | D38: Utah | F38: 501.3286834 | G38: 0 | H38: 0 | I38: 0 | K38: 0 | L38: =+K38-G38 -> 0 | M38: 33
A39: 539 | D39: Wyoming | F39: 16.6613166 | G39: 0 | H39: 0 | I39: 0 | K39: 0 | L39: =+K39-G39 -> 0 | M39: 34
A40: 540 | D40: Total | F40: 517.99 | G40: 0 | H40: 0 | I40: 0 | K40: 0 | L40: =+K40-G40 -> 0 | M40: 35
A41: 541 | M41: 36
A42: 542 | B42: 801 | C42: Natural Gas Field Line Purchases | M42: 37
A43: 543 | D43: Utah | F43: 0 | G43: 0 | H43: 0 | I43: 0 | K43: 0 | L43: =+K43-G43 -> 0 | M43: 38
A44: 544 | D44: Wyoming | F44: 0 | G44: 0 | H44: 0 | I44: 0 | K44: 0 | L44: =+K44-G44 -> 0 | M44: 39
A45: 545 | D45: Total | F45: 0 | G45: 0 | H45: 0 | I45: 0 | K45: 0 | L45: =+K45-G45 -> 0 | M45: 40
A46: 546 | M46: 41
A47: 547 | B47: 802 | C47: Natural Gas Gasoline Plant Outlet Purch | M47: 42
A48: 548 | D48: Utah | F48: 0 | G48: 0 | H48: 0 | I48: 0 | K48: 0 | L48: =+K48-G48 -> 0 | M48: 43
A49: 549 | D49: Wyoming | F49: 0 | G49: 0 | H49: 0 | I49: 0 | K49: 0 | L49: =+K49-G49 -> 0 | M49: 44
A50: 550 | D50: Total | F50: 0 | G50: 0 | H50: 0 | I50: 0 | K50: 0 | L50: =+K50-G50 -> 0 | M50: 45
A51: 551 | M51: 46
A52: 552 | B52: 803 | C52: Natural Gas Trans Line - Purchases | M52: 47
A53: 553 | D53: Utah | F53: 119925534.3 | G53: 565604870 | H53: 170372250.8 | I53: 170372250.8 | K53: 170372250.8 | L53: =+K53-G53 -> -395232619.2 | M53: 48
A54: 554 | D54: Wyoming | F54: 4247459.493 | G54: 18605386.23 | H54: 6234248.839 | I54: 6234248.839 | K54: 6234248.839 | L54: =+K54-G54 -> -12371137.39 | M54: 49
A55: 555 | D55: Total | F55: 124172993.8 | G55: 584210256.2 | H55: 176606499.6 | I55: 176606499.6 | K55: 176606499.6 | L55: =+K55-G55 -> -407603756.6 | M55: 50
A56: 556 | M56: 51
A57: 557 | B57: 804 | C57: Natural Gas City Gate Purch - Resources | M57: 52
A58: 558 | D58: Utah | F58: 0 | G58: 10112047.5 | H58: 2356460.585 | I58: 2356460.585 | K58: 2356460.585 | L58: =+K58-G58 -> -7755586.919 | M58: 53
A59: 559 | D59: Wyoming | F59: 0 | G59: 341734.526 | H59: 89430.485 | I59: 89430.485 | K59: 89430.485 | L59: =+K59-G59 -> -252304.041 | M59: 54
A60: 560 | D60: Total | F60: 0 | G60: 10453782.03 | H60: 2445891.07 | I60: 2445891.07 | K60: 2445891.07 | L60: =+K60-G60 -> -8007890.96 | M60: 55
A61: 561 | M61: 56
A62: 562 | B62: 8041 | C62: Natural Gas City Gate Purch - Other | M62: 57
A63: 563 | D63: Utah | F63: 1280667.597 | G63: 0 | H63: 0 | I63: 0 | K63: 0 | L63: =+K63-G63 -> 0 | M63: 58
A64: 564 | D64: Wyoming | F64: 47189.8035 | G64: 0 | H64: 0 | I64: 0 | K64: 0 | L64: =+K64-G64 -> 0 | M64: 59
A65: 565 | D65: Total | F65: 1327857.4 | G65: 0 | H65: 0 | I65: 0 | K65: 0 | L65: =+K65-G65 -> 0 | M65: 60
A66: 566 | M66: 61
A67: 567 | B67: 805 | C67: Purchased Gas Cost Adj - Other | M67: 62
A68: 568 | D68: Utah | F68: 0 | G68: 0 | H68: 0 | I68: 0 | K68: 0 | L68: =+K68-G68 -> 0 | M68: 63
A69: 569 | D69: Wyoming | F69: 0 | G69: 0 | H69: 0 | I69: 0 | K69: 0 | L69: =+K69-G69 -> 0 | M69: 64
A70: 570 | D70: Total | F70: 0 | G70: 0 | H70: 0 | I70: 0 | K70: 0 | L70: =+K70-G70 -> 0 | M70: 65
A71: 571 | M71: 66
A72: 572 | B72: 8051 | C72: Purchased Gas Cost Adj - Utah | M72: =+M71+1 -> 67
A73: 573 | D73: Utah | F73: -6988002.483 | G73: -133171010.6 | H73: -41317413.98 | I73: -41317413.98 | K73: -41317413.98 | L73: =+K73-G73 -> 91853596.64 | M73: 68
A74: 574 | D74: Wyoming | F74: -333710.4875 | G74: -4272000.181 | H74: -1373019.413 | I74: -1373019.413 | K74: -1373019.413 | L74: =+K74-G74 -> 2898980.768 | M74: 69
A75: 575 | D75: Total | F75: -7321712.97 | G75: -137443010.8 | H75: -42690433.39 | I75: -42690433.39 | K75: -42690433.39 | L75: =+K75-G75 -> 94752577.41 | M75: 70
A76: =+A75+1 -> 576 | M76: 71
A77: 577 | B77: 806 | C77: Exchange Gas | M77: 72
A78: 578 | D78: Utah | F78: 0 | G78: 6557968.395 | H78: 7828731.561 | I78: 7828731.561 | K78: 7828731.561 | L78: =+K78-G78 -> 1270763.167 | M78: 73
A79: 579 | D79: Wyoming | F79: 0 | G79: 213523.2953 | H79: 296819.4686 | I79: 296819.4686 | K79: 296819.4686 | L79: =+K79-G79 -> 83296.17333 | M79: 74
A80: 580 | D80: Total | F80: 0 | G80: 6771491.69 | H80: 8125551.03 | I80: 8125551.03 | K80: 8125551.03 | L80: =+K80-G80 -> 1354059.34 | M80: 75
A81: 581 | K81: =IF(HLOOKUP($K$6,$F$6:$I$431,M81,FALSE)="","",HLOOKUP($K$6,$F$6:$I$431,M81,FALSE)) ->  | M81: 76
A82: 582 | B82: 8081 | C82: Gas Withdrawn Underground Storage | M82: 77
A83: 583 | D83: Utah | F83: 70911454.52 | G83: 71015916.55 | H83: 63670235.65 | I83: 63670235.65 | K83: 63670235.65 | L83: =+K83-G83 -> -7345680.898 | M83: 78
A84: 584 | D84: Wyoming | F84: 2569744.06 | G84: 2408140.903 | H84: 2411669.88 | I84: 2411669.88 | K84: 2411669.88 | L84: =+K84-G84 -> 3528.977787 | M84: 79
A85: 585 | D85: Total | F85: 73481198.58 | G85: 73424057.45 | H85: 66081905.53 | I85: 66081905.53 | K85: 66081905.53 | L85: =+K85-G85 -> -7342151.92 | M85: 80
A86: 586 | M86: 81
A87: 587 | B87: 8082 | C87: Gas Delivered to Underground Storage | M87: 82
A88: 588 | D88: Utah | F88: -74590296.67 | G88: -74269722.97 | H88: -65742705.46 | I88: -65742705.46 | K88: -65742705.46 | L88: =+K88-G88 -> 8527017.51 | M88: 83
A89: 589 | D89: Wyoming | F89: -2447988.11 | G89: -2345466.891 | H89: -2137164.181 | I89: -2137164.181 | K89: -2137164.181 | L89: =+K89-G89 -> 208302.7097 | M89: 84
A90: 590 | D90: Total | F90: -77038284.78 | G90: -76615189.86 | H90: -67879869.64 | I90: -67879869.64 | K90: -67879869.64 | L90: =+K90-G90 -> 8735320.22 | M90: 85
A91: 591 | M91: 86
A92: 592 | B92: 8083 | C92: Exchange Gas | M92: 87
A93: 593 | D93: Utah | F93: 3829995.617 | G93: 2444562.046 | H93: 3041387.152 | I93: 3041387.152 | K93: 3041387.152 | L93: =+K93-G93 -> 596825.1058 | M93: 88
A94: 594 | D94: Wyoming | F94: 138806.3833 | G94: 80434.10426 | H94: 109319.1284 | I94: 109319.1284 | K94: 109319.1284 | L94: =+K94-G94 -> 28885.02419 | M94: 89
A95: 595 | D95: Total | F95: 3968802 | G95: 2524996.15 | H95: 3150706.28 | I95: 3150706.28 | K95: 3150706.28 | L95: =+K95-G95 -> 625710.13 | M95: 90
A96: 596 | M96: 91
A97: 597 | B97: 813 | C97: Other Gas Supply Expenses - Gas Cost | M97: 92
A98: 598 | D98: Utah | F98: 310247092.6 | G98: 234770650 | H98: 235277599.8 | I98: 235277599.8 | K98: 235277599.8 | L98: =+K98-G98 -> 506949.7262 | M98: 93
A99: 599 | D99: Wyoming | F99: 11198142.05 | G99: 7626610.294 | H99: 8411786.728 | I99: 8411786.728 | K99: 8411786.728 | L99: =+K99-G99 -> 785176.4338 | M99: 94
A100: 600 | D100: Total | F100: 321445234.6 | G100: 242397260.3 | H100: 243689386.5 | I100: 243689386.5 | K100: 243689386.5 | L100: =+K100-G100 -> 1292126.16 | M100: 95
A101: 601 | M101: 96
A102: 602 | B102: 813 | C102: Other Gas Supply Expenses - SNG Cost | M102: 97
A103: 603 | D103: Utah | F103: 0 | G103: 0 | H103: 0 | I103: 0 | K103: 0 | L103: =+K103-G103 -> 0 | M103: 98
A104: 604 | D104: Wyoming | F104: 0 | G104: 0 | H104: 0 | I104: 0 | K104: 0 | L104: =+K104-G104 -> 0 | M104: 99
A105: 605 | D105: Total | F105: 0 | G105: 0 | H105: 0 | I105: 0 | K105: 0 | L105: =+K105-G105 -> 0 | M105: 100
A106: 606 | M106: 101
A107: 607 | B107: 8135 | C107: CO2 Processing Expenses | M107: 102
A108: 608 | D108: Utah | F108: 0 | G108: 0 | H108: 0 | I108: 0 | K108: 0 | L108: =+K108-G108 -> 0 | M108: 103
A109: 609 | D109: Wyoming | F109: 0 | G109: 0 | H109: 0 | I109: 0 | K109: 0 | L109: =+K109-G109 -> 0 | M109: 104
A110: 610 | D110: Total | F110: 0 | G110: 0 | H110: 0 | I110: 0 | K110: 0 | L110: =+K110-G110 -> 0 | M110: 105
A111: 611 | M111: 106
A112: 612 | B112: 858 | C112: Transportation GRI & ACA - Gas Cost | M112: 107
A113: 613 | D113: Utah | F113: 66406271.8 | G113: 70316491.13 | H113: 63423326.12 | I113: 63423326.12 | K113: 63423326.12 | L113: =+K113-G113 -> -6893165.013 | M113: 108
A114: 614 | D114: Wyoming | F114: 2404857.589 | G114: 2312918.705 | H114: 2291093.028 | I114: 2291093.028 | K114: 2291093.028 | L114: =+K114-G114 -> -21825.67721 | M114: 109
A115: 615 | D115: Total | F115: 68811129.39 | G115: 72629409.84 | H115: 65714419.15 | I115: 65714419.15 | K115: 65714419.15 | L115: =+K115-G115 -> -6914990.69 | M115: 110
A116: 616 | M116: 111
A117: 617 | B117: 858 | C117: Trans & Comp by Others - SNG Cost | M117: 112
A118: 618 | D118: Utah | F118: 0 | G118: 0 | H118: 0 | I118: 0 | K118: 0 | L118: =+K118-G118 -> 0 | M118: 113
A119: 619 | D119: Wyoming | F119: 0 | G119: 0 | H119: 0 | I119: 0 | K119: 0 | L119: =+K119-G119 -> 0 | M119: 114
A120: 620 | D120: Total | F120: 0 | G120: 0 | H120: 0 | I120: 0 | K120: 0 | L120: =+K120-G120 -> 0 | M120: 115
A121: 621 | M121: 116
A122: 622 | B122: System Total Gas Purchase Expenses | M122: 117
A123: 623 | C123: Utah General Gas Purchase Exp | F123: 0 | G123: 0 | H123: 0 | I123: 0 | K123: 0 | L123: =+K123-G123 -> 0 | M123: 118
A124: 624 | C124: Utah Pass Through Gas Purchase Exp | F124: 536824955.3 | G124: 816029038 | H124: 511963937.9 | I124: 511963937.9 | K124: 511963937.9 | L124: -304065100.2 | M124: 119
A125: 625 | C125: Wyoming General Gas Purchase Exp | F125: 0 | G125: 0 | H125: 0 | I125: 0 | K125: 0 | L125: 0 | M125: 120
A126: 626 | C126: Wyoming Pass Through Gas Purch Exp | F126: 18575633.42 | G126: 27003240.44 | H126: 18614345.7 | I126: 18614345.7 | K126: 18614345.7 | L126: -8388894.744 | M126: 121
A127: 627 | C127: Utah Timing Differences | F127: -360521.4643 | G127: 0 | H127: 2845700.948 | I127: 2845700.948 | K127: 2845700.948 | L127: 2845700.948 | M127: 122
A128: 628 | C128: Wyoming Timing Differences | F128: 909617.2603 | G128: 27003240.44 | H128: -164553.1884 | I128: -164553.1884 | K128: -164553.1884 | L128: -27167793.63 | M128: 123
A129: 629 | M129: 124
A130: 630 | M130: 125
A131: 631 | C131: System Total Gas Purchase Expenses | F131: 555949684.6 | G131: 870035518.9 | H131: 533259431.3 | I131: 533259431.3 | K131: 533259431.3 | L131: =+K131-G131 -> -336776087.6 | M131: 126
A132: 632 | H132: =SUM(H123:H126) -> 530578283.6 | I132: =SUM(I123:I126) -> 530578283.6 | K132: 530578283.6 | M132: 127
A133: 633 | M133: 128
A134: 634 | B134: OPERATION AND MAINTENANCE EXPENSES | M134: 129
A135: 635 | M135: 130
A136: 636 | B136: Production Expenses | M136: =+M135+1 -> 131
A137: 637 | M137: 132
A138: 638 | B138: 810 | C138: Gas Used for Compressor Station Fuel | F138: -14233 | G138: -15226.42 | H138: ='PROJECTED EXPENSES'!AU10 -> -15365.74174 | I138: ='PROJECTED EXPENSES'!AV10 -> -15506.79925 | K138: -15365.74174 | L138: =+K138-G138 -> -139.321743 | M138: 133
A139: 639 | B139: 812 | C139: Gas Used for Other Utility Operations | F139: -893091.93 | G139: -327962.96 | H139: ='PROJECTED EXPENSES'!AU11 -> -330963.8211 | I139: ='PROJECTED EXPENSES'!AV11 -> -334002.069 | K139: -330963.8211 | L139: =+K139-G139 -> -3000.861084 | M139: 134
A140: =+A139+1 -> 640 | M140: 135
A141: 641 | C141: Total Production Expenses | F141: -907324.93 | G141: -343189.38 | H141: =SUM(H138:H139) -> -346329.5628 | I141: =SUM(I138:I139) -> -349508.8682 | K141: -346329.5628 | L141: =+K141-G141 -> -3140.182827 | M141: 136
A142: 642 | M142: 137
A143: 643 | B143: Distribution Operations & Maintenance Expenses | M143: 138
A144: 644 | M144: 139
A145: 645 | B145: 870 | C145: Operation Supervision & Engineering | K145: =IF(HLOOKUP($K$6,$F$6:$I$431,M145,FALSE)="","",HLOOKUP($K$6,$F$6:$I$431,M145,FALSE)) ->  | M145: 140
A146: 646 | D146: Utah | F146: 11130355.12 | G146: 8007090.36 | H146: ='PROJECTED EXPENSES'!AU18 -> 8280696.547 | I146: ='PROJECTED EXPENSES'!AV18 -> 8489002.364 | K146: 8280696.547 | L146: =+K146-G146 -> 273606.1866 | M146: 141
A147: 647 | D147: Wyoming | F147: 643277.56 | G147: 551861.57 | H147: ='PROJECTED EXPENSES'!AU19 -> 570718.9493 | I147: ='PROJECTED EXPENSES'!AV19 -> 585075.7219 | K147: 570718.9493 | L147: =+K147-G147 -> 18857.37926 | M147: 142
A148: 648 | D148: Total | F148: 11773632.68 | G148: 8558951.93 | H148: =SUM(H146:H147) -> 8851415.496 | I148: =SUM(I146:I147) -> 9074078.086 | K148: 8851415.496 | L148: =+K148-G148 -> 292463.5658 | M148: 143
A149: 649 | M149: 144
A150: 650 | B150: 871 | C150: Distribution Load Dispatching | M150: 145
A151: 651 | D151: Utah | F151: 1879996.22 | G151: 1109522.94 | H151: ='PROJECTED EXPENSES'!AU23 -> 1148176.199 | I151: ='PROJECTED EXPENSES'!AV23 -> 1153471.091 | K151: 1148176.199 | L151: =+K151-G151 -> 38653.25908 | M151: 146
A152: 652 | D152: Wyoming | F152: 30806.41 | G152: 11235.76 | H152: ='PROJECTED EXPENSES'!AU24 -> 11627.18836 | I152: ='PROJECTED EXPENSES'!AV24 -> 11680.80792 | K152: 11627.18836 | L152: =+K152-G152 -> 391.4283577 | M152: 147
A153: 653 | D153: Total | F153: 1910802.63 | G153: 1120758.7 | H153: =SUM(H151:H152) -> 1159803.387 | I153: =SUM(I151:I152) -> 1165151.899 | K153: 1159803.387 | L153: =+K153-G153 -> 39044.68743 | M153: 148
A154: 654 | M154: 149
A155: 655 | B155: 872 | C155: Compressor Station Labor & Expenses | M155: 150
A156: 656 | D156: Utah | F156: 0 | G156: 0 | H156: ='PROJECTED EXPENSES'!AU28 -> 0 | I156: ='PROJECTED EXPENSES'!AV28 -> 0 | K156: 0 | L156: =+K156-G156 -> 0 | M156: 151
A157: 657 | D157: Wyoming | F157: 0 | G157: 0 | H157: ='PROJECTED EXPENSES'!AU29 -> 0 | I157: ='PROJECTED EXPENSES'!AV29 -> 0 | K157: 0 | L157: =+K157-G157 -> 0 | M157: 152
A158: 658 | D158: Total | F158: 0 | G158: 0 | H158: =SUM(H156:H157) -> 0 | I158: =SUM(I156:I157) -> 0 | K158: 0 | L158: =+K158-G158 -> 0 | M158: 153
A159: 659 | M159: 154
A160: 660 | B160: 873 | C160: Compressor Station Fuel & Power | M160: 155
A161: 661 | D161: Utah | F161: 14233 | G161: 0 | H161: ='PROJECTED EXPENSES'!AU33 -> 0 | I161: ='PROJECTED EXPENSES'!AV33 -> 0 | K161: 0 | L161: =+K161-G161 -> 0 | M161: 156
A162: 662 | D162: Wyoming | F162: 0 | G162: 43.52 | H162: ='PROJECTED EXPENSES'!AU34 -> 38.21056 | I162: ='PROJECTED EXPENSES'!AV34 -> 34.389504 | K162: 38.21056 | L162: =+K162-G162 -> -5.30944 | M162: 157
A163: 663 | D163: Total | F163: 14233 | G163: 43.52 | H163: =SUM(H161:H162) -> 38.21056 | I163: =SUM(I161:I162) -> 34.389504 | K163: 38.21056 | L163: =+K163-G163 -> -5.30944 | M163: 158
A164: 664 | M164: 159
A165: 665 | B165: 874 | C165: Mains & Service Expenses | M165: 160
A166: 666 | D166: Utah | F166: 12278206.64 | G166: 19547027.86 | H166: ='PROJECTED EXPENSES'!AU38 -> 19191198.67 | I166: ='PROJECTED EXPENSES'!AV38 -> 18897345.51 | K166: 19191198.67 | L166: =+K166-G166 -> -355829.1926 | M166: 161
A167: 667 | D167: Wyoming | F167: 451742.14 | G167: 542770.41 | H167: ='PROJECTED EXPENSES'!AU39 -> 532889.9536 | I167: ='PROJECTED EXPENSES'!AV39 -> 524730.4114 | K167: 532889.9536 | L167: =+K167-G167 -> -9880.456413 | M167: 162
A168: 668 | D168: Total | F168: 12729948.78 | G168: 20089798.27 | H168: =SUM(H166:H167) -> 19724088.62 | I168: =SUM(I166:I167) -> 19422075.92 | K168: 19724088.62 | L168: =+K168-G168 -> -365709.6491 | M168: 163
A169: 669 | M169: 164
A170: 670 | B170: 875 | C170: Measuring & Regulating Station Expenses | M170: 165
A171: 671 | D171: Utah | F171: 2204987.88 | G171: 3237145.33 | H171: ='PROJECTED EXPENSES'!AU43 -> 3324451.367 | I171: ='PROJECTED EXPENSES'!AV43 -> 3366460.03 | K171: 3324451.367 | L171: =+K171-G171 -> 87306.0373 | M171: 166
A172: 672 | D172: Wyoming | F172: 139069.87 | G172: 94220.86 | H172: ='PROJECTED EXPENSES'!AU44 -> 96762.00322 | I172: ='PROJECTED EXPENSES'!AV44 -> 97984.71395 | K172: 96762.00322 | L172: =+K172-G172 -> 2541.143223 | M172: 167
A173: 673 | D173: Total | F173: 2344057.75 | G173: 3331366.19 | H173: =SUM(H171:H172) -> 3421213.371 | I173: =SUM(I171:I172) -> 3464444.744 | K173: 3421213.371 | L173: =+K173-G173 -> 89847.18052 | M173: 168
A174: 674 | M174: 169
A175: 675 | B175: 878 | C175: Meter & House Regulator Expenses | M175: 170
A176: 676 | D176: Utah | F176: 2725264.35 | G176: 2732653.67 | H176: ='PROJECTED EXPENSES'!AU48 -> 2802909.517 | I176: ='PROJECTED EXPENSES'!AV48 -> 2859611.447 | K176: 2802909.517 | L176: =+K176-G176 -> 70255.84727 | M176: 171
A177: 677 | D177: Wyoming | F177: 214421.77 | G177: 216042.05 | H177: ='PROJECTED EXPENSES'!AU49 -> 221596.4375 | I177: ='PROJECTED EXPENSES'!AV49 -> 226079.2598 | K177: 221596.4375 | L177: =+K177-G177 -> 5554.387457 | M177: 172
A178: 678 | D178: Total | F178: 2939686.12 | G178: 2948695.72 | H178: =SUM(H176:H177) -> 3024505.955 | I178: =SUM(I176:I177) -> 3085690.706 | K178: 3024505.955 | L178: =+K178-G178 -> 75810.23472 | M178: 173
A179: 679 | M179: 174
A180: 680 | B180: 879 | C180: Customer Installations Expenses | M180: 175
A181: 681 | D181: Utah | F181: 2960079.4 | G181: 1941322.53 | H181: ='PROJECTED EXPENSES'!AU53 -> 1993503.73 | I181: ='PROJECTED EXPENSES'!AV53 -> 2042857.481 | K181: 1993503.73 | L181: =+K181-G181 -> 52181.19976 | M181: 176
A182: 682 | D182: Wyoming | F182: 118847.08 | G182: 60458.78 | H182: ='PROJECTED EXPENSES'!AU54 -> 62083.86374 | I182: ='PROJECTED EXPENSES'!AV54 -> 63620.89201 | K182: 62083.86374 | L182: =+K182-G182 -> 1625.083739 | M182: 177
A183: 683 | D183: Total | F183: 3078926.48 | G183: 2001781.31 | H183: =SUM(H181:H182) -> 2055587.593 | I183: =SUM(I181:I182) -> 2106478.374 | K183: 2055587.593 | L183: =+K183-G183 -> 53806.28349 | M183: 178
A184: 684 | M184: 179
A185: 685 | B185: 880 | C185: Other Expenses | M185: 180
A186: 686 | D186: Utah | F186: 7913746.81 | G186: 19815499.93 | H186: ='PROJECTED EXPENSES'!AU58 -> 20094378.13 | I186: ='PROJECTED EXPENSES'!AV58 -> 20069750.58 | K186: 20094378.13 | L186: =+K186-G186 -> 278878.1964 | M186: 181
A187: 687 | D187: Wyoming | F187: 652900.72 | G187: 1326612.85 | H187: ='PROJECTED EXPENSES'!AU59 -> 1345283.254 | I187: ='PROJECTED EXPENSES'!AV59 -> 1343634.483 | K187: 1345283.254 | L187: =+K187-G187 -> 18670.40449 | M187: 182
A188: 688 | D188: Total | F188: 8566647.53 | G188: 21142112.78 | H188: =SUM(H186:H187) -> 21439661.38 | I188: =SUM(I186:I187) -> 21413385.06 | K188: 21439661.38 | L188: =+K188-G188 -> 297548.6009 | M188: 183
A189: 689 | M189: 184
A190: 690 | B190: 881 | C190: Rents | M190: 185
A191: 691 | D191: Utah | F191: 42721.05 | G191: 178160.5 | H191: ='PROJECTED EXPENSES'!AU63 -> 183446.5351 | I191: ='PROJECTED EXPENSES'!AV63 -> 182667.2643 | K191: 183446.5351 | L191: =+K191-G191 -> 5286.035094 | M191: 186
A192: 692 | D192: Wyoming | F192: 1403.79 | G192: 799.08 | H192: ='PROJECTED EXPENSES'!AU64 -> 822.7887622 | I192: ='PROJECTED EXPENSES'!AV64 -> 819.2936007 | K192: 822.7887622 | L192: =+K192-G192 -> 23.70876217 | M192: 187
A193: 693 | D193: Total | F193: 44124.84 | G193: 178959.58 | H193: =SUM(H191:H192) -> 184269.3239 | I193: =SUM(I191:I192) -> 183486.5579 | K193: 184269.3239 | L193: =+K193-G193 -> 5309.743856 | M193: 188
A194: 694 | M194: 189
A195: 695 | B195: 885 | C195: Maintenance Supervision & Engineering | M195: 190
A196: 696 | D196: Utah | F196: 542083.93 | G196: 0 | H196: ='PROJECTED EXPENSES'!AU68 -> 0 | I196: ='PROJECTED EXPENSES'!AV68 -> 0 | K196: 0 | L196: =+K196-G196 -> 0 | M196: 191
A197: 697 | D197: Wyoming | F197: 16345.48 | G197: 0 | H197: ='PROJECTED EXPENSES'!AU69 -> 0 | I197: ='PROJECTED EXPENSES'!AV69 -> 0 | K197: 0 | L197: =+K197-G197 -> 0 | M197: 192
A198: 698 | D198: Total | F198: 558429.41 | G198: 0 | H198: =SUM(H196:H197) -> 0 | I198: =SUM(I196:I197) -> 0 | K198: 0 | L198: =+K198-G198 -> 0 | M198: 193
A199: 699 | M199: 194
A200: 700 | B200: 886 | C200: Maintenance of Structures & Improvements | M200: =+M199+1 -> 195
... 250 more rows

Sheet Rate Base
B1: Rate Base
B2: ='Control Panel'!$B$1 -> Dominion Energy | AU2: Rate Base | AY2: A | AZ2: B | BA2: (A - B)
B3: ='Control Panel'!$B$2 -> Utah - DEC 2023 Adjusted Avg Results | J3: 12 Mos Dec-2022 | AU3: ='Control Panel'!$B$1 -> Dominion Energy
B4: ='Control Panel'!$B$3 -> 12 Months Ended : Dec-2023 | AU4: ='Control Panel'!$B$2 -> Utah - DEC 2023 Adjusted Avg Results
J5: 44896 | AG5: 13 Month | AU5: ='Control Panel'!$B$3 -> 12 Months Ended : Dec-2023
AG6: Average | AZ6: 13 Month
AG7: All Accounts | AQ7: HOT | AZ7: Average | BA7: 13 Month
AG8: =+AE9 -> 2022-12-21 | AI8: YE RB DEC 2022 | AJ8: AVG RB DEC 2022 | AK8: AVG RB DEC 2023 | AL8: YE RB DEC 2023 | AM8: AVG RB DEC 2024 | AN8: YE RB DEC 2024 | AP8: =+'Control Panel'!B27 -> AVG RB DEC 2023 | AR8: 1 | AS8: 1 | AY8: Balance | AZ8: All Accounts | BA8: Average
B9: FERC Acct | D9: Description | H9: 2021-01-01 | I9: 2021-02-01 | J9: 2021-03-01 | K9: 2021-04-01 | L9: 2021-05-01 | M9: 2021-06-01 | N9: 2021-07-01 | O9: 2021-08-01 | P9: 2021-09-01 | Q9: 2021-10-01 | R9: 2021-11-01 | S9: 2021-12-01 | T9: 2022-01-21 | U9: 2022-02-21 | V9: 2022-03-21 | W9: 2022-04-21 | X9: 2022-05-21 | Y9: 2022-06-21 | Z9: 2022-07-21 | AA9: 2022-08-21 | AB9: 2022-09-21 | AC9: 2022-10-21 | AD9: 2022-11-21 | AE9: 2022-12-21 | AQ9: Adjustment | AR9: =+AR8+1 -> 2 | AS9: =+AS8+1 -> 2 | AU9: FERC Acct | AW9: Description | AY9: =AE9 -> 2022-12-21 | AZ9: =+'Control Panel'!B27 -> AVG RB DEC 2023 | BA9: Adjustment
A10: 939 | B10: UTILITy RATE BASE | AR10: 3 | AS10: 3 | AU10: UTILITY RATE BASE
A11: =+A10+1 -> 940 | B11: NET UTILITy PLANT | AR11: =+AR10+1 -> 4 | AS11: 4 | AU11: NET UTILITY PLANT
A12: =+A11+1 -> 941 | B12: Gas Plant In Seryice | AR12: 5 | AS12: 5 | AU12: Gas Plant In Seryice
A13: 942 | C13: Intangible Plant | AR13: 6 | AS13: 6 | AV13: Intangible Plant
A14: 943 | B14: 302 | C14: Franchises & Consents | AR14: 7 | AS14: 7 | AU14: 302 | AV14: Franchises & Consents
A15: 944 | C15: Distribution - Wyoming | H15: 10883.08 | I15: 10883.08 | J15: 10883.08 | K15: 10883.08 | L15: 10883.08 | M15: 10883.08 | N15: 10883.08 | O15: 10883.08 | P15: 10883.08 | Q15: 10883.08 | R15: 10883.08 | S15: 10883.08 | T15: 10883.08 | U15: 10883.08 | V15: 10883.08 | W15: 10883.08 | X15: 10883.08 | Y15: 10883.08 | Z15: 10883.08 | AA15: 10883.08 | AB15: 10883.08 | AC15: 10883.08 | AD15: 10883.08 | AE15: 10883.08 | AG15: =(SUM(T15:AD15)+(0.5*AE15)+(0.5*S15))/12 -> 10883.08 | AI15: =AE15 -> 10883.08 | AJ15: =AG15 -> 10883.08 | AK15: =+'RB FORECAST'!AJ17 -> 21511.6409 | AL15: =+'RB FORECAST'!AG17 -> 23030.00675 | AM15: =+'RB FORECAST'!BA17 -> 23030.00675 | AN15: =+'RB FORECAST'!AW17 -> 23030.00675 | AP15: =HLOOKUP($AP$8,RateBaseScenarios,AR15,FALSE) -> 21511.6409 | AQ15: =AP15-AE15 -> 10628.5609 | AR15: 8 | AS15: 3 | AV15: Distribution - Wyoming | AY15: =+AE15 -> 10883.08 | AZ15: =AP15 -> 21511.6409 | BA15: =AZ15-AY15 -> 10628.5609
A16: 945 | C16: Distribution - Utah | H16: 58742.88 | I16: 58742.88 | J16: 58742.88 | K16: 58742.88 | L16: 58742.88 | M16: 58742.88 | N16: 58742.88 | O16: 1196564.08 | P16: 1206298.02 | Q16: 1899799.44 | R16: 1906984.63 | S16: 2110492.07 | T16: 2110492.07 | U16: 2213069.3 | V16: 2213069.3 | W16: 2213069.3 | X16: 2213069.3 | Y16: 2213069.3 | Z16: 2213069.3 | AA16: 2213069.3 | AB16: 2213069.3 | AC16: 2213069.3 | AD16: 2213069.3 | AE16: 2213069.3 | AG16: =(SUM(T16:AD16)+(0.5*AE16)+(0.5*S16))/12 -> 2200247.146 | AI16: =AE16 -> 2213069.3 | AJ16: =AG16 -> 2200247.146 | AK16: =+'RB FORECAST'!AJ18 -> 4374382.259 | AL16: =+'RB FORECAST'!AG18 -> 4683141.253 | AM16: =+'RB FORECAST'!BA18 -> 4683141.253 | AN16: =+'RB FORECAST'!AW18 -> 4683141.253 | AP16: =HLOOKUP($AP$8,RateBaseScenarios,AR16,FALSE) -> 4374382.259 | AQ16: =AP16-AE16 -> 2161312.959 | AR16: 9 | AS16: 4 | AV16: Distribution - Utah | AY16: =+AE16 -> 2213069.3 | AZ16: =AP16 -> 4374382.259 | BA16: =AZ16-AY16 -> 2161312.959
A17: 946 | AR17: 10 | AS17: 5
A18: 947 | C18: Total Intangible Plant | H18: 69625.96 | I18: 69625.96 | J18: 69625.96 | K18: 69625.96 | L18: 69625.96 | M18: 69625.96 | N18: 69625.96 | O18: 1207447.16 | P18: 1217181.1 | Q18: 1910682.52 | R18: 1917867.71 | S18: =SUM(S15:S17) -> 2121375.15 | T18: 2121375.15 | U18: 2223952.38 | V18: 2223952.38 | W18: 2223952.38 | X18: 2223952.38 | Y18: 2223952.38 | Z18: 2223952.38 | AA18: 2223952.38 | AB18: 2223952.38 | AC18: 2223952.38 | AD18: 2223952.38 | AE18: 2223952.38 | AG18: =SUM(AG15:AG16) -> 2211130.226 | AI18: =AE18 -> 2223952.38 | AJ18: =AG18 -> 2211130.226 | AK18: =SUM(AK15:AK17) -> 4395893.9 | AL18: =SUM(AL15:AL17) -> 4706171.26 | AM18: =SUM(AM15:AM17) -> 4706171.26 | AN18: 4706171.26 | AP18: =HLOOKUP($AP$8,RateBaseScenarios,AR18,FALSE) -> 4395893.9 | AQ18: =SUM(AQ15:AQ17) -> 2171941.52 | AR18: 11 | AS18: 6 | AV18: Total Intangible Plant | AY18: =AI18 -> 2223952.38 | AZ18: =AJ18 -> 2211130.226 | BA18: =AZ18-AY18 -> -12822.15375
A19: 948 | AR19: 12 | AS19: 7
A20: 949 | C20: Production & Gathering Plant | AR20: 13 | AS20: 8 | AV20: Production & Gathering Plant
A21: 950 | B21: 325 | C21: Land & Land Rights | H21: 6266764.34 | I21: 6266764.34 | J21: 6266764.34 | K21: 6266764.34 | L21: 6266764.34 | M21: 6266764.34 | N21: 6266764.34 | O21: 6266764.34 | P21: 6266764.34 | Q21: 6266764.34 | R21: 6266764.34 | S21: 6266764.34 | T21: 6266764.34 | U21: 6815650.81 | V21: 6266764.34 | W21: 6266764.34 | X21: 6266764.34 | Y21: 6266764.34 | Z21: 6266764.34 | AA21: 6266764.34 | AB21: 6266764.34 | AC21: 6266764.34 | AD21: 6266764.34 | AE21: 6266764.34 | AG21: =(SUM(T21:AD21)+(0.5*AE21)+(0.5*S21))/12 -> 6312504.879 | AI21: =AE21 -> 6266764.34 | AJ21: =AG21 -> 6312504.879 | AK21: =+'RB FORECAST'!AJ23 -> 6266764.34 | AL21: =+'RB FORECAST'!AG23 -> 6266764.34 | AM21: =+'RB FORECAST'!BA23 -> 6266764.34 | AN21: =+'RB FORECAST'!AW23 -> 6266764.34 | AP21: =HLOOKUP($AP$8,RateBaseScenarios,AR21,FALSE) -> 6266764.34 | AQ21: =AP21-AE21 -> 0 | AR21: 14 | AS21: 9 | AU21: 325 | AV21: Land & Land Rights | AY21: =+AE21 -> 6266764.34 | AZ21: =AP21 -> 6266764.34 | BA21: =AZ21-AY21 -> 0
A22: 951 | B22: 326...9 | C22: Structures | H22: 1437704.34 | I22: 1437704.34 | J22: 1437704.34 | K22: 1437704.34 | L22: 1437704.34 | M22: 1437704.34 | N22: 1437704.34 | O22: 1437704.34 | P22: 1437704.34 | Q22: 1437704.34 | R22: 1437704.34 | S22: 1437704.34 | T22: 1437704.34 | U22: 1437704.34 | V22: 1437704.34 | W22: 1437704.34 | X22: 1437704.34 | Y22: 1437704.34 | Z22: 1437704.34 | AA22: 1437704.34 | AB22: 1437704.34 | AC22: 1437704.34 | AD22: 1437704.34 | AE22: 1437704.34 | AG22: =(SUM(T22:AD22)+(0.5*AE22)+(0.5*S22))/12 -> 1437704.34 | AI22: =AE22 -> 1437704.34 | AJ22: =AG22 -> 1437704.34 | AK22: =+'RB FORECAST'!AJ24 -> 1437704.34 | AL22: =+'RB FORECAST'!AG24 -> 1437704.34 | AM22: =+'RB FORECAST'!BA24 -> 1437704.34 | AN22: =+'RB FORECAST'!AW24 -> 1437704.34 | AP22: 1437704.34 | AQ22: 0 | AR22: 15 | AS22: 10 | AU22: 326...9 | AV22: Structures | AY22: 1437704.34 | AZ22: 1437704.34 | BA22: 0
A23: 952 | B23: 330 | C23: Gas Wells - Construction | H23: 52175293.81 | I23: 52175293.81 | J23: 52175293.81 | K23: 52175293.81 | L23: 52175293.81 | M23: 52175293.81 | N23: 52175293.81 | O23: 52175293.81 | P23: 52175293.81 | Q23: 52175293.81 | R23: 52175293.81 | S23: 52175293.81 | T23: 52175293.81 | U23: 52175293.81 | V23: 52175293.81 | W23: 52175293.81 | X23: 52175293.81 | Y23: 52175293.81 | Z23: 52175293.81 | AA23: 52175293.81 | AB23: 52175293.81 | AC23: 52175293.81 | AD23: 52175293.81 | AE23: 52175293.81 | AG23: =(SUM(T23:AD23)+(0.5*AE23)+(0.5*S23))/12 -> 52175293.81 | AI23: 52175293.81 | AJ23: 52175293.81 | AK23: =+'RB FORECAST'!AJ25 -> 52175293.81 | AL23: =+'RB FORECAST'!AG25 -> 52175293.81 | AM23: =+'RB FORECAST'!BA25 -> 52175293.81 | AN23: =+'RB FORECAST'!AW25 -> 52175293.81 | AP23: 52175293.81 | AQ23: 0 | AR23: 16 | AS23: 11 | AU23: 330 | AV23: Gas Wells - Construction | AY23: 52175293.81 | AZ23: 52175293.81 | BA23: 0
A24: 953 | B24: 331 | C24: Gas Wells - Equipment | H24: 17216356.05 | I24: 17216356.05 | J24: 17216356.05 | K24: 17216356.05 | L24: 17216356.05 | M24: 17216356.05 | N24: 17216356.05 | O24: 17216356.05 | P24: 17216356.05 | Q24: 17216356.05 | R24: 17216356.05 | S24: 17216356.05 | T24: 17216356.05 | U24: 17216356.05 | V24: 17216356.05 | W24: 17216356.05 | X24: 17216356.05 | Y24: 17216356.05 | Z24: 17216356.05 | AA24: 17216356.05 | AB24: 17216356.05 | AC24: 17216356.05 | AD24: 17216356.05 | AE24: 17216356.05 | AG24: 17216356.05 | AI24: 17216356.05 | AJ24: 17216356.05 | AK24: =+'RB FORECAST'!AJ26 -> 17216356.05 | AL24: =+'RB FORECAST'!AG26 -> 17216356.05 | AM24: =+'RB FORECAST'!BA26 -> 17216356.05 | AN24: =+'RB FORECAST'!AW26 -> 17216356.05 | AP24: 17216356.05 | AQ24: 0 | AR24: 17 | AS24: 12 | AU24: 331 | AV24: Gas Wells - Equipment | AY24: 17216356.05 | AZ24: 17216356.05 | BA24: 0
A25: 954 | B25: 332...4 | C25: Field Lines & Comp, Meas & Reg St Eqpt | H25: 2693816.12 | I25: 2693816.12 | J25: 2693816.12 | K25: 3057767.14 | L25: 3057767.14 | M25: 2693816.12 | N25: 2693816.12 | O25: 2693816.12 | P25: 2693816.12 | Q25: 2693816.12 | R25: 2693816.12 | S25: 2693816.12 | T25: 2693816.12 | U25: 2693816.12 | V25: 2693816.12 | W25: 2693816.12 | X25: 2693816.12 | Y25: 2693816.12 | Z25: 2693816.12 | AA25: 2693816.12 | AB25: 2693816.12 | AC25: 2693816.12 | AD25: 2693816.12 | AE25: 2693816.12 | AG25: 2693816.12 | AI25: 2693816.12 | AJ25: 2693816.12 | AK25: =+'RB FORECAST'!AJ27 -> 2693816.12 | AL25: =+'RB FORECAST'!AG27 -> 2693816.12 | AM25: =+'RB FORECAST'!BA27 -> 2693816.12 | AN25: =+'RB FORECAST'!AW27 -> 2693816.12 | AP25: 2693816.12 | AQ25: 0 | AR25: 18 | AS25: 13 | AU25: 332...4 | AV25: Field Lines & Comp, Meas & Reg St Eqpt | AY25: 2693816.12 | AZ25: 2693816.12 | BA25: 0
A26: 955 | B26: 336 | C26: Purification Equipment | H26: 57014.71 | I26: 57014.71 | J26: 57014.71 | K26: 57014.71 | L26: 57014.71 | M26: 57014.71 | N26: 57014.71 | O26: 57014.71 | P26: 57014.71 | Q26: 57014.71 | R26: 57014.71 | S26: 57014.71 | T26: 57014.71 | U26: 57014.71 | V26: 57014.71 | W26: 57014.71 | X26: 57014.71 | Y26: 57014.71 | Z26: 57014.71 | AA26: 57014.71 | AB26: 57014.71 | AC26: 57014.71 | AD26: 57014.71 | AE26: 57014.71 | AG26: 57014.71 | AI26: 57014.71 | AJ26: 57014.71 | AK26: =+'RB FORECAST'!AJ28 -> 57014.71 | AL26: =+'RB FORECAST'!AG28 -> 57014.71 | AM26: =+'RB FORECAST'!BA28 -> 57014.71 | AN26: =+'RB FORECAST'!AW28 -> 57014.71 | AP26: 57014.71 | AQ26: 0 | AR26: 19 | AS26: 14 | AU26: 336 | AV26: Purification Equipment | AY26: 57014.71 | AZ26: 57014.71 | BA26: 0
A27: 956 | B27: 337 | C27: Other Equipment | H27: 121186.63 | I27: 121186.63 | J27: 121186.63 | K27: 121186.63 | L27: 121186.63 | M27: 121186.63 | N27: 121186.63 | O27: 121186.63 | P27: 121186.63 | Q27: 121186.63 | R27: 121186.63 | S27: 121186.63 | T27: 121186.63 | U27: 121186.63 | V27: 121186.63 | W27: 121186.63 | X27: 121186.63 | Y27: 121186.63 | Z27: 121186.63 | AA27: 121186.63 | AB27: 121186.63 | AC27: 121186.63 | AD27: 121186.63 | AE27: 121186.63 | AG27: 121186.63 | AI27: 121186.63 | AJ27: 121186.63 | AK27: =+'RB FORECAST'!AJ29 -> 121186.63 | AL27: =+'RB FORECAST'!AG29 -> 121186.63 | AM27: =+'RB FORECAST'!BA29 -> 121186.63 | AN27: =+'RB FORECAST'!AW29 -> 121186.63 | AP27: 121186.63 | AQ27: 0 | AR27: 20 | AS27: 15 | AU27: 337 | AV27: Other Equipment | AY27: 121186.63 | AZ27: 121186.63 | BA27: 0
A28: 957 | AR28: 21 | AS28: 16
A29: 958 | C29: Total Production & Gathering Plant | H29: 79968136 | I29: 79968136 | J29: 79968136 | K29: 80332087.02 | L29: 80332087.02 | M29: 79968136 | N29: 79968136 | O29: 79968136 | P29: 79968136 | Q29: 79968136 | R29: 79968136 | S29: 79968136 | T29: 79968136 | U29: 80517022.47 | V29: 79968136 | W29: 79968136 | X29: 79968136 | Y29: 79968136 | Z29: 79968136 | AA29: 79968136 | AB29: 79968136 | AC29: 79968136 | AD29: 79968136 | AE29: 79968136 | AG29: =SUM(AG21:AG27) -> 80013876.54 | AI29: =AE29 -> 79968136 | AJ29: =AG29 -> 80013876.54 | AK29: =SUM(AK21:AK27) -> 79968136 | AL29: =SUM(AL21:AL27) -> 79968136 | AM29: =SUM(AM21:AM27) -> 79968136 | AN29: 79968136 | AP29: =HLOOKUP($AP$8,RateBaseScenarios,AR29,FALSE) -> 79968136 | AQ29: =SUM(AQ21:AQ27) -> 0 | AR29: 22 | AS29: 17 | AV29: Total Production & Gathering Plant | AY29: =AI29 -> 79968136 | AZ29: =AJ29 -> 80013876.54 | BA29: =AZ29-AY29 -> 45740.53917
A30: 959 | AR30: 23 | AS30: 18
A31: 960 | C31: Distribution Plant | AR31: 24 | AS31: 19 | AV31: Distribution Plant
A32: =A31+1 -> 961 | B32: 364 | C32: LNG Plant | AR32: =AR31+1 -> 25 | AU32: 364 | AV32: LNG Plant
A33: =A32+1 -> 962 | D33: Wyoming | H33: 0 | I33: 0 | J33: 0 | K33: 0 | L33: 0 | M33: 0 | N33: 0 | O33: 0 | P33: 0 | Q33: 0 | R33: 0 | S33: 0 | T33: 0 | U33: 0 | V33: 0 | W33: 0 | X33: 0 | Y33: 0 | Z33: 0 | AA33: 0 | AB33: 0 | AC33: 0 | AD33: 0 | AE33: 0 | AG33: =(SUM(T33:AD33)+(0.5*AE33)+(0.5*S33))/12 -> 0 | AI33: =AE33 -> 0 | AJ33: =AG33 -> 0 | AK33: ='RB FORECAST'!AJ35 -> 0 | AL33: ='RB FORECAST'!AG35 -> 0 | AM33: ='RB FORECAST'!BA35 -> 0 | AN33: ='RB FORECAST'!AW35 -> 0 | AP33: =HLOOKUP($AP$8,RateBaseScenarios,AR33,FALSE) -> 0 | AQ33: =AP33-AE33 -> 0 | AR33: =AR32+1 -> 26 | AW33: Wyoming | AY33: =+AE33 -> 0 | AZ33: =AP33 -> 0 | BA33: =AZ33-AY33 -> 0
A34: 963 | D34: Utah | H34: 0 | I34: 0 | J34: 0 | K34: 0 | L34: 0 | M34: 0 | N34: 0 | O34: 0 | P34: 0 | Q34: 0 | R34: 0 | S34: 0 | T34: 0 | U34: 0 | V34: 0 | W34: 0 | X34: 0 | Y34: 0 | Z34: 0 | AA34: 0 | AB34: 0 | AC34: 0 | AD34: 0 | AE34: 0 | AG34: =(SUM(T34:AD34)+(0.5*AE34)+(0.5*S34))/12 -> 0 | AI34: =AE34 -> 0 | AJ34: =AG34 -> 0 | AK34: ='RB FORECAST'!AJ36 -> 152657187.2 | AL34: ='RB FORECAST'!AG36 -> 160314939.1 | AM34: ='RB FORECAST'!BA36 -> 160961117.4 | AN34: ='RB FORECAST'!AW36 -> 161607295.6 | AP34: =HLOOKUP($AP$8,RateBaseScenarios,AR34,FALSE) -> 152657187.2 | AQ34: =AP34-AE34 -> 152657187.2 | AR34: 27 | AW34: Utah | AY34: =+AE34 -> 0 | AZ34: =AP34 -> 152657187.2 | BA34: =AZ34-AY34 -> 152657187.2
A35: 964 | D35: Total | H35: 0 | I35: 0 | J35: 0 | K35: 0 | L35: 0 | M35: 0 | N35: 0 | O35: 0 | P35: 0 | Q35: 0 | R35: 0 | S35: 0 | T35: 0 | U35: 0 | V35: 0 | W35: 0 | X35: 0 | Y35: 0 | Z35: 0 | AA35: 0 | AB35: 0 | AC35: 0 | AD35: 0 | AE35: 0 | AG35: =SUM(AG33:AG34) -> 0 | AI35: =AE35 -> 0 | AJ35: =AG35 -> 0 | AK35: ='RB FORECAST'!AJ37 -> 152657187.2 | AL35: ='RB FORECAST'!AG37 -> 160314939.1 | AM35: ='RB FORECAST'!BA37 -> 160961117.4 | AN35: ='RB FORECAST'!AW37 -> 161607295.6 | AP35: =HLOOKUP($AP$8,RateBaseScenarios,AR35,FALSE) -> 152657187.2 | AQ35: 152657187.2 | AR35: 28 | AW35: Total | AY35: 0 | AZ35: 152657187.2 | BA35: 152657187.2
A36: 965 | AR36: 29
A37: 966 | B37: 364.1 | C37: LNG Plant- Land | AR37: 30 | AU37: 364.1 | AV37: LNG Plant - Land
A38: 967 | D38: Wyoming | H38: 0 | I38: 0 | J38: 0 | K38: 0 | L38: 0 | M38: 0 | N38: 0 | O38: 0 | P38: 0 | Q38: 0 | R38: 0 | S38: 0 | T38: 0 | U38: 0 | V38: 0 | W38: 0 | X38: 0 | Y38: 0 | Z38: 0 | AA38: 0 | AB38: 0 | AC38: 0 | AD38: 0 | AE38: 0 | AG38: =(SUM(T38:AD38)+(0.5*AE38)+(0.5*S38))/12 -> 0 | AI38: =AE38 -> 0 | AJ38: =AG38 -> 0 | AK38: ='RB FORECAST'!AJ40 -> 0 | AL38: ='RB FORECAST'!AG40 -> 0 | AM38: ='RB FORECAST'!BA40 -> 0 | AN38: ='RB FORECAST'!AW40 -> 0 | AP38: =HLOOKUP($AP$8,RateBaseScenarios,AR38,FALSE) -> 0 | AQ38: =AP33-AE38 -> 0 | AR38: 31 | AW38: Wyoming | AY38: =+AE38 -> 0 | AZ38: =AP38 -> 0 | BA38: =AZ38-AY38 -> 0
A39: 968 | D39: Utah | H39: 0 | I39: 0 | J39: 0 | K39: 0 | L39: 0 | M39: 0 | N39: 0 | O39: 0 | P39: 0 | Q39: 0 | R39: 0 | S39: 0 | T39: 0 | U39: 0 | V39: 0 | W39: 0 | X39: 0 | Y39: 0 | Z39: 0 | AA39: 0 | AB39: 0 | AC39: 0 | AD39: 0 | AE39: 0 | AG39: =(SUM(T39:AD39)+(0.5*AE39)+(0.5*S39))/12 -> 0 | AI39: =AE39 -> 0 | AJ39: =AG39 -> 0 | AK39: ='RB FORECAST'!AJ41 -> 13855722.49 | AL39: ='RB FORECAST'!AG41 -> 14458145.21 | AM39: ='RB FORECAST'!BA41 -> 14458145.21 | AN39: ='RB FORECAST'!AW41 -> 14458145.21 | AP39: =HLOOKUP($AP$8,RateBaseScenarios,AR39,FALSE) -> 13855722.49 | AQ39: =AP39-AE39 -> 13855722.49 | AR39: 32 | AW39: Utah | AY39: =+AE39 -> 0 | AZ39: =AP39 -> 13855722.49 | BA39: =AZ39-AY39 -> 13855722.49
A40: 969 | D40: Total | H40: =SUM(H38:H39) -> 0 | I40: 0 | J40: 0 | K40: 0 | L40: 0 | M40: 0 | N40: 0 | O40: 0 | P40: 0 | Q40: 0 | R40: 0 | S40: 0 | T40: 0 | U40: 0 | V40: 0 | W40: 0 | X40: 0 | Y40: 0 | Z40: 0 | AA40: 0 | AB40: 0 | AC40: 0 | AD40: 0 | AE40: 0 | AG40: =SUM(AG38:AG39) -> 0 | AI40: =AE40 -> 0 | AJ40: =AG40 -> 0 | AK40: ='RB FORECAST'!AJ42 -> 13855722.49 | AL40: ='RB FORECAST'!AG42 -> 14458145.21 | AM40: ='RB FORECAST'!BA42 -> 14458145.21 | AN40: ='RB FORECAST'!AW42 -> 14458145.21 | AP40: =HLOOKUP($AP$8,RateBaseScenarios,AR40,FALSE) -> 13855722.49 | AQ40: =AP40-AE40 -> 13855722.49 | AR40: 33 | AW40: Total | AY40: 0 | AZ40: 13855722.49 | BA40: 13855722.49
A41: 970 | AR41: 34
A42: 971 | B42: 374 | C42: Land & Land Rights | AR42: 35 | AS42: =+AS31+1 -> 20 | AU42: 374 | AV42: Land & Land Rights
A43: 972 | D43: Wyoming | H43: 451318.04 | I43: 451318.04 | J43: 451318.04 | K43: 451318.04 | L43: 451318.04 | M43: 451318.04 | N43: 451318.04 | O43: 451318.04 | P43: 451318.04 | Q43: 451318.04 | R43: 451318.04 | S43: 451318.04 | T43: 451318.04 | U43: 451318.04 | V43: 451318.04 | W43: 451318.04 | X43: 451318.04 | Y43: 451318.04 | Z43: 451318.04 | AA43: 451318.04 | AB43: 451318.04 | AC43: 451318.04 | AD43: 451318.04 | AE43: 451318.04 | AG43: =(SUM(T43:AD43)+(0.5*AE43)+(0.5*S43))/12 -> 451318.04 | AI43: =AE43 -> 451318.04 | AJ43: =AG43 -> 451318.04 | AK43: =+'RB FORECAST'!AJ45 -> 460226.151 | AL43: =+'RB FORECAST'!AG45 -> 462527.3442 | AM43: =+'RB FORECAST'!BA45 -> 471536.0849 | AN43: =+'RB FORECAST'!AW45 -> 473863.2733 | AP43: =HLOOKUP($AP$8,RateBaseScenarios,AR43,FALSE) -> 460226.151 | AQ43: =AP43-AE43 -> 8908.11102 | AR43: 36 | AS43: 21 | AW43: Wyoming | AY43: =+AE43 -> 451318.04 | AZ43: =AP43 -> 460226.151 | BA43: =AZ43-AY43 -> 8908.11102
A44: 973 | D44: Utah | H44: 22695756.53 | I44: 22699497.74 | J44: 23256879.52 | K44: 23262108.84 | L44: 23492748.33 | M44: 23494101.11 | N44: 23499231.09 | O44: 23503827.05 | P44: 23503827.05 | Q44: 23503827.05 | R44: 23504988.38 | S44: 23753887.26 | T44: 23785732.91 | U44: 23786061.26 | V44: 24336170.14 | W44: 24336532.82 | X44: 24337729.29 | Y44: 24337772.84 | Z44: 24339292.84 | AA44: 24340297.84 | AB44: 24340297.84 | AC44: 24340297.84 | AD44: 24343860.93 | AE44: 24343860.93 | AG44: =(SUM(T44:AD44)+(0.5*AE44)+(0.5*S44))/12 -> 24222743.39 | AI44: =AE44 -> 24343860.93 | AJ44: =AG44 -> 24222743.39 | AK44: =+'RB FORECAST'!AJ46 -> 24824359.82 | AL44: =+'RB FORECAST'!AG46 -> 24948484.98 | AM44: =+'RB FORECAST'!BA46 -> 25434411.78 | AN44: =+'RB FORECAST'!AW46 -> 25559939.12 | AP44: =HLOOKUP($AP$8,RateBaseScenarios,AR44,FALSE) -> 24824359.82 | AQ44: =AP44-AE44 -> 480498.8868 | AR44: 37 | AS44: 22 | AW44: Utah | AY44: =+AE44 -> 24343860.93 | AZ44: =AP44 -> 24824359.82 | BA44: 480498.8868
A45: 974 | D45: Total | H45: 23147074.57 | I45: 23150815.78 | J45: 23708197.56 | K45: 23713426.88 | L45: 23944066.37 | M45: 23945419.15 | N45: 23950549.13 | O45: 23955145.09 | P45: 23955145.09 | Q45: 23955145.09 | R45: 23956306.42 | S45: =SUM(S43:S44) -> 24205205.3 | T45: 24237050.95 | U45: 24237379.3 | V45: 24787488.18 | W45: 24787850.86 | X45: 24789047.33 | Y45: 24789090.88 | Z45: 24790610.88 | AA45: 24791615.88 | AB45: 24791615.88 | AC45: 24791615.88 | AD45: 24795178.97 | AE45: 24795178.97 | AG45: =SUM(AG43:AG44) -> 24674061.43 | AI45: =AE45 -> 24795178.97 | AJ45: =AG45 -> 24674061.43 | AK45: =SUM(AK43:AK44) -> 25284585.97 | AL45: =SUM(AL43:AL44) -> 25411012.33 | AM45: =SUM(AM43:AM44) -> 25905947.87 | AN45: 26033802.39 | AP45: =HLOOKUP($AP$8,RateBaseScenarios,AR45,FALSE) -> 25284585.97 | AQ45: =SUM(AQ43:AQ44) -> 489406.9978 | AR45: 38 | AS45: 23 | AW45: Total | AY45: =AI45 -> 24795178.97 | AZ45: =AP45 -> 25284585.97 | BA45: 489406.9978
A46: 975 | AR46: 39 | AS46: 24
A47: 976 | B47: 375 | C47: Structures & Improyements | AR47: 40 | AS47: 25 | AU47: 375 | AV47: Structures & Improyements
A48: 977 | D48: Wyoming | H48: 1726157.84 | I48: 1726157.84 | J48: 1726157.84 | K48: 1726157.84 | L48: 1726157.84 | M48: 1726157.84 | N48: 1726157.84 | O48: 1726157.84 | P48: 1730202.84 | Q48: 1730202.84 | R48: 1730202.84 | S48: 1745114.89 | T48: 1730202.84 | U48: 1730202.84 | V48: 1730202.84 | W48: 1730202.84 | X48: 1730202.84 | Y48: 1730202.84 | Z48: 1730202.84 | AA48: 1730202.84 | AB48: 1730202.84 | AC48: 1730202.84 | AD48: 1730202.84 | AE48: 1730202.84 | AG48: =(SUM(T48:AD48)+(0.5*AE48)+(0.5*S48))/12 -> 1730824.175 | AI48: =AE48 -> 1730202.84 | AJ48: =AG48 -> 1730824.175 | AK48: =+'RB FORECAST'!AJ50 -> 1773770.703 | AL48: =+'RB FORECAST'!AG50 -> 1785235.93 | AM48: =+'RB FORECAST'!BA50 -> 1785235.93 | AN48: =+'RB FORECAST'!AW50 -> 1785235.93 | AP48: =HLOOKUP($AP$8,RateBaseScenarios,AR48,FALSE) -> 1773770.703 | AQ48: =AP48-AE48 -> 43567.86283 | AR48: 41 | AS48: 26 | AW48: Wyoming | AY48: =+AE48 -> 1730202.84 | AZ48: =AP48 -> 1773770.703 | BA48: =AZ48-AY48 -> 43567.86283
A49: 978 | D49: Utah | H49: 19102683.7 | I49: 19103337.35 | J49: 18406552.15 | K49: 18406614.08 | L49: 18406614.08 | M49: 18406614.08 | N49: 18408368.81 | O49: 18437309.37 | P49: 18584193.11 | Q49: 18597577.25 | R49: 18636148.92 | S49: 18625619.7 | T49: 18640531.75 | U49: 18640531.75 | V49: 18699767.51 | W49: 18699767.51 | X49: 18699767.51 | Y49: 18699767.51 | Z49: 18699767.51 | AA49: 18699767.51 | AB49: 18699767.51 | AC49: 18699767.51 | AD49: 18699767.51 | AE49: 18699767.51 | AG49: =(SUM(T49:AD49)+(0.5*AE49)+(0.5*S49))/12 -> 18686805.39 | AI49: =AE49 -> 18699767.51 | AJ49: =AG49 -> 18686805.39 | AK49: =+'RB FORECAST'!AJ51 -> 19170642.3 | AL49: =+'RB FORECAST'!AG51 -> 19294556.72 | AM49: =+'RB FORECAST'!BA51 -> 19294556.72 | AN49: =+'RB FORECAST'!AW51 -> 19294556.72 | AP49: =HLOOKUP($AP$8,RateBaseScenarios,AR49,FALSE) -> 19170642.3 | AQ49: =AP49-AE49 -> 470874.7939 | AR49: 42 | AS49: 27 | AW49: Utah | AY49: =+AE49 -> 18699767.51 | AZ49: =AP49 -> 19170642.3 | BA49: 470874.7939
A50: 979 | D50: Total | H50: 20828841.54 | I50: 20829495.19 | J50: 20132709.99 | K50: 20132771.92 | L50: 20132771.92 | M50: 20132771.92 | N50: 20134526.65 | O50: 20163467.21 | P50: 20314395.95 | Q50: 20327780.09 | R50: 20366351.76 | S50: =SUM(S48:S49) -> 20370734.59 | T50: 20370734.59 | U50: 20370734.59 | V50: 20429970.35 | W50: 20429970.35 | X50: 20429970.35 | Y50: 20429970.35 | Z50: 20429970.35 | AA50: 20429970.35 | AB50: 20429970.35 | AC50: 20429970.35 | AD50: 20429970.35 | AE50: 20429970.35 | AG50: =SUM(AG48:AG49) -> 20417629.57 | AI50: =AE50 -> 20429970.35 | AJ50: =AG50 -> 20417629.57 | AK50: =SUM(AK48:AK49) -> 20944413.01 | AL50: =SUM(AL48:AL49) -> 21079792.65 | AM50: =SUM(AM48:AM49) -> 21079792.65 | AN50: 21079792.65 | AP50: =HLOOKUP($AP$8,RateBaseScenarios,AR50,FALSE) -> 20944413.01 | AQ50: =SUM(AQ48:AQ49) -> 514442.6568 | AR50: 43 | AS50: 28 | AW50: Total | AY50: =AI50 -> 20429970.35 | AZ50: =AP50 -> 20944413.01 | BA50: 514442.6568
A51: 980 | AR51: 44 | AS51: 29
A52: 981 | B52: 376 | C52: Mains | AR52: 45 | AS52: 30 | AU52: 376 | AV52: Mains
A53: 982 | D53: Dist - Wy - Mains - SD | AP53: =HLOOKUP($AP$8,RateBaseScenarios,AR53,FALSE) -> 0 | AR53: 46 | AS53: 31 | AV53: Dist - Wy - Mains - SD
A54: 983 | D54: Dist - Wy - Mains - LD | AP54: 0 | AR54: 47 | AS54: 32 | AV54: Dist - Wy - Mains - LD
A55: 984 | D55: Dist - Wy - Mains - Feeders | AP55: 0 | AR55: 48 | AS55: 33 | AV55: Dist - Wy - Mains - Feeders
A56: 985 | D56: Total Wyoming | H56: 54347577.92 | I56: 54360229.6 | J56: 54377954.97 | K56: 54368557.87 | L56: 54629798.57 | M56: 54629373.1 | N56: 54855862.09 | O56: 59213534.87 | P56: 59213534.87 | Q56: 59293030.94 | R56: 59546185.61 | S56: 60653809.6 | T56: 59686377.09 | U56: 60099371.44 | V56: 60168742.38 | W56: 60412415.28 | X56: 60512422.79 | Y56: 60512422.79 | Z56: 60512422.79 | AA56: 61273803.97 | AB56: 61409886.51 | AC56: 61409886.51 | AD56: 61399036.9 | AE56: 61399066.57 | AG56: =(SUM(T56:AD56)+(0.5*AE56)+(0.5*S56))/12 -> 60701935.54 | AI56: =AE56 -> 61399066.57 | AJ56: =AG56 -> 60701935.54 | AK56: =+'RB FORECAST'!AJ58 -> 67523684.9 | AL56: =+'RB FORECAST'!AG58 -> 72054052 | AM56: =+'RB FORECAST'!BA58 -> 75117319.09 | AN56: =+'RB FORECAST'!AW58 -> 77383211.22 | AP56: 67523684.9 | AQ56: =AP56-AE56 -> 6124618.33 | AR56: 49 | AS56: 34 | AV56: Total Wyoming | AW56: Wyoming | AY56: =+AE56 -> 61399066.57 | AZ56: =AP56 -> 67523684.9 | BA56: =AZ56-AY56 -> 6124618.33
A57: 986 | D57: Dist - Ut - Mains - SD | AP57: 0 | AR57: =+AR56+1 -> 50 | AS57: =+AS56+1 -> 35 | AV57: Dist - Ut - Mains - SD
A58: 987 | D58: Dist - Ut - Mains - LD | AP58: 0 | AR58: 51 | AS58: 36 | AV58: Dist - Ut - Mains - LD
A59: 988 | D59: Dist - Ut - Mains - Feeders | AP59: 0 | AR59: 52 | AS59: 37 | AV59: Dist - Ut - Mains - Feeders
A60: 989 | D60: Total Utah | H60: 1786433066 | I60: 1809622821 | J60: 1854262396 | K60: 1857373644 | L60: 1859715801 | M60: 1866232372 | N60: 1866255524 | O60: 1868312785 | P60: 1897158542 | Q60: 1949161170 | R60: 1953427421 | S60: 1968966497 | T60: 2004134523 | U60: 2059862925 | V60: 2064705738 | W60: 2075396223 | X60: 2078109550 | Y60: 2091489875 | Z60: 2115601618 | AA60: 2119541943 | AB60: 2128411059 | AC60: 2129206032 | AD60: 2137066272 | AE60: 2178466918 | AG60: =(SUM(T60:AD60)+(0.5*AE60)+(0.5*S60))/12 -> 2089770205 | AI60: =AE60 -> 2178466918 | AJ60: =AG60 -> 2089770205 | AK60: =+'RB FORECAST'!AJ62 -> 2395771173 | AL60: =+'RB FORECAST'!AG62 -> 2556510667 | AM60: =+'RB FORECAST'!BA62 -> 2665196782 | AN60: =+'RB FORECAST'!AW62 -> 2745591669 | AP60: 2395771173 | AQ60: =AP60-AE60 -> 217304255 | AR60: 53 | AS60: 38 | AV60: Total Utah | AY60: =+AE60 -> 2178466918 | AZ60: =AP60 -> 2395771173 | BA60: =AZ60-AY60 -> 217304255
A61: 990 | D61: Total | H61: 1840780644 | I61: 1863983050 | J61: 1908640351 | K61: 1911742202 | L61: 1914345600 | M61: 1920861745 | N61: 1921111386 | O61: 1927526320 | P61: 1956372077 | Q61: 2008454201 | R61: 2012973606 | S61: =SUM(S56:S60) -> 2029620306 | T61: 2063820900 | U61: 2119962296 | V61: 2124874480 | W61: 2135808638 | X61: 2138621973 | Y61: 2152002298 | Z61: 2176114041 | AA61: 2180815747 | AB61: 2189820946 | AC61: 2190615919 | AD61: 2198465309 | AE61: 2239865985 | AG61: =SUM(AG56:AG60) -> 2150472141 | AI61: =AE61 -> 2239865985 | AJ61: =AG61 -> 2150472141 | AK61: =SUM(AK56:AK60) -> 2463294858 | AL61: =SUM(AL56:AL60) -> 2628564719 | AM61: =SUM(AM56:AM60) -> 2740314101 | AN61: 2822974881 | AP61: 2463294858 | AQ61: =AQ60+AQ56 -> 223428873.4 | AR61: 54 | AS61: 39 | AW61: Total | AY61: =AI61 -> 2239865985 | AZ61: =AP61 -> 2463294858 | BA61: =AZ61-AY61 -> 223428873.4
A62: 991 | AR62: 55 | AS62: 40
A63: 992 | B63: 377 | C63: Compressor Station Equipment | AR63: 56 | AS63: 41 | AU63: 377 | AV63: Compressor Station Equipment
A64: 993 | D64: Wyoming | H64: 0 | I64: 0 | J64: 0 | K64: 0 | L64: 0 | M64: 0 | N64: 0 | O64: 0 | P64: 0 | Q64: 0 | R64: 0 | S64: 0 | T64: 0 | U64: 0 | V64: 0 | W64: 0 | X64: 0 | Y64: 0 | Z64: 0 | AA64: 99725.57 | AB64: 99725.57 | AC64: 99725.57 | AD64: 99725.57 | AE64: 99725.57 | AG64: =(SUM(T64:AD64)+(0.5*AE64)+(0.5*S64))/12 -> 37397.08875 | AI64: =AE64 -> 99725.57 | AJ64: =AG64 -> 37397.08875 | AK64: =+'RB FORECAST'!AJ66 -> 99818.35344 | AL64: =+'RB FORECAST'!AG66 -> 99972.99251 | AM64: =+'RB FORECAST'!BA66 -> 0 | AN64: =+'RB FORECAST'!AW66 -> 0 | AP64: =HLOOKUP($AP$8,RateBaseScenarios,AR64,FALSE) -> 99818.35344 | AQ64: =AP64-AE64 -> 92.78343941 | AR64: 57 | AS64: 42 | AW64: Wyoming | AY64: =+AE64 -> 99725.57 | AZ64: =AP64 -> 99818.35344 | BA64: =AZ64-AY64 -> 92.78343941
A65: 994 | D65: Utah | H65: 15186701.27 | I65: 15150528.75 | J65: 16163608.04 | K65: 16163608.04 | L65: 16163608.04 | M65: 16163608.04 | N65: 16163608.04 | O65: 16163608.04 | P65: 16163608.04 | Q65: 16163608.04 | R65: 16163947.34 | S65: 16267682.99 | T65: 16267682.99 | U65: 16267682.99 | V65: 16267682.99 | W65: 16267682.99 | X65: 16267682.99 | Y65: 16267682.99 | Z65: 16267682.99 | AA65: 16267682.99 | AB65: 16267682.99 | AC65: 16267682.99 | AD65: 16267682.99 | AE65: 16267682.99 | AG65: =(SUM(T65:AD65)+(0.5*AE65)+(0.5*S65))/12 -> 16267682.99 | AI65: =AE65 -> 16267682.99 | AJ65: =AG65 -> 16267682.99 | AK65: =+'RB FORECAST'!AJ67 -> 16282818.24 | AL65: =+'RB FORECAST'!AG67 -> 16308043.66 | AM65: =+'RB FORECAST'!BA67 -> 16366074.48 | AN65: =+'RB FORECAST'!AW67 -> 16462792.52 | AP65: =HLOOKUP($AP$8,RateBaseScenarios,AR65,FALSE) -> 16282818.24 | AQ65: =AP65-AE65 -> 15135.25146 | AR65: 58 | AS65: 43 | AW65: Utah | AY65: =+AE65 -> 16267682.99 | AZ65: =AP65 -> 16282818.24 | BA65: =AZ65-AY65 -> 15135.25146
A66: 995 | D66: Total | H66: 15186701.27 | I66: 15150528.75 | J66: 16163608.04 | K66: 16163608.04 | L66: 16163608.04 | M66: 16163608.04 | N66: 16163608.04 | O66: 16163608.04 | P66: 16163608.04 | Q66: 16163608.04 | R66: 16163947.34 | S66: 16267682.99 | T66: 16267682.99 | U66: 16267682.99 | V66: 16267682.99 | W66: 16267682.99 | X66: 16267682.99 | Y66: 16267682.99 | Z66: 16267682.99 | AA66: 16367408.56 | AB66: 16367408.56 | AC66: 16367408.56 | AD66: 16367408.56 | AE66: 16367408.56 | AG66: =SUM(AG64:AG65) -> 16305080.08 | AI66: =AE66 -> 16367408.56 | AJ66: =AG66 -> 16305080.08 | AK66: =SUM(AK64:AK65) -> 16382636.59 | AL66: =SUM(AL64:AL65) -> 16408016.65 | AM66: =SUM(AM64:AM65) -> 16366074.48 | AN66: 16462792.52 | AP66: =HLOOKUP($AP$8,RateBaseScenarios,AR66,FALSE) -> 16382636.59 | AQ66: =SUM(AQ64:AQ65) -> 15228.0349 | AR66: 59 | AS66: 44 | AW66: Total | AY66: =AI66 -> 16367408.56 | AZ66: =AP66 -> 16382636.59 | BA66: =AZ66-AY66 -> 15228.0349
A67: 996 | AR67: 60 | AS67: 45
A68: 997 | B68: 378 | C68: Measuring & Regulation Station Equip | AR68: 61 | AS68: 46 | AU68: 378 | AV68: Measuring & Regulation Station Equip
A69: 998 | D69: Wyoming | H69: 8077759.88 | I69: 8322595.6 | J69: 8322595.6 | K69: 8358177.54 | L69: 8358177.54 | M69: 8358177.54 | N69: 8368449.58 | O69: 8368449.58 | P69: 8371506.7 | Q69: 8371943.16 | R69: 8373564.37 | S69: 8558201.03 | T69: 8373564.37 | U69: 8373564.37 | V69: 8373578.6 | W69: 8373578.6 | X69: 8373578.6 | Y69: 8373578.6 | Z69: 8373578.6 | AA69: 9454921.93 | AB69: 9454921.93 | AC69: 9455591.65 | AD69: 9435237.95 | AE69: 9435237.95 | AG69: =(SUM(T69:AD69)+(0.5*AE69)+(0.5*S69))/12 -> 8784367.891 | AI69: =AE69 -> 9435237.95 | AJ69: =AG69 -> 8784367.891 | AK69: =+'RB FORECAST'!AJ71 -> 10057459.29 | AL69: =+'RB FORECAST'!AG71 -> 10929930.93 | AM69: =+'RB FORECAST'!BA71 -> 11519360.34 | AN69: =+'RB FORECAST'!AW71 -> 12345851.5 | AP69: =HLOOKUP($AP$8,RateBaseScenarios,AR69,FALSE) -> 10057459.29 | AQ69: =AP69-AE69 -> 622221.3404 | AR69: 62 | AS69: 47 | AW69: Wyoming | AY69: =+AE69 -> 9435237.95 | AZ69: =AP69 -> 10057459.29 | BA69: =AZ69-AY69 -> 622221.3404
A70: 999 | D70: Utah | H70: 119020599.6 | I70: 119403530.4 | J70: 119124043.8 | K70: 120512061.2 | L70: 120617561.3 | M70: 120464166.3 | N70: 122165760.6 | O70: 122852360.8 | P70: 123229117.3 | Q70: 124504128.3 | R70: 124414126.9 | S70: 131731779 | T70: 133034584.6 | U70: 135251634.7 | V70: 135817150.1 | W70: 137264834.5 | X70: 137364749.4 | Y70: 138272843.7 | Z70: 140447947.4 | AA70: 139657056.6 | AB70: 140012828.7 | AC70: 141220474.5 | AD70: 142896190 | AE70: 147419557 | AG70: =(SUM(T70:AD70)+(0.5*AE70)+(0.5*S70))/12 -> 138401330.2 | AI70: =AE70 -> 147419557 | AJ70: =AG70 -> 138401330.2 | AK70: =+'RB FORECAST'!AJ72 -> 157141367.4 | AL70: =+'RB FORECAST'!AG72 -> 170773178.7 | AM70: =+'RB FORECAST'!BA72 -> 179982636.1 | AN70: =+'RB FORECAST'!AW72 -> 192896031.8 | AP70: =HLOOKUP($AP$8,RateBaseScenarios,AR70,FALSE) -> 157141367.4 | AQ70: =AP70-AE70 -> 9721810.395 | AR70: 63 | AS70: 48 | AW70: Utah | AY70: =+AE70 -> 147419557 | AZ70: =AP70 -> 157141367.4 | BA70: =AZ70-AY70 -> 9721810.395
A71: 1000 | D71: Total | H71: 127098359.5 | I71: 127726126 | J71: 127446639.4 | K71: 128870238.8 | L71: 128975738.8 | M71: 128822343.9 | N71: 130534210.2 | O71: 131220810.4 | P71: 131600624 | Q71: 132876071.4 | R71: 132787691.3 | S71: 140289980 | T71: 141408149 | U71: 143625199.1 | V71: 144190728.7 | W71: 145638413.1 | X71: 145738328 | Y71: 146646422.3 | Z71: 148821526 | AA71: 149111978.5 | AB71: 149467750.6 | AC71: 150676066.2 | AD71: 152331427.9 | AE71: 156854795 | AG71: =SUM(AG69:AG70) -> 147185698.1 | AI71: =AE71 -> 156854795 | AJ71: =AG71 -> 147185698.1 | AK71: =SUM(AK69:AK70) -> 167198826.7 | AL71: =SUM(AL69:AL70) -> 181703109.6 | AM71: =SUM(AM69:AM70) -> 191501996.4 | AN71: 205241883.3 | AP71: =HLOOKUP($AP$8,RateBaseScenarios,AR71,FALSE) -> 167198826.7 | AQ71: =SUM(AQ69:AQ70) -> 10344031.74 | AR71: 64 | AS71: 49 | AW71: Total | AY71: =AI71 -> 156854795 | AZ71: =AP71 -> 167198826.7 | BA71: =AZ71-AY71 -> 10344031.74
A72: 1001 | AR72: 65 | AS72: 50
A73: 1002 | B73: 380 | C73: Seryices | AR73: 66 | AS73: 51 | AU73: 380 | AV73: Seryices
A74: 1003 | D74: Wyoming | H74: 21341745.72 | I74: 21341745.72 | J74: 21341745.72 | K74: 21341745.72 | L74: 21341745.72 | M74: 21341745.72 | N74: 21341745.72 | O74: 21341745.72 | P74: 21341745.72 | Q74: 21821003.51 | R74: 21821003.51 | S74: 22506439.3 | T74: 21911421.41 | U74: 21911421.41 | V74: 21911421.41 | W74: 21911421.41 | X74: 21911421.41 | Y74: 21911421.41 | Z74: 21911421.41 | AA74: 21911421.41 | AB74: 21911421.41 | AC74: 22204316.14 | AD74: 22204316.14 | AE74: 22190802.8 | AG74: =(SUM(T74:AD74)+(0.5*AE74)+(0.5*S74))/12 -> 21996670.5 | AI74: =AE74 -> 22190802.8 | AJ74: =AG74 -> 21996670.5 | AK74: =+'RB FORECAST'!AJ76 -> 24338091.25 | AL74: =+'RB FORECAST'!AG76 -> 26006712.2 | AM74: =+'RB FORECAST'!BA76 -> 26741155.52 | AN74: =+'RB FORECAST'!AW76 -> 27311878.79 | AP74: =HLOOKUP($AP$8,RateBaseScenarios,AR74,FALSE) -> 24338091.25 | AQ74: =AP74-AE74 -> 2147288.455 | AR74: 67 | AS74: 52 | AW74: Wyoming | AY74: =+AE74 -> 22190802.8 | AZ74: =AP74 -> 24338091.25 | BA74: =AZ74-AY74 -> 2147288.455
A75: 1004 | D75: Utah | H75: 420293606.3 | I75: 420293606.3 | J75: 420248268 | K75: 420243004.2 | L75: 420241635.6 | M75: 420231479.8 | N75: 420229742.1 | O75: 420228409.8 | P75: 420227401.6 | Q75: 420225813 | R75: 420224342.8 | S75: 419628791.9 | T75: 420222284.5 | U75: 420222141.7 | V75: 420221385.4 | W75: 420220661.7 | X75: 420220151 | Y75: 420219789 | Z75: 420219789 | AA75: 420219789 | AB75: 420217596.9 | AC75: 420217596.9 | AD75: 420217596.9 | AE75: 420031218 | AG75: =(SUM(T75:AD75)+(0.5*AE75)+(0.5*S75))/12 -> 420187398.9 | AI75: =AE75 -> 420031218 | AJ75: =AG75 -> 420187398.9 | AK75: =+'RB FORECAST'!AJ77 -> 460675452.1 | AL75: =+'RB FORECAST'!AG77 -> 492259387.8 | AM75: =+'RB FORECAST'!BA77 -> 506161053.5 | AN75: =+'RB FORECAST'!AW77 -> 516963798.9 | AP75: =HLOOKUP($AP$8,RateBaseScenarios,AR75,FALSE) -> 460675452.1 | AQ75: =AP75-AE75 -> 40644234.15 | AR75: 68 | AS75: 53 | AW75: Utah | AY75: =+AE75 -> 420031218 | AZ75: =AP75 -> 460675452.1 | BA75: =AZ75-AY75 -> 40644234.15
A76: 1005 | D76: Total | H76: 441635352 | I76: 441635352 | J76: 441590013.7 | K76: 441584749.9 | L76: 441583381.3 | M76: 441573225.5 | N76: 441571487.8 | O76: 441570155.5 | P76: 441569147.3 | Q76: 442046816.5 | R76: 442045346.3 | S76: 442135231.2 | T76: 442133705.9 | U76: 442133563.2 | V76: 442132806.8 | W76: 442132083.1 | X76: 442131572.4 | Y76: 442131210.4 | Z76: 442131210.4 | AA76: 442131210.4 | AB76: 442129018.3 | AC76: 442421913.1 | AD76: 442421913.1 | AE76: 442222020.8 | AG76: =SUM(AG74:AG75) -> 442184069.4 | AI76: =AE76 -> 442222020.8 | AJ76: =AG76 -> 442184069.4 | AK76: =SUM(AK74:AK75) -> 485013543.4 | AL76: =SUM(AL74:AL75) -> 518266100 | AM76: =SUM(AM74:AM75) -> 532902209 | AN76: 544275677.7 | AP76: =HLOOKUP($AP$8,RateBaseScenarios,AR76,FALSE) -> 485013543.4 | AQ76: =SUM(AQ74:AQ75) -> 42791522.6 | AR76: 69 | AS76: 54 | AW76: Total | AY76: =AI76 -> 442222020.8 | AZ76: =AP76 -> 485013543.4 | BA76: =AZ76-AY76 -> 42791522.6
A77: 1006 | AR77: 70 | AS77: 55
A78: 1007 | B78: 381...2 | C78: Meters & Meter Installation | AR78: 71 | AS78: 56 | AU78: 381...2 | AV78: Meters & Meter Installation
A79: 1008 | D79: Wyoming | H79: 10427173.3 | I79: 10425125.51 | J79: 10422039.49 | K79: 10417682.74 | L79: 10412153.7 | M79: 10412153.7 | N79: 10396180.92 | O79: 10380867.2 | P79: 10380867.2 | Q79: 10378409.85 | R79: 10377385.95 | S79: 11137953.87 | T79: 10376662.05 | U79: 10375938.16 | V79: 10375938.16 | W79: 10375938.16 | X79: 10375938.16 | Y79: 10375938.16 | Z79: 10375938.16 | AA79: 10373806.26 | AB79: 10373806.26 | AC79: 10373749.42 | AD79: 10373749.42 | AE79: 10373749.42 | AG79: =(SUM(T79:AD79)+(0.5*AE79)+(0.5*S79))/12 -> 10406937.83 | AI79: =AE79 -> 10373749.42 | AJ79: =AG79 -> 10406937.83 | AK79: =+'RB FORECAST'!AJ81 -> 11146825.95 | AL79: =+'RB FORECAST'!AG81 -> 12450993.09 | AM79: =+'RB FORECAST'!BA81 -> 12727309.86 | AN79: =+'RB FORECAST'!AW81 -> 13193451.61 | AP79: =HLOOKUP($AP$8,RateBaseScenarios,AR79,FALSE) -> 11146825.95 | AQ79: =AP79-AE79 -> 773076.5311 | AR79: 72 | AS79: 57 | AW79: Wyoming | AY79: =+AE79 -> 10373749.42 | AZ79: =AP79 -> 11146825.95 | BA79: =AZ79-AY79 -> 773076.5311
A80: 1009 | D80: Utah | H80: 346111776.7 | I80: 346061401.7 | J80: 346041405.6 | K80: 345954434.7 | L80: 345910749.8 | M80: 345910749.8 | N80: 345793221.1 | O80: 360173595.7 | P80: 380495527.5 | Q80: 399460801.3 | R80: 399426702.3 | S80: 399038297.1 | T80: 399754135.1 | U80: 399705247.6 | V80: 399705247.6 | W80: 399705580.5 | X80: 399705580.5 | Y80: 399776930.6 | Z80: 400353154.5 | AA80: 400288745.2 | AB80: 400288819.7 | AC80: 400406157.9 | AD80: 400406157.9 | AE80: 400378500.9 | AG80: =(SUM(T80:AD80)+(0.5*AE80)+(0.5*S80))/12 -> 399983679.7 | AI80: =AE80 -> 400378500.9 | AJ80: =AG80 -> 399983679.7 | AK80: =+'RB FORECAST'!AJ82 -> 430215661 | AL80: =+'RB FORECAST'!AG82 -> 480550449.7 | AM80: =+'RB FORECAST'!BA82 -> 491214992.3 | AN80: =+'RB FORECAST'!AW82 -> 509205896.7 | AP80: =HLOOKUP($AP$8,RateBaseScenarios,AR80,FALSE) -> 430215661 | AQ80: =AP80-AE80 -> 29837160.13 | AR80: 73 | AS80: 58 | AW80: Utah | AY80: =+AE80 -> 400378500.9 | AZ80: =AP80 -> 430215661 | BA80: =AZ80-AY80 -> 29837160.13
